Workbook

Sheet в печать
E1: Себестоимость работ, руб с НДС | G1: Себестоимость материалов, руб с НДС | J1: Стоимость работ, руб. с НДС | L1: Стоимость материалов, руб. с НДС | O1: 1.31 | P1: 1.3 | Q1: 1.7
A2: № | B2: Наименовение | C2: Ед.изм | D2: Кол-во | E2: за ед. | F2: итого | G2: за ед | H2: итого | I2: Итого, руб с НДС | J2: за ед. | K2: Итого | L2: за ед. | M2: Итого | N2: Итого, руб. с НДС | O2: Работы | P2: Материалы | Q2: Оборудование
A3: 1 | B3: Основные объекты строительства, реконструкции, капитального ремонта, в том числе:
A4: 1.1 | B4: 130-23-АС3 Архитектурно-строительные решения | F4: =F7+F8+F10+F13+F14+F16+F17+F18+F25+F26+F28+F30+F31+F33+F36+F38+F40+F41+F42+F44+F45+F46+F47+F49+F51+F52+F53+F56+F57+F58+F59+F62+F64+F66+F68+F70+F71+F72+F73+F74+F75+F76+F77+F78+F79+F80+F82+F83+F84+F85+F86+F87+F88+F89+F90+F91+F92+F93+F94+F95+F96+F97+F98+F99+F100+F101+F102+F103+F104+F105+F106+F107+F108 -> 14079781.04 | H4: =H7+H8+H10+H13+H14+H16+H17+H18+H25+H26+H28+H30+H31+H33+H36+H38+H40+H41+H42+H44+H45+H46+H47+H49+H51+H52+H53+H56+H57+H58+H59+H62+H64+H66+H68+H70+H71+H72+H73+H74+H75+H76+H77+H78+H79+H80+H82+H83+H84+H85+H86+H87+H88+H89+H90+H91+H92+H93+H94+H95+H96+H97+H98+H99+H100+H101+H102+H103+H104+H105+H106+H107+H108 -> 19526383.14 | I4: =I7+I8+I10+I13+I14+I16+I17+I18+I25+I26+I28+I30+I31+I33+I36+I38+I40+I41+I42+I44+I45+I46+I47+I49+I51+I52+I53+I56+I57+I58+I59+I62+I64+I66+I68+I70+I71+I72+I73+I74+I75+I76+I77+I78+I79+I80+I82+I83+I84+I85+I86+I87+I88+I89+I90+I91+I92+I93+I94+I95+I96+I97+I98+I99+I100+I101+I102+I103+I104+I105+I106+I107+I108 -> 33606164.18 | K4: =K7+K8+K10+K13+K14+K16+K17+K18+K25+K26+K28+K30+K31+K33+K36+K38+K40+K41+K42+K44+K45+K46+K47+K49+K51+K52+K53+K56+K57+K58+K59+K62+K64+K66+K68+K70+K71+K72+K73+K74+K75+K76+K77+K78+K79+K80+K82+K83+K84+K85+K86+K87+K88+K89+K90+K91+K92+K93+K94+K95+K96+K97+K98+K99+K100+K101+K102+K103+K104+K105+K106+K107+K108 -> 24876683.59 | M4: =M7+M8+M10+M13+M14+M16+M17+M18+M25+M26+M28+M30+M31+M33+M36+M38+M40+M41+M42+M44+M45+M46+M47+M49+M51+M52+M53+M56+M57+M58+M59+M62+M64+M66+M68+M70+M71+M72+M73+M74+M75+M76+M77+M78+M79+M80+M82+M83+M84+M85+M86+M87+M88+M89+M90+M91+M92+M93+M94+M95+M96+M97+M98+M99+M100+M101+M102+M103+M104+M105+M106+M107+M108 -> 21692881.86 | N4: =N7+N8+N10+N13+N14+N16+N17+N18+N25+N26+N28+N30+N31+N33+N36+N38+N40+N41+N42+N44+N45+N46+N47+N49+N51+N52+N53+N56+N57+N58+N59+N62+N64+N66+N68+N70+N71+N72+N73+N74+N75+N76+N77+N78+N79+N80+N82+N83+N84+N85+N86+N87+N88+N89+N90+N91+N92+N93+N94+N95+N96+N97+N98+N99+N100+N101+N102+N103+N104+N105+N106+N107+N108 -> 46569565.45
A5: 1.1 | B5: 130-23-АС3 Архитектурно-строительные решения | F5: =F9-F7-F8-F10+F12-F14-F16-F17-F18+F19+F20+F21+F22+F23-F25-F26+F27+F29-F30-F31+F32+F34+F35+F37+F39-F41-F42+F43-F45-F46-F47+F48+F50-F51-F52-F53+F55-F57-F58-F59+F61+F63+F65+F67+F69-F71-F72-F73-F74-F75-F76-F77-F78-F79-F80 -> -13687887.58 | H5: =H9-H7-H8-H10+H12-H14-H16-H17-H18+H19+H20+H21+H22+H23-H25-H26+H27+H29-H30-H31+H32+H34+H35+H37+H39-H41-H42+H43-H45-H46-H47+H48+H50-H51-H52-H53+H55-H57-H58-H59+H61+H63+H65+H67+H69-H71-H72-H73-H74-H75-H76-H77-H78-H79-H80 -> -19492573.68 | I5: =I9-I7-I8-I10+I12-I14-I16-I17-I18+I19+I20+I21+I22+I23-I25-I26+I27+I29-I30-I31+I32+I34+I35+I37+I39-I41-I42+I43-I45-I46-I47+I48+I50-I51-I52-I53+I55-I57-I58-I59+I61+I63+I65+I67+I69-I71-I72-I73-I74-I75-I76-I77-I78-I79-I80 -> -33180461.26 | K5: =K9-K7-K8-K10+K12-K14-K16-K17-K18+K19+K20+K21+K22+K23-K25-K26+K27+K29-K30-K31+K32+K34+K35+K37+K39-K41-K42+K43-K45-K46-K47+K48+K50-K51-K52-K53+K55-K57-K58-K59+K61+K63+K65+K67+K69-K71-K72-K73-K74-K75-K76-K77-K78-K79-K80 -> -23834068.02 | M5: =M9-M7-M8-M10+M12-M14-M16-M17-M18+M19+M20+M21+M22+M23-M25-M26+M27+M29-M30-M31+M32+M34+M35+M37+M39-M41-M42+M43-M45-M46-M47+M48+M50-M51-M52-M53+M55-M57-M58-M59+M61+M63+M65+M67+M69-M71-M72-M73-M74-M75-M76-M77-M78-M79-M80 -> -21868543.3 | N5: =N9-N7-N8-N10+N12-N14-N16-N17-N18+N19+N20+N21+N22+N23-N25-N26+N27+N29-N30-N31+N32+N34+N35+N37+N39-N41-N42+N43-N45-N46-N47+N48+N50-N51-N52-N53+N55-N57-N58-N59+N61+N63+N65+N67+N69-N71-N72-N73-N74-N75-N76-N77-N78-N79-N80 -> -45702611.32
A6: 1.1.1 | B6: Демонтажные работы
A7: 1.1.1.1 | B7: Частичный демонтаж крестовых связей | C7: тн | D7: 0.44 | E7: 35355 | F7: =E7*D7 -> 15556.2 | G7: 0 | H7: =G7*D7 -> 0 | I7: =H7+F7 -> 15556.2 | J7: 49415 | K7: =D7*J7 -> 21742.6 | L7: =G7*$P$1 -> 0 | M7: =D7*L7 -> 0 | N7: =K7+M7 -> 21742.6
A8: 1.1.1.2 | B8: Демонтаж сэндвич панелей | C8: м2 | D8: 389.4 | E8: 756 | F8: 294386.4 | G8: 0 | H8: =G8*D8 -> 0 | I8: 294386.4 | J8: 990 | K8: =D8*J8 -> 385506 | L8: 0 | N8: =K8+M8 -> 385506
A9: 1.1.2 | B9: Устройство фахверка | C9: тн | D9: -0.34 | E9: 71610 | F9: =E9*D9 -> -24347.4 | G9: 166522 | H9: =G9*D9 -> -56617.48 | I9: =H9+F9 -> -80964.88 | J9: 95478 | K9: =D9*J9 -> -32462.52 | L9: 229000 | M9: =D9*L9 -> -77860 | N9: =J9*D9+L9*D9 -> -110322.52
A10: 1.1.3 | B10: Устройство сэндвич панелей | C10: м2 | D10: 389.4 | E10: 1443.75 | F10: 562196.25 | G10: 4095.3 | H10: 1594709.82 | I10: 2156906.07 | J10: 2711 | K10: =D10*J10 -> 1055663.4 | L10: 6573 | M10: =D10*L10 -> 2559526.2 | N10: =J10*D10+L10*D10 -> 3615189.6
A11: 1.1.4 | B11: Устройство перегородок | J11: 0 | L11: 0
A12: 1.1.4.1 | B12: Перегородки гипсокартонные типа С112 комплексной системы КНАУФ толщиной 100 мм с облицовкой 2мя листами ГКЛ (толщиной 12,5мм) со звукоизолирующим слоем из минераловатных плит Лайт Баттс толщиной 50 мм | C12: м2 | D12: -536 | E12: 1640.1 | F12: =E12*D12 -> -879093.6 | G12: 4250.136 | H12: =G12*D12 -> -2278072.896 | I12: =H12+F12 -> -3157166.496 | J12: 4955 | K12: =D12*J12 -> -2655880 | L12: 4501 | M12: =D12*L12 -> -2412536 | N12: =J12*D12+L12*D12 -> -5068416
A13: 1.1.4.1 | B13: Перегородки гипсокартонные типа С112 комплексной системы КНАУФ толщиной 100 мм с облицовкой 2мя листами ГКЛ (толщиной 12,5мм) со звукоизолирующим слоем из минераловатных плит Лайт Баттс толщиной 50 мм | C13: м2 | D13: 525.76 | E13: 1640.1 | F13: =E13*D13 -> 862298.976 | G13: 4250.136 | H13: =G13*D13 -> 2234551.503 | I13: =H13+F13 -> 3096850.479 | J13: 4955 | K13: =D13*J13 -> 2605140.8 | L13: 4501 | M13: =D13*L13 -> 2366445.76 | N13: =J13*D13+L13*D13 -> 4971586.56
A14: 1.1.4.2 | B14: Устройство отверстий под воздуховоды | C14: шт | D14: 2 | E14: 6548 | F14: =D14*E14 -> 13096 | G14: 3582.5 | H14: =D14*G14 -> 7165 | I14: =H14+F14 -> 20261 | J14: 8577.88 | K14: =D14*J14 -> 17155.76 | L14: 4657.25 | M14: =D14*L14 -> 9314.5 | N14: =J14*D14+L14*D14 -> 26470.26
A15: 1.1.5 | B15: Отделка потолков помещений | J15: 0 | L15: 0
A16: 1.1.5.1 | B16: Подвесной потолок системы "Армстронг" | C16: м2 | D16: 301.4 | E16: 863.94 | F16: =E16*D16 -> 260391.516 | G16: 2173.314 | H16: =G16*D16 -> 655036.8396 | I16: =H16+F16 -> 915428.3556 | J16: 3957.07 | K16: =D16*J16 -> 1192660.898 | L16: 0 | N16: =J16*D16+L16*D16 -> 1192660.898
A17: 1.1.5.2 | B17: Подвесной потолок системы с шумоглушением | C17: м2 | D17: 168.8 | E17: 863.94 | F17: 145833.072 | G17: 2347.224 | H17: 396211.4112 | I17: 542044.4832 | J17: 1131.76 | K17: 191041.088 | L17: 3051.39 | M17: =D17*L17 -> 515074.632 | N17: 706115.72
A18: 1.1.5.3 | B18: Реечный алюминиевый потолок | C18: м2 | D18: 111.8 | E18: 1039.5 | F18: 116216.1 | G18: 5020.95 | H18: 561342.21 | I18: 677558.31 | J18: 7888.98 | K18: 881987.964 | L18: 0 | N18: 881987.964
A19: 1.1.5.4 | B19: Затирка бетонной поверхности перекрытия перед устройством потолка | C19: м2 | D19: -206.75 | E19: 866.25 | F19: -179097.1875 | G19: 553.146 | H19: -114362.9355 | I19: -293460.123 | J19: 1134.79 | K19: -234617.8325 | L19: 719.09 | M19: =D19*L19 -> -148671.8575 | N19: -383289.69
A20: 1.1.5.5 | B20: Устроиство базового слоя шпаклевки | C20: м2 | D20: -69.4 | E20: 678 | F20: =E20*D20 -> -47053.2 | G20: 356 | H20: =G20*D20 -> -24706.4 | I20: =H20+F20 -> -71759.6 | J20: 888.18 | K20: -61639.692 | L20: 462.8 | M20: =D20*L20 -> -32118.32 | N20: -93758.012
A21: 1.1.5.6 | B21: Устроиство финишного слоя шпаклевки | C21: м2 | D21: -69.4 | E21: 975 | F21: =E21*D21 -> -67665 | G21: 305.99 | H21: =G21*D21 -> -21235.706 | I21: =H21+F21 -> -88900.706 | J21: 1277.25 | K21: -88641.15 | L21: 397.79 | M21: =D21*L21 -> -27606.626 | N21: -116247.776
A22: 1.1.5.7 | B22: Окраска потолка силикатной краской за 2 раза | C22: м2 | D22: -69.4 | E22: 485.1 | F22: =E22*D22 -> -33665.94 | G22: 569.976 | H22: =G22*D22 -> -39556.3344 | I22: =H22+F22 -> -73222.2744 | J22: 635.48 | K22: -44102.312 | L22: 740.97 | M22: =D22*L22 -> -51423.318 | N22: -95525.63
A23: 1.1.5.8 | B23: Грунтовка поверхностей перед окрашиванием | C23: м2 | D23: -69.4 | E23: 57.75 | F23: =E23*D23 -> -4007.85 | G23: 32.538 | H23: =G23*D23 -> -2258.1372 | I23: =H23+F23 -> -6265.9872 | J23: 75.65 | K23: -5250.11 | L23: 42.3 | M23: =D23*L23 -> -2935.62 | N23: -8185.73
A24: 1.1.6 | B24: Полы помещений | J24: 0 | L24: 0
A25: 1.1.6.1 | B25: Очистка поверхности от грязи и мусора | C25: м2 | D25: 352.5 | E25: 288.75 | F25: =E25*D25 -> 101784.375 | G25: 56.1 | H25: =G25*D25 -> 19775.25 | I25: =H25+F25 -> 121559.625 | J25: 378 | K25: =D25*J25 -> 133245 | L25: 72.93 | M25: =D25*L25 -> 25707.825 | N25: =J25*D25+L25*D25 -> 158952.825
A26: 1.1.6.2 | B26: Устройство пола из бетона кл. В25 толщиной до 100 мм | C26: м3 | D26: 7.87 | E26: 12127.5 | F26: =E26*D26 -> 95443.425 | G26: 9537 | H26: =G26*D26 -> 75056.19 | I26: =H26+F26 -> 170499.615 | J26: 13208 | K26: 103946.96 | L26: 14998 | M26: 118034.26 | N26: 221981.22
A27: 1.1.6.3 | B27: Керамогранитная плитка | C27: м2 | D27: -187.8 | E27: 1640.1 | F27: =E27*D27 -> -308010.78 | G27: 3023.79 | H27: -567867.762 | I27: -875878.542 | J27: 4772 | K27: -896181.6 | L27: 2131 | M27: -400201.8 | N27: -1296383.4
A28: 1.1.6.3 | B28: Керамогранитная плитка | C28: м2 | D28: 524.67 | E28: 1640.1 | F28: =E28*D28 -> 860511.267 | G28: 3023.79 | H28: 1586491.899 | I28: 2447003.166 | J28: 4772 | K28: 2503725.24 | L28: 2131 | M28: 1118071.77 | N28: 3621797.01
A29: 1.1.6.4 | B29: Напольная керамическая плитка | C29: м2 | D29: -332.1 | E29: 1640.1 | F29: -544677.21 | G29: 3023.79 | H29: -1004200.659 | I29: -1548877.869 | J29: 2629 | K29: -873090.9 | L29: 3034 | M29: -1007591.4 | N29: -1880682.3
A30: 1.1.6.5 | B30: Коммерческий линолеум (33-34 кл.) | C30: м2 | D30: 121.8 | E30: 540.54 | F30: 65837.772 | G30: 2031.942 | H30: 247490.5356 | I30: 313328.3076 | J30: 708.11 | K30: 86247.798 | L30: 2641.52 | M30: 321737.136 | N30: 407984.934
A31: 1.1.6.6 | B31: Гидроизоляция Гидроизол | C31: м2 | D31: 141.3 | E31: 519.75 | F31: 73440.675 | G31: 833.646 | H31: 117794.1798 | I31: 191234.8548 | J31: 680.87 | K31: 96206.931 | L31: 1083.74 | M31: 153132.462 | N31: 249339.393
A32: 1.1.6.7 | B32: Наливной пол толщиной до 50мм | C32: м2 | D32: -355.6 | E32: 981.75 | F32: -349110.3 | G32: 1869.252 | H32: -664706.0112 | I32: -1013816.311 | J32: 3576 | K32: -1271625.6 | L32: 1630 | M32: -579628 | N32: -1851253.6
A33: 1.1.6.7 | B33: Наливной пол толщиной до 50мм | C33: м2 | D33: 356.24 | E33: 981.75 | F33: 349738.62 | G33: 1869.252 | H33: 665902.3325 | I33: 1015640.952 | J33: 3576 | K33: 1273914.24 | L33: 1630 | M33: 580671.2 | N33: 1854585.44
A34: 1.1.6.8 | B34: Керамогранитная плитка с шероховатой поверхностью | C34: м2 | D34: -2 | E34: 1640.1 | F34: -3280.2 | G34: 3023.79 | H34: -6047.58 | I34: -9327.78 | J34: 4149 | K34: -8298 | L34: 2131 | M34: -4262 | N34: -12560
A35: 1.1.6.9 | B35: Наливной пол толщиной до 45мм армированный сеткой d4 В500 100х100 | C35: м2 | D35: -141.3 | E35: 1328.25 | F35: =E35*D35 -> -187681.725 | G35: 3714.942 | H35: -524921.3046 | I35: =H35+F35 -> -712603.0296 | J35: 3470 | K35: -490311 | L35: 1590 | M35: -224667 | N35: -714978
A36: 1.1.6.9 | B36: Наливной пол толщиной до 45мм армированный сеткой d4 В500 100х100 | C36: м2 | D36: 141.61 | E36: 1328.25 | F36: =E36*D36 -> 188093.4825 | G36: 3714.942 | H36: 526072.9366 | I36: =H36+F36 -> 714166.4191 | J36: 3470 | K36: 491386.7 | L36: 1590 | M36: 225159.9 | N36: 716546.6
A37: 1.1.6.10 | B37: Грунтовка поверхностей перед финишным покрытием | C37: м2 | D37: -1140.6 | E37: 57.75 | F37: -65869.65 | G37: 32.538 | H37: -37112.8428 | I37: =H37+F37 -> -102982.4928 | J37: 75.65 | K37: -86286.39 | L37: 42.3 | M37: -48247.38 | N37: -134533.77
A38: 1.1.6.10 | B38: Грунтовка поверхностей перед финишным покрытием | C38: м2 | D38: 1885.9 | E38: 57.75 | F38: 108910.725 | G38: 32.538 | H38: 61363.4142 | I38: =H38+F38 -> 170274.1392 | J38: 75.65 | K38: 142668.335 | L38: 42.3 | M38: 79773.57 | N38: 222441.905
A39: 1.1.7 | B39: Отделка стен помещений | C39: м2 | D39: -1194.52 | E39: 3395.564746 | F39: =D39*E39 -> -4056070 | G39: 2848.02766 | H39: =D39*G39 -> -3402026 | I39: =F39+H39 -> -7458096 | J39: 4448 | K39: -5313224.96 | L39: 3702 | M39: -4422113.04 | N39: -9735338
A40: 1.1.7 | B40: Отделка стен помещений | C40: м2 | D40: 1225.55 | E40: 3395.564746 | F40: =D40*E40 -> 4161434.374 | G40: 2848.02766 | H40: =D40*G40 -> 3490400.298 | I40: =F40+H40 -> 7651834.672 | J40: 4448 | K40: 5451246.4 | L40: 3702 | M40: 4536986.1 | N40: 9988232.5
A41: 1.1.8 | B41: Установка потивопожарных окон | C41: шт | D41: 11 | E41: 18480 | F41: =E41*D41 -> 203280 | G41: 69564 | H41: =G41*D41 -> 765204 | I41: =H41+F41 -> 968484 | J41: 34209 | K41: 376299 | L41: 89433 | M41: 983763 | N41: 1360062
A42: 1.1.9 | B42: Установка внутренних окон | C42: шт | D42: 6 | E42: 18480 | F42: 110880 | G42: 69564 | H42: 417384 | I42: 528264 | J42: 18204 | K42: 109224 | L42: 79865 | M42: 479190 | N42: 588414
A43: 1.1.10 | B43: Установка потивопожарных дверей | C43: шт | D43: -42 | E43: 5197.5 | F43: -218295 | G43: 28384.57 | H43: -1192151.94 | I43: -1410446.94 | J43: 14176 | K43: -595392 | L43: 34900 | M43: -1465800 | N43: -2061192
A44: 1.1.10 | B44: Установка потивопожарных дверей | C44: шт | D44: 5 | E44: 5197.5 | F44: 25987.5 | G44: 28384.57 | H44: 141922.85 | I44: 167910.35 | J44: 14176 | K44: 70880 | L44: 34900 | M44: 174500 | N44: 245380
A45: 1.1.11 | B45: Лестничная клетка | C45: шт | D45: 1 | E45: 384953 | F45: 384953 | G45: 657924 | H45: 657924 | I45: 1042877 | J45: 504288.43 | K45: 504288.43 | L45: 855301.2 | M45: 855301.2 | N45: 1359589.63
A46: 1.1.12 | B46: Устройство перекрытия | C46: м3 | D46: 41.2 | E46: 33850 | F46: =E46*D46 -> 1394620 | G46: 36440 | H46: =D46*G46 -> 1501328 | I46: =H46+F46 -> 2895948 | J46: 44343.5 | K46: 1826952.2 | L46: 47372 | M46: 1951726.4 | N46: 3778678.6
A47: 1.1.13 | B47: Пол АБК | C47: м2 | D47: 387 | E47: 2064.22739 | F47: =D47*E47 -> 798856 | G47: 3364.330749 | H47: =D47*G47 -> 1301996 | I47: =F47+H47 -> 2100852 | J47: 3576 | K47: 1383912 | L47: 3510 | M47: 1358370 | N47: 2742282
A48: 1.1.14 | B48: Прорезка проёмов дверных и оконных | C48: шт | D48: -15 | E48: 19640 | F48: =E48*D48 -> -294600 | G48: 654 | H48: =G48*D48 -> -9810 | I48: =H48+F48 -> -304410 | J48: 25728.4 | K48: -385926 | L48: 850.2 | M48: -12753 | N48: -398679
A49: 1.1.14 | B49: Прорезка проёмов дверных и оконных | C49: шт | D49: 16 | E49: 19640 | F49: 314240 | G49: 654 | H49: =G49*D49 -> 10464 | I49: =H49+F49 -> 324704 | J49: 25728.4 | K49: 411654.4 | L49: 850.2 | M49: 13603.2 | N49: 425257.6
A50: 1.1.15 | B50: Устройство отверстия на кровле в осях В/32-34 | C50: шт | D50: -1 | E50: 68328 | F50: =D50*E50 -> -68328 | G50: 56296 | H50: =D50*G50 -> -56296 | I50: =H50+F50 -> -124624 | J50: 89509.68 | K50: -89509.68 | L50: 73184.8 | M50: -73184.8 | N50: -162694.48
A51: 1.1.16 | B51: Проходка воздуховодов сквозь кровлю АБК | C51: шт | D51: 12 | E51: 9091.583333 | F51: =D51*E51 -> 109099 | G51: 3491.333333 | H51: =D51*G51 -> 41896 | I51: =F51+H51 -> 150995 | J51: 11909.97 | K51: 142919.64 | L51: 4538.73 | M51: 54464.76 | N51: 197384.4
A52: 1.1.17 | B52: Устройство мк отверстий диам. 400 мм в покрытии здания | C52: шт | D52: 5 | E52: 33457.8 | F52: =D52*E52 -> 167289 | G52: 20235.6 | H52: =D52*G52 -> 101178 | I52: =F52+H52 -> 268467 | J52: 43829.72 | K52: 219148.6 | L52: 26306.28 | M52: 131531.4 | N52: 350680
A53: 1.1.18 | B53: Устройство дверного проёма в стене цеха (пож.выход) | C53: шт | D53: 1 | E53: 167397 | F53: =D53*E53 -> 167397 | G53: 119648 | H53: =D53*G53 -> 119648 | I53: =F53+H53 -> 287045 | J53: 219290.07 | K53: 219290.07 | L53: 155542.4 | M53: 155542.4 | N53: 374832.47
A54: 1.1.19 | B54: Дополнительные работы | J54: 0 | L54: 0
A55: 1.1.19.1 | B55: Обшивка стен Гипсокартон ГКЛ толщиной 12,5 мм в 2 слоя | C55: м2 | D55: -76 | E55: 1640 | F55: =D55*E55 -> -124640 | G55: 2469.6 | H55: =D55*G55 -> -187689.6 | I55: =F55+H55 -> -312329.6 | J55: 2955 | K55: =D55*J55 -> -224580 | L55: 3501 | M55: =D55*L55 -> -266076 | N55: =J55*D55+L55*D55 -> -490656
A56: 1.1.19.1 | B56: Обшивка стен Гипсокартон ГКЛ толщиной 12,5 мм в 2 слоя | C56: м2 | D56: 98.58 | E56: 1640 | F56: =D56*E56 -> 161671.2 | G56: 2469.6 | H56: =D56*G56 -> 243453.168 | I56: =F56+H56 -> 405124.368 | J56: 2955 | K56: =D56*J56 -> 291303.9 | L56: 3501 | M56: =D56*L56 -> 345128.58 | N56: =J56*D56+L56*D56 -> 636432.48
A57: 1.1.19.2 | B57: Перенос дверных проёмов | C57: шт | D57: 4 | E57: 32079.6 | F57: =D57*E57 -> 128318.4 | G57: 11832 | H57: =D57*G57 -> 47328 | I57: =F57+H57 -> 175646.4 | J57: 42024.27 | K57: =D57*J57 -> 168097.08 | L57: 15381.6 | M57: =D57*L57 -> 61526.4 | N57: =J57*D57+L57*D57 -> 229623.48
A58: 1.1.19.3 | B58: Обрамление оконных проёмов | C58: шт | D58: 11 | E58: 6930 | F58: =D58*E58 -> 76230 | G58: 6900 | H58: =D58*G58 -> 75900 | I58: =F58+H58 -> 152130 | J58: 10938.3 | K58: =D58*J58 -> 120321.3 | L58: 8970 | M58: =D58*L58 -> 98670 | N58: =J58*D58+L58*D58 -> 218991.3
A59: 1.1.19.4 | B59: Демонтаж и монтаж временных ворот | C59: шт | D59: 1 | E59: 56352 | F59: =D59*E59 -> 56352 | G59: 3654 | H59: =D59*G59 -> 3654 | I59: =F59+H59 -> 60006 | J59: 73821.12 | K59: =D59*J59 -> 73821.12 | L59: 4750.2 | M59: =D59*L59 -> 4750.2 | N59: =J59*D59+L59*D59 -> 78571.32
A60: 1.1.20 | B60: Монтаж фасоных элементов | J60: 0 | L60: 0
A61: 1.1.20.1 | B61: Монтаж фасоного элемента Дз-1 | C61: м.п. | D61: -7.45 | E61: 458 | F61: =D61*E61 -> -3412.1 | G61: 1035 | H61: =D61*G61 -> -7710.75 | I61: =F61+H61 -> -11122.85 | J61: 600 | K61: =D61*J61 -> -4470 | L61: 1345.5 | M61: =D61*L61 -> -10023.975 | N61: =J61*D61+L61*D61 -> -14493.975
A62: 1.1.20.1 | B62: Монтаж фасоного элемента Дз-1 | C62: м.п. | D62: 6.83 | E62: 458 | F62: 3128.14 | G62: 1035 | H62: 7069.05 | I62: 10197.19 | J62: 600 | K62: 4098 | L62: 1345.5 | M62: 9189.765 | N62: 13287.765
A63: 1.1.20.2 | B63: Монтаж фасоного элемента Дз-2 | C63: м.п. | D63: -15 | E63: 458 | F63: -6870 | G63: 522 | H63: -7830 | I63: -14700 | J63: 600 | K63: -9000 | L63: 678.6 | M63: -10179 | N63: -19179
A64: 1.1.20.2 | B64: Монтаж фасоного элемента Дз-2 | C64: м.п. | D64: 13.66 | E64: 458 | F64: 6256.28 | G64: 522 | H64: 7130.52 | I64: 13386.8 | J64: 600 | K64: 8196 | L64: 678.6 | M64: 9269.676 | N64: 17465.676
A65: 1.1.20.3 | B65: Монтаж фасоного элемента Дз-3 | C65: м.п. | D65: -64 | E65: 458 | F65: -29312 | G65: 391 | H65: -25024 | I65: -54336 | J65: 600 | K65: -38400 | L65: 508.3 | M65: -32531.2 | N65: -70931.2
A66: 1.1.20.3 | B66: Монтаж фасоного элемента Дз-3 | C66: м.п. | D66: 57.71 | E66: 458 | F66: 26431.18 | G66: 391 | H66: 22564.61 | I66: 48995.79 | J66: 600 | K66: 34626 | L66: 508.3 | M66: 29333.993 | N66: 63959.993
A67: 1.1.20.4 | B67: Монтаж фасоного элемента Дз-4 | C67: м.п. | D67: -64 | E67: 458 | F67: -29312 | G67: 378 | H67: -24192 | I67: -53504 | J67: 600 | K67: -38400 | L67: 491.4 | M67: -31449.6 | N67: -69849.6
A68: 1.1.20.4 | B68: Монтаж фасоного элемента Дз-4 | C68: м.п. | D68: 57.71 | E68: 458 | F68: 26431.18 | G68: 378 | H68: 21814.38 | I68: 48245.56 | J68: 600 | K68: 34626 | L68: 491.4 | M68: 28358.694 | N68: 62984.694
A69: 1.1.20.5 | B69: Монтаж фасоного элемента Дз-5 | C69: м.п. | D69: -64 | E69: 458 | F69: -29312 | G69: 435 | H69: -27840 | I69: -57152 | J69: 600 | K69: -38400 | L69: 565.5 | M69: -36192 | N69: -74592
A70: 1.1.20.5 | B70: Монтаж фасоного элемента Дз-5 | C70: м.п. | D70: 70.38 | E70: 458 | F70: 32234.04 | G70: 435 | H70: 30615.3 | I70: 62849.34 | J70: 600 | K70: 42228 | L70: 565.5 | M70: 39799.89 | N70: 82027.89
A71: 1.1.20.6 | B71: Монтаж колонн (усиление перегородок) | C71: шт | D71: 7 | E71: 27836 | F71: 194852 | G71: 6870 | H71: 48090 | I71: 242942 | J71: 36465 | K71: 255255 | L71: 8931 | M71: 62517 | N71: 317772
A72: 1.1.20.7 | B72: Демонтаж ГКЛ 2 слоя | C72: м2 | D72: 36 | E72: 890 | F72: 32040 | I72: 32040 | J72: 1166 | K72: 41976 | L72: 0 | N72: 41976
A73: 1.1.20.8 | B73: Монтаж профильной трубы 40х40 | C73: м.п. | D73: 12 | E73: 690 | F73: 8280 | G73: 348 | H73: =D73*G73 -> 4176 | I73: 12456 | J73: 904 | K73: 10848 | L73: 453 | M73: =D73*L73 -> 5436 | N73: 16284
A74: 1.1.20.9 | B74: Монтаж ГКЛ 2 слоя | C74: м2 | D74: 36 | E74: 1290 | F74: 46440 | G74: 1250 | H74: 45000 | I74: 91440 | J74: 1690 | K74: 60840 | L74: 1625 | M74: 58500 | N74: 119340
A75: 1.1.20.10 | B75: Увеличение дверных проёмов | C75: шт | D75: 12 | E75: 5790 | F75: 69480 | G75: 1320 | H75: 15840 | I75: 85320 | J75: 7585 | K75: 91020 | L75: 1716 | M75: 20592 | N75: 111612
A76: 1.1.20.11 | B76: Наливной пол толщиной до 50мм | C76: м2 | D76: 125.1 | E76: 981.75 | F76: 122816.925 | G76: 1869.25 | H76: 233843.175 | I76: 356660.1 | J76: 1286 | K76: 160878.6 | L76: 2430 | M76: 303993 | N76: 464871.6
A77: 1.1.20.12 | B77: Усиление площадки лестничного марша | C77: шт | D77: 4 | E77: 27836 | F77: 111344 | G77: 5787.6 | H77: 23150.4 | I77: 134494.4 | J77: 36465 | K77: 145860 | L77: 7524 | M77: 30096 | N77: 175956
A78: 1.1.20.13 | B78: Устройство стен из газобетонных блоков | C78: м3 | D78: 1.87 | E78: 5197.5 | F78: 9719.325 | G78: 10659 | H78: 19932.33 | I78: 29651.655 | J78: 6809 | K78: 12732.83 | L78: 13857 | M78: 25912.59 | N78: 38645.42
A79: 1.1.20.14 | B79: Облицовка ступеней плиткой на лестнечной клетке | C79: шт | D79: 24 | E79: 2832 | F79: 67968 | G79: 1956 | H79: 46944 | I79: 114912 | J79: 3710 | K79: 89040 | L79: 2543 | M79: 61032 | N79: 150072
A80: 1.1.20.15 | B80: Штукатурка откосов Ролл ворот в цеху | C80: м.п. | D80: 150 | E80: 865.2 | F80: 129780 | G80: 435.6 | H80: 65340 | I80: 195120 | J80: 1135 | K80: 170250 | L80: 567 | M80: 85050 | N80: 255300
B81: Дополнительные работы
A82: 1.1.21 | B82: Установка пластиковых дверей | C82: шт | D82: 27 | E82: 5197 | F82: =D82*E82 -> 140319 | G82: 25400 | H82: =D82*G82 -> 685800 | I82: =F82+H82 -> 826119 | J82: =E82*$O$1 -> 6808.07 | K82: =D82*J82 -> 183817.89 | L82: =G82*$P$1 -> 33020 | M82: =D82*L82 -> 891540 | N82: =J82*D82+L82*D82 -> 1075357.89
A83: 1.1.22 | B83: Демонтаж перегородок ГКЛВ перед кладкой газоблока | C83: м2 | D83: 35.2 | E83: 1620 | F83: =D83*E83 -> 57024 | G83: 0 | H83: =D83*G83 -> 0 | I83: =F83+H83 -> 57024 | J83: =E83*$O$1 -> 2122.2 | K83: 74701.44 | L83: 0 | M83: 0 | N83: 74701.44
A84: 1.1.23 | B84: Монтаж перегородок после кладки газоблока | C84: м2 | D84: 31.36 | E84: 2320 | F84: =D84*E84 -> 72755.2 | G84: 4769.33 | H84: =D84*G84 -> 149566.1888 | I84: =F84+H84 -> 222321.3888 | J84: =E84*$O$1 -> 3039.2 | K84: 95309.312 | L84: 6200.129 | M84: 194436.0454 | N84: 289745.3574
A85: 1.1.24 | B85: Зашивка дверного проема и ригеля ГКЛ | C85: м2 | D85: 1.44 | E85: 2320 | F85: 3340.8 | G85: 1600 | H85: 2304 | I85: 5644.8 | J85: 3039.2 | K85: 4376.448 | L85: 2080 | M85: 2995.2 | N85: 7371.648
A86: 1.1.25 | B86: Устройство и обрамление дверных проемов | C86: м2 | D86: 1.53 | E86: 4600 | F86: 7038 | G86: 1160 | H86: 1774.8 | I86: 8812.8 | J86: 6026 | K86: 9219.78 | L86: 1508 | M86: 2307.24 | N86: 11527.02
A87: 1.1.26 | B87: Окраска крестовых связей за 2 раза | C87: м2 | D87: 8.5 | E87: 2666.67 | F87: 22666.695 | G87: 3261.33 | H87: 27721.305 | I87: 50388 | J87: 3493.3377 | K87: 29693.37045 | L87: 4239.729 | M87: 36037.6965 | N87: 65731.06695
A88: 1.1.27 | B88: Увеличение проходки в покрытии АБК 1300х1000 | C88: шт | D88: 1 | E88: 9091.58 | F88: 9091.58 | G88: 3491.31 | H88: 3491.31 | I88: 12582.89 | J88: 11909.9698 | K88: 11909.9698 | L88: 4538.703 | M88: 4538.703 | N88: 16448.6728
A89: 1.1.28 | B89: Увеличение проходки в покрытии АБК 700х700 | C89: шт | D89: 2 | E89: 9091.58 | F89: 18183.16 | G89: 3491.31 | H89: 6982.62 | I89: 25165.78 | J89: 11909.9698 | K89: 23819.9396 | L89: 4538.703 | M89: 9077.406 | N89: 32897.3456
A90: 1.1.29 | B90: Увеличение проходки в покрытии АБК 900х600 | C90: шт | D90: 2 | E90: 9091.58 | F90: 18183.16 | G90: 3491.31 | H90: 6982.62 | I90: 25165.78 | J90: 11909.9698 | K90: 23819.9396 | L90: 4538.703 | M90: 9077.406 | N90: 32897.3456
A91: 1.1.30 | B91: Увеличение проходки в покрытии АБК 350х350 | C91: шт | D91: 2 | E91: 9091.58 | F91: 18183.16 | G91: 3491.31 | H91: 6982.62 | I91: 25165.78 | J91: 11909.9698 | K91: 23819.9396 | L91: 4538.703 | M91: 9077.406 | N91: 32897.3456
A92: 1.1.31 | B92: Увеличение проходки в покрытии АБК 300х300 | C92: шт | D92: 1 | E92: 9091.58 | F92: 9091.58 | G92: 3491.31 | H92: 3491.31 | I92: 12582.89 | J92: 11909.9698 | K92: 11909.9698 | L92: 4538.703 | M92: 4538.703 | N92: 16448.6728
A93: 1.1.32 | B93: Увеличение проходки в покрытии АБК 200х200 | C93: шт | D93: 1 | E93: 9091.58 | F93: 9091.58 | G93: 3491.31 | H93: 3491.31 | I93: 12582.89 | J93: 11909.9698 | K93: 11909.9698 | L93: 4538.703 | M93: 4538.703 | N93: 16448.6728
A94: 1.1.33 | B94: Устройство проходоки в плите перекрытия АБК 1300х1000 | C94: шт | D94: 1 | E94: 13165.33 | F94: 13165.33 | G94: 6226.67 | H94: 6226.67 | I94: 19392 | J94: 17246.5823 | K94: 17246.5823 | L94: 8094.671 | M94: 8094.671 | N94: 25341.2533
A95: 1.1.34 | B95: Устройство проходоки в плите перекрытия АБК 650х650 | C95: шт | D95: 1 | E95: 13165.33 | F95: 13165.33 | G95: 6226.67 | H95: 6226.67 | I95: 19392 | J95: 17246.5823 | K95: 17246.5823 | L95: 8094.671 | M95: 8094.671 | N95: 25341.2533
A96: 1.1.35 | B96: Устройство проходоки в плите перекрытия АБК 600х500 | C96: шт | D96: 1 | E96: 13165.33 | F96: 13165.33 | G96: 6226.67 | H96: 6226.67 | I96: 19392 | J96: 17246.5823 | K96: 17246.5823 | L96: 8094.671 | M96: 8094.671 | N96: 25341.2533
A97: 1.1.36 | B97: Устройство проходоки в стене ГКЛ АБК 800х600 | C97: шт | D97: 1 | E97: 9091.58 | F97: 9091.58 | G97: 3491.31 | H97: 3491.31 | I97: 12582.89 | J97: 11909.9698 | K97: 11909.9698 | L97: 4538.703 | M97: 4538.703 | N97: 16448.6728
A98: 1.1.37 | B98: Устройство проходоки в стене ГКЛ АБК 500х400 | C98: шт | D98: 1 | E98: 9091.58 | F98: 9091.58 | G98: 3491.31 | H98: 3491.31 | I98: 12582.89 | J98: 11909.9698 | K98: 11909.9698 | L98: 4538.703 | M98: 4538.703 | N98: 16448.6728
A99: 1.1.38 | B99: Проходки в стене сэндвича 860х660 | C99: шт | D99: 2 | E99: 9091.58 | F99: 18183.16 | G99: 3491.31 | H99: 6982.62 | I99: 25165.78 | J99: 11909.9698 | K99: 23819.9396 | L99: 4538.703 | M99: 9077.406 | N99: 32897.3456
A100: 1.1.39 | B100: Устройство ревизионных лючков 500х500 с врезкой замка | C100: шт | D100: 15 | E100: 5466.67 | F100: 82000.05 | G100: 4673.33 | H100: 70099.95 | I100: 152100 | J100: 7161.3377 | K100: 107420.0655 | L100: 6075.329 | M100: 91129.935 | N100: 198550.0005
A101: 1.1.40 | B101: Окраска металлической лестницы | C101: м2 | D101: 8 | E101: 3826.67 | F101: 30613.36 | G101: 3327.47 | H101: 26619.76 | I101: 57233.12 | J101: 5012.9377 | K101: 40103.5016 | L101: 4325.711 | M101: 34605.688 | N101: 74709.1896
A102: 1.1.41 | B102: Заполнение пространства между перегородками и профильным листом | C102: м.п. | D102: 70 | E102: 1933.33 | F102: 135333.1 | G102: 2640 | H102: 184800 | I102: 320133.1 | J102: 2532.6623 | K102: 177286.361 | L102: 3432 | M102: 240240 | N102: 417526.361
A103: 1.1.42 | B103: Заполнение пространства между несущим двутавром и плитой перекрытия газоблоком на пену 31 м.п. 1,85 м3. | C103: м3 | D103: 1.85 | E103: 4653.33 | F103: 8608.6605 | G103: 10520 | H103: 19462 | I103: 28070.6605 | J103: 6095.8623 | K103: 11277.34526 | L103: 13676 | M103: 25300.6 | N103: 36577.94525
A104: 1.1.43 | B104: Устройство армирования пола сеткой арм. Ш6 А500С ячейкой 150х150 мм | C104: т | D104: 0.93 | E104: 346.5 | F104: =D104*E104 -> 322.245 | G104: 1845.69 | H104: =D104*G104 -> 1716.4917 | I104: =F104+H104 -> 2038.7367 | J104: 453.915 | K104: 422.14095 | L104: 2399.397 | M104: 2231.43921 | N104: 2653.58016
A105: 1.1.44 | B105: Пандус металлический | C105: шт. | D105: 4 | E105: 24560 | F105: =D105*E105 -> 98240 | G105: 6780 | H105: =D105*G105 -> 27120 | I105: =F105+H105 -> 125360 | J105: 32173.6 | K105: 128694.4 | L105: 8814 | M105: 35256 | N105: 163950.4
A106: 1.1.45 | B106: Монтаж фасоного элемента над окном лестничной клетки | C106: м.п. | D106: 5 | E106: 458 | F106: =D106*E106 -> 2290 | G106: 1035.6 | H106: =D106*G106 -> 5178 | I106: =F106+H106 -> 7468 | J106: 599.98 | K106: 2999.9 | L106: 1346.28 | M106: 6731.4 | N106: 9731.3
A107: 1.1.46 | B107: Заделка мест прохода инженерных коммуникаций | C107: шт. | E107: 0 | F107: =D107*E107 -> 0 | H107: =D107*G107 -> 0 | I107: =F107+H107 -> 0 | J107: =E107*$O$1 -> 0 | K107: 0 | L107: 0 | M107: 0 | N107: 0
A108: 1.1.47 | B108: Финальный клининг | C108: м2 | D108: 378 | F108: =D108*E108 -> 0 | H108: =D108*G108 -> 0 | I108: =F108+H108 -> 0 | J108: 240 | K108: 90720 | L108: 0 | M108: 0 | N108: 90720
A109: 1.2 | B109: 130-23-АС1 Архитектурно-строительные решения | F109: =F112+F114+F117+F120+F121+F125+F129 -> 6694740.35 | H109: =H112+H114+H117+H120+H121+H125+H129 -> 11422970.08 | I109: =I112+I114+I117+I120+I121+I125+I129 -> 18117710.43 | K109: =K112+K114+K117+K120+K121+K125+K129 -> 8797746.29 | M109: =M112+M114+M117+M120+M121+M125+M129 -> 19081967.9 | N109: =N112+N114+N117+N120+N121+N125+N129 -> 27879714.19
A110: 1.2 | B110: 130-23-АС1 Архитектурно-строительные решения | F110: =F113+F116+F119+F124+F126-F112-F121-F128 -> -7083968.6 | H110: =H113+H116+H119+H124+H126-H112-H121-H128 -> -11450486.72 | I110: =I113+I116+I119+I124+I126-I112-I121-I128 -> -18534455.32 | K110: =K113+K116+K119+K124+K126-K112-K121-K128 -> -9158673.48 | M110: =M113+M116+M119+M124+M126-M112-M121-M128 -> -19261586 | N110: =N113+N116+N119+N124+N126-N112-N121-N128 -> -28420259.48
A111: 1.2.1 | B111: Металлоконструкции огрунтованные КМ
A112: 1.2.1.1 | B112: Монтаж фахверковых стоек массой до 1,0 т. | C112: т. | D112: 10.5 | E112: 68400 | F112: =D112*E112 -> 718200 | G112: 195000 | H112: =D112*G112 -> 2047500 | I112: =F112+H112 -> 2765700 | J112: 95478 | K112: =D112*J112 -> 1002519 | L112: 229000 | M112: =D112*L112 -> 2404500 | N112: =J112*D112+L112*D112 -> 3407019
A113: 1.2.1.2 | B113: Монтаж распорок, ригелей, в том числе: Профили стальные гнутые замкнутые квадратные 100х4 | C113: т. | D113: -0.66 | E113: 69940 | F113: -46160.4 | G113: 195000 | H113: -128700 | I113: -174860.4 | J113: 95478 | K113: =D113*J113 -> -63015.48 | L113: 229000 | M113: =D113*L113 -> -151140 | N113: =J113*D113+L113*D113 -> -214155.48
A114: 1.2.1.2 | B114: Монтаж распорок, ригелей, в том числе: Профили стальные гнутые замкнутые квадратные 100х4 | C114: т. | D114: 1.73 | E114: 69940 | F114: 120996.2 | G114: 195000 | H114: 337350 | I114: 458346.2 | J114: 95478 | K114: =D114*J114 -> 165176.94 | L114: 229000 | M114: =D114*L114 -> 396170 | N114: =J114*D114+L114*D114 -> 561346.94
A115: 1.2.2 | B115: Окраска металлоконструкций
A116: 1.2.2.1 | B116: Устройство огнезащитной краски по металлу | C116: м2 | D116: -384.2 | E116: 2400 | F116: =D116*E116 -> -922080 | G116: 956 | H116: =D116*G116 -> -367295.2 | I116: =F116+H116 -> -1289375.2 | J116: 4150 | K116: =D116*J116 -> -1594430 | L116: 665 | M116: =D116*L116 -> -255493 | N116: =J116*D116+L116*D116 -> -1849923
A117: 1.2.2.1 | B117: Устройство огнезащитной краски по металлу | C117: м2 | D117: 349.59 | E117: 2400 | F117: =D117*E117 -> 839016 | G117: 956 | H117: =D117*G117 -> 334208.04 | I117: =F117+H117 -> 1173224.04 | J117: 4150 | K117: =D117*J117 -> 1450798.5 | L117: 665 | M117: =D117*L117 -> 232477.35 | N117: =J117*D117+L117*D117 -> 1683275.85
A118: 1.2.3 | B118: Крепление металлоконструкций
A119: 1.2.3.1 | B119: Сверление отверстий в железобетонных конструкциях | C119: шт. | D119: -811 | E119: 300 | F119: =D119*E119 -> -243300 | I119: =F119+H119 -> -243300 | J119: 393 | K119: =D119*J119 -> -318723 | L119: 0 | N119: =J119*D119+L119*D119 -> -318723
A120: 1.2.3.1 | B120: Сверление отверстий в железобетонных конструкциях | C120: шт. | D120: 180 | E120: 300 | F120: =D120*E120 -> 54000 | I120: =F120+H120 -> 54000 | J120: 393 | K120: =D120*J120 -> 70740 | L120: 0 | N120: =J120*D120+L120*D120 -> 70740
A121: 1.2.3.2 | B121: Устройство высокопрочных анкеров, закладных | C121: компл. | D121: 1 | E121: 199039.2 | F121: =D121*E121 -> 199039.2 | G121: 199703.52 | H121: =D121*G121 -> 199703.52 | I121: =F121+H121 -> 398742.72 | J121: 260741 | K121: =D121*J121 -> 260741 | L121: 259614 | M121: =D121*L121 -> 259614 | N121: =J121*D121+L121*D121 -> 520355
A122: 1.2.4 | B122: Демонтаж металлоконструкций
A123: 1.2.5 | B123: Устройство перегородки
A124: 1.2.5.1 | B124: Стеновые сэндвич-панели 100-1000-Г-Г | C124: м2 | D124: -2215 | E124: 2237 | F124: =D124*E124 -> -4954955 | G124: 3967.398646 | H124: =D124*G124 -> -8787788 | I124: =F124+H124 -> -13742743 | J124: 2711 | K124: =D124*J124 -> -6004865 | L124: 7373 | M124: =D124*L124 -> -16331195 | N124: =J124*D124+L124*D124 -> -22336060
A125: 1.2.5.1 | B125: Стеновые сэндвич-панели 100-1000-Г-Г | C125: м2 | D125: 2122.35 | E125: 2237 | F125: =D125*E125 -> 4747696.95 | G125: 3967.398646 | H125: =D125*G125 -> 8420208.515 | I125: =F125+H125 -> 13167905.47 | J125: 2711 | K125: =D125*J125 -> 5753690.85 | L125: 7373 | M125: =D125*L125 -> 15648086.55 | N125: =J125*D125+L125*D125 -> 21401777.4
A126: 1.2.5.2 | B126: Устройство противопожарной перегородки «Knauf» С112 с двухслойной обшивкой с каждой стороны | C126: м2 | D126: -4 | E126: 4500 | F126: =D126*E126 -> -18000 | G126: 3500 | H126: =D126*G126 -> -14000 | I126: =H126+F126 -> -32000 | J126: 5055 | K126: =D126*J126 -> -20220 | L126: 4601 | M126: =D126*L126 -> -18404 | N126: =J126*D126+L126*D126 -> -38624
A127: 1.2.6 | B127: Устройство бетонного плинтуса
A128: 1.2.6.1 | B128: Устройство плинтуса из фасонного элемента | C128: м/п | D128: -378 | E128: 47 | F128: -17766 | G128: 250 | H128: =D128*G128 -> -94500 | I128: =H128+F128 -> -112266 | J128: 280 | K128: =D128*J128 -> -105840 | L128: 420 | M128: =D128*L128 -> -158760 | N128: =J128*D128+L128*D128 -> -264600
A129: 1.2.6.1 | B129: Устройство плинтуса из фасонного элемента | C129: м/п | D129: 336 | E129: 47 | F129: =D129*E129 -> 15792 | G129: 250 | H129: =D129*G129 -> 84000 | I129: =H129+F129 -> 99792 | J129: 280 | K129: =D129*J129 -> 94080 | L129: 420 | M129: =D129*L129 -> 141120 | N129: =J129*D129+L129*D129 -> 235200
A130: 1.3 | B130: 130-23-ВК Внутренние трубопроводы | F130: =SUM(F131:F134) -> 3010200 | H130: =SUM(H131:H134) -> 5727056.64 | I130: =SUM(I131:I134) -> 8737256.64 | K130: =SUM(K131:K134) -> 3943362 | M130: =SUM(M131:M134) -> 7445174 | N130: =SUM(N131:N134) -> 11388536
A131: 1.3.1 | B131: Хозяйственно-питьевой водопровод В1. | C131: сис | D131: 1 | E131: 695100 | F131: =D131*E131 -> 695100 | G131: 753743.52 | H131: =D131*G131 -> 753743.52 | I131: =H131+F131 -> 1448843.52 | J131: 910581 | K131: =D131*J131 -> 910581 | L131: 979867 | M131: =D131*L131 -> 979867 | N131: =J131*D131+L131*D131 -> 1890448
A132: 1.3.2 | B132: Горячее водоснабжение (Т3, Т4) | C132: сис | D132: 1 | E132: 868200 | F132: =D132*E132 -> 868200 | G132: 1236673.44 | H132: =D132*G132 -> 1236673.44 | I132: =H132+F132 -> 2104873.44 | J132: 1137342 | K132: =D132*J132 -> 1137342 | L132: 1607675 | M132: =D132*L132 -> 1607675 | N132: =J132*D132+L132*D132 -> 2745017
A133: 1.3.3 | B133: Противопожарный водопровод, В2 | C133: сис | D133: 1 | E133: 1179600 | F133: 1179600 | G133: 3168026.88 | H133: 3168026.88 | I133: 4347626.88 | J133: 1545276 | K133: =D133*J133 -> 1545276 | L133: 4118435 | M133: =D133*L133 -> 4118435 | N133: =J133*D133+L133*D133 -> 5663711
A134: 1.3.4 | B134: Бытовая канализация К1 | C134: сис | D134: 1 | E134: 267300 | F134: 267300 | G134: 568612.8 | H134: 568612.8 | I134: 835912.8 | J134: 350163 | K134: =D134*J134 -> 350163 | L134: 739197 | M134: =D134*L134 -> 739197 | N134: =J134*D134+L134*D134 -> 1089360
A135: 1.4 | B135: 130-23-ПС Пожарная сигнализация | F135: =F137+F138+F139+F140+F141+F142+F143+F144+F146+F148+F149+F151+F153+F154+F155+F156+F157+F158+F159+F160+F162+F163+F164+F165+F166+F167+F168+F170+F171+F173+F175+F176+F177+F180+F181+F182+F185+F186+F188+F190+F192+F193+F195+F197+F199+F200+F202+F204+F206+F207+F209+F211+F213+F214+F215+F216+F218+F220+F222+F224+F225+F226+F227+F229+F230+F231+F232+F236+F237+F238+F239+F240+F241+F242+F243+F244+F245+F246+F247+F248+F249+F250 -> 4096582.4 | H135: =H137+H138+H139+H140+H141+H142+H143+H144+H146+H148+H149+H151+H153+H154+H155+H156+H157+H158+H159+H160+H162+H163+H164+H165+H166+H167+H168+H170+H171+H173+H175+H176+H177+H180+H181+H182+H185+H186+H188+H190+H192+H193+H195+H197+H199+H200+H202+H204+H206+H207+H209+H211+H213+H214+H215+H216+H218+H220+H222+H224+H225+H226+H227+H229+H230+H231+H232+H236+H237+H238+H239+H240+H241+H242+H243+H244+H245+H246+H247+H248+H249+H250 -> 4257903.48 | I135: =I137+I138+I139+I140+I141+I142+I143+I144+I146+I148+I149+I151+I153+I154+I155+I156+I157+I158+I159+I160+I162+I163+I164+I165+I166+I167+I168+I170+I171+I173+I175+I176+I177+I180+I181+I182+I185+I186+I188+I190+I192+I193+I195+I197+I199+I200+I202+I204+I206+I207+I209+I211+I213+I214+I215+I216+I218+I220+I222+I224+I225+I226+I227+I229+I230+I231+I232+I236+I237+I238+I239+I240+I241+I242+I243+I244+I245+I246+I247+I248+I249+I250 -> 8354485.88 | K135: =K137+K138+K139+K140+K141+K142+K143+K144+K146+K148+K149+K151+K153+K154+K155+K156+K157+K158+K159+K160+K162+K163+K164+K165+K166+K167+K168+K170+K171+K173+K175+K176+K177+K180+K181+K182+K185+K186+K188+K190+K192+K193+K195+K197+K199+K200+K202+K204+K206+K207+K209+K211+K213+K214+K215+K216+K218+K220+K222+K224+K225+K226+K227+K229+K230+K231+K232+K236+K237+K238+K239+K240+K241+K242+K243+K244+K245+K246+K247+K248+K249+K250 -> 5150420.91 | M135: =M137+M138+M139+M140+M141+M142+M143+M144+M146+M148+M149+M151+M153+M154+M155+M156+M157+M158+M159+M160+M162+M163+M164+M165+M166+M167+M168+M170+M171+M173+M175+M176+M177+M180+M181+M182+M185+M186+M188+M190+M192+M193+M195+M197+M199+M200+M202+M204+M206+M207+M209+M211+M213+M214+M215+M216+M218+M220+M222+M224+M225+M226+M227+M229+M230+M231+M232+M236+M237+M238+M239+M240+M241+M242+M243+M244+M245+M246+M247+M248+M249+M250 -> 5531452.38 | N135: =N137+N138+N139+N140+N141+N142+N143+N144+N146+N148+N149+N151+N153+N154+N155+N156+N157+N158+N159+N160+N162+N163+N164+N165+N166+N167+N168+N170+N171+N173+N175+N176+N177+N180+N181+N182+N185+N186+N188+N190+N192+N193+N195+N197+N199+N200+N202+N204+N206+N207+N209+N211+N213+N214+N215+N216+N218+N220+N222+N224+N225+N226+N227+N229+N230+N231+N232+N236+N237+N238+N239+N240+N241+N242+N243+N244+N245+N246+N247+N248+N249+N250 -> 10681873.29
A136: 1.4 | B136: 130-23-ПС Пожарная сигнализация | F136: =-F137-F138-F139-F140-F141-F142-F143-F144+F145+F147+F150+F152-F154-F155-F156-F157-F158-F159-F160+F161-F163-F164-F165-F166-F167-F168+F169-F171+F172+F174-F176-F177+F178+F179+F183+F184-F186+F187-F189-F191-F193+F194+F196+F198-F200+F201-F203+F205-F207+F208-F210+F212-F214-F215-F216+F217+F219+F221+F223-F225-F226-F227-F228-F230-F231-F232+F233-F236-F237-F238-F239-F240-F241-F242-F243-F244-F245-F246-F247-F248-F249+F250 -> -4216132 | H136: =-H137-H138-H139-H140-H141-H142-H143-H144+H145+H147+H150+H152-H154-H155-H156-H157-H158-H159-H160+H161-H163-H164-H165-H166-H167-H168+H169-H171+H172+H174-H176-H177+H178+H179+H183+H184-H186+H187-H189-H191-H193+H194+H196+H198-H200+H201-H203+H205-H207+H208-H210+H212-H214-H215-H216+H217+H219+H221+H223-H225-H226-H227-H228-H230-H231-H232+H233-H236-H237-H238-H239-H240-H241-H242-H243-H244-H245-H246-H247-H248-H249+H250 -> -3696781.38 | I136: =-I137-I138-I139-I140-I141-I142-I143-I144+I145+I147+I150+I152-I154-I155-I156-I157-I158-I159-I160+I161-I163-I164-I165-I166-I167-I168+I169-I171+I172+I174-I176-I177+I178+I179+I183+I184-I186+I187-I189-I191-I193+I194+I196+I198-I200+I201-I203+I205-I207+I208-I210+I212-I214-I215-I216+I217+I219+I221+I223-I225-I226-I227-I228-I230-I231-I232+I233-I236-I237-I238-I239-I240-I241-I242-I243-I244-I245-I246-I247-I248-I249+I250 -> -7912913.38 | K136: =-K137-K138-K139-K140-K141-K142-K143-K144+K145+K147+K150+K152-K154-K155-K156-K157-K158-K159-K160+K161-K163-K164-K165-K166-K167-K168+K169-K171+K172+K174-K176-K177+K178+K179+K183+K184-K186+K187-K189-K191-K193+K194+K196+K198-K200+K201-K203+K205-K207+K208-K210+K212-K214-K215-K216+K217+K219+K221+K223-K225-K226-K227-K228-K230-K231-K232+K233-K236-K237-K238-K239-K240-K241-K242-K243-K244-K245-K246-K247-K248-K249+K250 -> -4876914.1 | M136: =-M137-M138-M139-M140-M141-M142-M143-M144+M145+M147+M150+M152-M154-M155-M156-M157-M158-M159-M160+M161-M163-M164-M165-M166-M167-M168+M169-M171+M172+M174-M176-M177+M178+M179+M183+M184-M186+M187-M189-M191-M193+M194+M196+M198-M200+M201-M203+M205-M207+M208-M210+M212-M214-M215-M216+M217+M219+M221+M223-M225-M226-M227-M228-M230-M231-M232+M233-M236-M237-M238-M239-M240-M241-M242-M243-M244-M245-M246-M247-M248-M249+M250 -> -4805873.18 | N136: =-N137-N138-N139-N140-N141-N142-N143-N144+N145+N147+N150+N152-N154-N155-N156-N157-N158-N159-N160+N161-N163-N164-N165-N166-N167-N168+N169-N171+N172+N174-N176-N177+N178+N179+N183+N184-N186+N187-N189-N191-N193+N194+N196+N198-N200+N201-N203+N205-N207+N208-N210+N212-N214-N215-N216+N217+N219+N221+N223-N225-N226-N227-N228-N230-N231-N232+N233-N236-N237-N238-N239-N240-N241-N242-N243-N244-N245-N246-N247-N248-N249+N250 -> -9682787.28
A137: 1.4.1 | B137: Сервер "Орион Про" | C137: компл. | D137: 1 | E137: 38400 | F137: =D137*E137 -> 38400 | G137: 0 | H137: =G137*D137 -> 0 | I137: =F137+H137 -> 38400 | J137: 50304 | K137: =D137*J137 -> 50304 | L137: 0 | N137: =J137*D137+L137*D137 -> 50304
A138: 1.4.2 | B138: Шкаф пожарной сигнализации | C138: шт. | D138: 4 | E138: 4200 | F138: 16800 | G138: 28173.6 | H138: 112694.4 | I138: 129494.4 | J138: 5502 | K138: 22008 | L138: 36625.68 | M138: =D138*L138 -> 146502.72 | N138: 168510.72
A139: 1.4.3 | B139: Монтажный комплект | C139: шт. | D139: 4 | E139: 1800 | F139: 7200 | G139: 1120 | H139: 4480 | I139: 11680 | J139: 2358 | K139: 9432 | L139: 1456 | M139: 5824 | N139: 15256
A140: 1.4.5 | B140: Прибор приемно-контрольный и управления пожарный | C140: шт. | D140: 1 | E140: 4200 | F140: 4200 | G140: 32333.6 | H140: 32333.6 | I140: 36533.6 | J140: 5502 | K140: 5502 | L140: 42033.68 | M140: 42033.68 | N140: 47535.68
A141: 1.4.6 | B141: Аккумулятор 12 В, 17 А/ч | C141: шт. | D141: 10 | E141: 400 | F141: 4000 | G141: 5668 | H141: 56680 | I141: 60680 | J141: 524 | K141: 5240 | L141: 7368.4 | M141: 73684 | N141: 78924
A142: 1.4.7 | B142: Пульт контроля и управления | C142: шт. | D142: 1 | E142: 2600 | F142: 2600 | G142: 11375.52 | H142: 11375.52 | I142: 13975.52 | J142: 3406 | K142: 3406 | L142: 14788.18 | M142: 14788.18 | N142: 18194.18
A143: 1.4.8 | B143: Контроллер двухпроводной линиии связи | C143: шт. | D143: 11 | E143: 2600 | F143: 28600 | G143: 5006.04 | H143: 55066.44 | I143: 83666.44 | J143: 3406 | K143: 37466 | L143: 6507.85 | M143: 71586.35 | N143: 109052.35
A144: 1.4.9 | B144: Блок контрольно-пусковой | C144: шт. | D144: 4 | E144: 2600 | F144: 10400 | G144: 4564.56 | H144: 18258.24 | I144: 28658.24 | J144: 3406 | K144: 13624 | L144: 5933.93 | M144: 23735.72 | N144: 37359.72
A145: 1.4.10 | B145: Извещатель пожарный дымовой оптико-электронный аналого-адресный | C145: шт. | D145: -137 | E145: 1200 | F145: -164400 | G145: 1901.8 | H145: -260546.6 | I145: -424946.6 | J145: 1572 | K145: -215364 | L145: 2472.34 | M145: -338710.58 | N145: -554074.58
A146: 1.4.10 | B146: Извещатель пожарный дымовой оптико-электронный аналого-адресный | C146: шт. | D146: 139 | E146: 1200 | F146: =D146*E146 -> 166800 | G146: 1901.8 | H146: =G146*D146 -> 264350.2 | I146: =F146+H146 -> 431150.2 | J146: 1572 | K146: 218508 | L146: 2472.34 | M146: 343655.26 | N146: 562163.26
A147: 1.4.11 | B147: Извещатель пожарный линейный однопозиционный адресный | C147: шт. | D147: -24 | E147: 3400 | F147: -81600 | G147: 28860 | H147: -692640 | I147: -774240 | J147: 4454 | K147: -106896 | L147: 37518 | M147: -900432 | N147: -1007328
A148: 1.4.11 | B148: Извещатель пожарный линейный однопозиционный адресный | C148: шт. | D148: 22 | E148: 3400 | F148: =D148*E148 -> 74800 | G148: 28860 | H148: =G148*D148 -> 634920 | I148: =F148+H148 -> 709720 | J148: 4454 | K148: 97988 | L148: 37518 | M148: 825396 | N148: 923384
A149: 1.4.12 | B149: Траверса 30х17 мм | C149: м. | D149: 10 | E149: 200 | F149: =D149*E149 -> 2000 | G149: 127.1 | H149: =D149*G149 -> 1271 | I149: =F149+H149 -> 3271 | J149: 6.55 | K149: 65.5 | L149: 2.37 | M149: 23.7 | N149: 89.2
A150: 1.4.13 | B150: Извещатель пожарный ручной адресный | C150: шт. | D150: -15 | E150: 1200 | F150: -18000 | G150: 1121.8 | H150: -16827 | I150: =F150+H150 -> -34827 | J150: 1572 | K150: -23580 | L150: 1458.34 | M150: -21875.1 | N150: -45455.1
A151: 1.4.13 | B151: Извещатель пожарный ручной адресный | C151: шт. | D151: 18 | E151: 1200 | F151: 21600 | G151: 1121.8 | H151: =G151*D151 -> 20192.4 | I151: =F151+H151 -> 41792.4 | J151: 1572 | K151: 28296 | L151: 1458.34 | M151: 26250.12 | N151: 54546.12
A152: 1.4.14 | B152: Аккумулятор 12 В, 40 А/ч | C152: шт. | D152: -4 | E152: 400 | F152: -1600 | G152: 6304.92 | H152: =D152*G152 -> -25219.68 | I152: =H152+F152 -> -26819.68 | J152: 524 | K152: -2096 | L152: 8196.4 | M152: -32785.6 | N152: -34881.6
A153: 1.4.14 | B153: Аккумулятор 12 В, 40 А/ч | C153: шт. | D153: 8 | E153: 400 | F153: 3200 | G153: 6304.92 | H153: =D153*G153 -> 50439.36 | I153: =H153+F153 -> 53639.36 | J153: 524 | K153: 4192 | L153: 8196.4 | M153: 65571.2 | N153: 69763.2
A154: 1.4.15 | B154: Источник питания резервированный | C154: шт. | D154: 4 | E154: 3000 | F154: 12000 | G154: 12612.36 | H154: =D154*G154 -> 50449.44 | I154: =H154+F154 -> 62449.44 | J154: 3930 | K154: 15720 | L154: 16396.07 | M154: 65584.28 | N154: 81304.28
A155: 1.4.16 | B155: Аккумулятор 12 В, 7 А/ч | C155: шт. | D155: 4 | E155: 400 | F155: 1600 | G155: 2407.01 | H155: =D155*G155 -> 9628.04 | I155: =H155+F155 -> 11228.04 | J155: 524 | K155: 2096 | L155: 3129.1 | M155: 12516.4 | N155: 14612.4
A156: 1.4.17 | B156: Блок контроля и индикации | C156: шт. | D156: 2 | E156: 3000 | F156: 6000 | G156: 9024.14 | H156: =D156*G156 -> 18048.28 | I156: =H156+F156 -> 24048.28 | J156: 3930 | K156: 7860 | L156: 11731.38 | M156: 23462.76 | N156: 31322.76
A157: 1.4.18 | B157: Блок разветвительно-изолирующий | C157: шт. | D157: 4 | E157: 1000 | F157: 4000 | G157: 641.16 | H157: 2564.64 | I157: 6564.64 | J157: 1310 | K157: 5240 | L157: 833.51 | M157: 3334.04 | N157: 8574.04
A158: 1.4.19 | B158: Преобразователь интерфейсов | C158: шт. | D158: 4 | E158: 3200 | F158: 12800 | G158: 11575.2 | H158: 46300.8 | I158: 59100.8 | J158: 4192 | K158: 16768 | L158: 15047.76 | M158: 60191.04 | N158: 76959.04
A159: 1.4.20 | B159: Патч-корд волоконно-оптический LC/UPC-LC/UPC 50 м | C159: шт. | D159: 4 | E159: 300 | F159: 1200 | G159: 2825.04 | H159: 11300.16 | I159: 12500.16 | J159: 393 | K159: 1572 | L159: 3672.55 | M159: 14690.2 | N159: 16262.2
A160: 1.4.21 | B160: Патч-корд волоконно-оптический LC/UPC-LC/UPC 1 м | C160: шт. | D160: 4 | E160: 300 | F160: 1200 | G160: 790 | H160: 3160 | I160: 4360 | J160: 393 | K160: 1572 | L160: 1027 | M160: 4108 | N160: 5680
A161: 1.4.22 | B161: Устройство коммутационное | C161: шт. | D161: -24 | E161: 2600 | F161: -62400 | G161: 1365 | H161: -32760 | I161: -95160 | J161: 3406 | K161: -81744 | L161: 1774.5 | M161: -42588 | N161: -124332
A162: 1.4.22 | B162: Устройство коммутационное | C162: шт. | D162: 22 | E162: 2600 | F162: =D162*E162 -> 57200 | G162: 1365 | H162: =G162*D162 -> 30030 | I162: =F162+H162 -> 87230 | J162: 3406 | K162: 74932 | L162: 1774.5 | M162: 39039 | N162: 113971
A163: 1.4.23 | B163: Оповещатель охранно-пожарный световой (табло) ЛЮКС-24 "Выход" | C163: шт. | D163: 10 | E163: 1200 | F163: 12000 | G163: 368 | H163: 3680 | I163: 15680 | J163: 1572 | K163: 15720 | L163: 478.4 | M163: 4784 | N163: 20504
A164: 1.4.24 | B164: Оповещатель охранно-пожарный световой (табло) ЛЮКС-24 "Стрелка влево" | C164: шт. | D164: 9 | E164: 1200 | F164: 10800 | G164: 368 | H164: 3312 | I164: 14112 | J164: 1572 | K164: 14148 | L164: 478.4 | M164: 4305.6 | N164: 18453.6
A165: 1.4.25 | B165: Оповещатель охранно-пожарный световой (табло) ЛЮКС-24 "Стрелка вправо" | C165: шт. | D165: 9 | E165: 1200 | F165: 10800 | G165: 368 | H165: 3312 | I165: 14112 | J165: 1572 | K165: 14148 | L165: 478.4 | M165: 4305.6 | N165: 18453.6
A166: 1.4.26 | B166: Оповещатель охранно-пожарный звуковой Маяк-24-ЗМ2 | C166: шт. | D166: 54 | E166: 1200 | F166: 64800 | G166: 270 | H166: 14580 | I166: 79380 | J166: 1572 | K166: 84888 | L166: 351 | M166: 18954 | N166: 103842
A167: 1.4.27 | B167: Комбинированный оповещатель со стробовспышкой Г-24КПР | C167: шт. | D167: 30 | E167: 1200 | F167: =D167*E167 -> 36000 | G167: 545.04 | H167: =G167*D167 -> 16351.2 | I167: =F167+H167 -> 52351.2 | J167: 1572 | K167: 47160 | L167: 708.55 | M167: 21256.5 | N167: 68416.5
A168: 1.4.28 | B168: Оповещатель охранно-пожарный комбинированный свето-звуковой Маяк-24-КПМ2 | C168: шт. | D168: 39 | E168: 1200 | F168: =D168*E168 -> 46800 | G168: 656 | H168: =G168*D168 -> 25584 | I168: =F168+H168 -> 72384 | J168: 1572 | K168: 61308 | L168: 852.8 | M168: 33259.2 | N168: 94567.2
A169: 1.4.29 | B169: Полка 19" перфорированная консольная 1U | C169: шт. | D169: -1 | E169: 2000 | F169: -2000 | G169: 1462 | H169: -1462 | I169: -3462 | J169: 2620 | K169: -2620 | L169: 1900.6 | M169: -1900.6 | N169: -4520.6
A170: 1.4.29 | B170: Саморез со сверлом | C170: шт. | D170: 100 | E170: 5 | F170: 500 | G170: 1.82 | H170: 182 | I170: 682 | J170: 6.55 | K170: 655 | L170: 2.37 | M170: 237 | N170: 892
A171: 1.4.30 | B171: Модуль подключения нагрузки | C171: шт. | D171: 87 | E171: 100 | F171: 8700 | G171: 71.76 | H171: 6243.12 | I171: 14943.12 | J171: 131 | K171: 11397 | L171: 93.29 | M171: 8116.23 | N171: 19513.23
A172: 1.4.31 | B172: Блок сигнально-пусковой адресный | C172: шт. | D172: -96 | E172: 3200 | F172: -307200 | G172: 3692.4 | H172: -354470.4 | I172: -661670.4 | J172: 4192 | K172: -402432 | L172: 4800.12 | M172: -460811.52 | N172: -863243.52
A173: 1.4.31 | B173: Блок сигнально-пусковой адресный | C173: шт. | D173: 82 | E173: 3200 | F173: 262400 | G173: 3692.4 | H173: 302776.8 | I173: 565176.8 | J173: 4192 | K173: 343744 | L173: 4800.12 | M173: 393609.84 | N173: 737353.84
A174: 1.4.32 | B174: Кнопка "ТЕСТ" | C174: шт. | D174: -96 | E174: 1200 | F174: -115200 | G174: 1250 | H174: -120000 | I174: -235200 | J174: 1572 | K174: -150912 | L174: 1625 | M174: -156000 | N174: -306912
A175: 1.4.32 | B175: Кнопка "ТЕСТ" | C175: шт. | D175: 82 | E175: 1200 | F175: 98400 | G175: 1250 | H175: 102500 | I175: 200900 | J175: 1572 | K175: 128904 | L175: 1625 | M175: 133250 | N175: 262154
A176: 1.4.33 | B176: Шкаф контрольно пусковой ШКП-10RS (М) | C176: шт. | D176: 1 | E176: 4500 | F176: 4500 | G176: 31318.56 | H176: 31318.56 | I176: 35818.56 | J176: 5895 | K176: 5895 | L176: 40714.13 | M176: 40714.13 | N176: 46609.13
A177: 1.4.34 | B177: Шкаф контрольно пусковой ШКП-18RS (М) | C177: шт. | D177: 1 | E177: 4500 | F177: 4500 | G177: 32633.64 | H177: 32633.64 | I177: 37133.64 | J177: 5895 | K177: 5895 | L177: 42423.73 | M177: 42423.73 | N177: 48318.73
A178: 1.4.35 | B178: Преобразователь интерфейса | C178: шт. | D178: -1 | E178: 2600 | F178: -2600 | G178: 3524.04 | H178: -3524.04 | I178: -6124.04 | J178: 3406 | K178: -3406 | L178: 4581.25 | M178: -4581.25 | N178: -7987.25
A179: 1.4.36 | B179: Коммутатор сетевой гигабитный 6 портовый | C179: шт. | D179: -1 | E179: 2600 | F179: -2600 | G179: 9000 | H179: -9000 | I179: -11600 | J179: 3406 | K179: -3406 | L179: 11700 | M179: -11700 | N179: -15106
A180: 1.4.35 | B180: Легкая консоль для лотков с основанием 100 мм | C180: шт. | D180: 120 | E180: 270 | F180: =D180*E180 -> 32400 | G180: 131.6 | H180: =D180*G180 -> 15792 | I180: =F180+H180 -> 48192 | J180: =E180*$O$1 -> 353.7 | K180: 42444 | L180: =G180*$P$1 -> 171.08 | M180: 20529.6 | N180: =K180+M180 -> 62973.6
A181: 1.4.36 | B181: Гайка М6 | C181: шт. | D181: 808 | F181: =D181*E181 -> 0 | G181: 1.54 | H181: =D181*G181 -> 1244.32 | I181: =F181+H181 -> 1244.32 | J181: 6.55 | K181: 5292.4 | L181: 2.37 | M181: 1914.96 | N181: =J181*D181+L181*D181 -> 7207.36
A182: 1.4.37 | B182: Болт М6 | C182: шт. | D182: 808 | E182: 0 | F182: 0 | G182: 4.99 | H182: =G182*D182 -> 4031.92 | I182: 4031.92 | K182: 0 | L182: 3.37 | M182: 2722.96 | N182: 2722.96
A183: 1.4.35 | B183: Блок питания | C183: шт. | D183: -1 | E183: 3000 | F183: -3000 | G183: 2558 | H183: -2558 | I183: -5558 | J183: 3930 | K183: -3930 | L183: 3325.4 | M183: -3325.4 | N183: -7255.4
A184: 1.4.38 | B184: Лоток перфорированный 100х50х3000 | C184: м | D184: -585 | E184: 380 | F184: -222300 | G184: 538 | H184: -314730 | I184: -537030 | J184: 497.8 | K184: -291213 | L184: 699.4 | M184: -409149 | N184: -700362
A185: 1.4.38 | B185: Лоток перфорированный 100х50х3000 | C185: м | D185: 552 | E185: 640 | F185: =D185*E185 -> 353280 | G185: 538 | H185: =G185*D185 -> 296976 | I185: =F185+H185 -> 650256 | J185: 497.8 | K185: 274785.6 | L185: 699.4 | M185: 386068.8 | N185: 660854.4
A186: 1.4.39 | B186: Перегородка для лотка | C186: м | D186: 585 | E186: 100 | F186: 58500 | G186: 292.8 | H186: 171288 | I186: 229788 | J186: 131 | K186: 76635 | L186: 380.64 | M186: 222674.4 | N186: 299309.4
A187: 1.4.40 | B187: Крышка с заземлением на лоток основание 100 L3000 | C187: м | D187: -585 | E187: 120 | F187: -70200 | G187: 209.22 | H187: -122393.7 | I187: -192593.7 | J187: 157.2 | K187: -91962 | L187: 271.99 | M187: -159114.15 | N187: -251076.15
A188: 1.4.40 | B188: Крышка с заземлением на лоток основание 100 L3000 | C188: м | D188: 552 | E188: 150 | F188: =D188*E188 -> 82800 | G188: 209.22 | H188: =G188*D188 -> 115489.44 | I188: =F188+H188 -> 198289.44 | J188: 157.2 | K188: 86774.4 | L188: 271.99 | M188: 150138.48 | N188: 236912.88
A189: 1.4.41 | B189: Угол CPO 90 горизонтальный 90° 100х50 | C189: шт. | D189: -10 | E189: 1200 | F189: -12000 | G189: 1620.8 | H189: -16208 | I189: -28208 | J189: 1572 | K189: -15720 | L189: 2107.04 | M189: -21070.4 | N189: -36790.4
A190: 1.4.41 | B190: Угол CPO 90 горизонтальный 90° 100х50 | C190: шт. | D190: 8 | E190: 1200 | F190: =D190*E190 -> 9600 | G190: 1620.8 | H190: =G190*D190 -> 12966.4 | I190: =F190+H190 -> 22566.4 | J190: 1572 | K190: 12576 | L190: 2107.04 | M190: 16856.32 | N190: 29432.32
A191: 1.4.42 | B191: Угол CS 90 вертикальный внутренний 90° 100х50 | C191: шт. | D191: -12 | E191: 1200 | F191: -14400 | G191: 1892 | H191: -22704 | I191: -37104 | J191: 1572 | K191: -18864 | L191: 2459.6 | M191: -29515.2 | N191: -48379.2
A192: 1.4.42 | B192: Угол CS 90 вертикальный внутренний 90° 100х50 | C192: шт. | D192: 4 | E192: 1200 | F192: =D192*E192 -> 4800 | G192: 1892 | H192: =G192*D192 -> 7568 | I192: =F192+H192 -> 12368 | J192: 1572 | K192: 6288 | L192: 2459.6 | M192: 9838.4 | N192: 16126.4
A193: 1.4.43 | B193: Лоток 50х50 L=3000 перфорированный | C193: м. | D193: 150 | E193: 640 | F193: =D193*E193 -> 96000 | G193: 375 | H193: 56250 | I193: 152250 | J193: 838.4 | K193: 125760 | L193: 487.5 | M193: 73125 | N193: 198885
A194: 1.4.44 | B194: Крышка с заземлением на лоток основание 50 L3000 | C194: м. | D194: -150 | E194: 120 | F194: =D194*E194 -> -18000 | G194: 171.65 | H194: -25747.5 | I194: -43747.5 | J194: 157.2 | K194: -23580 | L194: 223.15 | M194: -33472.5 | N194: -57052.5
A195: 1.4.44 | B195: Крышка с заземлением на лоток основание 50 L3000 | C195: м. | D195: 150 | E195: 150 | F195: =D195*E195 -> 22500 | G195: 171.65 | H195: =G195*D195 -> 25747.5 | I195: =F195+H195 -> 48247.5 | J195: 157.2 | K195: 23580 | L195: 223.15 | M195: 33472.5 | N195: 57052.5
A196: 1.4.45 | B196: Крышка S5 CPO90 90х100 угла горизонтального | C196: шт. | D196: -10 | E196: 120 | F196: -1200 | G196: 839.4 | H196: -8394 | I196: -9594 | J196: 157.2 | K196: -1572 | L196: 1091.22 | M196: -10912.2 | N196: -12484.2
A197: 1.4.45 | B197: Крышка S5 CPO90 90х100 угла горизонтального | C197: шт. | D197: 10 | E197: 150 | F197: =D197*E197 -> 1500 | G197: 839.4 | H197: =G197*D197 -> 8394 | I197: =F197+H197 -> 9894 | J197: 157.2 | K197: 1572 | L197: 1091.22 | M197: 10912.2 | N197: 12484.2
A198: 1.4.46 | B198: Крышка S5 CS90 90x100 угла вертикального внутреннего | C198: шт. | D198: -12 | E198: 120 | F198: -1440 | G198: 644.02 | H198: -7728.24 | I198: -9168.24 | J198: 157.2 | K198: -1886.4 | L198: 837.23 | M198: -10046.76 | N198: -11933.16
A199: 1.4.46 | B199: Крышка S5 CS90 90x100 угла вертикального внутреннего | C199: шт. | D199: 12 | E199: 150 | F199: =D199*E199 -> 1800 | G199: 644.02 | H199: =G199*D199 -> 7728.24 | I199: =F199+H199 -> 9528.24 | J199: 157.2 | K199: 1886.4 | L199: 837.23 | M199: 10046.76 | N199: 11933.16
A200: 1.4.47 | B200: Ответвитель S5 DL 100x50 горизонтальный | C200: шт. | D200: 5 | E200: 1200 | F200: 6000 | G200: 2020.01 | H200: 10100.05 | I200: 16100.05 | J200: 1572 | K200: 7860 | L200: 2626.01 | M200: 13130.05 | N200: 20990.05
... 1108 more rows

Sheet ДС3 совмещен кс-6а
S1: Запроцентовано | AD1: ОСТАТОК
E2: Себестоимость работ, руб с НДС | G2: Себестоимость материалов, руб с НДС | J2: Стоимость работ, руб. с НДС | L2: Стоимость материалов, руб. с НДС | O2: 1.31 | P2: 1.3 | Q2: 1.7 | T2: Себестоимость работ, руб с НДС | V2: Себестоимость материалов, руб с НДС | Y2: Стоимость работ, руб. с НДС | AA2: Стоимость материалов, руб. с НДС
A3: № | B3: Наименовение | C3: Ед.изм | D3: Кол-во | E3: за ед. | F3: итого | G3: за ед | H3: итого | I3: Итого, руб с НДС | J3: за ед. | K3: Итого | L3: за ед. | M3: Итого | N3: Итого, руб. с НДС | O3: Работы | P3: Материалы | Q3: Оборудование | S3: Кол-во | T3: за ед. | U3: итого | V3: за ед | W3: итого | X3: Итого, руб с НДС | Y3: за ед. | Z3: Итого | AA3: за ед. | AB3: Итого | AC3: Итого, руб. с НДС | AD3: Кол-во | AE3: =AC1307 -> 414077304.4
A4: 1 | B4: Основные объекты строительства, реконструкции, капитального ремонта, в том числе:
A5: 1.1 | B5: 130-23-АС3 Архитектурно-строительные решения | F5: =F8+F9+F11+F14+F15+F17+F18+F19+F26+F27+F29+F31+F32+F34+F37+F39+F41+F42+F43+F45+F46+F47+F48+F50+F52+F53+F54+F57+F58+F59+F60+F63+F65+F67+F69+F71+F72+F73+F74+F75+F76+F77+F78+F79+F80+F81+F83+F84+F85+F86+F87+F88+F89+F90+F91+F92+F93+F94+F95+F96+F97+F98+F99+F100+F101+F102+F103+F104+F105+F106+F107+F108+F109 -> 14079781.04 | H5: =H8+H9+H11+H14+H15+H17+H18+H19+H26+H27+H29+H31+H32+H34+H37+H39+H41+H42+H43+H45+H46+H47+H48+H50+H52+H53+H54+H57+H58+H59+H60+H63+H65+H67+H69+H71+H72+H73+H74+H75+H76+H77+H78+H79+H80+H81+H83+H84+H85+H86+H87+H88+H89+H90+H91+H92+H93+H94+H95+H96+H97+H98+H99+H100+H101+H102+H103+H104+H105+H106+H107+H108+H109 -> 19526383.14 | I5: =I8+I9+I11+I14+I15+I17+I18+I19+I26+I27+I29+I31+I32+I34+I37+I39+I41+I42+I43+I45+I46+I47+I48+I50+I52+I53+I54+I57+I58+I59+I60+I63+I65+I67+I69+I71+I72+I73+I74+I75+I76+I77+I78+I79+I80+I81+I83+I84+I85+I86+I87+I88+I89+I90+I91+I92+I93+I94+I95+I96+I97+I98+I99+I100+I101+I102+I103+I104+I105+I106+I107+I108+I109 -> 33606164.18 | K5: =K8+K9+K11+K14+K15+K17+K18+K19+K26+K27+K29+K31+K32+K34+K37+K39+K41+K42+K43+K45+K46+K47+K48+K50+K52+K53+K54+K57+K58+K59+K60+K63+K65+K67+K69+K71+K72+K73+K74+K75+K76+K77+K78+K79+K80+K81+K83+K84+K85+K86+K87+K88+K89+K90+K91+K92+K93+K94+K95+K96+K97+K98+K99+K100+K101+K102+K103+K104+K105+K106+K107+K108+K109 -> 24896933.59 | M5: =M8+M9+M11+M14+M15+M17+M18+M19+M26+M27+M29+M31+M32+M34+M37+M39+M41+M42+M43+M45+M46+M47+M48+M50+M52+M53+M54+M57+M58+M59+M60+M63+M65+M67+M69+M71+M72+M73+M74+M75+M76+M77+M78+M79+M80+M81+M83+M84+M85+M86+M87+M88+M89+M90+M91+M92+M93+M94+M95+M96+M97+M98+M99+M100+M101+M102+M103+M104+M105+M106+M107+M108+M109 -> 21715381.86 | N5: =N8+N9+N11+N14+N15+N17+N18+N19+N26+N27+N29+N31+N32+N34+N37+N39+N41+N42+N43+N45+N46+N47+N48+N50+N52+N53+N54+N57+N58+N59+N60+N63+N65+N67+N69+N71+N72+N73+N74+N75+N76+N77+N78+N79+N80+N81+N83+N84+N85+N86+N87+N88+N89+N90+N91+N92+N93+N94+N95+N96+N97+N98+N99+N100+N101+N102+N103+N104+N105+N106+N107+N108+N109 -> 46612315.45 | U5: =U8+U9+U11+U14+U15+U17+U18+U19+U26+U27+U29+U31+U32+U34+U37+U39+U41+U42+U43+U45+U46+U47+U48+U50+U52+U53+U54+U57+U58+U59+U60+U63+U65+U67+U69+U71+U72+U73+U74+U75+U76+U77+U78+U79+U80+U81+U83+U84+U85+U86+U87+U88+U89+U90+U91+U92+U93+U94+U95+U96+U97+U98+U99+U100+U101+U102+U103+U104+U105+U106+U107+U108+U109 -> 11983258.06 | W5: =W8+W9+W11+W14+W15+W17+W18+W19+W26+W27+W29+W31+W32+W34+W37+W39+W41+W42+W43+W45+W46+W47+W48+W50+W52+W53+W54+W57+W58+W59+W60+W63+W65+W67+W69+W71+W72+W73+W74+W75+W76+W77+W78+W79+W80+W81+W83+W84+W85+W86+W87+W88+W89+W90+W91+W92+W93+W94+W95+W96+W97+W98+W99+W100+W101+W102+W103+W104+W105+W106+W107+W108+W109 -> 16763660.32 | X5: =X8+X9+X11+X14+X15+X17+X18+X19+X26+X27+X29+X31+X32+X34+X37+X39+X41+X42+X43+X45+X46+X47+X48+X50+X52+X53+X54+X57+X58+X59+X60+X63+X65+X67+X69+X71+X72+X73+X74+X75+X76+X77+X78+X79+X80+X81+X83+X84+X85+X86+X87+X88+X89+X90+X91+X92+X93+X94+X95+X96+X97+X98+X99+X100+X101+X102+X103+X104+X105+X106+X107+X108+X109 -> 28746918.38 | Z5: =Z8+Z9+Z11+Z14+Z15+Z17+Z18+Z19+Z26+Z27+Z29+Z31+Z32+Z34+Z37+Z39+Z41+Z42+Z43+Z45+Z46+Z47+Z48+Z50+Z52+Z53+Z54+Z57+Z58+Z59+Z60+Z63+Z65+Z67+Z69+Z71+Z72+Z73+Z74+Z75+Z76+Z77+Z78+Z79+Z80+Z81+Z83+Z84+Z85+Z86+Z87+Z88+Z89+Z90+Z91+Z92+Z93+Z94+Z95+Z96+Z97+Z98+Z99+Z100+Z101+Z102+Z103+Z104+Z105+Z106+Z107+Z108+Z109 -> 21126432.23 | AB5: =AB8+AB9+AB11+AB14+AB15+AB17+AB18+AB19+AB26+AB27+AB29+AB31+AB32+AB34+AB37+AB39+AB41+AB42+AB43+AB45+AB46+AB47+AB48+AB50+AB52+AB53+AB54+AB57+AB58+AB59+AB60+AB63+AB65+AB67+AB69+AB71+AB72+AB73+AB74+AB75+AB76+AB77+AB78+AB79+AB80+AB81+AB83+AB84+AB85+AB86+AB87+AB88+AB89+AB90+AB91+AB92+AB93+AB94+AB95+AB96+AB97+AB98+AB99+AB100+AB101+AB102+AB103+AB104+AB105+AB106+AB107+AB108+AB109 -> 18699348.92 | AC5: =AC8+AC9+AC11+AC14+AC15+AC17+AC18+AC19+AC26+AC27+AC29+AC31+AC32+AC34+AC37+AC39+AC41+AC42+AC43+AC45+AC46+AC47+AC48+AC50+AC52+AC53+AC54+AC57+AC58+AC59+AC60+AC63+AC65+AC67+AC69+AC71+AC72+AC73+AC74+AC75+AC76+AC77+AC78+AC79+AC80+AC81+AC83+AC84+AC85+AC86+AC87+AC88+AC89+AC90+AC91+AC92+AC93+AC94+AC95+AC96+AC97+AC98+AC99+AC100+AC101+AC102+AC103+AC104+AC105+AC106+AC107+AC108+AC109 -> 39825781.15
A6: 1.1 | B6: 130-23-АС3 Архитектурно-строительные решения | F6: =F10-F8-F9-F11+F13-F15-F17-F18-F19+F20+F21+F22+F23+F24-F26-F27+F28+F30-F31-F32+F33+F35+F36+F38+F40-F42-F43+F44-F46-F47-F48+F49+F51-F52-F53-F54+F56-F58-F59-F60+F62+F64+F66+F68+F70-F72-F73-F74-F75-F76-F77-F78-F79-F80-F81 -> -13687887.58 | H6: =H10-H8-H9-H11+H13-H15-H17-H18-H19+H20+H21+H22+H23+H24-H26-H27+H28+H30-H31-H32+H33+H35+H36+H38+H40-H42-H43+H44-H46-H47-H48+H49+H51-H52-H53-H54+H56-H58-H59-H60+H62+H64+H66+H68+H70-H72-H73-H74-H75-H76-H77-H78-H79-H80-H81 -> -19492573.68 | I6: =I10-I8-I9-I11+I13-I15-I17-I18-I19+I20+I21+I22+I23+I24-I26-I27+I28+I30-I31-I32+I33+I35+I36+I38+I40-I42-I43+I44-I46-I47-I48+I49+I51-I52-I53-I54+I56-I58-I59-I60+I62+I64+I66+I68+I70-I72-I73-I74-I75-I76-I77-I78-I79-I80-I81 -> -33180461.26 | K6: =K10-K8-K9-K11+K13-K15-K17-K18-K19+K20+K21+K22+K23+K24-K26-K27+K28+K30-K31-K32+K33+K35+K36+K38+K40-K42-K43+K44-K46-K47-K48+K49+K51-K52-K53-K54+K56-K58-K59-K60+K62+K64+K66+K68+K70-K72-K73-K74-K75-K76-K77-K78-K79-K80-K81 -> -23834068.02 | M6: =M10-M8-M9-M11+M13-M15-M17-M18-M19+M20+M21+M22+M23+M24-M26-M27+M28+M30-M31-M32+M33+M35+M36+M38+M40-M42-M43+M44-M46-M47-M48+M49+M51-M52-M53-M54+M56-M58-M59-M60+M62+M64+M66+M68+M70-M72-M73-M74-M75-M76-M77-M78-M79-M80-M81 -> -21868543.3 | N6: =N10-N8-N9-N11+N13-N15-N17-N18-N19+N20+N21+N22+N23+N24-N26-N27+N28+N30-N31-N32+N33+N35+N36+N38+N40-N42-N43+N44-N46-N47-N48+N49+N51-N52-N53-N54+N56-N58-N59-N60+N62+N64+N66+N68+N70-N72-N73-N74-N75-N76-N77-N78-N79-N80-N81 -> -45702611.32 | U6: =U10-U8-U9-U11+U13-U15-U17-U18-U19+U20+U21+U22+U23+U24-U26-U27+U28+U30-U31-U32+U33+U35+U36+U38+U40-U42-U43+U44-U46-U47-U48+U49+U51-U52-U53-U54+U56-U58-U59-U60+U62+U64+U66+U68+U70-U72-U73-U74-U75-U76-U77-U78-U79-U80-U81 -> -5714912.435 | W6: =W10-W8-W9-W11+W13-W15-W17-W18-W19+W20+W21+W22+W23+W24-W26-W27+W28+W30-W31-W32+W33+W35+W36+W38+W40-W42-W43+W44-W46-W47-W48+W49+W51-W52-W53-W54+W56-W58-W59-W60+W62+W64+W66+W68+W70-W72-W73-W74-W75-W76-W77-W78-W79-W80-W81 -> -8994758.341 | X6: =X10-X8-X9-X11+X13-X15-X17-X18-X19+X20+X21+X22+X23+X24-X26-X27+X28+X30-X31-X32+X33+X35+X36+X38+X40-X42-X43+X44-X46-X47-X48+X49+X51-X52-X53-X54+X56-X58-X59-X60+X62+X64+X66+X68+X70-X72-X73-X74-X75-X76-X77-X78-X79-X80-X81 -> -14709670.78 | Z6: 0 | AB6: 0 | AC6: 0
A7: 1.1.1 | B7: Демонтажные работы
A8: 1.1.1.1 | B8: Частичный демонтаж крестовых связей | C8: тн | D8: 0.44 | E8: 35355 | F8: =E8*D8 -> 15556.2 | G8: 0 | H8: =G8*D8 -> 0 | I8: =H8+F8 -> 15556.2 | J8: 49415 | K8: =D8*J8 -> 21742.6 | L8: =G8*$P$2 -> 0 | M8: =D8*L8 -> 0 | N8: =K8+M8 -> 21742.6 | S8: 0.44 | T8: 35355 | U8: =T8*S8 -> 15556.2 | V8: 0 | W8: =V8*S8 -> 0 | X8: =W8+U8 -> 15556.2 | Y8: 49415 | Z8: =S8*Y8 -> 21742.6 | AA8: =V8*$P$2 -> 0 | AB8: =S8*AA8 -> 0 | AC8: =Z8+AB8 -> 21742.6 | AD8: =D8-S8 -> 0
A9: 1.1.1.2 | B9: Демонтаж сэндвич панелей | C9: м2 | D9: 389.4 | E9: 756 | F9: 294386.4 | G9: 0 | H9: =G9*D9 -> 0 | I9: 294386.4 | J9: 990 | K9: =D9*J9 -> 385506 | L9: 0 | N9: =K9+M9 -> 385506 | S9: 389.4 | T9: 756 | U9: 294386.4 | V9: 0 | W9: =V9*S9 -> 0 | X9: 294386.4 | Y9: 990 | Z9: =S9*Y9 -> 385506 | AA9: 0 | AC9: =Z9+AB9 -> 385506 | AD9: =D9-S9 -> 0
A10: 1.1.2 | B10: Устройство фахверка | C10: тн | D10: -0.34 | E10: 71610 | F10: =E10*D10 -> -24347.4 | G10: 166522 | H10: =G10*D10 -> -56617.48 | I10: =H10+F10 -> -80964.88 | J10: 95478 | K10: =D10*J10 -> -32462.52 | L10: 229000 | M10: =D10*L10 -> -77860 | N10: =J10*D10+L10*D10 -> -110322.52 | S10: 0 | T10: 71610 | U10: =T10*S10 -> 0 | V10: 166522 | W10: =V10*S10 -> 0 | X10: =W10+U10 -> 0 | Y10: 95478 | Z10: =S10*Y10 -> 0 | AA10: 229000 | AB10: =S10*AA10 -> 0 | AC10: =Y10*S10+AA10*S10 -> 0 | AD10: -0.34
A11: 1.1.3 | B11: Устройство сэндвич панелей | C11: м2 | D11: 389.4 | E11: 1443.75 | F11: 562196.25 | G11: 4095.3 | H11: 1594709.82 | I11: 2156906.07 | J11: 2711 | K11: =D11*J11 -> 1055663.4 | L11: 6573 | M11: =D11*L11 -> 2559526.2 | N11: =J11*D11+L11*D11 -> 3615189.6 | S11: 389.4 | T11: 1443.75 | U11: =T11*S11 -> 562196.25 | V11: 4095.3 | W11: =V11*S11 -> 1594709.82 | X11: =W11+U11 -> 2156906.07 | Y11: 2711 | Z11: =S11*Y11 -> 1055663.4 | AA11: 6573 | AB11: =S11*AA11 -> 2559526.2 | AC11: =Y11*S11+AA11*S11 -> 3615189.6 | AD11: 0
A12: 1.1.4 | B12: Устройство перегородок | J12: 0 | L12: 0 | Y12: 0 | AA12: 0 | AD12: 0
A13: 1.1.4.1 | B13: Перегородки гипсокартонные типа С112 комплексной системы КНАУФ толщиной 100 мм с облицовкой 2мя листами ГКЛ (толщиной 12,5мм) со звукоизолирующим слоем из минераловатных плит Лайт Баттс толщиной 50 мм | C13: м2 | D13: -536 | E13: 1640.1 | F13: =E13*D13 -> -879093.6 | G13: 4250.136 | H13: =G13*D13 -> -2278072.896 | I13: =H13+F13 -> -3157166.496 | J13: 4955 | K13: =D13*J13 -> -2655880 | L13: 4501 | M13: =D13*L13 -> -2412536 | N13: =J13*D13+L13*D13 -> -5068416 | S13: 0 | T13: 1640.1 | U13: =T13*S13 -> 0 | V13: 4250.136 | W13: =V13*S13 -> 0 | X13: =W13+U13 -> 0 | Y13: 4955 | Z13: =S13*Y13 -> 0 | AA13: 4501 | AB13: =S13*AA13 -> 0 | AC13: =Y13*S13+AA13*S13 -> 0 | AD13: -536
A14: 1.1.4.1 | B14: Перегородки гипсокартонные типа С112 комплексной системы КНАУФ толщиной 100 мм с облицовкой 2мя листами ГКЛ (толщиной 12,5мм) со звукоизолирующим слоем из минераловатных плит Лайт Баттс толщиной 50 мм | C14: м2 | D14: 525.76 | E14: 1640.1 | F14: =E14*D14 -> 862298.976 | G14: 4250.136 | H14: =G14*D14 -> 2234551.503 | I14: =H14+F14 -> 3096850.479 | J14: 4955 | K14: =D14*J14 -> 2605140.8 | L14: 4501 | M14: =D14*L14 -> 2366445.76 | N14: =J14*D14+L14*D14 -> 4971586.56 | S14: 525.76 | T14: 1640.1 | U14: =T14*S14 -> 862298.976 | V14: 4250.136 | W14: =V14*S14 -> 2234551.503 | X14: =W14+U14 -> 3096850.479 | Y14: 4955 | Z14: =S14*Y14 -> 2605140.8 | AA14: 4501 | AB14: =S14*AA14 -> 2366445.76 | AC14: =Y14*S14+AA14*S14 -> 4971586.56 | AD14: 0
A15: 1.1.4.2 | B15: Устройство отверстий под воздуховоды | C15: шт | D15: 2 | E15: 6548 | F15: =D15*E15 -> 13096 | G15: 3582.5 | H15: =D15*G15 -> 7165 | I15: =H15+F15 -> 20261 | J15: 8577.88 | K15: =D15*J15 -> 17155.76 | L15: 4657.25 | M15: =D15*L15 -> 9314.5 | N15: =J15*D15+L15*D15 -> 26470.26 | S15: 0 | T15: 6548 | U15: =S15*T15 -> 0 | V15: 3582.5 | W15: =S15*V15 -> 0 | X15: =W15+U15 -> 0 | Y15: 8577.88 | Z15: =S15*Y15 -> 0 | AA15: 4657.25 | AB15: =S15*AA15 -> 0 | AC15: =Y15*S15+AA15*S15 -> 0 | AD15: 2
A16: 1.1.5 | B16: Отделка потолков помещений | J16: 0 | L16: 0 | S16: 0 | Y16: 0 | AA16: 0 | AD16: 0
A17: 1.1.5.1 | B17: Подвесной потолок системы "Армстронг" | C17: м2 | D17: 301.4 | E17: 863.94 | F17: =E17*D17 -> 260391.516 | G17: 2173.314 | H17: =G17*D17 -> 655036.8396 | I17: =H17+F17 -> 915428.3556 | J17: 3957.07 | K17: =D17*J17 -> 1192660.898 | L17: 0 | N17: =J17*D17+L17*D17 -> 1192660.898 | S17: 301.4 | T17: 863.94 | U17: =T17*S17 -> 260391.516 | V17: 2173.314 | W17: =V17*S17 -> 655036.8396 | X17: =W17+U17 -> 915428.3556 | Y17: 3957.07 | Z17: =S17*Y17 -> 1192660.898 | AA17: 0 | AC17: =Y17*S17+AA17*S17 -> 1192660.898 | AD17: 0
A18: 1.1.5.2 | B18: Подвесной потолок системы с шумоглушением | C18: м2 | D18: 168.8 | E18: 863.94 | F18: 145833.072 | G18: 2347.224 | H18: 396211.4112 | I18: 542044.4832 | J18: 1131.76 | K18: 191041.088 | L18: 3051.39 | M18: =D18*L18 -> 515074.632 | N18: 706115.72 | S18: 168.8 | T18: 863.94 | U18: 145833.072 | V18: 2347.224 | W18: 396211.4112 | X18: 542044.4832 | Y18: 1131.76 | Z18: 191041.088 | AA18: 3051.39 | AB18: =S18*AA18 -> 515074.632 | AC18: 706115.72 | AD18: 0
A19: 1.1.5.3 | B19: Реечный алюминиевый потолок | C19: м2 | D19: 111.8 | E19: 1039.5 | F19: 116216.1 | G19: 5020.95 | H19: 561342.21 | I19: 677558.31 | J19: 7888.98 | K19: 881987.964 | L19: 0 | N19: 881987.964 | S19: 111.8 | T19: 1039.5 | U19: 116216.1 | V19: 5020.95 | W19: 561342.21 | X19: 677558.31 | Y19: 7888.98 | Z19: 881987.964 | AA19: 0 | AC19: 881987.964 | AD19: 0
A20: 1.1.5.4 | B20: Затирка бетонной поверхности перекрытия перед устройством потолка | C20: м2 | D20: -206.75 | E20: 866.25 | F20: -179097.1875 | G20: 553.146 | H20: -114362.9355 | I20: -293460.123 | J20: 1134.79 | K20: -234617.8325 | L20: 719.09 | M20: =D20*L20 -> -148671.8575 | N20: -383289.69 | S20: 0 | T20: 866.25 | U20: 0 | V20: 553.146 | W20: 0 | X20: 0 | Y20: 1134.79 | Z20: 0 | AA20: 719.09 | AB20: =S20*AA20 -> 0 | AC20: 0 | AD20: -206.75
A21: 1.1.5.5 | B21: Устроиство базового слоя шпаклевки | C21: м2 | D21: -69.4 | E21: 678 | F21: =E21*D21 -> -47053.2 | G21: 356 | H21: =G21*D21 -> -24706.4 | I21: =H21+F21 -> -71759.6 | J21: 888.18 | K21: -61639.692 | L21: 462.8 | M21: =D21*L21 -> -32118.32 | N21: -93758.012 | S21: 0 | T21: 678 | U21: =T21*S21 -> 0 | V21: 356 | W21: =V21*S21 -> 0 | X21: =W21+U21 -> 0 | Y21: 888.18 | Z21: 0 | AA21: 462.8 | AB21: =S21*AA21 -> 0 | AC21: 0 | AD21: -69.4
A22: 1.1.5.6 | B22: Устроиство финишного слоя шпаклевки | C22: м2 | D22: -69.4 | E22: 975 | F22: =E22*D22 -> -67665 | G22: 305.99 | H22: =G22*D22 -> -21235.706 | I22: =H22+F22 -> -88900.706 | J22: 1277.25 | K22: -88641.15 | L22: 397.79 | M22: =D22*L22 -> -27606.626 | N22: -116247.776 | S22: 0 | T22: 975 | U22: =T22*S22 -> 0 | V22: 305.99 | W22: =V22*S22 -> 0 | X22: =W22+U22 -> 0 | Y22: 1277.25 | Z22: 0 | AA22: 397.79 | AB22: =S22*AA22 -> 0 | AC22: 0 | AD22: -69.4
A23: 1.1.5.7 | B23: Окраска потолка силикатной краской за 2 раза | C23: м2 | D23: -69.4 | E23: 485.1 | F23: =E23*D23 -> -33665.94 | G23: 569.976 | H23: =G23*D23 -> -39556.3344 | I23: =H23+F23 -> -73222.2744 | J23: 635.48 | K23: -44102.312 | L23: 740.97 | M23: =D23*L23 -> -51423.318 | N23: -95525.63 | S23: 0 | T23: 485.1 | U23: =T23*S23 -> 0 | V23: 569.976 | W23: =V23*S23 -> 0 | X23: =W23+U23 -> 0 | Y23: 635.48 | Z23: 0 | AA23: 740.97 | AB23: =S23*AA23 -> 0 | AC23: 0 | AD23: -69.4
A24: 1.1.5.8 | B24: Грунтовка поверхностей перед окрашиванием | C24: м2 | D24: -69.4 | E24: 57.75 | F24: =E24*D24 -> -4007.85 | G24: 32.538 | H24: =G24*D24 -> -2258.1372 | I24: =H24+F24 -> -6265.9872 | J24: 75.65 | K24: -5250.11 | L24: 42.3 | M24: =D24*L24 -> -2935.62 | N24: -8185.73 | S24: 0 | T24: 57.75 | U24: =T24*S24 -> 0 | V24: 32.538 | W24: =V24*S24 -> 0 | X24: =W24+U24 -> 0 | Y24: 75.65 | Z24: 0 | AA24: 42.3 | AB24: =S24*AA24 -> 0 | AC24: 0 | AD24: -69.4
A25: 1.1.6 | B25: Полы помещений | J25: 0 | L25: 0 | Y25: 0 | AA25: 0 | AD25: 0
A26: 1.1.6.1 | B26: Очистка поверхности от грязи и мусора | C26: м2 | D26: 352.5 | E26: 288.75 | F26: =E26*D26 -> 101784.375 | G26: 56.1 | H26: =G26*D26 -> 19775.25 | I26: =H26+F26 -> 121559.625 | J26: 378 | K26: =D26*J26 -> 133245 | L26: 72.93 | M26: =D26*L26 -> 25707.825 | N26: =J26*D26+L26*D26 -> 158952.825 | S26: 352.5 | T26: 288.75 | U26: =T26*S26 -> 101784.375 | V26: 56.1 | W26: =V26*S26 -> 19775.25 | X26: =W26+U26 -> 121559.625 | Y26: 378 | Z26: =S26*Y26 -> 133245 | AA26: 72.93 | AB26: =S26*AA26 -> 25707.825 | AC26: =Y26*S26+AA26*S26 -> 158952.825 | AD26: 0
A27: 1.1.6.2 | B27: Устройство пола из бетона кл. В25 толщиной до 100 мм | C27: м3 | D27: 7.87 | E27: 12127.5 | F27: =E27*D27 -> 95443.425 | G27: 9537 | H27: =G27*D27 -> 75056.19 | I27: =H27+F27 -> 170499.615 | J27: 13208 | K27: 103946.96 | L27: 14998 | M27: 118034.26 | N27: 221981.22 | S27: 7.87 | T27: 12127.5 | U27: =T27*S27 -> 95443.425 | V27: 9537 | W27: =V27*S27 -> 75056.19 | X27: =W27+U27 -> 170499.615 | Y27: 13208 | Z27: 103946.96 | AA27: 14998 | AB27: 118034.26 | AC27: 221981.22 | AD27: 0
A28: 1.1.6.3 | B28: Керамогранитная плитка | C28: м2 | D28: -187.8 | E28: 1640.1 | F28: =E28*D28 -> -308010.78 | G28: 3023.79 | H28: -567867.762 | I28: -875878.542 | J28: 4772 | K28: -896181.6 | L28: 2131 | M28: -400201.8 | N28: -1296383.4 | S28: 0 | T28: 1640.1 | U28: =T28*S28 -> 0 | V28: 3023.79 | W28: =V28*S28 -> 0 | X28: =W28+U28 -> 0 | Y28: 4772 | Z28: 0 | AA28: 2131 | AB28: 0 | AC28: 0 | AD28: -187.8
A29: 1.1.6.3 | B29: Керамогранитная плитка | C29: м2 | D29: 524.67 | E29: 1640.1 | F29: =E29*D29 -> 860511.267 | G29: 3023.79 | H29: =G29*D29 -> 1586491.899 | I29: =H29+F29 -> 2447003.166 | J29: 4772 | K29: 2503725.24 | L29: 2131 | M29: 1118071.77 | N29: 3621797.01 | S29: 187.8 | T29: 1640.1 | U29: =T29*S29 -> 308010.78 | V29: 3023.79 | W29: 567867.762 | X29: 875878.542 | Y29: 4772 | Z29: 896181.6 | AA29: 2131 | AB29: 400201.8 | AC29: 1296383.4 | AD29: 336.87
A30: 1.1.6.4 | B30: Напольная керамическая плитка | C30: м2 | D30: -332.1 | E30: 1640.1 | F30: -544677.21 | G30: 3023.79 | H30: -1004200.659 | I30: -1548877.869 | J30: 2629 | K30: -873090.9 | L30: 3034 | M30: -1007591.4 | N30: -1880682.3 | S30: 0 | T30: 1640.1 | U30: =T30*S30 -> 0 | V30: 3023.79 | W30: 0 | X30: 0 | Y30: 2629 | Z30: 0 | AA30: 3034 | AB30: 0 | AC30: 0 | AD30: -332.1
A31: 1.1.6.5 | B31: Коммерческий линолеум (33-34 кл.) | C31: м2 | D31: 121.8 | E31: 540.54 | F31: 65837.772 | G31: 2031.942 | H31: 247490.5356 | I31: 313328.3076 | J31: 708.11 | K31: 86247.798 | L31: 2641.52 | M31: 321737.136 | N31: 407984.934 | S31: 121.8 | T31: 540.54 | U31: 65837.772 | V31: 2031.942 | W31: 247490.5356 | X31: 313328.3076 | Y31: 708.11 | Z31: 86247.798 | AA31: 2641.52 | AB31: 321737.136 | AC31: 407984.934 | AD31: 0
A32: 1.1.6.6 | B32: Гидроизоляция Гидроизол | C32: м2 | D32: 141.3 | E32: 519.75 | F32: 73440.675 | G32: 833.646 | H32: 117794.1798 | I32: 191234.8548 | J32: 680.87 | K32: 96206.931 | L32: 1083.74 | M32: 153132.462 | N32: 249339.393 | S32: 141.3 | T32: 519.75 | U32: 73440.675 | V32: 833.646 | W32: 117794.1798 | X32: 191234.8548 | Y32: 680.87 | Z32: 96206.931 | AA32: 1083.74 | AB32: 153132.462 | AC32: 249339.393 | AD32: 0
A33: 1.1.6.7 | B33: Наливной пол толщиной до 50мм | C33: м2 | D33: -355.6 | E33: 981.75 | F33: -349110.3 | G33: 1869.252 | H33: -664706.0112 | I33: -1013816.311 | J33: 3576 | K33: -1271625.6 | L33: 1630 | M33: -579628 | N33: -1851253.6 | S33: 0 | T33: 981.75 | U33: 0 | V33: 1869.252 | W33: 0 | X33: 0 | Y33: 3576 | Z33: 0 | AA33: 1630 | AB33: 0 | AC33: 0 | AD33: -355.6
A34: 1.1.6.7 | B34: Наливной пол толщиной до 50мм | C34: м2 | D34: 356.24 | E34: 981.75 | F34: =E34*D34 -> 349738.62 | G34: 1869.252 | H34: =G34*D34 -> 665902.3325 | I34: =H34+F34 -> 1015640.952 | J34: 3576 | K34: 1273914.24 | L34: 1630 | M34: 580671.2 | N34: 1854585.44 | S34: 355.6 | T34: 981.75 | U34: 349110.3 | V34: 1869.252 | W34: 664706.0112 | X34: 1013816.311 | Y34: 3576 | Z34: 1271625.6 | AA34: 1630 | AB34: 579628 | AC34: 1851253.6 | AD34: 0.64
A35: 1.1.6.8 | B35: Керамогранитная плитка с шероховатой поверхностью | C35: м2 | D35: -2 | E35: 1640.1 | F35: -3280.2 | G35: 3023.79 | H35: -6047.58 | I35: -9327.78 | J35: 4149 | K35: -8298 | L35: 2131 | M35: -4262 | N35: -12560 | S35: 0 | T35: 1640.1 | U35: 0 | V35: 3023.79 | W35: 0 | X35: 0 | Y35: 4149 | Z35: 0 | AA35: 2131 | AB35: 0 | AC35: 0 | AD35: -2
A36: 1.1.6.9 | B36: Наливной пол толщиной до 45мм армированный сеткой d4 В500 100х100 | C36: м2 | D36: -141.3 | E36: 1328.25 | F36: =E36*D36 -> -187681.725 | G36: 3714.942 | H36: -524921.3046 | I36: =H36+F36 -> -712603.0296 | J36: 3470 | K36: -490311 | L36: 1590 | M36: -224667 | N36: -714978 | S36: 0 | T36: 1328.25 | U36: =T36*S36 -> 0 | V36: 3714.942 | W36: 0 | X36: =W36+U36 -> 0 | Y36: 3470 | Z36: 0 | AA36: 1590 | AB36: 0 | AC36: 0 | AD36: -141.3
A37: 1.1.6.9 | B37: Наливной пол толщиной до 45мм армированный сеткой d4 В500 100х100 | C37: м2 | D37: 141.61 | E37: 1328.25 | F37: =E37*D37 -> 188093.4825 | G37: 3714.942 | H37: =G37*D37 -> 526072.9366 | I37: =H37+F37 -> 714166.4191 | J37: 3470 | K37: 491386.7 | L37: 1590 | M37: 225159.9 | N37: 716546.6 | S37: 141.3 | T37: 1328.25 | U37: =T37*S37 -> 187681.725 | V37: 3714.942 | W37: 524921.3046 | X37: =W37+U37 -> 712603.0296 | Y37: 3470 | Z37: 490311 | AA37: 1590 | AB37: 224667 | AC37: 714978 | AD37: 0.31
A38: 1.1.6.10 | B38: Грунтовка поверхностей перед финишным покрытием | C38: м2 | D38: -1140.6 | E38: 57.75 | F38: -65869.65 | G38: 32.538 | H38: -37112.8428 | I38: =H38+F38 -> -102982.4928 | J38: 75.65 | K38: -86286.39 | L38: 42.3 | M38: -48247.38 | N38: -134533.77 | S38: 0 | T38: 57.75 | U38: =T38*S38 -> 0 | V38: 32.538 | W38: 0 | X38: =W38+U38 -> 0 | Y38: 75.65 | Z38: 0 | AA38: 42.3 | AB38: 0 | AC38: 0 | AD38: -1140.6
A39: 1.1.6.10 | B39: Грунтовка поверхностей перед финишным покрытием | C39: м2 | D39: 1885.9 | E39: 57.75 | F39: =E39*D39 -> 108910.725 | G39: 32.538 | H39: =G39*D39 -> 61363.4142 | I39: =H39+F39 -> 170274.1392 | J39: 75.65 | K39: 142668.335 | L39: 42.3 | M39: 79773.57 | N39: 222441.905 | S39: 500 | T39: 57.75 | U39: 28875 | V39: 32.538 | W39: 16269 | X39: =W39+U39 -> 45144 | Y39: 75.65 | Z39: 37825 | AA39: 42.3 | AB39: 21150 | AC39: 58975 | AD39: 1385.9
A40: 1.1.7 | B40: Отделка стен помещений | C40: м2 | D40: -1194.52 | E40: 3395.564746 | F40: =D40*E40 -> -4056070 | G40: 2848.02766 | H40: =D40*G40 -> -3402026 | I40: =F40+H40 -> -7458096 | J40: 4448 | K40: -5313224.96 | L40: 3702 | M40: -4422113.04 | N40: -9735338 | S40: 0 | T40: 3395.564746 | U40: =S40*T40 -> 0 | V40: 2848.02766 | W40: =S40*V40 -> 0 | X40: =U40+W40 -> 0 | Y40: 4448 | Z40: 0 | AA40: 3702 | AB40: 0 | AC40: 0 | AD40: -1194.52
A41: 1.1.7 | B41: Отделка стен помещений | C41: м2 | D41: 1225.55 | E41: 3395.564746 | F41: =D41*E41 -> 4161434.374 | G41: 2848.02766 | H41: =D41*G41 -> 3490400.298 | I41: =F41+H41 -> 7651834.672 | J41: 4448 | K41: 5451246.4 | L41: 3702 | M41: 4536986.1 | N41: 9988232.5 | S41: 1194.52 | T41: 3395.564746 | U41: =S41*T41 -> 4056070 | V41: 2848.02766 | W41: =S41*V41 -> 3402026 | X41: =U41+W41 -> 7458096 | Y41: 4448 | Z41: 5313224.96 | AA41: 3702 | AB41: 4422113.04 | AC41: 9735338 | AD41: 31.03
A42: 1.1.8 | B42: Установка потивопожарных окон | C42: шт | D42: 11 | E42: 18480 | F42: =E42*D42 -> 203280 | G42: 69564 | H42: =G42*D42 -> 765204 | I42: =H42+F42 -> 968484 | J42: 34209 | K42: 376299 | L42: 89433 | M42: 983763 | N42: 1360062 | S42: 11 | T42: 18480 | U42: =T42*S42 -> 203280 | V42: 69564 | W42: =V42*S42 -> 765204 | X42: =W42+U42 -> 968484 | Y42: 34209 | Z42: 376299 | AA42: 89433 | AB42: 983763 | AC42: 1360062 | AD42: 0
A43: 1.1.9 | B43: Установка внутренних окон | C43: шт | D43: 6 | E43: 18480 | F43: 110880 | G43: 69564 | H43: 417384 | I43: 528264 | J43: 18204 | K43: 109224 | L43: 79865 | M43: 479190 | N43: 588414 | S43: 6 | T43: 18480 | U43: 110880 | V43: 69564 | W43: 417384 | X43: 528264 | Y43: 18204 | Z43: 109224 | AA43: 79865 | AB43: 479190 | AC43: 588414 | AD43: 0
A44: 1.1.10 | B44: Установка потивопожарных дверей | C44: шт | D44: -42 | E44: 5197.5 | F44: -218295 | G44: 28384.57 | H44: -1192151.94 | I44: -1410446.94 | J44: 14176 | K44: -595392 | L44: 34900 | M44: -1465800 | N44: -2061192 | S44: 0 | T44: 5197.5 | U44: 0 | V44: 28384.57 | W44: 0 | X44: 0 | Y44: 14176 | Z44: 0 | AA44: 34900 | AB44: 0 | AC44: 0 | AD44: -42
A45: 1.1.10 | B45: Установка потивопожарных дверей | C45: шт | D45: 5 | E45: 5197.5 | F45: =E45*D45 -> 25987.5 | G45: 28384.57 | H45: =G45*D45 -> 141922.85 | I45: =H45+F45 -> 167910.35 | J45: 14176 | K45: 70880 | L45: 34900 | M45: 174500 | N45: 245380 | S45: 5 | T45: 5197.5 | U45: 25987.5 | V45: 28384.57 | W45: 141922.85 | X45: 167910.35 | Y45: 14176 | Z45: 70880 | AA45: 34900 | AB45: 174500 | AC45: 245380 | AD45: 0
A46: 1.1.11 | B46: Лестничная клетка | C46: шт | D46: 1 | E46: 384953 | F46: 384953 | G46: 657924 | H46: 657924 | I46: 1042877 | J46: 504288.43 | K46: 504288.43 | L46: 855301.2 | M46: 855301.2 | N46: 1359589.63 | S46: 1 | T46: 384953 | U46: 384953 | V46: 657924 | W46: 657924 | X46: 1042877 | Y46: 504288.43 | Z46: 504288.43 | AA46: 855301.2 | AB46: 855301.2 | AC46: 1359589.63 | AD46: 0
A47: 1.1.12 | B47: Устройство перекрытия | C47: м3 | D47: 41.2 | E47: 33850 | F47: =E47*D47 -> 1394620 | G47: 36440 | H47: =D47*G47 -> 1501328 | I47: =H47+F47 -> 2895948 | J47: 44343.5 | K47: 1826952.2 | L47: 47372 | M47: 1951726.4 | N47: 3778678.6 | S47: 41.2 | T47: 33850 | U47: =T47*S47 -> 1394620 | V47: 36440 | W47: =S47*V47 -> 1501328 | X47: =W47+U47 -> 2895948 | Y47: 44343.5 | Z47: 1826952.2 | AA47: 47372 | AB47: 1951726.4 | AC47: 3778678.6 | AD47: 0
A48: 1.1.13 | B48: Пол АБК | C48: м2 | D48: 387 | E48: 2064.22739 | F48: =D48*E48 -> 798856 | G48: 3364.330749 | H48: =D48*G48 -> 1301996 | I48: =F48+H48 -> 2100852 | J48: 3576 | K48: 1383912 | L48: 3510 | M48: 1358370 | N48: 2742282 | S48: 387 | T48: 2064.22739 | U48: =S48*T48 -> 798856 | V48: 3364.330749 | W48: =S48*V48 -> 1301996 | X48: =U48+W48 -> 2100852 | Y48: 3576 | Z48: 1383912 | AA48: 3510 | AB48: 1358370 | AC48: 2742282 | AD48: 0
A49: 1.1.14 | B49: Прорезка проёмов дверных и оконных | C49: шт | D49: -15 | E49: 19640 | F49: =E49*D49 -> -294600 | G49: 654 | H49: =G49*D49 -> -9810 | I49: =H49+F49 -> -304410 | J49: 25728.4 | K49: -385926 | L49: 850.2 | M49: -12753 | N49: -398679 | S49: 0 | T49: 19640 | U49: =T49*S49 -> 0 | V49: 654 | W49: =V49*S49 -> 0 | X49: =W49+U49 -> 0 | Y49: 25728.4 | Z49: 0 | AA49: 850.2 | AB49: 0 | AC49: 0 | AD49: -15
A50: 1.1.14 | B50: Прорезка проёмов дверных и оконных | C50: шт | D50: 16 | E50: 19640 | F50: =E50*D50 -> 314240 | G50: 654 | H50: =G50*D50 -> 10464 | I50: =H50+F50 -> 324704 | J50: 25728.4 | K50: 411654.4 | L50: 850.2 | M50: 13603.2 | N50: 425257.6 | S50: 15 | T50: 19640 | U50: 294600 | V50: 654 | W50: =V50*S50 -> 9810 | X50: =W50+U50 -> 304410 | Y50: 25728.4 | Z50: 385926 | AA50: 850.2 | AB50: 12753 | AC50: 398679 | AD50: 1
A51: 1.1.15 | B51: Устройство отверстия на кровле в осях В/32-34 | C51: шт | D51: -1 | E51: 68328 | F51: =D51*E51 -> -68328 | G51: 56296 | H51: =D51*G51 -> -56296 | I51: =H51+F51 -> -124624 | J51: 89509.68 | K51: -89509.68 | L51: 73184.8 | M51: -73184.8 | N51: -162694.48 | S51: 0 | T51: 68328 | U51: =S51*T51 -> 0 | V51: 56296 | W51: =S51*V51 -> 0 | X51: =W51+U51 -> 0 | Y51: 89509.68 | Z51: 0 | AA51: 73184.8 | AB51: 0 | AC51: 0 | AD51: -1
A52: 1.1.16 | B52: Проходка воздуховодов сквозь кровлю АБК | C52: шт | D52: 12 | E52: 9091.583333 | F52: =D52*E52 -> 109099 | G52: 3491.333333 | H52: =D52*G52 -> 41896 | I52: =F52+H52 -> 150995 | J52: 11909.97 | K52: 142919.64 | L52: 4538.73 | M52: 54464.76 | N52: 197384.4 | S52: 0 | T52: 9091.583333 | U52: =S52*T52 -> 0 | V52: 3491.333333 | W52: =S52*V52 -> 0 | X52: =U52+W52 -> 0 | Y52: 11909.97 | Z52: 0 | AA52: 4538.73 | AB52: 0 | AC52: 0 | AD52: 12
A53: 1.1.17 | B53: Устройство мк отверстий диам. 400 мм в покрытии здания | C53: шт | D53: 5 | E53: 33457.8 | F53: =D53*E53 -> 167289 | G53: 20235.6 | H53: =D53*G53 -> 101178 | I53: =F53+H53 -> 268467 | J53: 43829.72 | K53: 219148.6 | L53: 26306.28 | M53: 131531.4 | N53: 350680 | S53: 0 | T53: 33457.8 | U53: =S53*T53 -> 0 | V53: 20235.6 | W53: =S53*V53 -> 0 | X53: =U53+W53 -> 0 | Y53: 43829.72 | Z53: 0 | AA53: 26306.28 | AB53: 0 | AC53: 0 | AD53: 5
A54: 1.1.18 | B54: Устройство дверного проёма в стене цеха (пож.выход) | C54: шт | D54: 1 | E54: 167397 | F54: =D54*E54 -> 167397 | G54: 119648 | H54: =D54*G54 -> 119648 | I54: =F54+H54 -> 287045 | J54: 219290.07 | K54: 219290.07 | L54: 155542.4 | M54: 155542.4 | N54: 374832.47 | S54: 1 | T54: 167397 | U54: =S54*T54 -> 167397 | V54: 119648 | W54: =S54*V54 -> 119648 | X54: =U54+W54 -> 287045 | Y54: 219290.07 | Z54: 219290.07 | AA54: 155542.4 | AB54: 155542.4 | AC54: 374832.47 | AD54: 0
A55: 1.1.19 | B55: Дополнительные работы | J55: 0 | L55: 0 | Y55: 0 | AA55: 0 | AD55: 0
A56: 1.1.19.1 | B56: Обшивка стен Гипсокартон ГКЛ толщиной 12,5 мм в 2 слоя | C56: м2 | D56: -76 | E56: 1640 | F56: =D56*E56 -> -124640 | G56: 2469.6 | H56: =D56*G56 -> -187689.6 | I56: =F56+H56 -> -312329.6 | J56: 2955 | K56: =D56*J56 -> -224580 | L56: 3501 | M56: =D56*L56 -> -266076 | N56: =J56*D56+L56*D56 -> -490656 | S56: 0 | T56: 1640 | U56: =S56*T56 -> 0 | V56: 2469.6 | W56: =S56*V56 -> 0 | X56: =U56+W56 -> 0 | Y56: 2955 | Z56: =S56*Y56 -> 0 | AA56: 3501 | AB56: =S56*AA56 -> 0 | AC56: =Y56*S56+AA56*S56 -> 0 | AD56: -76
A57: 1.1.19.1 | B57: Обшивка стен Гипсокартон ГКЛ толщиной 12,5 мм в 2 слоя | C57: м2 | D57: 98.58 | E57: 1640 | F57: =D57*E57 -> 161671.2 | G57: 2469.6 | H57: =D57*G57 -> 243453.168 | I57: =F57+H57 -> 405124.368 | J57: 2955 | K57: =D57*J57 -> 291303.9 | L57: 3501 | M57: =D57*L57 -> 345128.58 | N57: =J57*D57+L57*D57 -> 636432.48 | S57: 65 | T57: 1640 | U57: =S57*T57 -> 106600 | V57: 2469.6 | W57: =S57*V57 -> 160524 | X57: =U57+W57 -> 267124 | Y57: 2955 | Z57: =S57*Y57 -> 192075 | AA57: 3501 | AB57: =S57*AA57 -> 227565 | AC57: =Y57*S57+AA57*S57 -> 419640 | AD57: 33.58
A58: 1.1.19.2 | B58: Перенос дверных проёмов | C58: шт | D58: 4 | E58: 32079.6 | F58: =D58*E58 -> 128318.4 | G58: 11832 | H58: =D58*G58 -> 47328 | I58: =F58+H58 -> 175646.4 | J58: 42024.27 | K58: =D58*J58 -> 168097.08 | L58: 15381.6 | M58: =D58*L58 -> 61526.4 | N58: =J58*D58+L58*D58 -> 229623.48 | S58: 4 | T58: 32079.6 | U58: =S58*T58 -> 128318.4 | V58: 11832 | W58: =S58*V58 -> 47328 | X58: =U58+W58 -> 175646.4 | Y58: 42024.27 | Z58: =S58*Y58 -> 168097.08 | AA58: 15381.6 | AB58: =S58*AA58 -> 61526.4 | AC58: =Y58*S58+AA58*S58 -> 229623.48 | AD58: 0
A59: 1.1.19.3 | B59: Обрамление оконных проёмов | C59: шт | D59: 11 | E59: 6930 | F59: =D59*E59 -> 76230 | G59: 6900 | H59: =D59*G59 -> 75900 | I59: =F59+H59 -> 152130 | J59: 10938.3 | K59: =D59*J59 -> 120321.3 | L59: 8970 | M59: =D59*L59 -> 98670 | N59: =J59*D59+L59*D59 -> 218991.3 | S59: 11 | T59: 6930 | U59: =S59*T59 -> 76230 | V59: 6900 | W59: =S59*V59 -> 75900 | X59: =U59+W59 -> 152130 | Y59: 10938.3 | Z59: =S59*Y59 -> 120321.3 | AA59: 8970 | AB59: =S59*AA59 -> 98670 | AC59: =Y59*S59+AA59*S59 -> 218991.3 | AD59: 0
A60: 1.1.19.4 | B60: Демонтаж и монтаж временных ворот | C60: шт | D60: 1 | E60: 56352 | F60: =D60*E60 -> 56352 | G60: 3654 | H60: =D60*G60 -> 3654 | I60: =F60+H60 -> 60006 | J60: 73821.12 | K60: =D60*J60 -> 73821.12 | L60: 4750.2 | M60: =D60*L60 -> 4750.2 | N60: =J60*D60+L60*D60 -> 78571.32 | S60: 1 | T60: 56352 | U60: =S60*T60 -> 56352 | V60: 3654 | W60: =S60*V60 -> 3654 | X60: =U60+W60 -> 60006 | Y60: 73821.12 | Z60: =S60*Y60 -> 73821.12 | AA60: 4750.2 | AB60: =S60*AA60 -> 4750.2 | AC60: =Y60*S60+AA60*S60 -> 78571.32 | AD60: 0
A61: 1.1.20 | B61: Монтаж фасоных элементов | J61: 0 | L61: 0 | Y61: 0 | AA61: 0
A62: 1.1.20.1 | B62: Монтаж фасоного элемента Дз-1 | C62: м.п. | D62: -7.45 | E62: 458 | F62: =D62*E62 -> -3412.1 | G62: 1035 | H62: =D62*G62 -> -7710.75 | I62: =F62+H62 -> -11122.85 | J62: 600 | K62: =D62*J62 -> -4470 | L62: 1345.5 | M62: =D62*L62 -> -10023.975 | N62: =J62*D62+L62*D62 -> -14493.975 | S62: 0 | T62: 458 | U62: =S62*T62 -> 0 | V62: 1035 | W62: =S62*V62 -> 0 | X62: =U62+W62 -> 0 | Y62: 600 | Z62: =S62*Y62 -> 0 | AA62: 1345.5 | AB62: =S62*AA62 -> 0 | AC62: =Y62*S62+AA62*S62 -> 0 | AD62: -7.45
A63: 1.1.20.1 | B63: Монтаж фасоного элемента Дз-1 | C63: м.п. | D63: 6.83 | E63: 458 | F63: =D63*E63 -> 3128.14 | G63: 1035 | H63: =D63*G63 -> 7069.05 | I63: =F63+H63 -> 10197.19 | J63: 600 | K63: 4098 | L63: 1345.5 | M63: 9189.765 | N63: 13287.765 | S63: 3.73 | T63: 458 | U63: 1708.34 | V63: 1035 | W63: 3860.55 | X63: 5568.89 | Y63: 600 | Z63: 2238 | AA63: 1345.5 | AB63: 5018.715 | AC63: 7256.715 | AD63: 3.1
A64: 1.1.20.2 | B64: Монтаж фасоного элемента Дз-2 | C64: м.п. | D64: -15 | E64: 458 | F64: -6870 | G64: 522 | H64: -7830 | I64: -14700 | J64: 600 | K64: -9000 | L64: 678.6 | M64: -10179 | N64: -19179 | S64: 0 | T64: 458 | U64: 0 | V64: 522 | W64: 0 | X64: 0 | Y64: 600 | Z64: 0 | AA64: 678.6 | AB64: 0 | AC64: 0 | AD64: -15
A65: 1.1.20.2 | B65: Монтаж фасоного элемента Дз-2 | C65: м.п. | D65: 13.66 | E65: 458 | F65: =D65*E65 -> 6256.28 | G65: 522 | H65: =D65*G65 -> 7130.52 | I65: =F65+H65 -> 13386.8 | J65: 600 | K65: 8196 | L65: 678.6 | M65: 9269.676 | N65: 17465.676 | S65: 7.5 | T65: 458 | U65: 3435 | V65: 522 | W65: 3915 | X65: 7350 | Y65: 600 | Z65: 4500 | AA65: 678.6 | AB65: 5089.5 | AC65: 9589.5 | AD65: 6.16
A66: 1.1.20.3 | B66: Монтаж фасоного элемента Дз-3 | C66: м.п. | D66: -64 | E66: 458 | F66: -29312 | G66: 391 | H66: -25024 | I66: -54336 | J66: 600 | K66: -38400 | L66: 508.3 | M66: -32531.2 | N66: -70931.2 | S66: 0 | T66: 458 | U66: 0 | V66: 391 | W66: 0 | X66: 0 | Y66: 600 | Z66: 0 | AA66: 508.3 | AB66: 0 | AC66: 0 | AD66: -64
A67: 1.1.20.3 | B67: Монтаж фасоного элемента Дз-3 | C67: м.п. | D67: 57.71 | E67: 458 | F67: =D67*E67 -> 26431.18 | G67: 391 | H67: =D67*G67 -> 22564.61 | I67: =F67+H67 -> 48995.79 | J67: 600 | K67: 34626 | L67: 508.3 | M67: 29333.993 | N67: 63959.993 | S67: 32 | T67: 458 | U67: 14656 | V67: 391 | W67: 12512 | X67: 27168 | Y67: 600 | Z67: 19200 | AA67: 508.3 | AB67: 16265.6 | AC67: 35465.6 | AD67: 25.71
A68: 1.1.20.4 | B68: Монтаж фасоного элемента Дз-4 | C68: м.п. | D68: -64 | E68: 458 | F68: -29312 | G68: 378 | H68: -24192 | I68: -53504 | J68: 600 | K68: -38400 | L68: 491.4 | M68: -31449.6 | N68: -69849.6 | S68: 0 | T68: 458 | U68: 0 | V68: 378 | W68: 0 | X68: 0 | Y68: 600 | Z68: 0 | AA68: 491.4 | AB68: 0 | AC68: 0 | AD68: -64
A69: 1.1.20.4 | B69: Монтаж фасоного элемента Дз-4 | C69: м.п. | D69: 57.71 | E69: 458 | F69: =D69*E69 -> 26431.18 | G69: 378 | H69: =D69*G69 -> 21814.38 | I69: =F69+H69 -> 48245.56 | J69: 600 | K69: 34626 | L69: 491.4 | M69: 28358.694 | N69: 62984.694 | S69: 32 | T69: 458 | U69: 14656 | V69: 378 | W69: 12096 | X69: 26752 | Y69: 600 | Z69: 19200 | AA69: 491.4 | AB69: 15724.8 | AC69: 34924.8 | AD69: 25.71
A70: 1.1.20.5 | B70: Монтаж фасоного элемента Дз-5 | C70: м.п. | D70: -64 | E70: 458 | F70: -29312 | G70: 435 | H70: -27840 | I70: -57152 | J70: 600 | K70: -38400 | L70: 565.5 | M70: -36192 | N70: -74592 | S70: 0 | T70: 458 | U70: 0 | V70: 435 | W70: 0 | X70: 0 | Y70: 600 | Z70: 0 | AA70: 565.5 | AB70: 0 | AC70: 0 | AD70: -64
A71: 1.1.20.5 | B71: Монтаж фасоного элемента Дз-5 | C71: м.п. | D71: 70.38 | E71: 458 | F71: =D71*E71 -> 32234.04 | G71: 435 | H71: =D71*G71 -> 30615.3 | I71: =F71+H71 -> 62849.34 | J71: 600 | K71: 42228 | L71: 565.5 | M71: 39799.89 | N71: 82027.89 | S71: 32 | T71: 458 | U71: 14656 | V71: 435 | W71: 13920 | X71: 28576 | Y71: 600 | Z71: 19200 | AA71: 565.5 | AB71: 18096 | AC71: 37296 | AD71: 38.38
A72: 1.1.20.6 | B72: Монтаж колонн (усиление перегородок) | C72: шт | D72: 7 | E72: 27836 | F72: 194852 | G72: 6870 | H72: 48090 | I72: 242942 | J72: 36465 | K72: 255255 | L72: 8931 | M72: 62517 | N72: 317772 | S72: 7 | T72: 27836 | U72: 194852 | V72: 6870 | W72: 48090 | X72: 242942 | Y72: 36465 | Z72: 255255 | AA72: 8931 | AB72: 62517 | AC72: 317772 | AD72: 0
A73: 1.1.20.7 | B73: Демонтаж ГКЛ 2 слоя | C73: м2 | D73: 36 | E73: 890 | F73: 32040 | I73: 32040 | J73: 1166 | K73: 41976 | L73: 0 | N73: 41976 | S73: 36 | T73: 890 | U73: 32040 | X73: 32040 | Y73: 1166 | Z73: 41976 | AA73: 0 | AC73: 41976 | AD73: =D73-S73 -> 0
A74: 1.1.20.8 | B74: Монтаж профильной трубы 40х40 | C74: м.п. | D74: 12 | E74: 690 | F74: 8280 | G74: 348 | H74: =D74*G74 -> 4176 | I74: 12456 | J74: 904 | K74: 10848 | L74: 453 | M74: =D74*L74 -> 5436 | N74: 16284 | S74: 12 | T74: 690 | U74: 8280 | V74: 348 | W74: =S74*V74 -> 4176 | X74: 12456 | Y74: 904 | Z74: 10848 | AA74: 453 | AB74: =S74*AA74 -> 5436 | AC74: 16284 | AD74: 0
A75: 1.1.20.9 | B75: Монтаж ГКЛ 2 слоя | C75: м2 | D75: 36 | E75: 1290 | F75: 46440 | G75: 1250 | H75: 45000 | I75: 91440 | J75: 1690 | K75: 60840 | L75: 1625 | M75: 58500 | N75: 119340 | S75: 36 | T75: 1290 | U75: 46440 | V75: 1250 | W75: 45000 | X75: 91440 | Y75: 1690 | Z75: 60840 | AA75: 1625 | AB75: 58500 | AC75: 119340 | AD75: 0
A76: 1.1.20.10 | B76: Увеличение дверных проёмов | C76: шт | D76: 12 | E76: 5790 | F76: 69480 | G76: 1320 | H76: 15840 | I76: 85320 | J76: 7585 | K76: 91020 | L76: 1716 | M76: 20592 | N76: 111612 | S76: 12 | T76: 5790 | U76: 69480 | V76: 1320 | W76: 15840 | X76: 85320 | Y76: 7585 | Z76: 91020 | AA76: 1716 | AB76: 20592 | AC76: 111612 | AD76: 0
A77: 1.1.20.11 | B77: Наливной пол толщиной до 50мм | C77: м2 | D77: 125.1 | E77: 981.75 | F77: 122816.925 | G77: 1869.25 | H77: 233843.175 | I77: 356660.1 | J77: 1286 | K77: 160878.6 | L77: 2430 | M77: 303993 | N77: 464871.6 | S77: 125.1 | T77: 981.75 | U77: 122816.925 | V77: 1869.25 | W77: 233843.175 | X77: 356660.1 | Y77: 1286 | Z77: 160878.6 | AA77: 2430 | AB77: 303993 | AC77: 464871.6 | AD77: 0
A78: 1.1.20.12 | B78: Усиление площадки лестничного марша | C78: шт | D78: 4 | E78: 27836 | F78: 111344 | G78: 5787.6 | H78: 23150.4 | I78: 134494.4 | J78: 36465 | K78: 145860 | L78: 7524 | M78: 30096 | N78: 175956 | S78: 4 | T78: 27836 | U78: 111344 | V78: 5787.6 | W78: 23150.4 | X78: 134494.4 | Y78: 36465 | Z78: 145860 | AA78: 7524 | AB78: 30096 | AC78: 175956 | AD78: 0
A79: 1.1.20.13 | B79: Устройство стен из газобетонных блоков | C79: м3 | D79: 1.87 | E79: 5197.5 | F79: 9719.325 | G79: 10659 | H79: 19932.33 | I79: 29651.655 | J79: 6809 | K79: 12732.83 | L79: 13857 | M79: 25912.59 | N79: 38645.42 | S79: 1.87 | T79: 5197.5 | U79: 9719.325 | V79: 10659 | W79: 19932.33 | X79: 29651.655 | Y79: 6809 | Z79: 12732.83 | AA79: 13857 | AB79: 25912.59 | AC79: 38645.42 | AD79: 0
A80: 1.1.20.14 | B80: Облицовка ступеней плиткой на лестнечной клетке | C80: шт | D80: 24 | E80: 2832 | F80: 67968 | G80: 1956 | H80: 46944 | I80: 114912 | J80: 3710 | K80: 89040 | L80: 2543 | M80: 61032 | N80: 150072 | S80: 24 | T80: 2832 | U80: 67968 | V80: 1956 | W80: 46944 | X80: 114912 | Y80: 3710 | Z80: 89040 | AA80: 2543 | AB80: 61032 | AC80: 150072 | AD80: 0
A81: 1.1.20.15 | B81: Штукатурка откосов Ролл ворот в цеху | C81: м.п. | D81: 150 | E81: 865.2 | F81: 129780 | G81: 435.6 | H81: 65340 | I81: 195120 | J81: 1135 | K81: 170250 | L81: 567 | M81: 85050 | N81: 255300 | S81: 0 | T81: 865.2 | U81: 0 | V81: 435.6 | W81: 0 | X81: 0 | Y81: 1135 | Z81: 0 | AA81: 567 | AB81: 0 | AC81: 0 | AD81: 150
B82: Дополнительные работы | AD82: 0
A83: 1.1.21 | B83: Установка пластиковых дверей | C83: шт | D83: 27 | E83: 5197 | F83: =D83*E83 -> 140319 | G83: 25400 | H83: =D83*G83 -> 685800 | I83: =F83+H83 -> 826119 | J83: =E83*$O$2 -> 6808.07 | K83: =D83*J83 -> 183817.89 | L83: =G83*$P$2 -> 33020 | M83: =D83*L83 -> 891540 | N83: =J83*D83+L83*D83 -> 1075357.89 | T83: 5197 | U83: =S83*T83 -> 0 | V83: 25400 | W83: =S83*V83 -> 0 | X83: =U83+W83 -> 0 | Y83: =T83*$O$2 -> 6808.07 | Z83: =S83*Y83 -> 0 | AA83: =V83*$P$2 -> 33020 | AB83: =S83*AA83 -> 0 | AC83: =Y83*S83+AA83*S83 -> 0 | AD83: 27
A84: 1.1.22 | B84: Демонтаж перегородок ГКЛВ перед кладкой газоблока | C84: м2 | D84: 35.2 | E84: 1620 | F84: =D84*E84 -> 57024 | G84: 0 | H84: =D84*G84 -> 0 | I84: =F84+H84 -> 57024 | J84: =E84*$O$2 -> 2122.2 | K84: =D84*J84 -> 74701.44 | L84: =G84*$P$2 -> 0 | M84: =D84*L84 -> 0 | N84: =J84*D84+L84*D84 -> 74701.44 | T84: 1620 | U84: =S84*T84 -> 0 | V84: 0 | W84: =S84*V84 -> 0 | X84: =U84+W84 -> 0 | Y84: 2122.2 | Z84: 0 | AA84: 0 | AB84: 0 | AC84: 0 | AD84: 35.2
A85: 1.1.23 | B85: Монтаж перегородок после кладки газоблока | C85: м2 | D85: 31.36 | E85: 2320 | F85: =D85*E85 -> 72755.2 | G85: 4769.33 | H85: =D85*G85 -> 149566.1888 | I85: =F85+H85 -> 222321.3888 | J85: 3039.2 | K85: 95309.312 | L85: 6200.129 | M85: 194436.0454 | N85: 289745.3574 | T85: 2320 | U85: =S85*T85 -> 0 | V85: 4769.33 | W85: =S85*V85 -> 0 | X85: =U85+W85 -> 0 | Y85: 3039.2 | Z85: 0 | AA85: 6200.129 | AB85: 0 | AC85: 0 | AD85: 31.36
A86: 1.1.24 | B86: Зашивка дверного проема и ригеля ГКЛ | C86: м2 | D86: 1.44 | E86: 2320 | F86: 3340.8 | G86: 1600 | H86: 2304 | I86: 5644.8 | J86: 3039.2 | K86: 4376.448 | L86: 2080 | M86: 2995.2 | N86: 7371.648 | T86: 2320 | U86: 0 | V86: 1600 | W86: 0 | X86: 0 | Y86: 3039.2 | Z86: 0 | AA86: 2080 | AB86: 0 | AC86: 0 | AD86: 1.44
A87: 1.1.25 | B87: Устройство и обрамление дверных проемов | C87: м2 | D87: 1.53 | E87: 4600 | F87: 7038 | G87: 1160 | H87: 1774.8 | I87: 8812.8 | J87: 6026 | K87: 9219.78 | L87: 1508 | M87: 2307.24 | N87: 11527.02 | T87: 4600 | U87: 0 | V87: 1160 | W87: 0 | X87: 0 | Y87: 6026 | Z87: 0 | AA87: 1508 | AB87: 0 | AC87: 0 | AD87: 1.53
A88: 1.1.26 | B88: Окраска крестовых связей за 2 раза | C88: м2 | D88: 8.5 | E88: 2666.67 | F88: 22666.695 | G88: 3261.33 | H88: 27721.305 | I88: 50388 | J88: 3493.3377 | K88: 29693.37045 | L88: 4239.729 | M88: 36037.6965 | N88: 65731.06695 | T88: 2666.67 | U88: 0 | V88: 3261.33 | W88: 0 | X88: 0 | Y88: 3493.3377 | Z88: 0 | AA88: 4239.729 | AB88: 0 | AC88: 0 | AD88: 8.5
A89: 1.1.27 | B89: Увеличение проходки в покрытии АБК 1300х1000 | C89: шт | D89: 1 | E89: 9091.58 | F89: 9091.58 | G89: 3491.31 | H89: 3491.31 | I89: 12582.89 | J89: 11909.9698 | K89: 11909.9698 | L89: 4538.703 | M89: 4538.703 | N89: 16448.6728 | T89: 9091.58 | U89: 0 | V89: 3491.31 | W89: 0 | X89: 0 | Y89: 11909.9698 | Z89: 0 | AA89: 4538.703 | AB89: 0 | AC89: 0 | AD89: 1
A90: 1.1.28 | B90: Увеличение проходки в покрытии АБК 700х700 | C90: шт | D90: 2 | E90: 9091.58 | F90: 18183.16 | G90: 3491.31 | H90: 6982.62 | I90: 25165.78 | J90: 11909.9698 | K90: 23819.9396 | L90: 4538.703 | M90: 9077.406 | N90: 32897.3456 | T90: 9091.58 | U90: 0 | V90: 3491.31 | W90: 0 | X90: 0 | Y90: 11909.9698 | Z90: 0 | AA90: 4538.703 | AB90: 0 | AC90: 0 | AD90: 2
A91: 1.1.29 | B91: Увеличение проходки в покрытии АБК 900х600 | C91: шт | D91: 2 | E91: 9091.58 | F91: 18183.16 | G91: 3491.31 | H91: 6982.62 | I91: 25165.78 | J91: 11909.9698 | K91: 23819.9396 | L91: 4538.703 | M91: 9077.406 | N91: 32897.3456 | T91: 9091.58 | U91: 0 | V91: 3491.31 | W91: 0 | X91: 0 | Y91: 11909.9698 | Z91: 0 | AA91: 4538.703 | AB91: 0 | AC91: 0 | AD91: 2
A92: 1.1.30 | B92: Увеличение проходки в покрытии АБК 350х350 | C92: шт | D92: 2 | E92: 9091.58 | F92: 18183.16 | G92: 3491.31 | H92: 6982.62 | I92: 25165.78 | J92: 11909.9698 | K92: 23819.9396 | L92: 4538.703 | M92: 9077.406 | N92: 32897.3456 | T92: 9091.58 | U92: 0 | V92: 3491.31 | W92: 0 | X92: 0 | Y92: 11909.9698 | Z92: 0 | AA92: 4538.703 | AB92: 0 | AC92: 0 | AD92: 2
A93: 1.1.31 | B93: Увеличение проходки в покрытии АБК 300х300 | C93: шт | D93: 1 | E93: 9091.58 | F93: 9091.58 | G93: 3491.31 | H93: 3491.31 | I93: 12582.89 | J93: 11909.9698 | K93: 11909.9698 | L93: 4538.703 | M93: 4538.703 | N93: 16448.6728 | T93: 9091.58 | U93: 0 | V93: 3491.31 | W93: 0 | X93: 0 | Y93: 11909.9698 | Z93: 0 | AA93: 4538.703 | AB93: 0 | AC93: 0 | AD93: 1
A94: 1.1.32 | B94: Увеличение проходки в покрытии АБК 200х200 | C94: шт | D94: 1 | E94: 9091.58 | F94: 9091.58 | G94: 3491.31 | H94: 3491.31 | I94: 12582.89 | J94: 11909.9698 | K94: 11909.9698 | L94: 4538.703 | M94: 4538.703 | N94: 16448.6728 | T94: 9091.58 | U94: 0 | V94: 3491.31 | W94: 0 | X94: 0 | Y94: 11909.9698 | Z94: 0 | AA94: 4538.703 | AB94: 0 | AC94: 0 | AD94: 1
A95: 1.1.33 | B95: Устройство проходоки в плите перекрытия АБК 1300х1000 | C95: шт | D95: 1 | E95: 13165.33 | F95: 13165.33 | G95: 6226.67 | H95: 6226.67 | I95: 19392 | J95: 17246.5823 | K95: 17246.5823 | L95: 8094.671 | M95: 8094.671 | N95: 25341.2533 | T95: 13165.33 | U95: 0 | V95: 6226.67 | W95: 0 | X95: 0 | Y95: 17246.5823 | Z95: 0 | AA95: 8094.671 | AB95: 0 | AC95: 0 | AD95: 1
A96: 1.1.34 | B96: Устройство проходоки в плите перекрытия АБК 650х650 | C96: шт | D96: 1 | E96: 13165.33 | F96: 13165.33 | G96: 6226.67 | H96: 6226.67 | I96: 19392 | J96: 17246.5823 | K96: 17246.5823 | L96: 8094.671 | M96: 8094.671 | N96: 25341.2533 | T96: 13165.33 | U96: 0 | V96: 6226.67 | W96: 0 | X96: 0 | Y96: 17246.5823 | Z96: 0 | AA96: 8094.671 | AB96: 0 | AC96: 0 | AD96: 1
A97: 1.1.35 | B97: Устройство проходоки в плите перекрытия АБК 600х500 | C97: шт | D97: 1 | E97: 13165.33 | F97: 13165.33 | G97: 6226.67 | H97: 6226.67 | I97: 19392 | J97: 17246.5823 | K97: 17246.5823 | L97: 8094.671 | M97: 8094.671 | N97: 25341.2533 | T97: 13165.33 | U97: 0 | V97: 6226.67 | W97: 0 | X97: 0 | Y97: 17246.5823 | Z97: 0 | AA97: 8094.671 | AB97: 0 | AC97: 0 | AD97: 1
A98: 1.1.36 | B98: Устройство проходоки в стене ГКЛ АБК 800х600 | C98: шт | D98: 1 | E98: 9091.58 | F98: 9091.58 | G98: 3491.31 | H98: 3491.31 | I98: 12582.89 | J98: 11909.9698 | K98: 11909.9698 | L98: 4538.703 | M98: 4538.703 | N98: 16448.6728 | T98: 9091.58 | U98: 0 | V98: 3491.31 | W98: 0 | X98: 0 | Y98: 11909.9698 | Z98: 0 | AA98: 4538.703 | AB98: 0 | AC98: 0 | AD98: 1
A99: 1.1.37 | B99: Устройство проходоки в стене ГКЛ АБК 500х400 | C99: шт | D99: 1 | E99: 9091.58 | F99: 9091.58 | G99: 3491.31 | H99: 3491.31 | I99: 12582.89 | J99: 11909.9698 | K99: 11909.9698 | L99: 4538.703 | M99: 4538.703 | N99: 16448.6728 | T99: 9091.58 | U99: 0 | V99: 3491.31 | W99: 0 | X99: 0 | Y99: 11909.9698 | Z99: 0 | AA99: 4538.703 | AB99: 0 | AC99: 0 | AD99: 1
A100: 1.1.38 | B100: Проходки в стене сэндвича 860х660 | C100: шт | D100: 2 | E100: 9091.58 | F100: 18183.16 | G100: 3491.31 | H100: 6982.62 | I100: 25165.78 | J100: 11909.9698 | K100: 23819.9396 | L100: 4538.703 | M100: 9077.406 | N100: 32897.3456 | T100: 9091.58 | U100: 0 | V100: 3491.31 | W100: 0 | X100: 0 | Y100: 11909.9698 | Z100: 0 | AA100: 4538.703 | AB100: 0 | AC100: 0 | AD100: 2
A101: 1.1.39 | B101: Устройство ревизионных лючков 500х500 с врезкой замка | C101: шт | D101: 15 | E101: 5466.67 | F101: 82000.05 | G101: 4673.33 | H101: 70099.95 | I101: 152100 | J101: 7161.3377 | K101: 107420.0655 | L101: 6075.329 | M101: 91129.935 | N101: 198550.0005 | T101: 5466.67 | U101: 0 | V101: 4673.33 | W101: 0 | X101: 0 | Y101: 7161.3377 | Z101: 0 | AA101: 6075.329 | AB101: 0 | AC101: 0 | AD101: 15
A102: 1.1.40 | B102: Окраска металлической лестницы | C102: м2 | D102: 8 | E102: 3826.67 | F102: 30613.36 | G102: 3327.47 | H102: 26619.76 | I102: 57233.12 | J102: 5012.9377 | K102: 40103.5016 | L102: 4325.711 | M102: 34605.688 | N102: 74709.1896 | T102: 3826.67 | U102: 0 | V102: 3327.47 | W102: 0 | X102: 0 | Y102: 5012.9377 | Z102: 0 | AA102: 4325.711 | AB102: 0 | AC102: 0 | AD102: 8
A103: 1.1.41 | B103: Заполнение пространства между перегородками и профильным листом | C103: м.п. | D103: 70 | E103: 1933.33 | F103: 135333.1 | G103: 2640 | H103: 184800 | I103: 320133.1 | J103: 2532.6623 | K103: 177286.361 | L103: 3432 | M103: 240240 | N103: 417526.361 | T103: 1933.33 | U103: 0 | V103: 2640 | W103: 0 | X103: 0 | Y103: 2532.6623 | Z103: 0 | AA103: 3432 | AB103: 0 | AC103: 0 | AD103: 70
A104: 1.1.42 | B104: Заполнение пространства между несущим двутавром и плитой перекрытия газоблоком на пену 31 м.п. 1,85 м3. | C104: м3 | D104: 1.85 | E104: 4653.33 | F104: 8608.6605 | G104: 10520 | H104: 19462 | I104: 28070.6605 | J104: 6095.8623 | K104: 11277.34526 | L104: 13676 | M104: 25300.6 | N104: 36577.94525 | T104: 4653.33 | U104: 0 | V104: 10520 | W104: 0 | X104: 0 | Y104: 6095.8623 | Z104: 0 | AA104: 13676 | AB104: 0 | AC104: 0 | AD104: 1.85
A105: 1.1.43 | B105: Устройство армирования пола сеткой арм. Ш6 А500С ячейкой 150х150 мм | C105: т | D105: 0.93 | E105: 346.5 | F105: =D105*E105 -> 322.245 | G105: 1845.69 | H105: =D105*G105 -> 1716.4917 | I105: =F105+H105 -> 2038.7367 | J105: 453.915 | K105: 422.14095 | L105: 2399.397 | M105: 2231.43921 | N105: 2653.58016 | T105: 346.5 | U105: =S105*T105 -> 0 | V105: 1845.69 | W105: =S105*V105 -> 0 | X105: =U105+W105 -> 0 | Y105: 453.915 | Z105: 0 | AA105: 2399.397 | AB105: 0 | AC105: 0 | AD105: 0.93
A106: 1.1.44 | B106: Пандус металлический | C106: шт. | D106: 4 | E106: 24560 | F106: =D106*E106 -> 98240 | G106: 6780 | H106: =D106*G106 -> 27120 | I106: =F106+H106 -> 125360 | J106: 32173.6 | K106: 128694.4 | L106: 8814 | M106: 35256 | N106: 163950.4 | T106: 24560 | U106: =S106*T106 -> 0 | V106: 6780 | W106: =S106*V106 -> 0 | X106: =U106+W106 -> 0 | Y106: 32173.6 | Z106: 0 | AA106: 8814 | AB106: 0 | AC106: 0 | AD106: 4
A107: 1.1.45 | B107: Монтаж фасоного элемента над окном лестничной клетки | C107: м.п. | D107: 5 | E107: 458 | F107: =D107*E107 -> 2290 | G107: 1035.6 | H107: =D107*G107 -> 5178 | I107: =F107+H107 -> 7468 | J107: 599.98 | K107: 2999.9 | L107: 1346.28 | M107: 6731.4 | N107: 9731.3 | T107: 458 | U107: =S107*T107 -> 0 | V107: 1035.6 | W107: =S107*V107 -> 0 | X107: =U107+W107 -> 0 | Y107: 599.98 | Z107: 0 | AA107: 1346.28 | AB107: 0 | AC107: 0 | AD107: 5
A108: 1.1.46 | B108: Заделка мест прохода инженерных коммуникаций | C108: шт. | D108: 45 | E108: 0 | F108: =D108*E108 -> 0 | H108: =D108*G108 -> 0 | I108: =F108+H108 -> 0 | J108: 450 | K108: 20250 | L108: 500 | M108: 22500 | N108: 42750 | T108: 0 | U108: =S108*T108 -> 0 | W108: =S108*V108 -> 0 | X108: =U108+W108 -> 0 | Y108: 0 | Z108: 0 | AA108: 0 | AB108: 0 | AC108: 0 | AD108: 45
A109: 1.1.47 | B109: Финальный клининг | C109: м2 | D109: 378 | F109: =D109*E109 -> 0 | H109: =D109*G109 -> 0 | I109: =F109+H109 -> 0 | J109: 240 | K109: =D109*J109 -> 90720 | L109: =G109*$P$2 -> 0 | M109: =D109*L109 -> 0 | N109: =J109*D109+L109*D109 -> 90720 | U109: =S109*T109 -> 0 | W109: =S109*V109 -> 0 | X109: =U109+W109 -> 0 | Y109: 240 | Z109: 0 | AA109: 0 | AB109: 0 | AC109: 0 | AD109: 378
A110: 1.2 | B110: 130-23-АС1 Архитектурно-строительные решения | F110: =F113+F115+F118+F121+F122+F125+F129 -> 6694740.35 | H110: =H113+H115+H118+H121+H122+H125+H129 -> 11422970.08 | I110: =I113+I115+I118+I121+I122+I125+I129 -> 18117710.43 | K110: =K113+K115+K118+K121+K122+K125+K129 -> 8797746.29 | M110: =M113+M115+M118+M121+M122+M125+M129 -> 19081967.9 | N110: =N113+N115+N118+N121+N122+N125+N129 -> 27879714.19 | U110: =U113+U115+U118+U121+U122+U125+U129 -> 6619904.55 | W110: =W113+W115+W118+W121+W122+W125+W129 -> 11214320.08 | X110: =X113+X115+X118+X121+X122+X125+X129 -> 17834224.63 | Z110: =Z113+Z115+Z118+Z121+Z122+Z125+Z129 -> 8695584.83 | AB110: =AB113+AB115+AB118+AB121+AB122+AB125+AB129 -> 18836937.9 | AC110: =AC113+AC115+AC118+AC121+AC122+AC125+AC129 -> 27532522.73 | AD110: 0
A111: 1.2 | B111: 130-23-АС1 Архитектурно-строительные решения | F111: =F114+F117+F120+F124+F126-F113-F122-F128 -> -7083968.6 | H111: =H114+H117+H120+H124+H126-H113-H122-H128 -> -11450486.72 | I111: =I114+I117+I120+I124+I126-I113-I122-I128 -> -18534455.32 | K111: =K114+K117+K120+K124+K126-K113-K122-K128 -> -9158673.48 | M111: =M114+M117+M120+M124+M126-M113-M122-M128 -> -19261586 | N111: =N114+N117+N120+N124+N126-N113-N122-N128 -> -28420259.48 | U111: =U114+U117+U120+U124+U126-U113-U122-U128 -> -917239.2 | W111: =W114+W117+W120+W124+W126-W113-W122-W128 -> -2247203.52 | X111: =X114+X117+X120+X124+X126-X113-X122-X128 -> -3164442.72 | Z111: 0 | AB111: 0 | AC111: 0 | AD111: 0
A112: 1.2.1 | B112: Металлоконструкции огрунтованные КМ | AD112: 0
A113: 1.2.1.1 | B113: Монтаж фахверковых стоек массой до 1,0 т. | C113: т. | D113: 10.5 | E113: 68400 | F113: =D113*E113 -> 718200 | G113: 195000 | H113: =D113*G113 -> 2047500 | I113: =F113+H113 -> 2765700 | J113: 95478 | K113: =D113*J113 -> 1002519 | L113: 229000 | M113: =D113*L113 -> 2404500 | N113: =J113*D113+L113*D113 -> 3407019 | S113: 10.5 | T113: 68400 | U113: =S113*T113 -> 718200 | V113: 195000 | W113: =S113*V113 -> 2047500 | X113: =U113+W113 -> 2765700 | Y113: 95478 | Z113: =S113*Y113 -> 1002519 | AA113: 229000 | AB113: =S113*AA113 -> 2404500 | AC113: =Y113*S113+AA113*S113 -> 3407019 | AD113: 0
A114: 1.2.1.2 | B114: Монтаж распорок, ригелей, в том числе: Профили стальные гнутые замкнутые квадратные 100х4 | C114: т. | D114: -0.66 | E114: 69940 | F114: -46160.4 | G114: 195000 | H114: -128700 | I114: -174860.4 | J114: 95478 | K114: =D114*J114 -> -63015.48 | L114: 229000 | M114: =D114*L114 -> -151140 | N114: =J114*D114+L114*D114 -> -214155.48 | S114: 0 | T114: 69940 | U114: 0 | V114: 195000 | W114: 0 | X114: 0 | Y114: 95478 | Z114: =S114*Y114 -> 0 | AA114: 229000 | AB114: =S114*AA114 -> 0 | AC114: =Y114*S114+AA114*S114 -> 0 | AD114: -0.66
A115: 1.2.1.2 | B115: Монтаж распорок, ригелей, в том числе: Профили стальные гнутые замкнутые квадратные 100х4 | C115: т. | D115: 1.73 | E115: 69940 | F115: =D115*E115 -> 120996.2 | G115: 195000 | H115: =D115*G115 -> 337350 | I115: =F115+H115 -> 458346.2 | J115: 95478 | K115: =D115*J115 -> 165176.94 | L115: 229000 | M115: =D115*L115 -> 396170 | N115: =J115*D115+L115*D115 -> 561346.94 | S115: 0.66 | T115: 69940 | U115: 46160.4 | V115: 195000 | W115: 128700 | X115: 174860.4 | Y115: 95478 | Z115: =S115*Y115 -> 63015.48 | AA115: 229000 | AB115: =S115*AA115 -> 151140 | AC115: =Y115*S115+AA115*S115 -> 214155.48 | AD115: 1.07
A116: 1.2.2 | B116: Окраска металлоконструкций | AD116: 0
A117: 1.2.2.1 | B117: Устройство огнезащитной краски по металлу | C117: м2 | D117: -384.2 | E117: 2400 | F117: =D117*E117 -> -922080 | G117: 956 | H117: =D117*G117 -> -367295.2 | I117: =F117+H117 -> -1289375.2 | J117: 4150 | K117: =D117*J117 -> -1594430 | L117: 665 | M117: =D117*L117 -> -255493 | N117: =J117*D117+L117*D117 -> -1849923 | S117: 0 | T117: 2400 | U117: =S117*T117 -> 0 | V117: 956 | W117: =S117*V117 -> 0 | X117: =U117+W117 -> 0 | Y117: 4150 | Z117: =S117*Y117 -> 0 | AA117: 665 | AB117: =S117*AA117 -> 0 | AC117: =Y117*S117+AA117*S117 -> 0 | AD117: -384.2
A118: 1.2.2.1 | B118: Устройство огнезащитной краски по металлу | C118: м2 | D118: 349.59 | E118: 2400 | F118: =D118*E118 -> 839016 | G118: 956 | H118: =D118*G118 -> 334208.04 | I118: =F118+H118 -> 1173224.04 | J118: 4150 | K118: =D118*J118 -> 1450798.5 | L118: 665 | M118: =D118*L118 -> 232477.35 | N118: =J118*D118+L118*D118 -> 1683275.85 | S118: 349.59 | T118: 2400 | U118: =S118*T118 -> 839016 | V118: 956 | W118: =S118*V118 -> 334208.04 | X118: =U118+W118 -> 1173224.04 | Y118: 4150 | Z118: =S118*Y118 -> 1450798.5 | AA118: 665 | AB118: =S118*AA118 -> 232477.35 | AC118: =Y118*S118+AA118*S118 -> 1683275.85 | AD118: 0
A119: 1.2.3 | B119: Крепление металлоконструкций | AD119: 0
A120: 1.2.3.1 | B120: Сверление отверстий в железобетонных конструкциях | C120: шт. | D120: -811 | E120: 300 | F120: =D120*E120 -> -243300 | I120: =F120+H120 -> -243300 | J120: 393 | K120: =D120*J120 -> -318723 | L120: 0 | N120: =J120*D120+L120*D120 -> -318723 | S120: 0 | T120: 300 | U120: =S120*T120 -> 0 | X120: =U120+W120 -> 0 | Y120: 393 | Z120: =S120*Y120 -> 0 | AA120: 0 | AC120: =Y120*S120+AA120*S120 -> 0 | AD120: -811
A121: 1.2.3.1 | B121: Сверление отверстий в железобетонных конструкциях | C121: шт. | D121: 180 | E121: 300 | F121: =D121*E121 -> 54000 | I121: =F121+H121 -> 54000 | J121: 393 | K121: =D121*J121 -> 70740 | L121: 0 | N121: =J121*D121+L121*D121 -> 70740 | S121: 180 | T121: 300 | U121: =S121*T121 -> 54000 | X121: =U121+W121 -> 54000 | Y121: 393 | Z121: =S121*Y121 -> 70740 | AA121: 0 | AC121: =Y121*S121+AA121*S121 -> 70740 | AD121: 0
A122: 1.2.3.2 | B122: Устройство высокопрочных анкеров, закладных | C122: компл. | D122: 1 | E122: 199039.2 | F122: =D122*E122 -> 199039.2 | G122: 199703.52 | H122: =D122*G122 -> 199703.52 | I122: =F122+H122 -> 398742.72 | J122: 260741 | K122: =D122*J122 -> 260741 | L122: 259614 | M122: =D122*L122 -> 259614 | N122: =J122*D122+L122*D122 -> 520355 | S122: 1 | T122: 199039.2 | U122: =S122*T122 -> 199039.2 | V122: 199703.52 | W122: =S122*V122 -> 199703.52 | X122: =U122+W122 -> 398742.72 | Y122: 260741 | Z122: =S122*Y122 -> 260741 | AA122: 259614 | AB122: =S122*AA122 -> 259614 | AC122: =Y122*S122+AA122*S122 -> 520355 | AD122: 0
A123: 1.2.5 | B123: Устройство перегородки | AD123: 0
A124: 1.2.5.1 | B124: Стеновые сэндвич-панели 100-1000-Г-Г | C124: м2 | D124: -2215 | E124: 2237 | F124: =D124*E124 -> -4954955 | G124: 3967.398646 | H124: =D124*G124 -> -8787788 | I124: =F124+H124 -> -13742743 | J124: 2711 | K124: =D124*J124 -> -6004865 | L124: 7373 | M124: =D124*L124 -> -16331195 | N124: =J124*D124+L124*D124 -> -22336060 | S124: 0 | T124: 2237 | U124: =S124*T124 -> 0 | V124: 3967.398646 | W124: =S124*V124 -> 0 | X124: =U124+W124 -> 0 | Y124: 2711 | Z124: =S124*Y124 -> 0 | AA124: 7373 | AB124: =S124*AA124 -> 0 | AC124: =Y124*S124+AA124*S124 -> 0 | AD124: -2215
A125: 1.2.5.1 | B125: Стеновые сэндвич-панели 100-1000-Г-Г | C125: м2 | D125: 2122.35 | E125: 2237 | F125: =D125*E125 -> 4747696.95 | G125: 3967.398646 | H125: =D125*G125 -> 8420208.515 | I125: =F125+H125 -> 13167905.47 | J125: 2711 | K125: =D125*J125 -> 5753690.85 | L125: 7373 | M125: =D125*L125 -> 15648086.55 | N125: =J125*D125+L125*D125 -> 21401777.4 | S125: 2122.35 | T125: 2237 | U125: =S125*T125 -> 4747696.95 | V125: 3967.398646 | W125: =S125*V125 -> 8420208.515 | X125: =U125+W125 -> 13167905.47 | Y125: 2711 | Z125: =S125*Y125 -> 5753690.85 | AA125: 7373 | AB125: =S125*AA125 -> 15648086.55 | AC125: =Y125*S125+AA125*S125 -> 21401777.4 | AD125: 0
A126: 1.2.5.2 | B126: Устройство противопожарной перегородки «Knauf» С112 с двухслойной обшивкой с каждой стороны | C126: м2 | D126: -4 | E126: 4500 | F126: =D126*E126 -> -18000 | G126: 3500 | H126: =D126*G126 -> -14000 | I126: =H126+F126 -> -32000 | J126: 5055 | K126: =D126*J126 -> -20220 | L126: 4601 | M126: =D126*L126 -> -18404 | N126: =J126*D126+L126*D126 -> -38624 | S126: 0 | T126: 4500 | U126: =S126*T126 -> 0 | V126: 3500 | W126: =S126*V126 -> 0 | X126: =W126+U126 -> 0 | Y126: 5055 | Z126: =S126*Y126 -> 0 | AA126: 4601 | AB126: =S126*AA126 -> 0 | AC126: =Y126*S126+AA126*S126 -> 0 | AD126: -4
A127: 1.2.6 | B127: Устройство бетонного плинтуса | AD127: 0
A128: 1.2.6.1 | B128: Устройство плинтуса из фасонного элемента | C128: м/п | D128: -378 | E128: 47 | F128: -17766 | G128: 250 | H128: =D128*G128 -> -94500 | I128: =H128+F128 -> -112266 | J128: 280 | K128: =D128*J128 -> -105840 | L128: 420 | M128: =D128*L128 -> -158760 | N128: =J128*D128+L128*D128 -> -264600 | S128: 0 | T128: 47 | U128: =S128*T128 -> 0 | V128: 250 | W128: =S128*V128 -> 0 | X128: =W128+U128 -> 0 | Y128: 280 | Z128: =S128*Y128 -> 0 | AA128: 420 | AB128: =S128*AA128 -> 0 | AC128: =Y128*S128+AA128*S128 -> 0 | AD128: -378
A129: 1.2.6.1 | B129: Устройство плинтуса из фасонного элемента | C129: м/п | D129: 336 | E129: 47 | F129: =D129*E129 -> 15792 | G129: 250 | H129: =D129*G129 -> 84000 | I129: =H129+F129 -> 99792 | J129: 280 | K129: =D129*J129 -> 94080 | L129: 420 | M129: =D129*L129 -> 141120 | N129: =J129*D129+L129*D129 -> 235200 | S129: 336 | T129: 47 | U129: =S129*T129 -> 15792 | V129: 250 | W129: =S129*V129 -> 84000 | X129: =W129+U129 -> 99792 | Y129: 280 | Z129: =S129*Y129 -> 94080 | AA129: 420 | AB129: =S129*AA129 -> 141120 | AC129: =Y129*S129+AA129*S129 -> 235200 | AD129: 0
A130: 1.3 | B130: 130-23-ВК Внутренние трубопроводы | F130: =SUM(F131:F134) -> 3010200 | H130: =SUM(H131:H134) -> 5727056.64 | I130: =SUM(I131:I134) -> 8737256.64 | K130: =SUM(K131:K134) -> 3943362 | M130: =SUM(M131:M134) -> 7445174 | N130: =SUM(N131:N134) -> 11388536 | U130: =SUM(U131:U134) -> 2709180 | W130: =SUM(W131:W134) -> 5154350.976 | X130: =SUM(X131:X134) -> 7863530.976 | Z130: =SUM(Z131:Z134) -> 3549025.8 | AB130: =SUM(AB131:AB134) -> 6700656.6 | AC130: =SUM(AC131:AC134) -> 10249682.4 | AD130: 0
A131: 1.3.1 | B131: Хозяйственно-питьевой водопровод В1. | C131: сис | D131: 1 | E131: 695100 | F131: =D131*E131 -> 695100 | G131: 753743.52 | H131: =D131*G131 -> 753743.52 | I131: =H131+F131 -> 1448843.52 | J131: 910581 | K131: =D131*J131 -> 910581 | L131: 979867 | M131: =D131*L131 -> 979867 | N131: =J131*D131+L131*D131 -> 1890448 | S131: 0.9 | T131: 695100 | U131: =S131*T131 -> 625590 | V131: 753743.52 | W131: =S131*V131 -> 678369.168 | X131: =W131+U131 -> 1303959.168 | Y131: 910581 | Z131: =S131*Y131 -> 819522.9 | AA131: 979867 | AB131: =S131*AA131 -> 881880.3 | AC131: =Y131*S131+AA131*S131 -> 1701403.2 | AD131: 0.1
A132: 1.3.2 | B132: Горячее водоснабжение (Т3, Т4) | C132: сис | D132: 1 | E132: 868200 | F132: =D132*E132 -> 868200 | G132: 1236673.44 | H132: =D132*G132 -> 1236673.44 | I132: =H132+F132 -> 2104873.44 | J132: 1137342 | K132: =D132*J132 -> 1137342 | L132: 1607675 | M132: =D132*L132 -> 1607675 | N132: =J132*D132+L132*D132 -> 2745017 | S132: 0.9 | T132: 868200 | U132: =S132*T132 -> 781380 | V132: 1236673.44 | W132: =S132*V132 -> 1113006.096 | X132: =W132+U132 -> 1894386.096 | Y132: 1137342 | Z132: =S132*Y132 -> 1023607.8 | AA132: 1607675 | AB132: =S132*AA132 -> 1446907.5 | AC132: =Y132*S132+AA132*S132 -> 2470515.3 | AD132: 0.1
A133: 1.3.3 | B133: Противопожарный водопровод, В2 | C133: сис | D133: 1 | E133: 1179600 | F133: 1179600 | G133: 3168026.88 | H133: 3168026.88 | I133: 4347626.88 | J133: 1545276 | K133: =D133*J133 -> 1545276 | L133: 4118435 | M133: =D133*L133 -> 4118435 | N133: =J133*D133+L133*D133 -> 5663711 | S133: 0.9 | T133: 1179600 | U133: 1061640 | V133: 3168026.88 | W133: 2851224.192 | X133: 3912864.192 | Y133: 1545276 | Z133: =S133*Y133 -> 1390748.4 | AA133: 4118435 | AB133: =S133*AA133 -> 3706591.5 | AC133: =Y133*S133+AA133*S133 -> 5097339.9 | AD133: 0.1
A134: 1.3.4 | B134: Бытовая канализация К1 | C134: сис | D134: 1 | E134: 267300 | F134: 267300 | G134: 568612.8 | H134: 568612.8 | I134: 835912.8 | J134: 350163 | K134: =D134*J134 -> 350163 | L134: 739197 | M134: =D134*L134 -> 739197 | N134: =J134*D134+L134*D134 -> 1089360 | S134: 0.9 | T134: 267300 | U134: 240570 | V134: 568612.8 | W134: 511751.52 | X134: 752321.52 | Y134: 350163 | Z134: =S134*Y134 -> 315146.7 | AA134: 739197 | AB134: =S134*AA134 -> 665277.3 | AC134: =Y134*S134+AA134*S134 -> 980424 | AD134: 0.1
A135: 1.4 | B135: 130-23-ПС Пожарная сигнализация | F135: =F137+F138+F139+F140+F141+F142+F143+F144+F146+F148+F150+F152+F154+F155+F156+F157+F158+F159+F160+F161+F163+F164+F165+F166+F167+F168+F169+F171+F172+F174+F176+F177+F178+F181+F182+F183+F186+F187+F189+F191+F193+F194+F196+F198+F200+F201+F203+F205+F207+F208+F210+F212+F214+F215+F216+F217+F219+F221+F223+F225+F226+F227+F228+F230+F231+F232+F233+F237+F238+F239+F240+F241+F242+F243+F244+F245+F246+F247+F248+F249+F250+F251+F149 -> 4454214 | H135: =H137+H138+H139+H140+H141+H142+H143+H144+H146+H148+H150+H152+H154+H155+H156+H157+H158+H159+H160+H161+H163+H164+H165+H166+H167+H168+H169+H171+H172+H174+H176+H177+H178+H181+H182+H183+H186+H187+H189+H191+H193+H194+H196+H198+H200+H201+H203+H205+H207+H208+H210+H212+H214+H215+H216+H217+H219+H221+H223+H225+H226+H227+H228+H230+H231+H232+H233+H237+H238+H239+H240+H241+H242+H243+H244+H245+H246+H247+H248+H249+H250+H251+H149 -> 5191171 | I135: =I137+I138+I139+I140+I141+I142+I143+I144+I146+I148+I150+I152+I154+I155+I156+I157+I158+I159+I160+I161+I163+I164+I165+I166+I167+I168+I169+I171+I172+I174+I176+I177+I178+I181+I182+I183+I186+I187+I189+I191+I193+I194+I196+I198+I200+I201+I203+I205+I207+I208+I210+I212+I214+I215+I216+I217+I219+I221+I223+I225+I226+I227+I228+I230+I231+I232+I233+I237+I238+I239+I240+I241+I242+I243+I244+I245+I246+I247+I248+I249+I250+I251+I149 -> 9645385 | K135: =K137+K138+K139+K140+K141+K142+K143+K144+K146+K148+K150+K152+K154+K155+K156+K157+K158+K159+K160+K161+K163+K164+K165+K166+K167+K168+K169+K171+K172+K174+K176+K177+K178+K181+K182+K183+K186+K187+K189+K191+K193+K194+K196+K198+K200+K201+K203+K205+K207+K208+K210+K212+K214+K215+K216+K217+K219+K221+K223+K225+K226+K227+K228+K230+K231+K232+K233+K237+K238+K239+K240+K241+K242+K243+K244+K245+K246+K247+K248+K249+K250+K251+K149 -> 5616180.6 | M135: =M137+M138+M139+M140+M141+M142+M143+M144+M146+M148+M150+M152+M154+M155+M156+M157+M158+M159+M160+M161+M163+M164+M165+M166+M167+M168+M169+M171+M172+M174+M176+M177+M178+M181+M182+M183+M186+M187+M189+M191+M193+M194+M196+M198+M200+M201+M203+M205+M207+M208+M210+M212+M214+M215+M216+M217+M219+M221+M223+M225+M226+M227+M228+M230+M231+M232+M233+M237+M238+M239+M240+M241+M242+M243+M244+M245+M246+M247+M248+M249+M250+M251+M149 -> 6748516.652 | N135: =N137+N138+N139+N140+N141+N142+N143+N144+N146+N148+N150+N152+N154+N155+N156+N157+N158+N159+N160+N161+N163+N164+N165+N166+N167+N168+N169+N171+N172+N174+N176+N177+N178+N181+N182+N183+N186+N187+N189+N191+N193+N194+N196+N198+N200+N201+N203+N205+N207+N208+N210+N212+N214+N215+N216+N217+N219+N221+N223+N225+N226+N227+N228+N230+N231+N232+N233+N237+N238+N239+N240+N241+N242+N243+N244+N245+N246+N247+N248+N249+N250+N251+N149 -> 12364697.25 | U135: =U137+U138+U139+U140+U141+U142+U143+U144+U146+U148+U150+U152+U154+U155+U156+U157+U158+U159+U160+U161+U163+U164+U165+U166+U167+U168+U169+U171+U172+U174+U176+U177+U178+U181+U182+U183+U186+U187+U189+U191+U193+U194+U196+U198+U200+U201+U203+U205+U207+U208+U210+U212+U214+U215+U216+U217+U219+U221+U223+U225+U226+U227+U228+U230+U231+U232+U233+U237+U238+U239+U240+U241+U242+U243+U244+U245+U246+U247+U248+U249+U250+U251 -> 2508964 | W135: =W137+W138+W139+W140+W141+W142+W143+W144+W146+W148+W150+W152+W154+W155+W156+W157+W158+W159+W160+W161+W163+W164+W165+W166+W167+W168+W169+W171+W172+W174+W176+W177+W178+W181+W182+W183+W186+W187+W189+W191+W193+W194+W196+W198+W200+W201+W203+W205+W207+W208+W210+W212+W214+W215+W216+W217+W219+W221+W223+W225+W226+W227+W228+W230+W231+W232+W233+W237+W238+W239+W240+W241+W242+W243+W244+W245+W246+W247+W248+W249+W250+W251 -> 3121478.36 | X135: =X137+X138+X139+X140+X141+X142+X143+X144+X146+X148+X150+X152+X154+X155+X156+X157+X158+X159+X160+X161+X163+X164+X165+X166+X167+X168+X169+X171+X172+X174+X176+X177+X178+X181+X182+X183+X186+X187+X189+X191+X193+X194+X196+X198+X200+X201+X203+X205+X207+X208+X210+X212+X214+X215+X216+X217+X219+X221+X223+X225+X226+X227+X228+X230+X231+X232+X233+X237+X238+X239+X240+X241+X242+X243+X244+X245+X246+X247+X248+X249+X250+X251 -> 5630442.36 | Z135: =Z137+Z138+Z139+Z140+Z141+Z142+Z143+Z144+Z146+Z148+Z150+Z152+Z154+Z155+Z156+Z157+Z158+Z159+Z160+Z161+Z163+Z164+Z165+Z166+Z167+Z168+Z169+Z171+Z172+Z174+Z176+Z177+Z178+Z181+Z182+Z183+Z186+Z187+Z189+Z191+Z193+Z194+Z196+Z198+Z200+Z201+Z203+Z205+Z207+Z208+Z210+Z212+Z214+Z215+Z216+Z217+Z219+Z221+Z223+Z225+Z226+Z227+Z228+Z230+Z231+Z232+Z233+Z237+Z238+Z239+Z240+Z241+Z242+Z243+Z244+Z245+Z246+Z247+Z248+Z249+Z250+Z251 -> 3134783.2 | AB135: =AB137+AB138+AB139+AB140+AB141+AB142+AB143+AB144+AB146+AB148+AB150+AB152+AB154+AB155+AB156+AB157+AB158+AB159+AB160+AB161+AB163+AB164+AB165+AB166+AB167+AB168+AB169+AB171+AB172+AB174+AB176+AB177+AB178+AB181+AB182+AB183+AB186+AB187+AB189+AB191+AB193+AB194+AB196+AB198+AB200+AB201+AB203+AB205+AB207+AB208+AB210+AB212+AB214+AB215+AB216+AB217+AB219+AB221+AB223+AB225+AB226+AB227+AB228+AB230+AB231+AB232+AB233+AB237+AB238+AB239+AB240+AB241+AB242+AB243+AB244+AB245+AB246+AB247+AB248+AB249+AB250+AB251 -> 4057917.08 | AC135: =AC137+AC138+AC139+AC140+AC141+AC142+AC143+AC144+AC146+AC148+AC150+AC152+AC154+AC155+AC156+AC157+AC158+AC159+AC160+AC161+AC163+AC164+AC165+AC166+AC167+AC168+AC169+AC171+AC172+AC174+AC176+AC177+AC178+AC181+AC182+AC183+AC186+AC187+AC189+AC191+AC193+AC194+AC196+AC198+AC200+AC201+AC203+AC205+AC207+AC208+AC210+AC212+AC214+AC215+AC216+AC217+AC219+AC221+AC223+AC225+AC226+AC227+AC228+AC230+AC231+AC232+AC233+AC237+AC238+AC239+AC240+AC241+AC242+AC243+AC244+AC245+AC246+AC247+AC248+AC249+AC250+AC251 -> 7192700.28 | AD135: 0
A136: 1.4 | B136: 130-23-ПС Пожарная сигнализация | F136: =-F137-F138-F139-F140-F141-F142-F143-F144+F145+F147+F151+F153-F155-F156-F157-F158-F159-F160-F161+F162-F164-F165-F166-F167-F168-F169+F170-F172+F173+F175-F177-F178+F179+F180+F184+F185-F187+F188-F190-F192-F194+F195+F197+F199-F201+F202-F204+F206-F208+F209-F211+F213-F215-F216-F217+F218+F220+F222+F224-F226-F227-F228-F229-F231-F232-F233+F234-F237-F238-F239-F240-F241-F242-F243-F244-F245-F246-F247-F248-F249-F250+F251 -> -4243632 | H136: =-H137-H138-H139-H140-H141-H142-H143-H144+H145+H147+H151+H153-H155-H156-H157-H158-H159-H160-H161+H162-H164-H165-H166-H167-H168-H169+H170-H172+H173+H175-H177-H178+H179+H180+H184+H185-H187+H188-H190-H192-H194+H195+H197+H199-H201+H202-H204+H206-H208+H209-H211+H213-H215-H216-H217+H218+H220+H222+H224-H226-H227-H228-H229-H231-H232-H233+H234-H237-H238-H239-H240-H241-H242-H243-H244-H245-H246-H247-H248-H249-H250+H251 -> -3712001.38 | I136: =-I137-I138-I139-I140-I141-I142-I143-I144+I145+I147+I151+I153-I155-I156-I157-I158-I159-I160-I161+I162-I164-I165-I166-I167-I168-I169+I170-I172+I173+I175-I177-I178+I179+I180+I184+I185-I187+I188-I190-I192-I194+I195+I197+I199-I201+I202-I204+I206-I208+I209-I211+I213-I215-I216-I217+I218+I220+I222+I224-I226-I227-I228-I229-I231-I232-I233+I234-I237-I238-I239-I240-I241-I242-I243-I244-I245-I246-I247-I248-I249-I250+I251 -> -7955633.38 | K136: =-K137-K138-K139-K140-K141-K142-K143-K144+K145+K147+K151+K153-K155-K156-K157-K158-K159-K160-K161+K162-K164-K165-K166-K167-K168-K169+K170-K172+K173+K175-K177-K178+K179+K180+K184+K185-K187+K188-K190-K192-K194+K195+K197+K199-K201+K202-K204+K206-K208+K209-K211+K213-K215-K216-K217+K218+K220+K222+K224-K226-K227-K228-K229-K231-K232-K233+K234-K237-K238-K239-K240-K241-K242-K243-K244-K245-K246-K247-K248-K249-K250+K251 -> -4912939.1 | M136: =-M137-M138-M139-M140-M141-M142-M143-M144+M145+M147+M151+M153-M155-M156-M157-M158-M159-M160-M161+M162-M164-M165-M166-M167-M168-M169+M170-M172+M173+M175-M177-M178+M179+M180+M184+M185-M187+M188-M190-M192-M194+M195+M197+M199-M201+M202-M204+M206-M208+M209-M211+M213-M215-M216-M217+M218+M220+M222+M224-M226-M227-M228-M229-M231-M232-M233+M234-M237-M238-M239-M240-M241-M242-M243-M244-M245-M246-M247-M248-M249-M250+M251 -> -4825663.18 | N136: =-N137-N138-N139-N140-N141-N142-N143-N144+N145+N147+N151+N153-N155-N156-N157-N158-N159-N160-N161+N162-N164-N165-N166-N167-N168-N169+N170-N172+N173+N175-N177-N178+N179+N180+N184+N185-N187+N188-N190-N192-N194+N195+N197+N199-N201+N202-N204+N206-N208+N209-N211+N213-N215-N216-N217+N218+N220+N222+N224-N226-N227-N228-N229-N231-N232-N233+N234-N237-N238-N239-N240-N241-N242-N243-N244-N245-N246-N247-N248-N249-N250+N251 -> -9738602.28 | U136: =-U137-U138-U139-U140-U141-U142-U143-U144+U145+U147+U151+U153-U155-U156-U157-U158-U159-U160-U161+U162-U164-U165-U166-U167-U168-U169+U170-U172+U173+U175-U177-U178+U179+U180+U184+U185-U187+U188-U190-U192-U194+U195+U197+U199-U201+U202-U204+U206-U208+U209-U211+U213-U215-U216-U217+U218+U220+U222+U224-U226-U227-U228-U229-U231-U232-U233+U234-U237-U238-U239-U240-U241-U242-U243-U244-U245-U246-U247-U248-U249-U250+U251 -> -845660 | W136: =-W137-W138-W139-W140-W141-W142-W143-W144+W145+W147+W151+W153-W155-W156-W157-W158-W159-W160-W161+W162-W164-W165-W166-W167-W168-W169+W170-W172+W173+W175-W177-W178+W179+W180+W184+W185-W187+W188-W190-W192-W194+W195+W197+W199-W201+W202-W204+W206-W208+W209-W211+W213-W215-W216-W217+W218+W220+W222+W224-W226-W227-W228-W229-W231-W232-W233+W234-W237-W238-W239-W240-W241-W242-W243-W244-W245-W246-W247-W248-W249-W250+W251 -> -1004658.32 | X136: =-X137-X138-X139-X140-X141-X142-X143-X144+X145+X147+X151+X153-X155-X156-X157-X158-X159-X160-X161+X162-X164-X165-X166-X167-X168-X169+X170-X172+X173+X175-X177-X178+X179+X180+X184+X185-X187+X188-X190-X192-X194+X195+X197+X199-X201+X202-X204+X206-X208+X209-X211+X213-X215-X216-X217+X218+X220+X222+X224-X226-X227-X228-X229-X231-X232-X233+X234-X237-X238-X239-X240-X241-X242-X243-X244-X245-X246-X247-X248-X249-X250+X251 -> -1850318.32 | Z136: 0 | AB136: 0 | AC136: 0 | AD136: =D136-S136 -> 0
A137: 1.4.1 | B137: Сервер "Орион Про" | C137: компл. | D137: 1 | E137: 38400 | F137: =D137*E137 -> 38400 | G137: 0 | H137: =G137*D137 -> 0 | I137: =F137+H137 -> 38400 | J137: 50304 | K137: =D137*J137 -> 50304 | L137: 0 | N137: =J137*D137+L137*D137 -> 50304 | S137: 0 | T137: 38400 | U137: =S137*T137 -> 0 | V137: 0 | W137: =V137*S137 -> 0 | X137: =U137+W137 -> 0 | Y137: 50304 | Z137: =S137*Y137 -> 0 | AA137: 0 | AC137: =Y137*S137+AA137*S137 -> 0 | AD137: 1
A138: 1.4.2 | B138: Шкаф пожарной сигнализации | C138: шт. | D138: 4 | E138: 4200 | F138: 16800 | G138: 28173.6 | H138: 112694.4 | I138: 129494.4 | J138: 5502 | K138: 22008 | L138: 36625.68 | M138: =D138*L138 -> 146502.72 | N138: 168510.72 | S138: 3 | T138: 4200 | U138: 12600 | V138: 28173.6 | W138: 84520.8 | X138: 97120.8 | Y138: 5502 | Z138: 16506 | AA138: 36625.68 | AB138: =S138*AA138 -> 109877.04 | AC138: 126383.04 | AD138: 1
A139: 1.4.3 | B139: Монтажный комплект | C139: шт. | D139: 4 | E139: 1800 | F139: 7200 | G139: 1120 | H139: 4480 | I139: 11680 | J139: 2358 | K139: 9432 | L139: 1456 | M139: 5824 | N139: 15256 | S139: 3 | T139: 1800 | U139: 5400 | V139: 1120 | W139: 3360 | X139: 8760 | Y139: 2358 | Z139: 7074 | AA139: 1456 | AB139: 4368 | AC139: 11442 | AD139: 1
A140: 1.4.5 | B140: Прибор приемно-контрольный и управления пожарный | C140: шт. | D140: 1 | E140: 4200 | F140: 4200 | G140: 32333.6 | H140: 32333.6 | I140: 36533.6 | J140: 5502 | K140: 5502 | L140: 42033.68 | M140: 42033.68 | N140: 47535.68 | S140: 0 | T140: 4200 | U140: 0 | V140: 32333.6 | W140: 0 | X140: 0 | Y140: 5502 | Z140: 0 | AA140: 42033.68 | AB140: 0 | AC140: 0 | AD140: 1
A141: 1.4.6 | B141: Аккумулятор 12 В, 17 А/ч | C141: шт. | D141: 10 | E141: 400 | F141: 4000 | G141: 5668 | H141: 56680 | I141: 60680 | J141: 524 | K141: 5240 | L141: 7368.4 | M141: 73684 | N141: 78924 | S141: 0 | T141: 400 | U141: 0 | V141: 5668 | W141: 0 | X141: 0 | Y141: 524 | Z141: 0 | AA141: 7368.4 | AB141: 0 | AC141: 0 | AD141: 10
A142: 1.4.7 | B142: Пульт контроля и управления | C142: шт. | D142: 1 | E142: 2600 | F142: 2600 | G142: 11375.52 | H142: 11375.52 | I142: 13975.52 | J142: 3406 | K142: 3406 | L142: 14788.18 | M142: 14788.18 | N142: 18194.18 | S142: 0 | T142: 2600 | U142: 0 | V142: 11375.52 | W142: 0 | X142: 0 | Y142: 3406 | Z142: 0 | AA142: 14788.18 | AB142: 0 | AC142: 0 | AD142: 1
A143: 1.4.8 | B143: Контроллер двухпроводной линиии связи | C143: шт. | D143: 11 | E143: 2600 | F143: 28600 | G143: 5006.04 | H143: 55066.44 | I143: 83666.44 | J143: 3406 | K143: 37466 | L143: 6507.85 | M143: 71586.35 | N143: 109052.35 | S143: 11 | T143: 2600 | U143: 28600 | V143: 5006.04 | W143: 55066.44 | X143: 83666.44 | Y143: 3406 | Z143: 37466 | AA143: 6507.85 | AB143: 71586.35 | AC143: 109052.35 | AD143: 0
A144: 1.4.9 | B144: Блок контрольно-пусковой | C144: шт. | D144: 4 | E144: 2600 | F144: 10400 | G144: 4564.56 | H144: 18258.24 | I144: 28658.24 | J144: 3406 | K144: 13624 | L144: 5933.93 | M144: 23735.72 | N144: 37359.72 | S144: 4 | T144: 2600 | U144: 10400 | V144: 4564.56 | W144: 18258.24 | X144: 28658.24 | Y144: 3406 | Z144: 13624 | AA144: 5933.93 | AB144: 23735.72 | AC144: 37359.72 | AD144: 0
A145: 1.4.10 | B145: Извещатель пожарный дымовой оптико-электронный аналого-адресный | C145: шт. | D145: -137 | E145: 1200 | F145: -164400 | G145: 1901.8 | H145: -260546.6 | I145: -424946.6 | J145: 1572 | K145: -215364 | L145: 2472.34 | M145: -338710.58 | N145: -554074.58 | S145: 0 | T145: 1200 | U145: 0 | V145: 1901.8 | W145: 0 | X145: 0 | Y145: 1572 | Z145: 0 | AA145: 2472.34 | AB145: 0 | AC145: 0 | AD145: -137
A146: 1.4.10 | B146: Извещатель пожарный дымовой оптико-электронный аналого-адресный | C146: шт. | D146: 139 | E146: 1200 | F146: =D146*E146 -> 166800 | G146: 1901.8 | H146: =G146*D146 -> 264350.2 | I146: =F146+H146 -> 431150.2 | J146: 1572 | K146: 218508 | L146: 2472.34 | M146: 343655.26 | N146: 562163.26 | S146: 50 | T146: 1200 | U146: =S146*T146 -> 60000 | V146: 1901.8 | W146: =V146*S146 -> 95090 | X146: =U146+W146 -> 155090 | Y146: 1572 | Z146: 78600 | AA146: 2472.34 | AB146: 123617 | AC146: 202217 | AD146: 89
A147: 1.4.11 | B147: Извещатель пожарный линейный однопозиционный адресный | C147: шт. | D147: -24 | E147: 3400 | F147: -81600 | G147: 28860 | H147: -692640 | I147: -774240 | J147: 4454 | K147: -106896 | L147: 37518 | M147: -900432 | N147: -1007328 | S147: 0 | T147: 3400 | U147: =S147*T147 -> 0 | V147: 28860 | W147: =V147*S147 -> 0 | X147: =U147+W147 -> 0 | Y147: 4454 | Z147: 0 | AA147: 37518 | AB147: 0 | AC147: 0 | AD147: -24
A148: 1.4.11 | B148: Извещатель пожарный линейный однопозиционный адресный | C148: шт. | D148: 42 | E148: 3400 | F148: =D148*E148 -> 142800 | G148: 28860 | H148: =G148*D148 -> 1212120 | I148: =F148+H148 -> 1354920 | J148: 4454 | K148: 187068 | L148: 37518 | M148: 1575756 | N148: 1762824 | S148: 22 | T148: 3400 | U148: =S148*T148 -> 74800 | V148: 28860 | W148: =V148*S148 -> 634920 | X148: =U148+W148 -> 709720 | Y148: 4454 | Z148: 97988 | AA148: 37518 | AB148: 825396 | AC148: 923384 | AD148: 20
A149: 1.4.11.1 | B149: Демонтаж и перенос Извещателя пожарного линейного в комплекте с отражателем | C149: шт | D149: 16 | E149: 5000 | F149: =D149*E149 -> 80000 | G149: 0 | H149: =G149*D149 -> 0 | I149: =F149+H149 -> 80000 | J149: =E149*$O$2 -> 6550 | K149: 104800 | L149: =G149*$P$2 -> 0 | M149: =D149*L149 -> 0 | N149: =K149+M149 -> 104800
A150: 1.4.12 | B150: Траверса 30х17 мм | C150: м. | D150: 10 | E150: 200 | F150: =D150*E150 -> 2000 | G150: 127.1 | H150: =D150*G150 -> 1271 | I150: =F150+H150 -> 3271 | J150: =E150*$O$2 -> 262 | K150: =D150*J150 -> 2620 | L150: =G150*$P$2 -> 165.23 | M150: =D150*L150 -> 1652.3 | N150: =K150+M150 -> 4272.3 | S150: 0 | T150: 200 | U150: =S150*T150 -> 0 | V150: 127.1 | W150: =S150*V150 -> 0 | X150: =U150+W150 -> 0 | Y150: 6.55 | Z150: 0 | AA150: 2.37 | AB150: 0 | AC150: 0 | AD150: 10
A151: 1.4.13 | B151: Извещатель пожарный ручной адресный | C151: шт. | D151: -15 | E151: 1200 | F151: -18000 | G151: 1121.8 | H151: -16827 | I151: =F151+H151 -> -34827 | J151: 1572 | K151: -23580 | L151: 1458.34 | M151: -21875.1 | N151: -45455.1 | S151: 0 | T151: 1200 | U151: =S151*T151 -> 0 | V151: 1121.8 | W151: =V151*S151 -> 0 | X151: =U151+W151 -> 0 | Y151: 1572 | Z151: 0 | AA151: 1458.34 | AB151: 0 | AC151: 0 | AD151: -15
A152: 1.4.13 | B152: Извещатель пожарный ручной адресный | C152: шт. | D152: 18 | E152: 1200 | F152: =D152*E152 -> 21600 | G152: 1121.8 | H152: =G152*D152 -> 20192.4 | I152: =F152+H152 -> 41792.4 | J152: 1572 | K152: 28296 | L152: 1458.34 | M152: 26250.12 | N152: 54546.12 | S152: 5 | T152: 1200 | U152: 6000 | V152: 1121.8 | W152: =V152*S152 -> 5609 | X152: =U152+W152 -> 11609 | Y152: 1572 | Z152: 7860 | AA152: 1458.34 | AB152: 7291.7 | AC152: 15151.7 | AD152: 13
A153: 1.4.14 | B153: Аккумулятор 12 В, 40 А/ч | C153: шт. | D153: -4 | E153: 400 | F153: -1600 | G153: 6304.92 | H153: =D153*G153 -> -25219.68 | I153: =H153+F153 -> -26819.68 | J153: 524 | K153: -2096 | L153: 8196.4 | M153: -32785.6 | N153: -34881.6 | S153: 0 | T153: 400 | U153: 0 | V153: 6304.92 | W153: =S153*V153 -> 0 | X153: =W153+U153 -> 0 | Y153: 524 | Z153: 0 | AA153: 8196.4 | AB153: 0 | AC153: 0 | AD153: -4
A154: 1.4.14 | B154: Аккумулятор 12 В, 40 А/ч | C154: шт. | D154: 8 | E154: 400 | F154: 3200 | G154: 6304.92 | H154: =D154*G154 -> 50439.36 | I154: =H154+F154 -> 53639.36 | J154: 524 | K154: 4192 | L154: 8196.4 | M154: 65571.2 | N154: 69763.2 | S154: 2 | T154: 400 | U154: 800 | V154: 6304.92 | W154: =S154*V154 -> 12609.84 | X154: =W154+U154 -> 13409.84 | Y154: 524 | Z154: 1048 | AA154: 8196.4 | AB154: 16392.8 | AC154: 17440.8 | AD154: 6
A155: 1.4.15 | B155: Источник питания резервированный | C155: шт. | D155: 4 | E155: 3000 | F155: 12000 | G155: 12612.36 | H155: =D155*G155 -> 50449.44 | I155: =H155+F155 -> 62449.44 | J155: 3930 | K155: 15720 | L155: 16396.07 | M155: 65584.28 | N155: 81304.28 | S155: 2 | T155: 3000 | U155: 6000 | V155: 12612.36 | W155: =S155*V155 -> 25224.72 | X155: =W155+U155 -> 31224.72 | Y155: 3930 | Z155: 7860 | AA155: 16396.07 | AB155: 32792.14 | AC155: 40652.14 | AD155: 2
A156: 1.4.16 | B156: Аккумулятор 12 В, 7 А/ч | C156: шт. | D156: 4 | E156: 400 | F156: 1600 | G156: 2407.01 | H156: =D156*G156 -> 9628.04 | I156: =H156+F156 -> 11228.04 | J156: 524 | K156: 2096 | L156: 3129.1 | M156: 12516.4 | N156: 14612.4 | S156: 0 | T156: 400 | U156: 0 | V156: 2407.01 | W156: =S156*V156 -> 0 | X156: =W156+U156 -> 0 | Y156: 524 | Z156: 0 | AA156: 3129.1 | AB156: 0 | AC156: 0 | AD156: 4
A157: 1.4.17 | B157: Блок контроля и индикации | C157: шт. | D157: 2 | E157: 3000 | F157: 6000 | G157: 9024.14 | H157: =D157*G157 -> 18048.28 | I157: =H157+F157 -> 24048.28 | J157: 3930 | K157: 7860 | L157: 11731.38 | M157: 23462.76 | N157: 31322.76 | S157: 0 | T157: 3000 | U157: 0 | V157: 9024.14 | W157: =S157*V157 -> 0 | X157: =W157+U157 -> 0 | Y157: 3930 | Z157: 0 | AA157: 11731.38 | AB157: 0 | AC157: 0 | AD157: 2
A158: 1.4.18 | B158: Блок разветвительно-изолирующий | C158: шт. | D158: 4 | E158: 1000 | F158: 4000 | G158: 641.16 | H158: 2564.64 | I158: 6564.64 | J158: 1310 | K158: 5240 | L158: 833.51 | M158: 3334.04 | N158: 8574.04 | S158: 4 | T158: 1000 | U158: 4000 | V158: 641.16 | W158: =V158*S158 -> 2564.64 | X158: =U158+W158 -> 6564.64 | Y158: 1310 | Z158: 5240 | AA158: 833.51 | AB158: 3334.04 | AC158: 8574.04 | AD158: 0
A159: 1.4.19 | B159: Преобразователь интерфейсов | C159: шт. | D159: 4 | E159: 3200 | F159: 12800 | G159: 11575.2 | H159: 46300.8 | I159: 59100.8 | J159: 4192 | K159: 16768 | L159: 15047.76 | M159: 60191.04 | N159: 76959.04 | S159: 4 | T159: 3200 | U159: 12800 | V159: 11575.2 | W159: 46300.8 | X159: 59100.8 | Y159: 4192 | Z159: 16768 | AA159: 15047.76 | AB159: 60191.04 | AC159: 76959.04 | AD159: 0
A160: 1.4.20 | B160: Патч-корд волоконно-оптический LC/UPC-LC/UPC 50 м | C160: шт. | D160: 4 | E160: 300 | F160: 1200 | G160: 2825.04 | H160: 11300.16 | I160: 12500.16 | J160: 393 | K160: 1572 | L160: 3672.55 | M160: 14690.2 | N160: 16262.2 | S160: 0 | T160: 300 | U160: 0 | V160: 2825.04 | W160: 0 | X160: 0 | Y160: 393 | Z160: 0 | AA160: 3672.55 | AB160: 0 | AC160: 0 | AD160: 4
A161: 1.4.21 | B161: Патч-корд волоконно-оптический LC/UPC-LC/UPC 1 м | C161: шт. | D161: 4 | E161: 300 | F161: 1200 | G161: 790 | H161: 3160 | I161: 4360 | J161: 393 | K161: 1572 | L161: 1027 | M161: 4108 | N161: 5680 | S161: 4 | T161: 300 | U161: 1200 | V161: 790 | W161: 3160 | X161: 4360 | Y161: 393 | Z161: 1572 | AA161: 1027 | AB161: 4108 | AC161: 5680 | AD161: 0
A162: 1.4.22 | B162: Устройство коммутационное | C162: шт. | D162: -24 | E162: 2600 | F162: -62400 | G162: 1365 | H162: -32760 | I162: -95160 | J162: 3406 | K162: -81744 | L162: 1774.5 | M162: -42588 | N162: -124332 | S162: 0 | T162: 2600 | U162: 0 | V162: 1365 | W162: 0 | X162: 0 | Y162: 3406 | Z162: 0 | AA162: 1774.5 | AB162: 0 | AC162: 0 | AD162: -24
A163: 1.4.22 | B163: Устройство коммутационное | C163: шт. | D163: 22 | E163: 2600 | F163: =D163*E163 -> 57200 | G163: 1365 | H163: =G163*D163 -> 30030 | I163: =F163+H163 -> 87230 | J163: 3406 | K163: 74932 | L163: 1774.5 | M163: 39039 | N163: 113971 | S163: 20 | T163: 2600 | U163: =S163*T163 -> 52000 | V163: 1365 | W163: =V163*S163 -> 27300 | X163: =U163+W163 -> 79300 | Y163: 3406 | Z163: 68120 | AA163: 1774.5 | AB163: 35490 | AC163: 103610 | AD163: 2
A164: 1.4.23 | B164: Оповещатель охранно-пожарный световой (табло) ЛЮКС-24 "Выход" | C164: шт. | D164: 10 | E164: 1200 | F164: 12000 | G164: 368 | H164: 3680 | I164: 15680 | J164: 1572 | K164: 15720 | L164: 478.4 | M164: 4784 | N164: 20504 | S164: 1 | T164: 1200 | U164: =S164*T164 -> 1200 | V164: 368 | W164: =V164*S164 -> 368 | X164: =U164+W164 -> 1568 | Y164: 1572 | Z164: 1572 | AA164: 478.4 | AB164: 478.4 | AC164: 2050.4 | AD164: 9
A165: 1.4.24 | B165: Оповещатель охранно-пожарный световой (табло) ЛЮКС-24 "Стрелка влево" | C165: шт. | D165: 9 | E165: 1200 | F165: 10800 | G165: 368 | H165: 3312 | I165: 14112 | J165: 1572 | K165: 14148 | L165: 478.4 | M165: 4305.6 | N165: 18453.6 | S165: 5 | T165: 1200 | U165: 6000 | V165: 368 | W165: 1840 | X165: 7840 | Y165: 1572 | Z165: 7860 | AA165: 478.4 | AB165: 2392 | AC165: 10252 | AD165: 4
A166: 1.4.25 | B166: Оповещатель охранно-пожарный световой (табло) ЛЮКС-24 "Стрелка вправо" | C166: шт. | D166: 9 | E166: 1200 | F166: 10800 | G166: 368 | H166: 3312 | I166: 14112 | J166: 1572 | K166: 14148 | L166: 478.4 | M166: 4305.6 | N166: 18453.6 | S166: 5 | T166: 1200 | U166: 6000 | V166: 368 | W166: 1840 | X166: 7840 | Y166: 1572 | Z166: 7860 | AA166: 478.4 | AB166: 2392 | AC166: 10252 | AD166: 4
A167: 1.4.26 | B167: Оповещатель охранно-пожарный звуковой Маяк-24-ЗМ2 | C167: шт. | D167: 54 | E167: 1200 | F167: 64800 | G167: 270 | H167: 14580 | I167: 79380 | J167: 1572 | K167: 84888 | L167: 351 | M167: 18954 | N167: 103842 | S167: 30 | T167: 1200 | U167: 36000 | V167: 270 | W167: 8100 | X167: 44100 | Y167: 1572 | Z167: 47160 | AA167: 351 | AB167: 10530 | AC167: 57690 | AD167: 24
A168: 1.4.27 | B168: Комбинированный оповещатель со стробовспышкой Г-24КПР | C168: шт. | D168: 30 | E168: 1200 | F168: =D168*E168 -> 36000 | G168: 545.04 | H168: =G168*D168 -> 16351.2 | I168: =F168+H168 -> 52351.2 | J168: 1572 | K168: 47160 | L168: 708.55 | M168: 21256.5 | N168: 68416.5 | S168: 30 | T168: 1200 | U168: =S168*T168 -> 36000 | V168: 545.04 | W168: =V168*S168 -> 16351.2 | X168: =U168+W168 -> 52351.2 | Y168: 1572 | Z168: 47160 | AA168: 708.55 | AB168: 21256.5 | AC168: 68416.5 | AD168: 0
A169: 1.4.28 | B169: Оповещатель охранно-пожарный комбинированный свето-звуковой Маяк-24-КПМ2 | C169: шт. | D169: 39 | E169: 1200 | F169: =D169*E169 -> 46800 | G169: 656 | H169: =G169*D169 -> 25584 | I169: =F169+H169 -> 72384 | J169: 1572 | K169: 61308 | L169: 852.8 | M169: 33259.2 | N169: 94567.2 | S169: 30 | T169: 1200 | U169: =S169*T169 -> 36000 | V169: 656 | W169: =V169*S169 -> 19680 | X169: =U169+W169 -> 55680 | Y169: 1572 | Z169: 47160 | AA169: 852.8 | AB169: 25584 | AC169: 72744 | AD169: 9
A170: 1.4.29 | B170: Полка 19" перфорированная консольная 1U | C170: шт. | D170: -1 | E170: 2000 | F170: -2000 | G170: 1462 | H170: -1462 | I170: -3462 | J170: 2620 | K170: =D170*J170 -> -2620 | L170: 1900.6 | M170: -1900.6 | N170: -4520.6 | S170: 0 | T170: 2000 | U170: =S170*T170 -> 0 | V170: 1462 | W170: =V170*S170 -> 0 | X170: =U170+W170 -> 0 | Y170: 2620 | Z170: 0 | AA170: 1900.6 | AB170: 0 | AC170: 0 | AD170: -1
A171: 1.4.29 | B171: Саморез со сверлом | C171: шт. | D171: 100 | E171: 5 | F171: 500 | G171: 1.82 | H171: 182 | I171: 682 | J171: =E171*$O$2 -> 6.55 | K171: =D171*J171 -> 655 | L171: =G171*$P$2 -> 2.366 | M171: 236.6 | N171: =K171+M171 -> 891.6 | S171: 0 | T171: 5 | U171: 0 | V171: 1.82 | W171: 0 | X171: 0 | Y171: 6.55 | Z171: 0 | AA171: 2.37 | AB171: 0 | AC171: 0 | AD171: 100 | AE171: работы относятся к монтажу оповещателя или занята позиция с номером?
A172: 1.4.30 | B172: Модуль подключения нагрузки | C172: шт. | D172: 87 | E172: 100 | F172: 8700 | G172: 71.76 | H172: 6243.12 | I172: 14943.12 | J172: 131 | K172: 11397 | L172: 93.29 | M172: =D172*L172 -> 8116.23 | N172: 19513.23 | S172: 80 | T172: 100 | U172: 8000 | V172: 71.76 | W172: 5740.8 | X172: 13740.8 | Y172: 131 | Z172: 10480 | AA172: 93.29 | AB172: 7463.2 | AC172: 17943.2 | AD172: 7
A173: 1.4.31 | B173: Блок сигнально-пусковой адресный | C173: шт. | D173: -96 | E173: 3200 | F173: =D173*E173 -> -307200 | G173: 3692.4 | H173: =G173*D173 -> -354470.4 | I173: =F173+H173 -> -661670.4 | J173: 4192 | K173: -402432 | L173: 4800.12 | M173: -460811.52 | N173: -863243.52 | S173: 0 | T173: 3200 | U173: 0 | V173: 3692.4 | W173: 0 | X173: 0 | Y173: 4192 | Z173: 0 | AA173: 4800.12 | AB173: 0 | AC173: 0 | AD173: -96
A174: 1.4.31 | B174: Блок сигнально-пусковой адресный | C174: шт. | D174: 82 | E174: 3200 | F174: 262400 | G174: 3692.4 | H174: 302776.8 | I174: 565176.8 | J174: 4192 | K174: 343744 | L174: 4800.12 | M174: 393609.84 | N174: 737353.84 | S174: 40 | T174: 3200 | U174: 128000 | V174: 3692.4 | W174: 147696 | X174: 275696 | Y174: 4192 | Z174: 167680 | AA174: 4800.12 | AB174: 192004.8 | AC174: 359684.8 | AD174: 42
A175: 1.4.32 | B175: Кнопка "ТЕСТ" | C175: шт. | D175: -96 | E175: 1200 | F175: -115200 | G175: 1250 | H175: -120000 | I175: -235200 | J175: 1572 | K175: -150912 | L175: 1625 | M175: -156000 | N175: -306912 | S175: 0 | T175: 1200 | U175: 0 | V175: 1250 | W175: 0 | X175: 0 | Y175: 1572 | Z175: 0 | AA175: 1625 | AB175: 0 | AC175: 0 | AD175: -96
A176: 1.4.32 | B176: Кнопка "ТЕСТ" | C176: шт. | D176: 82 | E176: 1200 | F176: 98400 | G176: 1250 | H176: 102500 | I176: 200900 | J176: 1572 | K176: 128904 | L176: 1625 | M176: 133250 | N176: 262154 | S176: 50 | T176: 1200 | U176: 60000 | V176: 1250 | W176: 62500 | X176: 122500 | Y176: 1572 | Z176: 78600 | AA176: 1625 | AB176: 81250 | AC176: 159850 | AD176: 32
A177: 1.4.33 | B177: Шкаф контрольно пусковой ШКП-10RS (М) | C177: шт. | D177: 1 | E177: 4500 | F177: 4500 | G177: 31318.56 | H177: 31318.56 | I177: 35818.56 | J177: 5895 | K177: 5895 | L177: 40714.13 | M177: 40714.13 | N177: 46609.13 | S177: 1 | T177: 4500 | U177: 4500 | V177: 31318.56 | W177: 31318.56 | X177: 35818.56 | Y177: 5895 | Z177: 5895 | AA177: 40714.13 | AB177: 40714.13 | AC177: 46609.13 | AD177: 0
A178: 1.4.34 | B178: Шкаф контрольно пусковой ШКП-18RS (М) | C178: шт. | D178: 1 | E178: 4500 | F178: 4500 | G178: 32633.64 | H178: 32633.64 | I178: 37133.64 | J178: 5895 | K178: 5895 | L178: 42423.73 | M178: 42423.73 | N178: 48318.73 | S178: 0 | T178: 4500 | U178: 0 | V178: 32633.64 | W178: 0 | X178: 0 | Y178: 5895 | Z178: 0 | AA178: 42423.73 | AB178: 0 | AC178: 0 | AD178: 1
A179: 1.4.35 | B179: Преобразователь интерфейса | C179: шт. | D179: -1 | E179: 2600 | F179: -2600 | G179: 3524.04 | H179: -3524.04 | I179: -6124.04 | J179: 3406 | K179: -3406 | L179: 4581.25 | M179: -4581.25 | N179: -7987.25 | S179: 0 | T179: 2600 | U179: 0 | V179: 3524.04 | W179: 0 | X179: 0 | Y179: 3406 | Z179: 0 | AA179: 4581.25 | AB179: 0 | AC179: 0 | AD179: -1
A180: 1.4.36 | B180: Коммутатор сетевой гигабитный 6 портовый | C180: шт. | D180: -1 | E180: 2600 | F180: -2600 | G180: 9000 | H180: -9000 | I180: -11600 | J180: 3406 | K180: -3406 | L180: 11700 | M180: -11700 | N180: -15106 | S180: 0 | T180: 2600 | U180: 0 | V180: 9000 | W180: 0 | X180: 0 | Y180: 3406 | Z180: 0 | AA180: 11700 | AB180: 0 | AC180: 0 | AD180: -1
A181: 1.4.35 | B181: Легкая консоль для лотков с основанием 100 мм | C181: шт. | D181: 120 | E181: 270 | F181: =D181*E181 -> 32400 | G181: 131.6 | H181: =D181*G181 -> 15792 | I181: =F181+H181 -> 48192 | J181: =E181*$O$2 -> 353.7 | K181: 42444 | L181: =G181*$P$2 -> 171.08 | M181: 20529.6 | N181: =K181+M181 -> 62973.6 | S181: 0 | T181: 270 | U181: =S181*T181 -> 0 | V181: 131.6 | W181: =S181*V181 -> 0 | X181: =U181+W181 -> 0 | Y181: =T181*$O$2 -> 353.7 | Z181: 0 | AA181: =V181*$P$2 -> 171.08 | AB181: 0 | AC181: =Z181+AB181 -> 0 | AD181: 120
A182: 1.4.36 | B182: Гайка М6 | C182: шт. | D182: 808 | F182: =D182*E182 -> 0 | G182: 1.54 | H182: =D182*G182 -> 1244.32 | I182: =F182+H182 -> 1244.32 | J182: =E182*$O$2 -> 0 | K182: =D182*J182 -> 0 | L182: =G182*$P$2 -> 2.002 | M182: =D182*L182 -> 1617.616 | N182: =K182+M182 -> 1617.616 | S182: 0 | U182: =S182*T182 -> 0 | V182: 1.54 | W182: =S182*V182 -> 0 | X182: =U182+W182 -> 0 | Y182: 6.55 | Z182: 0 | AA182: 2.37 | AB182: 0 | AC182: =Y182*S182+AA182*S182 -> 0 | AD182: 808
A183: 1.4.37 | B183: Болт М6 | C183: шт. | D183: 808 | E183: 0 | F183: 0 | G183: 4.99 | H183: =G183*D183 -> 4031.92 | I183: 4031.92 | J183: =E183*$O$2 -> 0 | K183: 0 | L183: =G183*$P$2 -> 6.487 | M183: 5241.496 | N183: =K183+M183 -> 5241.496 | S183: 0 | T183: 0 | U183: 0 | V183: 4.99 | W183: =V183*S183 -> 0 | X183: 0 | Z183: 0 | AA183: 3.37 | AB183: 0 | AC183: 0 | AD183: 808
A184: 1.4.37 | B184: Блок питания | C184: шт. | D184: -1 | E184: 3000 | F184: -3000 | G184: 2558 | H184: -2558 | I184: -5558 | J184: 3930 | K184: -3930 | L184: 3325.4 | M184: -3325.4 | N184: =J184*D184+L184*D184 -> -7255.4 | S184: 0 | T184: 3000 | U184: 0 | V184: 2558 | W184: 0 | X184: 0 | Y184: 3930 | Z184: 0 | AA184: 3325.4 | AB184: 0 | AC184: 0 | AD184: -1
A185: 1.4.38 | B185: Лоток перфорированный 100х50х3000 | C185: м | D185: -585 | E185: 380 | F185: -222300 | G185: 538 | H185: -314730 | I185: -537030 | J185: 497.8 | K185: -291213 | L185: 699.4 | M185: -409149 | N185: -700362 | S185: 0 | T185: 380 | U185: 0 | V185: 538 | W185: 0 | X185: 0 | Y185: 497.8 | Z185: 0 | AA185: 699.4 | AB185: 0 | AC185: 0 | AD185: -585
A186: 1.4.38 | B186: Лоток перфорированный 100х50х3000 | C186: м | D186: 552 | E186: 640 | F186: =D186*E186 -> 353280 | G186: 538 | H186: =G186*D186 -> 296976 | I186: =F186+H186 -> 650256 | J186: 497.8 | K186: 274785.6 | L186: 699.4 | M186: 386068.8 | N186: 660854.4 | S186: 400 | T186: 640 | U186: =S186*T186 -> 256000 | V186: 538 | W186: =V186*S186 -> 215200 | X186: =U186+W186 -> 471200 | Y186: 497.8 | Z186: 199120 | AA186: 699.4 | AB186: 279760 | AC186: 478880 | AD186: 152
A187: 1.4.39 | B187: Перегородка для лотка | C187: м | D187: 585 | E187: 100 | F187: 58500 | G187: 292.8 | H187: 171288 | I187: 229788 | J187: 131 | K187: 76635 | L187: 380.64 | M187: 222674.4 | N187: 299309.4 | S187: 400 | T187: 100 | U187: =S187*T187 -> 40000 | V187: 292.8 | W187: =V187*S187 -> 117120 | X187: =U187+W187 -> 157120 | Y187: 131 | Z187: 52400 | AA187: 380.64 | AB187: 152256 | AC187: 204656 | AD187: 185
A188: 1.4.40 | B188: Крышка с заземлением на лоток основание 100 L3000 | C188: м | D188: -585 | E188: 120 | F188: -70200 | G188: 209.22 | H188: -122393.7 | I188: -192593.7 | J188: 157.2 | K188: -91962 | L188: 271.99 | M188: -159114.15 | N188: -251076.15 | S188: 0 | T188: 120 | U188: 0 | V188: 209.22 | W188: 0 | X188: 0 | Y188: 157.2 | Z188: 0 | AA188: 271.99 | AB188: 0 | AC188: 0 | AD188: -585
A189: 1.4.40 | B189: Крышка с заземлением на лоток основание 100 L3000 | C189: м | D189: 552 | E189: 150 | F189: =D189*E189 -> 82800 | G189: 209.22 | H189: =G189*D189 -> 115489.44 | I189: =F189+H189 -> 198289.44 | J189: 157.2 | K189: 86774.4 | L189: 271.99 | M189: 150138.48 | N189: 236912.88 | S189: 400 | T189: 150 | U189: =S189*T189 -> 60000 | V189: 209.22 | W189: =V189*S189 -> 83688 | X189: =U189+W189 -> 143688 | Y189: 157.2 | Z189: 62880 | AA189: 271.99 | AB189: 108796 | AC189: 171676 | AD189: 152
A190: 1.4.41 | B190: Угол CPO 90 горизонтальный 90° 100х50 | C190: шт. | D190: -10 | E190: 1200 | F190: -12000 | G190: 1620.8 | H190: -16208 | I190: -28208 | J190: 1572 | K190: -15720 | L190: 2107.04 | M190: -21070.4 | N190: -36790.4 | S190: 0 | T190: 1200 | U190: =S190*T190 -> 0 | V190: 1620.8 | W190: =V190*S190 -> 0 | X190: =U190+W190 -> 0 | Y190: 1572 | Z190: 0 | AA190: 2107.04 | AB190: 0 | AC190: 0 | AD190: -10
A191: 1.4.41 | B191: Угол CPO 90 горизонтальный 90° 100х50 | C191: шт. | D191: 9 | E191: 1200 | F191: =D191*E191 -> 10800 | G191: 1620.8 | H191: =G191*D191 -> 14587.2 | I191: =F191+H191 -> 25387.2 | J191: 1572 | K191: 14148 | L191: 2107.04 | M191: 18963.36 | N191: 33111.36 | S191: 9 | T191: 1200 | U191: =S191*T191 -> 10800 | V191: 1620.8 | W191: =V191*S191 -> 14587.2 | X191: =U191+W191 -> 25387.2 | Y191: 1572 | Z191: 14148 | AA191: 2107.04 | AB191: 18963.36 | AC191: 33111.36 | AD191: 0
A192: 1.4.42 | B192: Угол CS 90 вертикальный внутренний 90° 100х50 | C192: шт. | D192: -12 | E192: 1200 | F192: -14400 | G192: 1892 | H192: -22704 | I192: -37104 | J192: 1572 | K192: -18864 | L192: 2459.6 | M192: -29515.2 | N192: -48379.2 | S192: 0 | T192: 1200 | U192: =S192*T192 -> 0 | V192: 1892 | W192: =V192*S192 -> 0 | X192: =U192+W192 -> 0 | Y192: 1572 | Z192: 0 | AA192: 2459.6 | AB192: 0 | AC192: 0 | AD192: -12
A193: 1.4.42 | B193: Угол CS 90 вертикальный внутренний 90° 100х50 | C193: шт. | D193: 4 | E193: 1200 | F193: =D193*E193 -> 4800 | G193: 1892 | H193: =G193*D193 -> 7568 | I193: =F193+H193 -> 12368 | J193: 1572 | K193: 6288 | L193: 2459.6 | M193: 9838.4 | N193: 16126.4 | S193: 3 | T193: 1200 | U193: =S193*T193 -> 3600 | V193: 1892 | W193: =V193*S193 -> 5676 | X193: =U193+W193 -> 9276 | Y193: 1572 | Z193: 4716 | AA193: 2459.6 | AB193: 7378.8 | AC193: 12094.8 | AD193: 1
A194: 1.4.43 | B194: Лоток 50х50 L=3000 перфорированный | C194: м. | D194: 150 | E194: 640 | F194: =D194*E194 -> 96000 | G194: 375 | H194: 56250 | I194: 152250 | J194: 838.4 | K194: 125760 | L194: 487.5 | M194: 73125 | N194: 198885 | S194: 0 | T194: 640 | U194: =S194*T194 -> 0 | V194: 375 | W194: =V194*S194 -> 0 | X194: =U194+W194 -> 0 | Y194: 838.4 | Z194: 0 | AA194: 487.5 | AB194: 0 | AC194: 0 | AD194: 150
A195: 1.4.44 | B195: Крышка с заземлением на лоток основание 50 L3000 | C195: м. | D195: -150 | E195: 120 | F195: =D195*E195 -> -18000 | G195: 171.65 | H195: -25747.5 | I195: -43747.5 | J195: 157.2 | K195: -23580 | L195: 223.15 | M195: -33472.5 | N195: -57052.5 | S195: 0 | T195: 120 | U195: =S195*T195 -> 0 | V195: 171.65 | W195: 0 | X195: 0 | Y195: 157.2 | Z195: 0 | AA195: 223.15 | AB195: 0 | AC195: 0 | AD195: -150
A196: 1.4.44 | B196: Крышка с заземлением на лоток основание 50 L3000 | C196: м. | D196: 150 | E196: 150 | F196: =D196*E196 -> 22500 | G196: 171.65 | H196: =G196*D196 -> 25747.5 | I196: =F196+H196 -> 48247.5 | J196: 157.2 | K196: 23580 | L196: 223.15 | M196: 33472.5 | N196: 57052.5 | S196: 0 | T196: 150 | U196: =S196*T196 -> 0 | V196: 171.65 | W196: =V196*S196 -> 0 | X196: =U196+W196 -> 0 | Y196: 157.2 | Z196: 0 | AA196: 223.15 | AB196: 0 | AC196: 0 | AD196: 150
A197: 1.4.45 | B197: Крышка S5 CPO90 90х100 угла горизонтального | C197: шт. | D197: -10 | E197: 120 | F197: -1200 | G197: 839.4 | H197: -8394 | I197: -9594 | J197: 157.2 | K197: -1572 | L197: 1091.22 | M197: -10912.2 | N197: -12484.2 | S197: 0 | T197: 120 | U197: =S197*T197 -> 0 | V197: 839.4 | W197: =V197*S197 -> 0 | X197: =U197+W197 -> 0 | Y197: 157.2 | Z197: 0 | AA197: 1091.22 | AB197: 0 | AC197: 0 | AD197: -10
A198: 1.4.45 | B198: Крышка S5 CPO90 90х100 угла горизонтального | C198: шт. | D198: 10 | E198: 150 | F198: =D198*E198 -> 1500 | G198: 839.4 | H198: =G198*D198 -> 8394 | I198: =F198+H198 -> 9894 | J198: 157.2 | K198: 1572 | L198: 1091.22 | M198: 10912.2 | N198: 12484.2 | S198: 0 | T198: 150 | U198: =S198*T198 -> 0 | V198: 839.4 | W198: =V198*S198 -> 0 | X198: =U198+W198 -> 0 | Y198: 157.2 | Z198: 0 | AA198: 1091.22 | AB198: 0 | AC198: 0 | AD198: 10
A199: 1.4.46 | B199: Крышка S5 CS90 90x100 угла вертикального внутреннего | C199: шт. | D199: -12 | E199: 120 | F199: -1440 | G199: 644.02 | H199: -7728.24 | I199: -9168.24 | J199: 157.2 | K199: -1886.4 | L199: 837.23 | M199: -10046.76 | N199: -11933.16 | S199: 0 | T199: 120 | U199: =S199*T199 -> 0 | V199: 644.02 | W199: =V199*S199 -> 0 | X199: =U199+W199 -> 0 | Y199: 157.2 | Z199: 0 | AA199: 837.23 | AB199: 0 | AC199: 0 | AD199: -12
A200: 1.4.46 | B200: Крышка S5 CS90 90x100 угла вертикального внутреннего | C200: шт. | D200: 12 | E200: 150 | F200: =D200*E200 -> 1800 | G200: 644.02 | H200: =G200*D200 -> 7728.24 | I200: =F200+H200 -> 9528.24 | J200: 157.2 | K200: 1886.4 | L200: 837.23 | M200: 10046.76 | N200: 11933.16 | S200: 0 | T200: 150 | U200: =S200*T200 -> 0 | V200: 644.02 | W200: =V200*S200 -> 0 | X200: =U200+W200 -> 0 | Y200: 157.2 | Z200: 0 | AA200: 837.23 | AB200: 0 | AC200: 0 | AD200: 12
... 1109 more rows

Sheet финал
E2: Себестоимость работ, руб с НДС | G2: Себестоимость материалов, руб с НДС | J2: Стоимость работ, руб. с НДС | L2: Стоимость материалов, руб. с НДС | O2: 1.31 | P2: 1.3 | Q2: 1.7
A3: № | B3: Наименовение | C3: Ед.изм | D3: Кол-во | E3: за ед. | F3: итого | G3: за ед | H3: итого | I3: Итого, руб с НДС | J3: за ед. | K3: Итого | L3: за ед. | M3: Итого | N3: Итого, руб. с НДС | O3: Работы | P3: Материалы | Q3: Оборудование
A4: 1 | B4: Основные объекты строительства, реконструкции, капитального ремонта, в том числе:
A5: 1.1 | B5: 130-23-АС3 Архитектурно-строительные решения | F5: =F7+F8+F9+F11+F12+F14+F15+F16+F18+F19+F20+F21+F22+F23+F24+F25+F26+F27+F28+F29+F30+F31+F32+F33+F34+F35+F36+F38+F39+F40+F41+F43+F44+F45+F46+F47+F48+F49+F50+F51+F52+F53+F54+F55+F56+F57+F59+F60+F61+F62+F63+F64+F65+F66+F67+F68+F69+F70+F71+F72+F73+F74+F75+F76+F77+F78+F79+F80+F81+F82+F83+F84+F85 -> 14079781.04 | H5: =H7+H8+H9+H11+H12+H14+H15+H16+H18+H19+H20+H21+H22+H23+H24+H25+H26+H27+H28+H29+H30+H31+H32+H33+H34+H35+H36+H38+H39+H40+H41+H43+H44+H45+H46+H47+H48+H49+H50+H51+H52+H53+H54+H55+H56+H57+H59+H60+H61+H62+H63+H64+H65+H66+H67+H68+H69+H70+H71+H72+H73+H74+H75+H76+H77+H78+H79+H80+H81+H82+H83+H84+H85 -> 19526383.14 | I5: =I7+I8+I9+I11+I12+I14+I15+I16+I18+I19+I20+I21+I22+I23+I24+I25+I26+I27+I28+I29+I30+I31+I32+I33+I34+I35+I36+I38+I39+I40+I41+I43+I44+I45+I46+I47+I48+I49+I50+I51+I52+I53+I54+I55+I56+I57+I59+I60+I61+I62+I63+I64+I65+I66+I67+I68+I69+I70+I71+I72+I73+I74+I75+I76+I77+I78+I79+I80+I81+I82+I83+I84+I85 -> 33606164.18 | K5: =K7+K8+K9+K11+K12+K14+K15+K16+K18+K19+K20+K21+K22+K23+K24+K25+K26+K27+K28+K29+K30+K31+K32+K33+K34+K35+K36+K38+K39+K40+K41+K43+K44+K45+K46+K47+K48+K49+K50+K51+K52+K53+K54+K55+K56+K57+K59+K60+K61+K62+K63+K64+K65+K66+K67+K68+K69+K70+K71+K72+K73+K74+K75+K76+K77+K78+K79+K80+K81+K82+K83+K84+K85 -> 24896933.59 | M5: =M7+M8+M9+M11+M12+M14+M15+M16+M18+M19+M20+M21+M22+M23+M24+M25+M26+M27+M28+M29+M30+M31+M32+M33+M34+M35+M36+M38+M39+M40+M41+M43+M44+M45+M46+M47+M48+M49+M50+M51+M52+M53+M54+M55+M56+M57+M59+M60+M61+M62+M63+M64+M65+M66+M67+M68+M69+M70+M71+M72+M73+M74+M75+M76+M77+M78+M79+M80+M81+M82+M83+M84+M85 -> 21715381.86 | N5: =N7+N8+N9+N11+N12+N14+N15+N16+N18+N19+N20+N21+N22+N23+N24+N25+N26+N27+N28+N29+N30+N31+N32+N33+N34+N35+N36+N38+N39+N40+N41+N43+N44+N45+N46+N47+N48+N49+N50+N51+N52+N53+N54+N55+N56+N57+N59+N60+N61+N62+N63+N64+N65+N66+N67+N68+N69+N70+N71+N72+N73+N74+N75+N76+N77+N78+N79+N80+N81+N82+N83+N84+N85 -> 46612315.45
A6: 1.1.1 | B6: Демонтажные работы
A7: 1.1.1.1 | B7: Частичный демонтаж крестовых связей | C7: тн | D7: 0.44 | E7: 35355 | F7: =E7*D7 -> 15556.2 | G7: 0 | H7: =G7*D7 -> 0 | I7: =H7+F7 -> 15556.2 | J7: 49415 | K7: =D7*J7 -> 21742.6 | L7: =G7*$P$2 -> 0 | M7: =D7*L7 -> 0 | N7: =K7+M7 -> 21742.6
A8: 1.1.1.2 | B8: Демонтаж сэндвич панелей | C8: м2 | D8: 389.4 | E8: 756 | F8: 294386.4 | G8: 0 | H8: =G8*D8 -> 0 | I8: 294386.4 | J8: 990 | K8: =D8*J8 -> 385506 | L8: 0 | M8: =D8*L8 -> 0 | N8: =K8+M8 -> 385506
A9: 1.1.3 | B9: Устройство сэндвич панелей | C9: м2 | D9: 389.4 | E9: 1443.75 | F9: 562196.25 | G9: 4095.3 | H9: 1594709.82 | I9: 2156906.07 | J9: 2711 | K9: =D9*J9 -> 1055663.4 | L9: 6573 | M9: =D9*L9 -> 2559526.2 | N9: =J9*D9+L9*D9 -> 3615189.6
A10: 1.1.4 | B10: Устройство перегородок
A11: 1.1.4.1 | B11: Перегородки гипсокартонные типа С112 комплексной системы КНАУФ толщиной 100 мм с облицовкой 2мя листами ГКЛ (толщиной 12,5мм) со звукоизолирующим слоем из минераловатных плит Лайт Баттс толщиной 50 мм | C11: м2 | D11: 525.76 | E11: 1640.1 | F11: =E11*D11 -> 862298.976 | G11: 4250.136 | H11: =G11*D11 -> 2234551.503 | I11: =H11+F11 -> 3096850.479 | J11: 4955 | K11: =D11*J11 -> 2605140.8 | L11: 4501 | M11: =D11*L11 -> 2366445.76 | N11: =J11*D11+L11*D11 -> 4971586.56
A12: 1.1.4.2 | B12: Устройство отверстий под воздуховоды | C12: шт | D12: 2 | E12: 6548 | F12: =D12*E12 -> 13096 | G12: 3582.5 | H12: =D12*G12 -> 7165 | I12: =H12+F12 -> 20261 | J12: 8577.88 | K12: =D12*J12 -> 17155.76 | L12: 4657.25 | M12: =D12*L12 -> 9314.5 | N12: =J12*D12+L12*D12 -> 26470.26
A13: 1.1.5 | B13: Отделка потолков помещений
A14: 1.1.5.1 | B14: Подвесной потолок системы "Армстронг" | C14: м2 | D14: 301.4 | E14: 863.94 | F14: =E14*D14 -> 260391.516 | G14: 2173.314 | H14: =G14*D14 -> 655036.8396 | I14: =H14+F14 -> 915428.3556 | J14: 3957.07 | K14: =D14*J14 -> 1192660.898 | L14: 0 | M14: =L14*D14 -> 0 | N14: =J14*D14+L14*D14 -> 1192660.898
A15: 1.1.5.2 | B15: Подвесной потолок системы с шумоглушением | C15: м2 | D15: 168.8 | E15: 863.94 | F15: 145833.072 | G15: 2347.224 | H15: 396211.4112 | I15: 542044.4832 | J15: 1131.76 | K15: 191041.088 | L15: 3051.39 | M15: =L15*D15 -> 515074.632 | N15: 706115.72
A16: 1.1.5.3 | B16: Реечный алюминиевый потолок | C16: м2 | D16: 111.8 | E16: 1039.5 | F16: 116216.1 | G16: 5020.95 | H16: 561342.21 | I16: 677558.31 | J16: 7888.98 | K16: 881987.964 | L16: 0 | M16: 0 | N16: 881987.964
A17: 1.1.6 | B17: Полы помещений
A18: 1.1.6.1 | B18: Очистка поверхности от грязи и мусора | C18: м2 | D18: 352.5 | E18: 288.75 | F18: =E18*D18 -> 101784.375 | G18: 56.1 | H18: =G18*D18 -> 19775.25 | I18: =H18+F18 -> 121559.625 | J18: 378 | K18: =D18*J18 -> 133245 | L18: 72.93 | M18: =D18*L18 -> 25707.825 | N18: =J18*D18+L18*D18 -> 158952.825
A19: 1.1.6.2 | B19: Устройство пола из бетона кл. В25 толщиной до 100 мм | C19: м3 | D19: 7.87 | E19: 12127.5 | F19: =E19*D19 -> 95443.425 | G19: 9537 | H19: =G19*D19 -> 75056.19 | I19: =H19+F19 -> 170499.615 | J19: 13208 | K19: 103946.96 | L19: 14998 | M19: 118034.26 | N19: 221981.22
A20: 1.1.6.3 | B20: Керамогранитная плитка | C20: м2 | D20: 524.67 | E20: 1640.1 | F20: =E20*D20 -> 860511.267 | G20: 3023.79 | H20: 1586491.899 | I20: 2447003.166 | J20: 4772 | K20: 2503725.24 | L20: 2131 | M20: 1118071.77 | N20: 3621797.01
A21: 1.1.6.5 | B21: Коммерческий линолеум (33-34 кл.) | C21: м2 | D21: 121.8 | E21: 540.54 | F21: 65837.772 | G21: 2031.942 | H21: 247490.5356 | I21: 313328.3076 | J21: 708.11 | K21: 86247.798 | L21: 2641.52 | M21: 321737.136 | N21: 407984.934
A22: 1.1.6.6 | B22: Гидроизоляция Гидроизол | C22: м2 | D22: 141.3 | E22: 519.75 | F22: 73440.675 | G22: 833.646 | H22: 117794.1798 | I22: 191234.8548 | J22: 680.87 | K22: 96206.931 | L22: 1083.74 | M22: 153132.462 | N22: 249339.393
A23: 1.1.6.7 | B23: Наливной пол толщиной до 50мм | C23: м2 | D23: 356.24 | E23: 981.75 | F23: 349738.62 | G23: 1869.252 | H23: 665902.3325 | I23: 1015640.952 | J23: 3576 | K23: 1273914.24 | L23: 1630 | M23: 580671.2 | N23: 1854585.44
A24: 1.1.6.9 | B24: Наливной пол толщиной до 45мм армированный сеткой d4 В500 100х100 | C24: м2 | D24: 141.61 | E24: 1328.25 | F24: =E24*D24 -> 188093.4825 | G24: 3714.942 | H24: 526072.9366 | I24: =H24+F24 -> 714166.4191 | J24: 3470 | K24: 491386.7 | L24: 1590 | M24: 225159.9 | N24: 716546.6
A25: 1.1.6.10 | B25: Грунтовка поверхностей перед финишным покрытием | C25: м2 | D25: 1885.9 | E25: 57.75 | F25: 108910.725 | G25: 32.538 | H25: 61363.4142 | I25: =H25+F25 -> 170274.1392 | J25: 75.65 | K25: 142668.335 | L25: 42.3 | M25: 79773.57 | N25: 222441.905
A26: 1.1.7 | B26: Отделка стен помещений | C26: м2 | D26: 1225.55 | E26: 3395.564746 | F26: =D26*E26 -> 4161434.374 | G26: 2848.02766 | H26: =D26*G26 -> 3490400.298 | I26: =F26+H26 -> 7651834.672 | J26: 4448 | K26: 5451246.4 | L26: 3702 | M26: 4536986.1 | N26: 9988232.5
A27: 1.1.8 | B27: Установка потивопожарных окон | C27: шт | D27: 11 | E27: 18480 | F27: =E27*D27 -> 203280 | G27: 69564 | H27: =G27*D27 -> 765204 | I27: =H27+F27 -> 968484 | J27: 34209 | K27: 376299 | L27: 89433 | M27: 983763 | N27: 1360062
A28: 1.1.9 | B28: Установка внутренних окон | C28: шт | D28: 6 | E28: 18480 | F28: 110880 | G28: 69564 | H28: 417384 | I28: 528264 | J28: 18204 | K28: 109224 | L28: 79865 | M28: 479190 | N28: 588414
A29: 1.1.10 | B29: Установка потивопожарных дверей | C29: шт | D29: 5 | E29: 5197.5 | F29: 25987.5 | G29: 28384.57 | H29: 141922.85 | I29: 167910.35 | J29: 14176 | K29: 70880 | L29: 34900 | M29: 174500 | N29: 245380
A30: 1.1.11 | B30: Лестничная клетка | C30: шт | D30: 1 | E30: 384953 | F30: 384953 | G30: 657924 | H30: 657924 | I30: 1042877 | J30: 504288.43 | K30: 504288.43 | L30: 855301.2 | M30: 855301.2 | N30: 1359589.63
A31: 1.1.12 | B31: Устройство перекрытия | C31: м3 | D31: 41.2 | E31: 33850 | F31: =E31*D31 -> 1394620 | G31: 36440 | H31: =D31*G31 -> 1501328 | I31: =H31+F31 -> 2895948 | J31: 44343.5 | K31: 1826952.2 | L31: 47372 | M31: 1951726.4 | N31: 3778678.6
A32: 1.1.13 | B32: Пол АБК | C32: м2 | D32: 387 | E32: 2064.22739 | F32: =D32*E32 -> 798856 | G32: 3364.330749 | H32: =D32*G32 -> 1301996 | I32: =F32+H32 -> 2100852 | J32: 3576 | K32: 1383912 | L32: 3510 | M32: 1358370 | N32: 2742282
A33: 1.1.14 | B33: Прорезка проёмов дверных и оконных | C33: шт | D33: 16 | E33: 19640 | F33: =E33*D33 -> 314240 | G33: 654 | H33: =G33*D33 -> 10464 | I33: =H33+F33 -> 324704 | J33: 25728.4 | K33: 411654.4 | L33: 850.2 | M33: 13603.2 | N33: 425257.6
A34: 1.1.16 | B34: Проходка воздуховодов сквозь кровлю АБК | C34: шт | D34: 12 | E34: 9091.583333 | F34: =D34*E34 -> 109099 | G34: 3491.333333 | H34: =D34*G34 -> 41896 | I34: =F34+H34 -> 150995 | J34: 11909.97 | K34: 142919.64 | L34: 4538.73 | M34: 54464.76 | N34: 197384.4
A35: 1.1.17 | B35: Устройство мк отверстий диам. 400 мм в покрытии здания | C35: шт | D35: 5 | E35: 33457.8 | F35: =D35*E35 -> 167289 | G35: 20235.6 | H35: =D35*G35 -> 101178 | I35: =F35+H35 -> 268467 | J35: 43829.72 | K35: 219148.6 | L35: 26306.28 | M35: 131531.4 | N35: 350680
A36: 1.1.18 | B36: Устройство дверного проёма в стене цеха (пож.выход) | C36: шт | D36: 1 | E36: 167397 | F36: =D36*E36 -> 167397 | G36: 119648 | H36: =D36*G36 -> 119648 | I36: =F36+H36 -> 287045 | J36: 219290.07 | K36: 219290.07 | L36: 155542.4 | M36: 155542.4 | N36: 374832.47
A37: 1.1.19 | B37: Дополнительные работы
A38: 1.1.19.1 | B38: Обшивка стен Гипсокартон ГКЛ толщиной 12,5 мм в 2 слоя | C38: м2 | D38: 98.58 | E38: 1640 | F38: =D38*E38 -> 161671.2 | G38: 2469.6 | H38: =D38*G38 -> 243453.168 | I38: =F38+H38 -> 405124.368 | J38: 2955 | K38: =D38*J38 -> 291303.9 | L38: 3501 | M38: =D38*L38 -> 345128.58 | N38: =J38*D38+L38*D38 -> 636432.48
A39: 1.1.19.2 | B39: Перенос дверных проёмов | C39: шт | D39: 4 | E39: 32079.6 | F39: =D39*E39 -> 128318.4 | G39: 11832 | H39: =D39*G39 -> 47328 | I39: =F39+H39 -> 175646.4 | J39: 42024.27 | K39: =D39*J39 -> 168097.08 | L39: 15381.6 | M39: =D39*L39 -> 61526.4 | N39: =J39*D39+L39*D39 -> 229623.48
A40: 1.1.19.3 | B40: Обрамление оконных проёмов | C40: шт | D40: 11 | E40: 6930 | F40: =D40*E40 -> 76230 | G40: 6900 | H40: =D40*G40 -> 75900 | I40: =F40+H40 -> 152130 | J40: 10938.3 | K40: =D40*J40 -> 120321.3 | L40: 8970 | M40: =D40*L40 -> 98670 | N40: =J40*D40+L40*D40 -> 218991.3
A41: 1.1.19.4 | B41: Демонтаж и монтаж временных ворот | C41: шт | D41: 1 | E41: 56352 | F41: =D41*E41 -> 56352 | G41: 3654 | H41: =D41*G41 -> 3654 | I41: =F41+H41 -> 60006 | J41: 73821.12 | K41: =D41*J41 -> 73821.12 | L41: 4750.2 | M41: =D41*L41 -> 4750.2 | N41: =J41*D41+L41*D41 -> 78571.32
A42: 1.1.20 | B42: Монтаж фасоных элементов
A43: 1.1.20.1 | B43: Монтаж фасоного элемента Дз-1 | C43: м.п. | D43: 6.83 | E43: 458 | F43: =D43*E43 -> 3128.14 | G43: 1035 | H43: =D43*G43 -> 7069.05 | I43: =F43+H43 -> 10197.19 | J43: 600 | K43: =D43*J43 -> 4098 | L43: 1345.5 | M43: =D43*L43 -> 9189.765 | N43: =J43*D43+L43*D43 -> 13287.765
A44: 1.1.20.2 | B44: Монтаж фасоного элемента Дз-2 | C44: м.п. | D44: 13.66 | E44: 458 | F44: 6256.28 | G44: 522 | H44: 7130.52 | I44: 13386.8 | J44: 600 | K44: 8196 | L44: 678.6 | M44: 9269.676 | N44: 17465.676
A45: 1.1.20.3 | B45: Монтаж фасоного элемента Дз-3 | C45: м.п. | D45: 57.71 | E45: 458 | F45: 26431.18 | G45: 391 | H45: 22564.61 | I45: 48995.79 | J45: 600 | K45: 34626 | L45: 508.3 | M45: 29333.993 | N45: 63959.993
A46: 1.1.20.4 | B46: Монтаж фасоного элемента Дз-4 | C46: м.п. | D46: 57.71 | E46: 458 | F46: 26431.18 | G46: 378 | H46: 21814.38 | I46: 48245.56 | J46: 600 | K46: 34626 | L46: 491.4 | M46: 28358.694 | N46: 62984.694
A47: 1.1.20.5 | B47: Монтаж фасоного элемента Дз-5 | C47: м.п. | D47: 70.38 | E47: 458 | F47: 32234.04 | G47: 435 | H47: 30615.3 | I47: 62849.34 | J47: 600 | K47: 42228 | L47: 565.5 | M47: 39799.89 | N47: 82027.89
A48: 1.1.20.6 | B48: Монтаж колонн (усиление перегородок) | C48: шт | D48: 7 | E48: 27836 | F48: 194852 | G48: 6870 | H48: 48090 | I48: 242942 | J48: 36465 | K48: 255255 | L48: 8931 | M48: 62517 | N48: 317772
A49: 1.1.20.7 | B49: Демонтаж ГКЛ 2 слоя | C49: м2 | D49: 36 | E49: 890 | F49: 32040 | I49: 32040 | J49: 1166 | K49: 41976 | L49: 0 | M49: 0 | N49: 41976
A50: 1.1.20.8 | B50: Монтаж профильной трубы 40х40 | C50: м.п. | D50: 12 | E50: 690 | F50: 8280 | G50: 348 | H50: =D50*G50 -> 4176 | I50: 12456 | J50: 904 | K50: 10848 | L50: 453 | M50: 5436 | N50: 16284
A51: 1.1.20.9 | B51: Монтаж ГКЛ 2 слоя | C51: м2 | D51: 36 | E51: 1290 | F51: 46440 | G51: 1250 | H51: 45000 | I51: 91440 | J51: 1690 | K51: 60840 | L51: 1625 | M51: 58500 | N51: 119340
A52: 1.1.20.10 | B52: Увеличение дверных проёмов | C52: шт | D52: 12 | E52: 5790 | F52: 69480 | G52: 1320 | H52: 15840 | I52: 85320 | J52: 7585 | K52: 91020 | L52: 1716 | M52: =D52*L52 -> 20592 | N52: 111612
A53: 1.1.20.11 | B53: Наливной пол толщиной до 50мм | C53: м2 | D53: 125.1 | E53: 981.75 | F53: 122816.925 | G53: 1869.25 | H53: 233843.175 | I53: 356660.1 | J53: 1286 | K53: 160878.6 | L53: 2430 | M53: 303993 | N53: 464871.6
A54: 1.1.20.12 | B54: Усиление площадки лестничного марша | C54: шт | D54: 4 | E54: 27836 | F54: 111344 | G54: 5787.6 | H54: 23150.4 | I54: 134494.4 | J54: 36465 | K54: 145860 | L54: 7524 | M54: 30096 | N54: 175956
A55: 1.1.20.13 | B55: Устройство стен из газобетонных блоков | C55: м3 | D55: 1.87 | E55: 5197.5 | F55: 9719.325 | G55: 10659 | H55: 19932.33 | I55: 29651.655 | J55: 6809 | K55: 12732.83 | L55: 13857 | M55: 25912.59 | N55: 38645.42
A56: 1.1.20.14 | B56: Облицовка ступеней плиткой на лестнечной клетке | C56: шт | D56: 24 | E56: 2832 | F56: 67968 | G56: 1956 | H56: 46944 | I56: 114912 | J56: 3710 | K56: 89040 | L56: 2543 | M56: 61032 | N56: 150072
A57: 1.1.20.15 | B57: Штукатурка откосов Ролл ворот в цеху | C57: м.п. | D57: 150 | E57: 865.2 | F57: 129780 | G57: 435.6 | H57: 65340 | I57: 195120 | J57: 1135 | K57: 170250 | L57: 567 | M57: 85050 | N57: 255300
B58: Дополнительные работы
A59: 1.1.21 | B59: Установка пластиковых дверей | C59: шт | D59: 27 | E59: 5197 | F59: =D59*E59 -> 140319 | G59: 25400 | H59: =D59*G59 -> 685800 | I59: =F59+H59 -> 826119 | J59: =E59*$O$2 -> 6808.07 | K59: =D59*J59 -> 183817.89 | L59: =G59*$P$2 -> 33020 | M59: =D59*L59 -> 891540 | N59: =J59*D59+L59*D59 -> 1075357.89
A60: 1.1.22 | B60: Демонтаж перегородок ГКЛВ перед кладкой газоблока | C60: м2 | D60: 35.2 | E60: 1620 | F60: =D60*E60 -> 57024 | G60: 0 | H60: =D60*G60 -> 0 | I60: =F60+H60 -> 57024 | J60: 2122.2 | K60: 74701.44 | L60: 0 | M60: 0 | N60: 74701.44
A61: 1.1.23 | B61: Монтаж перегородок после кладки газоблока | C61: м2 | D61: 31.36 | E61: 2320 | F61: =D61*E61 -> 72755.2 | G61: 4769.33 | H61: =D61*G61 -> 149566.1888 | I61: =F61+H61 -> 222321.3888 | J61: 3039.2 | K61: 95309.312 | L61: 6200.129 | M61: 194436.0454 | N61: 289745.3574
A62: 1.1.24 | B62: Зашивка дверного проема и ригеля ГКЛ | C62: м2 | D62: 1.44 | E62: 2320 | F62: 3340.8 | G62: 1600 | H62: 2304 | I62: 5644.8 | J62: 3039.2 | K62: 4376.448 | L62: 2080 | M62: 2995.2 | N62: 7371.648
A63: 1.1.25 | B63: Устройство и обрамление дверных проемов | C63: м2 | D63: 1.53 | E63: 4600 | F63: 7038 | G63: 1160 | H63: 1774.8 | I63: 8812.8 | J63: 6026 | K63: 9219.78 | L63: 1508 | M63: 2307.24 | N63: 11527.02
A64: 1.1.26 | B64: Окраска крестовых связей за 2 раза | C64: м2 | D64: 8.5 | E64: 2666.67 | F64: 22666.695 | G64: 3261.33 | H64: 27721.305 | I64: 50388 | J64: 3493.3377 | K64: 29693.37045 | L64: 4239.729 | M64: 36037.6965 | N64: 65731.06695
A65: 1.1.27 | B65: Увеличение проходки в покрытии АБК 1300х1000 | C65: шт | D65: 1 | E65: 9091.58 | F65: 9091.58 | G65: 3491.31 | H65: 3491.31 | I65: 12582.89 | J65: 11909.9698 | K65: 11909.9698 | L65: 4538.703 | M65: 4538.703 | N65: 16448.6728
A66: 1.1.28 | B66: Увеличение проходки в покрытии АБК 700х700 | C66: шт | D66: 2 | E66: 9091.58 | F66: 18183.16 | G66: 3491.31 | H66: 6982.62 | I66: 25165.78 | J66: 11909.9698 | K66: 23819.9396 | L66: 4538.703 | M66: 9077.406 | N66: 32897.3456
A67: 1.1.29 | B67: Увеличение проходки в покрытии АБК 900х600 | C67: шт | D67: 2 | E67: 9091.58 | F67: 18183.16 | G67: 3491.31 | H67: 6982.62 | I67: 25165.78 | J67: 11909.9698 | K67: 23819.9396 | L67: 4538.703 | M67: 9077.406 | N67: 32897.3456
A68: 1.1.30 | B68: Увеличение проходки в покрытии АБК 350х350 | C68: шт | D68: 2 | E68: 9091.58 | F68: 18183.16 | G68: 3491.31 | H68: 6982.62 | I68: 25165.78 | J68: 11909.9698 | K68: 23819.9396 | L68: 4538.703 | M68: 9077.406 | N68: 32897.3456
A69: 1.1.31 | B69: Увеличение проходки в покрытии АБК 300х300 | C69: шт | D69: 1 | E69: 9091.58 | F69: 9091.58 | G69: 3491.31 | H69: 3491.31 | I69: 12582.89 | J69: 11909.9698 | K69: 11909.9698 | L69: 4538.703 | M69: 4538.703 | N69: 16448.6728
A70: 1.1.32 | B70: Увеличение проходки в покрытии АБК 200х200 | C70: шт | D70: 1 | E70: 9091.58 | F70: 9091.58 | G70: 3491.31 | H70: 3491.31 | I70: 12582.89 | J70: 11909.9698 | K70: 11909.9698 | L70: 4538.703 | M70: 4538.703 | N70: 16448.6728
A71: 1.1.33 | B71: Устройство проходоки в плите перекрытия АБК 1300х1000 | C71: шт | D71: 1 | E71: 13165.33 | F71: 13165.33 | G71: 6226.67 | H71: 6226.67 | I71: 19392 | J71: 17246.5823 | K71: 17246.5823 | L71: 8094.671 | M71: 8094.671 | N71: 25341.2533
A72: 1.1.34 | B72: Устройство проходоки в плите перекрытия АБК 650х650 | C72: шт | D72: 1 | E72: 13165.33 | F72: 13165.33 | G72: 6226.67 | H72: 6226.67 | I72: 19392 | J72: 17246.5823 | K72: 17246.5823 | L72: 8094.671 | M72: 8094.671 | N72: 25341.2533
A73: 1.1.35 | B73: Устройство проходоки в плите перекрытия АБК 600х500 | C73: шт | D73: 1 | E73: 13165.33 | F73: 13165.33 | G73: 6226.67 | H73: 6226.67 | I73: 19392 | J73: 17246.5823 | K73: 17246.5823 | L73: 8094.671 | M73: 8094.671 | N73: 25341.2533
A74: 1.1.36 | B74: Устройство проходоки в стене ГКЛ АБК 800х600 | C74: шт | D74: 1 | E74: 9091.58 | F74: 9091.58 | G74: 3491.31 | H74: 3491.31 | I74: 12582.89 | J74: 11909.9698 | K74: 11909.9698 | L74: 4538.703 | M74: 4538.703 | N74: 16448.6728
A75: 1.1.37 | B75: Устройство проходоки в стене ГКЛ АБК 500х400 | C75: шт | D75: 1 | E75: 9091.58 | F75: 9091.58 | G75: 3491.31 | H75: 3491.31 | I75: 12582.89 | J75: 11909.9698 | K75: 11909.9698 | L75: 4538.703 | M75: 4538.703 | N75: 16448.6728
A76: 1.1.38 | B76: Проходки в стене сэндвича 860х660 | C76: шт | D76: 2 | E76: 9091.58 | F76: 18183.16 | G76: 3491.31 | H76: 6982.62 | I76: 25165.78 | J76: 11909.9698 | K76: 23819.9396 | L76: 4538.703 | M76: 9077.406 | N76: 32897.3456
A77: 1.1.39 | B77: Устройство ревизионных лючков 500х500 с врезкой замка | C77: шт | D77: 15 | E77: 5466.67 | F77: 82000.05 | G77: 4673.33 | H77: 70099.95 | I77: 152100 | J77: 7161.3377 | K77: 107420.0655 | L77: 6075.329 | M77: 91129.935 | N77: 198550.0005
A78: 1.1.40 | B78: Окраска металлической лестницы | C78: м2 | D78: 8 | E78: 3826.67 | F78: 30613.36 | G78: 3327.47 | H78: 26619.76 | I78: 57233.12 | J78: 5012.9377 | K78: 40103.5016 | L78: 4325.711 | M78: 34605.688 | N78: 74709.1896
A79: 1.1.41 | B79: Заполнение пространства между перегородками и профильным листом | C79: м.п. | D79: 70 | E79: 1933.33 | F79: 135333.1 | G79: 2640 | H79: 184800 | I79: 320133.1 | J79: 2532.6623 | K79: 177286.361 | L79: 3432 | M79: 240240 | N79: 417526.361
A80: 1.1.42 | B80: Заполнение пространства между несущим двутавром и плитой перекрытия газоблоком на пену 31 м.п. 1,85 м3. | C80: м3 | D80: 1.85 | E80: 4653.33 | F80: 8608.6605 | G80: 10520 | H80: 19462 | I80: 28070.6605 | J80: 6095.8623 | K80: 11277.34526 | L80: 13676 | M80: 25300.6 | N80: 36577.94525
A81: 1.1.43 | B81: Устройство армирования пола сеткой арм. Ш6 А500С ячейкой 150х150 мм | C81: т | D81: 0.93 | E81: 346.5 | F81: =D81*E81 -> 322.245 | G81: 1845.69 | H81: =D81*G81 -> 1716.4917 | I81: =F81+H81 -> 2038.7367 | J81: 453.915 | K81: 422.14095 | L81: 2399.397 | M81: 2231.43921 | N81: 2653.58016
A82: 1.1.44 | B82: Пандус металлический | C82: шт. | D82: 4 | E82: 24560 | F82: =D82*E82 -> 98240 | G82: 6780 | H82: =D82*G82 -> 27120 | I82: =F82+H82 -> 125360 | J82: 32173.6 | K82: 128694.4 | L82: 8814 | M82: 35256 | N82: 163950.4
A83: 1.1.45 | B83: Монтаж фасоного элемента над окном лестничной клетки | C83: м.п. | D83: 5 | E83: 458 | F83: =D83*E83 -> 2290 | G83: 1035.6 | H83: =D83*G83 -> 5178 | I83: =F83+H83 -> 7468 | J83: 599.98 | K83: 2999.9 | L83: 1346.28 | M83: 6731.4 | N83: 9731.3
A84: 1.1.46 | B84: Заделка мест прохода инженерных коммуникаций | C84: шт. | D84: 45 | E84: 0 | F84: =D84*E84 -> 0 | H84: =D84*G84 -> 0 | I84: =F84+H84 -> 0 | J84: 450 | K84: 20250 | L84: 500 | M84: 22500 | N84: 42750
A85: 1.1.47 | B85: Финальный клининг | C85: м2 | D85: 378 | F85: =D85*E85 -> 0 | H85: =D85*G85 -> 0 | I85: =F85+H85 -> 0 | J85: 240 | K85: 90720 | L85: =G85*$P$2 -> 0 | M85: 0 | N85: 90720
A86: 1.2 | B86: 130-23-АС1 Архитектурно-строительные решения | F86: =F88+F89+F91+F93+F94+F96+F98 -> 6694740.35 | H86: =H88+H89+H91+H93+H94+H96+H98 -> 11422970.08 | I86: =I88+I89+I91+I93+I94+I96+I98 -> 18117710.43 | K86: =K88+K89+K91+K93+K94+K96+K98 -> 8797746.29 | M86: =M88+M89+M91+M93+M94+M96+M98 -> 19081967.9 | N86: =N88+N89+N91+N93+N94+N96+N98 -> 27879714.19
A87: 1.2.1 | B87: Металлоконструкции огрунтованные КМ
A88: 1.2.1.1 | B88: Монтаж фахверковых стоек массой до 1,0 т. | C88: т. | D88: 10.5 | E88: 68400 | F88: =D88*E88 -> 718200 | G88: 195000 | H88: =D88*G88 -> 2047500 | I88: =F88+H88 -> 2765700 | J88: 95478 | K88: =D88*J88 -> 1002519 | L88: 229000 | M88: =D88*L88 -> 2404500 | N88: =J88*D88+L88*D88 -> 3407019
A89: 1.2.1.2 | B89: Монтаж распорок, ригелей, в том числе: Профили стальные гнутые замкнутые квадратные 100х4 | C89: т. | D89: 1.73 | E89: 69940 | F89: 120996.2 | G89: 195000 | H89: 337350 | I89: 458346.2 | J89: 95478 | K89: =D89*J89 -> 165176.94 | L89: 229000 | M89: =D89*L89 -> 396170 | N89: =J89*D89+L89*D89 -> 561346.94
A90: 1.2.2 | B90: Окраска металлоконструкций
A91: 1.2.2.1 | B91: Устройство огнезащитной краски по металлу | C91: м2 | D91: 349.59 | E91: 2400 | F91: =D91*E91 -> 839016 | G91: 956 | H91: =D91*G91 -> 334208.04 | I91: =F91+H91 -> 1173224.04 | J91: 4150 | K91: =D91*J91 -> 1450798.5 | L91: 665 | M91: =D91*L91 -> 232477.35 | N91: =J91*D91+L91*D91 -> 1683275.85
A92: 1.2.3 | B92: Крепление металлоконструкций
A93: 1.2.3.1 | B93: Сверление отверстий в железобетонных конструкциях | C93: шт. | D93: 180 | E93: 300 | F93: =D93*E93 -> 54000 | I93: =F93+H93 -> 54000 | J93: 393 | K93: =D93*J93 -> 70740 | L93: 0 | M93: =L93*D93 -> 0 | N93: =J93*D93+L93*D93 -> 70740
A94: 1.2.3.2 | B94: Устройство высокопрочных анкеров, закладных | C94: компл. | D94: 1 | E94: 199039.2 | F94: =D94*E94 -> 199039.2 | G94: 199703.52 | H94: =D94*G94 -> 199703.52 | I94: =F94+H94 -> 398742.72 | J94: 260741 | K94: =D94*J94 -> 260741 | L94: 259614 | M94: =D94*L94 -> 259614 | N94: =J94*D94+L94*D94 -> 520355
A95: 1.2.5 | B95: Устройство перегородки
A96: 1.2.5.1 | B96: Стеновые сэндвич-панели 100-1000-Г-Г | C96: м2 | D96: 2122.35 | E96: 2237 | F96: =D96*E96 -> 4747696.95 | G96: 3967.398646 | H96: =D96*G96 -> 8420208.515 | I96: =F96+H96 -> 13167905.47 | J96: 2711 | K96: =D96*J96 -> 5753690.85 | L96: 7373 | M96: =D96*L96 -> 15648086.55 | N96: =J96*D96+L96*D96 -> 21401777.4
A97: 1.2.6 | B97: Устройство бетонного плинтуса
A98: 1.2.6.1 | B98: Устройство плинтуса из фасонного элемента | C98: м/п | D98: 336 | E98: 47 | F98: =D98*E98 -> 15792 | G98: 250 | H98: =D98*G98 -> 84000 | I98: =H98+F98 -> 99792 | J98: 280 | K98: =D98*J98 -> 94080 | L98: 420 | M98: =D98*L98 -> 141120 | N98: =J98*D98+L98*D98 -> 235200
A99: 1.3 | B99: 130-23-ВК Внутренние трубопроводы | F99: =SUM(F100:F103) -> 3010200 | H99: =SUM(H100:H103) -> 5727056.64 | I99: =SUM(I100:I103) -> 8737256.64 | K99: =SUM(K100:K103) -> 3943362 | M99: =SUM(M100:M103) -> 7445174 | N99: =SUM(N100:N103) -> 11388536
A100: 1.3.1 | B100: Хозяйственно-питьевой водопровод В1. | C100: сис | D100: 1 | E100: 695100 | F100: =D100*E100 -> 695100 | G100: 753743.52 | H100: =D100*G100 -> 753743.52 | I100: =H100+F100 -> 1448843.52 | J100: 910581 | K100: =D100*J100 -> 910581 | L100: 979867 | M100: =D100*L100 -> 979867 | N100: =J100*D100+L100*D100 -> 1890448
A101: 1.3.2 | B101: Горячее водоснабжение (Т3, Т4) | C101: сис | D101: 1 | E101: 868200 | F101: =D101*E101 -> 868200 | G101: 1236673.44 | H101: =D101*G101 -> 1236673.44 | I101: =H101+F101 -> 2104873.44 | J101: 1137342 | K101: =D101*J101 -> 1137342 | L101: 1607675 | M101: =D101*L101 -> 1607675 | N101: =J101*D101+L101*D101 -> 2745017
A102: 1.3.3 | B102: Противопожарный водопровод, В2 | C102: сис | D102: 1 | E102: 1179600 | F102: 1179600 | G102: 3168026.88 | H102: 3168026.88 | I102: 4347626.88 | J102: 1545276 | K102: =D102*J102 -> 1545276 | L102: 4118435 | M102: =D102*L102 -> 4118435 | N102: =J102*D102+L102*D102 -> 5663711
A103: 1.3.4 | B103: Бытовая канализация К1 | C103: сис | D103: 1 | E103: 267300 | F103: 267300 | G103: 568612.8 | H103: 568612.8 | I103: 835912.8 | J103: 350163 | K103: =D103*J103 -> 350163 | L103: 739197 | M103: =D103*L103 -> 739197 | N103: =J103*D103+L103*D103 -> 1089360
A104: 1.4 | B104: 130-23-ПС Пожарная сигнализация | F104: =F105+F106+F107+F108+F109+F110+F111+F112+F113+F114+F116+F117+F118+F119+F120+F121+F122+F123+F124+F125+F126+F127+F128+F129+F130+F131+F132+F133+F134+F135+F136+F137+F138+F139+F140+F141+F142+F143+F144+F145+F146+F147+F148+F149+F150+F151+F152+F153+F154+F155+F156+F157+F158+F159+F160+F161+F162+F163+F164+F165+F166+F167+F168+F169+F170+F171+F172+F174+F175+F176+F177+F178+F179+F180+F181+F182+F183+F184+F185+F186+F187+F188+F115 -> 4454214 | H104: =H105+H106+H107+H108+H109+H110+H111+H112+H113+H114+H116+H117+H118+H119+H120+H121+H122+H123+H124+H125+H126+H127+H128+H129+H130+H131+H132+H133+H134+H135+H136+H137+H138+H139+H140+H141+H142+H143+H144+H145+H146+H147+H148+H149+H150+H151+H152+H153+H154+H155+H156+H157+H158+H159+H160+H161+H162+H163+H164+H165+H166+H167+H168+H169+H170+H171+H172+H174+H175+H176+H177+H178+H179+H180+H181+H182+H183+H184+H185+H186+H187+H188+H115 -> 5191171 | I104: =I105+I106+I107+I108+I109+I110+I111+I112+I113+I114+I116+I117+I118+I119+I120+I121+I122+I123+I124+I125+I126+I127+I128+I129+I130+I131+I132+I133+I134+I135+I136+I137+I138+I139+I140+I141+I142+I143+I144+I145+I146+I147+I148+I149+I150+I151+I152+I153+I154+I155+I156+I157+I158+I159+I160+I161+I162+I163+I164+I165+I166+I167+I168+I169+I170+I171+I172+I174+I175+I176+I177+I178+I179+I180+I181+I182+I183+I184+I185+I186+I187+I188+I115 -> 9645385 | K104: =K105+K106+K107+K108+K109+K110+K111+K112+K113+K114+K116+K117+K118+K119+K120+K121+K122+K123+K124+K125+K126+K127+K128+K129+K130+K131+K132+K133+K134+K135+K136+K137+K138+K139+K140+K141+K142+K143+K144+K145+K146+K147+K148+K149+K150+K151+K152+K153+K154+K155+K156+K157+K158+K159+K160+K161+K162+K163+K164+K165+K166+K167+K168+K169+K170+K171+K172+K174+K175+K176+K177+K178+K179+K180+K181+K182+K183+K184+K185+K186+K187+K188+K115 -> 5616180.6 | M104: =M105+M106+M107+M108+M109+M110+M111+M112+M113+M114+M116+M117+M118+M119+M120+M121+M122+M123+M124+M125+M126+M127+M128+M129+M130+M131+M132+M133+M134+M135+M136+M137+M138+M139+M140+M141+M142+M143+M144+M145+M146+M147+M148+M149+M150+M151+M152+M153+M154+M155+M156+M157+M158+M159+M160+M161+M162+M163+M164+M165+M166+M167+M168+M169+M170+M171+M172+M174+M175+M176+M177+M178+M179+M180+M181+M182+M183+M184+M185+M186+M187+M188+M115 -> 6748516.652 | N104: =N105+N106+N107+N108+N109+N110+N111+N112+N113+N114+N116+N117+N118+N119+N120+N121+N122+N123+N124+N125+N126+N127+N128+N129+N130+N131+N132+N133+N134+N135+N136+N137+N138+N139+N140+N141+N142+N143+N144+N145+N146+N147+N148+N149+N150+N151+N152+N153+N154+N155+N156+N157+N158+N159+N160+N161+N162+N163+N164+N165+N166+N167+N168+N169+N170+N171+N172+N174+N175+N176+N177+N178+N179+N180+N181+N182+N183+N184+N185+N186+N187+N188+N115 -> 12364697.25
A105: 1.4.1 | B105: Сервер "Орион Про" | C105: компл. | D105: 1 | E105: 38400 | F105: =D105*E105 -> 38400 | G105: 0 | H105: =G105*D105 -> 0 | I105: =F105+H105 -> 38400 | J105: 50304 | K105: =D105*J105 -> 50304 | L105: 0 | M105: =L105*D105 -> 0 | N105: =J105*D105+L105*D105 -> 50304
A106: 1.4.2 | B106: Шкаф пожарной сигнализации | C106: шт. | D106: 4 | E106: 4200 | F106: 16800 | G106: 28173.6 | H106: 112694.4 | I106: 129494.4 | J106: 5502 | K106: 22008 | L106: 36625.68 | M106: =D106*L106 -> 146502.72 | N106: 168510.72
A107: 1.4.3 | B107: Монтажный комплект | C107: шт. | D107: 4 | E107: 1800 | F107: 7200 | G107: 1120 | H107: 4480 | I107: 11680 | J107: 2358 | K107: 9432 | L107: 1456 | M107: 5824 | N107: 15256
A108: 1.4.5 | B108: Прибор приемно-контрольный и управления пожарный | C108: шт. | D108: 1 | E108: 4200 | F108: 4200 | G108: 32333.6 | H108: 32333.6 | I108: 36533.6 | J108: 5502 | K108: 5502 | L108: 42033.68 | M108: 42033.68 | N108: 47535.68
A109: 1.4.6 | B109: Аккумулятор 12 В, 17 А/ч | C109: шт. | D109: 10 | E109: 400 | F109: 4000 | G109: 5668 | H109: 56680 | I109: 60680 | J109: 524 | K109: 5240 | L109: 7368.4 | M109: 73684 | N109: 78924
A110: 1.4.7 | B110: Пульт контроля и управления | C110: шт. | D110: 1 | E110: 2600 | F110: 2600 | G110: 11375.52 | H110: 11375.52 | I110: 13975.52 | J110: 3406 | K110: 3406 | L110: 14788.18 | M110: 14788.18 | N110: 18194.18
A111: 1.4.8 | B111: Контроллер двухпроводной линиии связи | C111: шт. | D111: 11 | E111: 2600 | F111: 28600 | G111: 5006.04 | H111: 55066.44 | I111: 83666.44 | J111: 3406 | K111: 37466 | L111: 6507.85 | M111: 71586.35 | N111: 109052.35
A112: 1.4.9 | B112: Блок контрольно-пусковой | C112: шт. | D112: 4 | E112: 2600 | F112: 10400 | G112: 4564.56 | H112: 18258.24 | I112: 28658.24 | J112: 3406 | K112: 13624 | L112: 5933.93 | M112: 23735.72 | N112: 37359.72
A113: 1.4.10 | B113: Извещатель пожарный дымовой оптико-электронный аналого-адресный | C113: шт. | D113: 139 | E113: 1200 | F113: =D113*E113 -> 166800 | G113: 1901.8 | H113: =G113*D113 -> 264350.2 | I113: =F113+H113 -> 431150.2 | J113: 1572 | K113: 218508 | L113: 2472.34 | M113: 343655.26 | N113: 562163.26
A114: 1.4.11 | B114: Извещатель пожарный линейный однопозиционный адресный | C114: шт. | D114: 42 | E114: 3400 | F114: =D114*E114 -> 142800 | G114: 28860 | H114: =G114*D114 -> 1212120 | I114: =F114+H114 -> 1354920 | J114: 4454 | K114: 187068 | L114: 37518 | M114: 1575756 | N114: 1762824
A115: 1.4.11.1 | B115: Демонтаж и перенос Извещателя пожарного линейного в комплекте с отражателем | C115: шт | D115: 16 | E115: 5000 | F115: =D115*E115 -> 80000 | G115: 0 | H115: =G115*D115 -> 0 | I115: =F115+H115 -> 80000 | J115: =E115*$O$2 -> 6550 | K115: 104800 | L115: =G115*$P$2 -> 0 | M115: 0 | N115: =K115+M115 -> 104800
A116: 1.4.12 | B116: Траверса 30х17 мм | C116: м. | D116: 10 | E116: 200 | F116: =D116*E116 -> 2000 | G116: 127.1 | H116: =D116*G116 -> 1271 | I116: =F116+H116 -> 3271 | J116: =E116*$O$2 -> 262 | K116: 2620 | L116: =G116*$P$2 -> 165.23 | M116: 1652.3 | N116: =K116+M116 -> 4272.3
A117: 1.4.13 | B117: Извещатель пожарный ручной адресный | C117: шт. | D117: 18 | E117: 1200 | F117: 21600 | G117: 1121.8 | H117: =G117*D117 -> 20192.4 | I117: =F117+H117 -> 41792.4 | J117: 1572 | K117: 28296 | L117: 1458.34 | M117: 26250.12 | N117: 54546.12
A118: 1.4.14 | B118: Аккумулятор 12 В, 40 А/ч | C118: шт. | D118: 8 | E118: 400 | F118: 3200 | G118: 6304.92 | H118: =D118*G118 -> 50439.36 | I118: =H118+F118 -> 53639.36 | J118: 524 | K118: 4192 | L118: 8196.4 | M118: 65571.2 | N118: 69763.2
A119: 1.4.15 | B119: Источник питания резервированный | C119: шт. | D119: 4 | E119: 3000 | F119: 12000 | G119: 12612.36 | H119: =D119*G119 -> 50449.44 | I119: =H119+F119 -> 62449.44 | J119: 3930 | K119: 15720 | L119: 16396.07 | M119: 65584.28 | N119: 81304.28
A120: 1.4.16 | B120: Аккумулятор 12 В, 7 А/ч | C120: шт. | D120: 4 | E120: 400 | F120: 1600 | G120: 2407.01 | H120: =D120*G120 -> 9628.04 | I120: =H120+F120 -> 11228.04 | J120: 524 | K120: 2096 | L120: 3129.1 | M120: 12516.4 | N120: 14612.4
A121: 1.4.17 | B121: Блок контроля и индикации | C121: шт. | D121: 2 | E121: 3000 | F121: 6000 | G121: 9024.14 | H121: =D121*G121 -> 18048.28 | I121: =H121+F121 -> 24048.28 | J121: 3930 | K121: 7860 | L121: 11731.38 | M121: 23462.76 | N121: 31322.76
A122: 1.4.18 | B122: Блок разветвительно-изолирующий | C122: шт. | D122: 4 | E122: 1000 | F122: 4000 | G122: 641.16 | H122: 2564.64 | I122: 6564.64 | J122: 1310 | K122: 5240 | L122: 833.51 | M122: 3334.04 | N122: 8574.04
A123: 1.4.19 | B123: Преобразователь интерфейсов | C123: шт. | D123: 4 | E123: 3200 | F123: 12800 | G123: 11575.2 | H123: 46300.8 | I123: 59100.8 | J123: 4192 | K123: 16768 | L123: 15047.76 | M123: 60191.04 | N123: 76959.04
A124: 1.4.20 | B124: Патч-корд волоконно-оптический LC/UPC-LC/UPC 50 м | C124: шт. | D124: 4 | E124: 300 | F124: 1200 | G124: 2825.04 | H124: 11300.16 | I124: 12500.16 | J124: 393 | K124: 1572 | L124: 3672.55 | M124: 14690.2 | N124: 16262.2
A125: 1.4.21 | B125: Патч-корд волоконно-оптический LC/UPC-LC/UPC 1 м | C125: шт. | D125: 4 | E125: 300 | F125: 1200 | G125: 790 | H125: 3160 | I125: 4360 | J125: 393 | K125: 1572 | L125: 1027 | M125: 4108 | N125: 5680
A126: 1.4.22 | B126: Устройство коммутационное | C126: шт. | D126: 22 | E126: 2600 | F126: =D126*E126 -> 57200 | G126: 1365 | H126: =G126*D126 -> 30030 | I126: =F126+H126 -> 87230 | J126: 3406 | K126: 74932 | L126: 1774.5 | M126: 39039 | N126: 113971
A127: 1.4.23 | B127: Оповещатель охранно-пожарный световой (табло) ЛЮКС-24 "Выход" | C127: шт. | D127: 10 | E127: 1200 | F127: 12000 | G127: 368 | H127: 3680 | I127: 15680 | J127: 1572 | K127: 15720 | L127: 478.4 | M127: 4784 | N127: 20504
A128: 1.4.24 | B128: Оповещатель охранно-пожарный световой (табло) ЛЮКС-24 "Стрелка влево" | C128: шт. | D128: 9 | E128: 1200 | F128: 10800 | G128: 368 | H128: 3312 | I128: 14112 | J128: 1572 | K128: 14148 | L128: 478.4 | M128: 4305.6 | N128: 18453.6
A129: 1.4.25 | B129: Оповещатель охранно-пожарный световой (табло) ЛЮКС-24 "Стрелка вправо" | C129: шт. | D129: 9 | E129: 1200 | F129: 10800 | G129: 368 | H129: 3312 | I129: 14112 | J129: 1572 | K129: 14148 | L129: 478.4 | M129: 4305.6 | N129: 18453.6
A130: 1.4.26 | B130: Оповещатель охранно-пожарный звуковой Маяк-24-ЗМ2 | C130: шт. | D130: 54 | E130: 1200 | F130: 64800 | G130: 270 | H130: 14580 | I130: 79380 | J130: 1572 | K130: 84888 | L130: 351 | M130: 18954 | N130: =J130*D130+L130*D130 -> 103842
A131: 1.4.27 | B131: Комбинированный оповещатель со стробовспышкой Г-24КПР | C131: шт. | D131: 30 | E131: 1200 | F131: =D131*E131 -> 36000 | G131: 545.04 | H131: =G131*D131 -> 16351.2 | I131: =F131+H131 -> 52351.2 | J131: 1572 | K131: 47160 | L131: 708.55 | M131: 21256.5 | N131: =J131*D131+L131*D131 -> 68416.5
A132: 1.4.28 | B132: Оповещатель охранно-пожарный комбинированный свето-звуковой Маяк-24-КПМ2 | C132: шт. | D132: 39 | E132: 1200 | F132: =D132*E132 -> 46800 | G132: 656 | H132: =G132*D132 -> 25584 | I132: =F132+H132 -> 72384 | J132: 1572 | K132: 61308 | L132: 852.8 | M132: 33259.2 | N132: =J132*D132+L132*D132 -> 94567.2
A133: 1.4.29 | B133: Саморез со сверлом | C133: шт. | D133: 100 | E133: 5 | F133: 500 | G133: 1.82 | H133: 182 | I133: 682 | J133: =E133*$O$2 -> 6.55 | K133: 655 | L133: =G133*$P$2 -> 2.366 | M133: 236.6 | N133: =J133*D133+L133*D133 -> 891.6
A134: 1.4.30 | B134: Модуль подключения нагрузки | C134: шт. | D134: 87 | E134: 100 | F134: 8700 | G134: 71.76 | H134: 6243.12 | I134: 14943.12 | J134: 131 | K134: 11397 | L134: 93.29 | M134: 8116.23 | N134: 19513.23
A135: 1.4.31 | B135: Блок сигнально-пусковой адресный | C135: шт. | D135: 82 | E135: 3200 | F135: 262400 | G135: 3692.4 | H135: 302776.8 | I135: 565176.8 | J135: 4192 | K135: 343744 | L135: 4800.12 | M135: 393609.84 | N135: 737353.84
A136: 1.4.32 | B136: Кнопка "ТЕСТ" | C136: шт. | D136: 82 | E136: 1200 | F136: 98400 | G136: 1250 | H136: 102500 | I136: 200900 | J136: 1572 | K136: 128904 | L136: 1625 | M136: 133250 | N136: 262154
A137: 1.4.33 | B137: Шкаф контрольно пусковой ШКП-10RS (М) | C137: шт. | D137: 1 | E137: 4500 | F137: 4500 | G137: 31318.56 | H137: 31318.56 | I137: 35818.56 | J137: 5895 | K137: 5895 | L137: 40714.13 | M137: 40714.13 | N137: 46609.13
A138: 1.4.34 | B138: Шкаф контрольно пусковой ШКП-18RS (М) | C138: шт. | D138: 1 | E138: 4500 | F138: 4500 | G138: 32633.64 | H138: 32633.64 | I138: 37133.64 | J138: 5895 | K138: 5895 | L138: 42423.73 | M138: 42423.73 | N138: 48318.73
A139: 1.4.35 | B139: Легкая консоль для лотков с основанием 100 мм | C139: шт. | D139: 120 | E139: 270 | F139: =D139*E139 -> 32400 | G139: 131.6 | H139: =D139*G139 -> 15792 | I139: =F139+H139 -> 48192 | J139: =E139*$O$2 -> 353.7 | K139: 42444 | L139: =G139*$P$2 -> 171.08 | M139: 20529.6 | N139: =K139+M139 -> 62973.6
A140: 1.4.36 | B140: Гайка М6 | C140: шт. | D140: 808 | F140: =D140*E140 -> 0 | G140: 1.54 | H140: =D140*G140 -> 1244.32 | I140: =F140+H140 -> 1244.32 | J140: =E140*$O$2 -> 0 | K140: 0 | L140: =G140*$P$2 -> 2.002 | M140: 1617.616 | N140: =K140+M140 -> 1617.616
A141: 1.4.37 | B141: Болт М6 | C141: шт. | D141: 808 | E141: 0 | F141: 0 | G141: 4.99 | H141: =G141*D141 -> 4031.92 | I141: 4031.92 | J141: =E141*$O$2 -> 0 | K141: 0 | L141: =G141*$P$2 -> 6.487 | M141: 5241.496 | N141: =K141+M141 -> 5241.496
A142: 1.4.38 | B142: Лоток перфорированный 100х50х3000 | C142: м | D142: 552 | E142: 640 | F142: =D142*E142 -> 353280 | G142: 538 | H142: =G142*D142 -> 296976 | I142: =F142+H142 -> 650256 | J142: 497.8 | K142: 274785.6 | L142: 699.4 | M142: 386068.8 | N142: =J142*D142+L142*D142 -> 660854.4
A143: 1.4.39 | B143: Перегородка для лотка | C143: м | D143: 585 | E143: 100 | F143: 58500 | G143: 292.8 | H143: 171288 | I143: 229788 | J143: 131 | K143: 76635 | L143: 380.64 | M143: 222674.4 | N143: 299309.4
A144: 1.4.40 | B144: Крышка с заземлением на лоток основание 100 L3000 | C144: м | D144: 552 | E144: 150 | F144: =D144*E144 -> 82800 | G144: 209.22 | H144: =G144*D144 -> 115489.44 | I144: =F144+H144 -> 198289.44 | J144: 157.2 | K144: 86774.4 | L144: 271.99 | M144: 150138.48 | N144: 236912.88
A145: 1.4.41 | B145: Угол CPO 90 горизонтальный 90° 100х50 | C145: шт. | D145: 9 | E145: 1200 | F145: 10800 | G145: 1620.8 | H145: =G145*D145 -> 14587.2 | I145: =F145+H145 -> 25387.2 | J145: 1572 | K145: 14148 | L145: 2107.04 | M145: 18963.36 | N145: 33111.36
A146: 1.4.42 | B146: Угол CS 90 вертикальный внутренний 90° 100х50 | C146: шт. | D146: 4 | E146: 1200 | F146: 4800 | G146: 1892 | H146: =G146*D146 -> 7568 | I146: =F146+H146 -> 12368 | J146: 1572 | K146: 6288 | L146: 2459.6 | M146: 9838.4 | N146: 16126.4
A147: 1.4.43 | B147: Лоток 50х50 L=3000 перфорированный | C147: м. | D147: 150 | E147: 640 | F147: 96000 | G147: 375 | H147: 56250 | I147: 152250 | J147: 838.4 | K147: 125760 | L147: 487.5 | M147: 73125 | N147: 198885
A148: 1.4.44 | B148: Крышка с заземлением на лоток основание 50 L3000 | C148: м. | D148: 150 | E148: 150 | F148: 22500 | G148: 171.65 | H148: =G148*D148 -> 25747.5 | I148: =F148+H148 -> 48247.5 | J148: 157.2 | K148: 23580 | L148: 223.15 | M148: 33472.5 | N148: 57052.5
A149: 1.4.45 | B149: Крышка S5 CPO90 90х100 угла горизонтального | C149: шт. | D149: 10 | E149: 150 | F149: 1500 | G149: 839.4 | H149: =G149*D149 -> 8394 | I149: =F149+H149 -> 9894 | J149: 157.2 | K149: 1572 | L149: 1091.22 | M149: 10912.2 | N149: 12484.2
A150: 1.4.46 | B150: Крышка S5 CS90 90x100 угла вертикального внутреннего | C150: шт. | D150: 12 | E150: 150 | F150: 1800 | G150: 644.02 | H150: =G150*D150 -> 7728.24 | I150: =F150+H150 -> 9528.24 | J150: 157.2 | K150: 1886.4 | L150: 837.23 | M150: 10046.76 | N150: 11933.16
A151: 1.4.47 | B151: Ответвитель S5 DL 100x50 горизонтальный | C151: шт. | D151: 5 | E151: 1200 | F151: =D151*E151 -> 6000 | G151: 2020.01 | H151: 10100.05 | I151: 16100.05 | J151: 1572 | K151: =D151*J151 -> 7860 | L151: 2626.01 | M151: 13130.05 | N151: 20990.05
A152: 1.4.48 | B152: Крышка S5 DL 100х50 ответвителя горизонтального | C152: шт. | D152: 5 | E152: 150 | F152: =D152*E152 -> 750 | G152: 1004.5 | H152: =G152*D152 -> 5022.5 | I152: =F152+H152 -> 5772.5 | J152: 157.2 | K152: 786 | L152: 1305.85 | M152: =D152*L152 -> 6529.25 | N152: 7315.25
A153: 1.4.49 | B153: Угол S5 CD90 90x50x50 вертикальный внешний | C153: шт. | D153: 4 | E153: 1200 | F153: =D153*E153 -> 4800 | G153: 1966.01 | H153: =G153*D153 -> 7864.04 | I153: =F153+H153 -> 12664.04 | J153: 1572 | K153: 6288 | L153: 2555.81 | M153: 10223.24 | N153: 16511.24
A154: 1.4.50 | B154: Крышка S5 CD90 90x50 угла вертикального внешнего | C154: шт. | D154: 16 | E154: 150 | F154: =D154*E154 -> 2400 | G154: 638.16 | H154: =G154*D154 -> 10210.56 | I154: =F154+H154 -> 12610.56 | J154: 157.2 | K154: 2515.2 | L154: 829.61 | M154: 13273.76 | N154: 15788.96
A155: 1.4.51 | B155: Ответвитель S5 DL 50x50 горизонтальный | C155: шт. | D155: 16 | E155: 1200 | F155: 19200 | G155: 1825.61 | H155: 29209.76 | I155: 48409.76 | J155: 1572 | K155: 25152 | L155: 2373.29 | M155: 37972.64 | N155: 63124.64
A156: 1.4.52 | B156: Крышка S5 DL 50х50 ответвителя горизонтального | C156: шт. | D156: 16 | E156: 150 | F156: =D156*E156 -> 2400 | G156: 853.51 | H156: =G156*D156 -> 13656.16 | I156: =F156+H156 -> 16056.16 | J156: 157.2 | K156: 2515.2 | L156: 1109.56 | M156: 17752.96 | N156: 20268.16
A157: 1.4.53 | B157: Кронштейн индивидуального изготовления L=1250 | C157: шт. | D157: 180 | E157: 412.8 | F157: =D157*E157 -> 74304 | G157: 1552.8 | H157: =G157*D157 -> 279504 | I157: =F157+H157 -> 353808 | J157: 540.77 | K157: 97338.6 | L157: 2018.64 | M157: 363355.2 | N157: 460693.8
A158: 1.4.54 | B158: Кронштейн юстировочный для монтажа линейного извещателя | C158: шт. | D158: 22 | E158: 1200 | F158: =D158*E158 -> 26400 | G158: 1200 | H158: =G158*D158 -> 26400 | I158: =F158+H158 -> 52800 | J158: 1572 | K158: 34584 | L158: 1560 | M158: 34320 | N158: 68904
A159: 1.4.55 | B159: Стандартный анкер с болтом М8 | C159: шт. | D159: 800 | E159: 25 | F159: 20000 | G159: 83.02 | H159: 66416 | I159: 86416 | J159: 32.75 | K159: 26200 | L159: 107.93 | M159: 86344 | N159: 112544
A160: 1.4.56 | B160: Винт для электрического соединения М5х8 | C160: шт. | D160: 100 | E160: 15 | F160: 1500 | G160: 10.2 | H160: 1020 | I160: 2520 | J160: 19.65 | K160: 1965 | L160: 13.26 | M160: 1326 | N160: 3291
A161: 1.4.57 | B161: Коробка огнестойкая 100х100х50мм | C161: шт. | D161: 175 | E161: 800 | F161: =D161*E161 -> 140000 | G161: 1063.97 | H161: =G161*D161 -> 186194.75 | I161: =F161+H161 -> 326194.75 | J161: 1048 | K161: 183400 | L161: 1383.16 | M161: 242053 | N161: 425453
A162: 1.4.58 | B162: Кабель огнестойкий КПСЭнг(А)-FRHF 1х2х1,0 | C162: м | D162: 4220 | E162: 124 | F162: 523280 | G162: 41.04 | H162: 173188.8 | I162: 696468.8 | J162: 162.44 | K162: 685496.8 | L162: 53.35 | M162: 225137 | N162: 910633.8
A163: 1.4.59 | B163: Кабель огнестойкий КПСЭнг(А)-FRHF 1х2х1,5 | C163: м | D163: 3800 | E163: 124 | F163: 471200 | G163: 82.94 | H163: 315172 | I163: 786372 | J163: 162.44 | K163: 617272 | L163: 107.82 | M163: 409716 | N163: 1026988
A164: 1.4.60 | B164: Кабель огнестойкий КПСЭнг(А)-FRHF 2х2х0,75 | C164: м | D164: 500 | E164: 124 | F164: 62000 | G164: 77.76 | H164: 38880 | I164: 100880 | J164: 162.44 | K164: 81220 | L164: 101.09 | M164: 50545 | N164: 131765
A165: 1.4.61 | B165: Кабель огнестойкий КПСЭнг(А)-FRHF 2х2х0,5 | C165: м | D165: 1160 | E165: 124 | F165: 143840 | G165: 85.94 | H165: 99690.4 | I165: 243530.4 | J165: 162.44 | K165: 188430.4 | L165: 111.72 | M165: 129595.2 | N165: 318025.6
A166: 1.4.62 | B166: Кабель силовой огнестойкий ППГ нг(А)-FRHF 3х1.5 | C166: м | D166: 1300 | E166: 124 | F166: 161200 | G166: 101.52 | H166: 131976 | I166: 293176 | J166: 162.44 | K166: 211172 | L166: 131.98 | M166: 171574 | N166: 382746
A167: 1.4.63 | B167: Труба гофрированная ПВХ легкая серая D20 | C167: м | D167: 4500 | E167: 35 | F167: 157500 | G167: 21.6 | H167: 97200 | I167: 254700 | J167: 45.85 | K167: 206325 | L167: 28.08 | M167: 126360 | N167: 332685
A168: 1.4.64 | B168: Скоба металлическая однолапковая Д20 | C168: шт. | D168: 9000 | E168: 5 | F168: 45000 | G168: 2.6 | H168: 23400 | I168: 68400 | J168: 6.55 | K168: 58950 | L168: 3.38 | M168: 30420 | N168: 89370
A169: 1.4.65 | B169: Металлический дюбель для газобетона 6х32 | C169: шт. | D169: 9000 | E169: 5 | F169: =D169*E169 -> 45000 | G169: 14.88 | H169: =G169*D169 -> 133920 | I169: =F169+H169 -> 178920 | J169: 6.55 | K169: 58950 | L169: 19.34 | M169: 174060 | N169: 233010
A170: 1.4.66 | B170: Саморез с пресс-шайбой 4.2х32 | C170: шт. | D170: 9000 | E170: 5 | F170: 45000 | G170: 1.82 | H170: 16380 | I170: 61380 | J170: 6.55 | K170: 58950 | L170: 2.37 | M170: 21330 | N170: 80280
A171: 1.4.67 | B171: Аксессуары (расходные материалы, крепеж) | C171: компл. | D171: 1 | E171: 0 | F171: 0 | G171: 41040 | H171: 41040 | I171: 41040 | J171: 0 | K171: 0 | L171: 53352 | M171: 53352 | N171: 53352
A172: 1.4.68 | B172: Пуско-наладочные работы, приемо-сдаточные работы | C172: компл. | D172: 1 | E172: 393480 | F172: =D172*E172 -> 393480 | G172: 0 | H172: =G172*D172 -> 0 | I172: =F172+H172 -> 393480 | J172: 515458.8 | K172: =D172*J172 -> 515458.8 | L172: 0 | M172: 0 | N172: 515458.8
A173: 1.4.70 | B173: Автоматизация управления воротами
A174: 1.4.70.1 | B174: Пульт контроля и управления | C174: шт. | D174: 1 | E174: 2600 | F174: =D174*E174 -> 2600 | G174: 11375.52 | H174: =D174*G174 -> 11375.52 | I174: =F174+H174 -> 13975.52 | J174: 3406 | K174: =D174*J174 -> 3406 | L174: 14788.18 | M174: =D174*L174 -> 14788.18 | N174: =J174*D174+L174*D174 -> 18194.18
A175: 1.4.70.2 | B175: Прибор приемно-контрольный охранно-пожарный | C175: шт. | D175: 2 | E175: 2600 | F175: =D175*E175 -> 5200 | G175: 3580.8 | H175: =D175*G175 -> 7161.6 | I175: =F175+H175 -> 12361.6 | J175: 3406 | K175: 6812 | L175: 4655.04 | M175: 9310.08 | N175: 16122.08
A176: 1.4.70.3 | B176: Щит с монтажной панелью 600х600х250 ЩМПг-60.60.25 IP54 | C176: шт. | D176: 2 | E176: 5000 | F176: 10000 | G176: 15168 | H176: 30336 | I176: 40336 | J176: 6550 | K176: 13100 | L176: 19718.4 | M176: 39436.8 | N176: 52536.8
A177: 1.4.70.4 | B177: Источник питания резервированный | C177: шт. | D177: 2 | E177: 3000 | F177: 6000 | G177: 7929.6 | H177: 15859.2 | I177: 21859.2 | J177: 3930 | K177: 7860 | L177: 10308.48 | M177: 20616.96 | N177: 28476.96
A178: 1.4.70.5 | B178: Аккумулятор 12 В, 17 А/ч | C178: шт. | D178: 2 | E178: 400 | F178: 800 | G178: 5668 | H178: 11336 | I178: 12136 | J178: 524 | K178: 1048 | L178: 7368.4 | M178: 14736.8 | N178: 15784.8
A179: 1.4.70.6 | B179: Светофор двухцветный светодиодный | C179: шт. | D179: 4 | E179: 4200 | F179: 16800 | G179: 15352.8 | H179: 61411.2 | I179: 78211.2 | J179: 5502 | K179: 22008 | L179: 19958.64 | M179: 79834.56 | N179: 101842.56
A180: 1.4.70.7 | B180: Устройство коммутационное | C180: шт. | D180: 6 | E180: 2600 | F180: 15600 | G180: 1365 | H180: 8190 | I180: 23790 | J180: 3406 | K180: 20436 | L180: 1774.5 | M180: 10647 | N180: 31083
A181: 1.4.70.8 | B181: Извещатель охранный точечный магнитоконтактный | C181: шт. | D181: 6 | E181: 1800 | F181: 10800 | G181: 381.6 | H181: 2289.6 | I181: 13089.6 | J181: 2358 | K181: 14148 | L181: 496.08 | M181: 2976.48 | N181: 17124.48
A182: 1.4.70.9 | B182: Кабель силовой ППГнг(А)-FRHF 3х1.5 | C182: м | D182: 80 | E182: 124 | F182: 9920 | G182: 101.52 | H182: 8121.6 | I182: 18041.6 | J182: 162.44 | K182: 12995.2 | L182: 131.98 | M182: 10558.4 | N182: 23553.6
A183: 1.4.70.10 | B183: Кабель огнестойкий КПСЭнг(А)-FRHF 2х2х0,75 | C183: м | D183: 350 | E183: 124 | F183: 43400 | G183: 77.76 | H183: 27216 | I183: 70616 | J183: 162.44 | K183: 56854 | L183: 101.09 | M183: 35381.5 | N183: 92235.5
A184: 1.4.70.11 | B184: Кабель огнестойкий КПСЭнг(А)-FRHF 1х2х1,0 | C184: м | D184: 250 | E184: 124 | F184: 31000 | G184: 41.04 | H184: 10260 | I184: 41260 | J184: 162.44 | K184: 40610 | L184: 53.35 | M184: 13337.5 | N184: 53947.5
A185: 1.4.70.12 | B185: Коробка ответвительная с кабельными вводами IP55, 100х100х50 | C185: шт. | D185: 10 | E185: 500 | F185: 5000 | G185: 109.68 | H185: 1096.8 | I185: 6096.8 | J185: 655 | K185: 6550 | L185: 142.58 | M185: 1425.8 | N185: 7975.8
A186: 1.4.70.13 | B186: Труба гофрированная ПВХ легкая серая D20 | C186: м | D186: 300 | E186: 35 | F186: 10500 | G186: 21.6 | H186: 6480 | I186: 16980 | J186: 45.85 | K186: 13755 | L186: 28.08 | M186: 8424 | N186: 22179
A187: 1.4.70.14 | B187: Аксессуары (расходные материалы, крепеж) | C187: компл | D187: 1 | E187: 0 | F187: 0 | G187: 5280 | H187: 5280 | I187: 5280 | J187: 0 | L187: 6864 | M187: 6864 | N187: 6864
A188: 1.4.70.15 | B188: Пуско-наладочные работы | C188: компл | D188: 1 | E188: 92160 | F188: 92160 | H188: 0 | I188: 92160 | J188: 119808 | K188: =D188*J188 -> 119808 | L188: 0 | M188: 0 | N188: 119808
A189: 1.5 | B189: 130-23-ОВ2 Отопление и вентиляция | F189: =F190+F191+F192+F193+F194+F195+F196+F197+F198+F200+F201+F202+F203 -> 19933498.82 | H189: =H190+H191+H192+H193+H194+H195+H196+H197+H198+H200+H201+H202+H203 -> 41391336.19 | I189: =I190+I191+I192+I193+I194+I195+I196+I197+I198+I200+I201+I202+I203 -> 61324835.01 | K189: =K190+K191+K192+K193+K194+K195+K196+K197+K198+K200+K201+K202+K203 -> 26659798.98 | M189: =M190+M191+M192+M193+M194+M195+M196+M197+M198+M200+M201+M202+M203 -> 61642670.16 | N189: =N190+N191+N192+N193+N194+N195+N196+N197+N198+N200+N201+N202+N203 -> 88302469.14
A190: 1.5.1 | B190: Монтаж приточной системы | C190: к-т | D190: 6 | E190: 191564.66 | F190: =D190*E190 -> 1149387.96 | G190: 501751.616 | H190: =D190*G190 -> 3010509.696 | I190: =F190+H190 -> 4159897.656 | J190: 125450 | K190: =D190*J190 -> 752700 | L190: 982545 | M190: =D190*L190 -> 5895270 | N190: =J190*D190+L190*D190 -> 6647970
A191: 1.5.2 | B191: Монтаж вытяжных и приточно-вытяжных систем | C191: к-т | D191: 7 | E191: 95002.2 | F191: =D191*E191 -> 665015.4 | G191: 234736.6 | H191: =D191*G191 -> 1643156.2 | I191: =F191+H191 -> 2308171.6 | J191: 29545 | K191: 206815 | L191: 469586 | M191: 3287102 | N191: 3493917
A192: 1.5.3 | B192: Монтаж комплектов автоматики | C192: к-т | D192: 13 | E192: 72638.38 | F192: 944298.94 | G192: 185878.69 | H192: 2416422.97 | I192: 3360721.91 | J192: 102635.07 | K192: 1334255.91 | L192: 309219.34 | M192: 4019851.42 | N192: 5354107.33
A193: 1.5.4 | B193: Монтаж воздухораспределителей | C193: шт | D193: 76 | E193: 3595.38 | F193: =D193*E193 -> 273248.88 | G193: 8981.28 | H193: =D193*G193 -> 682577.28 | I193: 955826.16 | J193: 4332.6 | K193: 329277.6 | L193: 10463.97 | M193: 795261.72 | N193: 1124539.32
A194: 1.5.5 | B194: Прокладка воздуховодов из оцинкованой стали | C194: м2 | D194: 3335.57 | E194: 1941.99 | F194: =D194*E194 -> 6477643.584 | G194: 1582.69 | H194: =D194*G194 -> 5279173.283 | I194: 11756816.87 | J194: 2655.59 | K194: 8857906.336 | L194: 1958 | M194: 6531046.06 | N194: 15388952.4
A195: 1.5.6 | B195: Монтаж клапанов огнезадерживающих | C195: шт | D195: 8 | E195: 9139.7375 | F195: =D195*E195 -> 73117.9 | G195: 24621.75 | H195: =D195*G195 -> 196974 | I195: 270091.9 | J195: 11973.06 | K195: 95784.48 | L195: 32008.28 | M195: 256066.24 | N195: 351850.72
A196: 1.5.7 | B196: Монтаж фильтрационных агрегатов | C196: к-т | D196: 12 | E196: 465269 | F196: =D196*E196 -> 5583228 | G196: 1916670 | H196: =D196*G196 -> 23000040 | I196: 28583268 | J196: 637410.63 | K196: 7648927.56 | L196: 2625837.9 | M196: 31510054.8 | N196: 39158982.36
A197: 1.5.8 | B197: Монтаж воздушно-тепловых завес | C197: к-т | D197: 14 | E197: 55208.5 | F197: =D197*E197 -> 772919 | G197: 165823.5 | H197: =D197*G197 -> 2321529 | I197: 3094448 | J197: 46198.46 | K197: 646778.44 | L197: 372209.5 | M197: 5210933 | N197: 5857711.44
A198: 1.5.9 | B198: Прокладка воздуховодов из оцинкованой стали | C198: м2 | D198: 691 | E198: 1875 | F198: =D198*E198 -> 1295625 | G198: 1131.79 | H198: =D198*G198 -> 782066.89 | I198: 2077691.89 | J198: 3758 | K198: 2596778 | L198: 1100 | M198: 760100 | N198: 3356878
A199: 1.5.10 | B199: Теплоснабжение
A200: 1.5.11 | B200: Прокладка трубопроводов теплоснабжения | C200: п.м. | D200: 332.9 | E200: 1475.4 | F200: =D200*E200 -> 491160.66 | G200: 2407.99 | H200: =D200*G200 -> 801619.871 | I200: 1292780.531 | J200: 2887.52 | K200: =D200*J200 -> 961255.408 | L200: 4676.73 | M200: =D200*L200 -> 1556883.417 | N200: =J200*D200+L200*D200 -> 2518138.825
A201: 1.5.12 | B201: Прокладка кабелей системы автоматизации вентиляции | C201: к-т | D201: 1 | E201: 954853.5 | F201: =D201*E201 -> 954853.5 | G201: 928267 | H201: 928267 | I201: 1883120.5 | J201: 1432280.25 | K201: =D201*J201 -> 1432280.25 | L201: 1392401.5 | M201: =D201*L201 -> 1392401.5 | N201: =J201*D201+L201*D201 -> 2824681.75
... 699 more rows

Sheet Справочно объемы ДС2
E1: Себестоимость работ, руб с НДС | G1: Себестоимость материалов, руб с НДС | J1: Стоимость работ, руб. с НДС | L1: Стоимость материалов, руб. с НДС
A2: № | B2: Наименовение | C2: Ед.изм | D2: Кол-во | E2: за ед. | F2: итого | G2: за ед | H2: итого | I2: Итого, руб с НДС | J2: за ед. | K2: Итого | L2: за ед. | M2: Итого | N2: Итого, руб. с НДС
A3: 1 | B3: Основные объекты строительства, реконструкции, капитального ремонта, в том числе:
A4: 1.1 | B4: 130-23-АС3 Архитектурно-строительные решения | F4: =F7+F8+F9+F10+F12+F13+F15+F16+F17+F18+F19+F20+F22+F24+F26+F27+F28+F29+F30+F31+F32+F33+F34+F35+F36+F37+F38+F39+F40+F41+F42+F43+F44+F45+F46+F47+F49+F50+F51+F52+F54+F55+F56+F57+F58+F59+F60+F61+F62+F63+F64+F65+F66+F67+F68+F69 -> 14135887.58 | H4: =H7+H8+H9+H10+H12+H13+H15+H16+H17+H18+H19+H20+H22+H24+H26+H27+H28+H29+H30+H31+H32+H33+H34+H35+H36+H37+H38+H39+H40+H41+H42+H43+H44+H45+H46+H47+H49+H50+H51+H52+H54+H55+H56+H57+H58+H59+H60+H61+H62+H63+H64+H65+H66+H67+H68+H69 -> 19492573.68 | I4: =I7+I8+I9+I10+I12+I13+I15+I16+I17+I18+I19+I20+I22+I24+I26+I27+I28+I29+I30+I31+I32+I33+I34+I35+I36+I37+I38+I39+I40+I41+I42+I43+I44+I45+I46+I47+I49+I50+I51+I52+I54+I55+I56+I57+I58+I59+I60+I61+I62+I63+I64+I65+I66+I67+I68+I69 -> 33628461.26 | K4: =K7+K8+K9+K10+K12+K13+K15+K16+K17+K18+K19+K20+K22+K24+K26+K27+K28+K29+K30+K31+K32+K33+K34+K35+K36+K37+K38+K39+K40+K41+K42+K43+K44+K45+K46+K47+K49+K50+K51+K52+K54+K55+K56+K57+K58+K59+K60+K61+K62+K63+K64+K65+K66+K67+K68 -> 23834068.02 | M4: =M7+M8+M9+M10+M12+M13+M15+M16+M17+M18+M19+M20+M22+M24+M26+M27+M28+M29+M30+M31+M32+M33+M34+M35+M36+M37+M38+M39+M40+M41+M42+M43+M44+M45+M46+M47+M49+M50+M51+M52+M54+M55+M56+M57+M58+M59+M60+M61+M62+M63+M64+M65+M66+M67+M68 -> 21868543.3 | N4: =N7+N8+N9+N10+N12+N13+N15+N16+N17+N18+N19+N20+N22+N24+N26+N27+N28+N29+N30+N31+N32+N33+N34+N35+N36+N37+N38+N39+N40+N41+N42+N43+N44+N45+N46+N47+N49+N50+N51+N52+N54+N55+N56+N57+N58+N59+N60+N61+N62+N63+N64+N65+N66+N67+N68 -> 45702611.32
A5: 1.1 | B5: 130-23-АС3 Архитектурно-строительные решения | F5: =-F7-F8-F9-F10-F12-F13-F15-F16-F17-F18-F19-F20+F21+F23-F26-F27-F28-F29-F30-F31-F32-F33-F34-F35-F36-F37-F38-F39-F40-F41-F42-F43-F44-F45-F46-F47 -> -12449082.62 | H5: =-H7-H8-H9-H10-H12-H13-H15-H16-H17-H18-H19-H20+H21+H23-H26-H27-H28-H29-H30-H31-H32-H33-H34-H35-H36-H37-H38-H39-H40-H41-H42-H43-H44-H45-H46-H47 -> -18624903.9 | I5: =-I7-I8-I9-I10-I12-I13-I15-I16-I17-I18-I19-I20+I21+I23-I26-I27-I28-I29-I30-I31-I32-I33-I34-I35-I36-I37-I38-I39-I40-I41-I42-I43-I44-I45-I46-I47 -> -31073986.51 | K5: =-K7-K8-K9-K10-K12-K13-K15-K16-K17-K18-K19-K20+K21+K23-K26-K27-K28-K29-K30-K31-K32-K33-K34-K35-K36-K37-K38-K39-K40-K41-K42-K43-K44-K45-K46-K47 -> -22129230.51 | M5: =-M7-M8-M9-M10-M12-M13-M15-M16-M17-M18-M19-M20+M21+M23-M26-M27-M28-M29-M30-M31-M32-M33-M34-M35-M36-M37-M38-M39-M40-M41-M42-M43-M44-M45-M46-M47 -> -20718375.27 | N5: =-N7-N8-N9-N10-N12-N13-N15-N16-N17-N18-N19-N20+N21+N23-N26-N27-N28-N29-N30-N31-N32-N33-N34-N35-N36-N37-N38-N39-N40-N41-N42-N43-N44-N45-N46-N47 -> -42847605.78
A6: 1.1.1 | B6: Демонтажные работы
A7: 1.1.1.1 | B7: Частичный демонтаж крестовых связей | C7: тн | D7: 0.44 | E7: 35355 | F7: =E7*D7 -> 15556.2 | G7: 0 | H7: =G7*D7 -> 0 | I7: =H7+F7 -> 15556.2 | J7: 49415 | K7: =D7*J7 -> 21742.6 | L7: 0 | N7: =J7*D7+L7*D7 -> 21742.6
A8: 1.1.1.2 | B8: Демонтаж сэндвич панелей | C8: м2 | D8: 389.4 | E8: 756 | F8: 294386.4 | G8: 0 | H8: 0 | I8: 294386.4 | J8: 990 | K8: =D8*J8 -> 385506 | L8: 0 | N8: =J8*D8+L8*D8 -> 385506
A9: 1.1.2 | B9: Устройство фахверка | C9: тн | D9: 0.34 | E9: 71610 | F9: =E9*D9 -> 24347.4 | G9: 166522 | H9: =G9*D9 -> 56617.48 | I9: =H9+F9 -> 80964.88 | J9: 95478 | K9: =D9*J9 -> 32462.52 | L9: 229000 | M9: =D9*L9 -> 77860 | N9: =J9*D9+L9*D9 -> 110322.52
A10: 1.1.3 | B10: Устройство сэндвич панелей | C10: м2 | D10: 389.4 | E10: 1443.75 | F10: 562196.25 | G10: 4095.3 | H10: 1594709.82 | I10: 2156906.07 | J10: 2711 | K10: =D10*J10 -> 1055663.4 | L10: 6573 | M10: =D10*L10 -> 2559526.2 | N10: =J10*D10+L10*D10 -> 3615189.6
A11: 1.1.4 | B11: Устройство перегородок | J11: 0 | L11: 0
A12: 1.1.4.1 | B12: Перегородки гипсокартонные типа С112 комплексной системы КНАУФ толщиной 100 мм с облицовкой 2мя листами ГКЛ (толщиной 12,5мм) со звукоизолирующим слоем из минераловатных плит Лайт Баттс толщиной 50 мм | C12: м2 | D12: 536 | E12: 1640.1 | F12: =E12*D12 -> 879093.6 | G12: 4250.136 | H12: =G12*D12 -> 2278072.896 | I12: =H12+F12 -> 3157166.496 | J12: 4955 | K12: =D12*J12 -> 2655880 | L12: 4501 | M12: =D12*L12 -> 2412536 | N12: =J12*D12+L12*D12 -> 5068416
A13: 1.1.4.2 | B13: Устройство отверстий под воздуховоды | C13: шт | D13: 2 | E13: 6548 | F13: 13096 | G13: 3582.5 | H13: 7165 | I13: =H13+F13 -> 20261 | J13: 8577.88 | K13: =D13*J13 -> 17155.76 | L13: 4657.25 | M13: =D13*L13 -> 9314.5 | N13: =J13*D13+L13*D13 -> 26470.26
A14: 1.1.5 | B14: Отделка потолков помещений | J14: 0 | L14: 0
A15: 1.1.5.1 | B15: Подвесной потолок системы "Армстронг" | C15: м2 | D15: 301.4 | E15: 863.94 | F15: =E15*D15 -> 260391.516 | G15: 2173.314 | H15: =G15*D15 -> 655036.8396 | I15: =H15+F15 -> 915428.3556 | J15: 3957.07 | K15: =D15*J15 -> 1192660.898 | L15: 0 | N15: =J15*D15+L15*D15 -> 1192660.898
A16: 1.1.5.2 | B16: Подвесной потолок системы с шумоглушением | C16: м2 | D16: 168.8 | E16: 863.94 | F16: 145833.072 | G16: 2347.224 | H16: 396211.4112 | I16: 542044.4832 | J16: 1131.76 | K16: 191041.088 | L16: 3051.39 | M16: =D16*L16 -> 515074.632 | N16: 706115.72
A17: 1.1.5.3 | B17: Реечный алюминиевый потолок | C17: м2 | D17: 111.8 | E17: 1039.5 | F17: 116216.1 | G17: 5020.95 | H17: 561342.21 | I17: 677558.31 | J17: 7888.98 | K17: 881987.964 | L17: 0 | N17: 881987.964
A18: 1.1.5.4 | B18: Затирка бетонной поверхности перекрытия перед устройством потолка | C18: м2 | D18: 206.75 | E18: 866.25 | F18: 179097.1875 | G18: 553.146 | H18: 114362.9355 | I18: 293460.123 | J18: 1134.79 | K18: 234617.8325 | L18: 719.09 | M18: =D18*L18 -> 148671.8575 | N18: 383289.69
A19: 1.1.5.5 | B19: Устроиство базового слоя шпаклевки | C19: м2 | D19: 69.4 | E19: 678 | F19: =E19*D19 -> 47053.2 | G19: 356 | H19: =G19*D19 -> 24706.4 | I19: =H19+F19 -> 71759.6 | J19: 888.18 | K19: 61639.692 | L19: 462.8 | M19: =D19*L19 -> 32118.32 | N19: 93758.012
A20: 1.1.5.6 | B20: Устроиство финишного слоя шпаклевки | C20: м2 | D20: 69.4 | E20: 975 | F20: =E20*D20 -> 67665 | G20: 305.99 | H20: =G20*D20 -> 21235.706 | I20: =H20+F20 -> 88900.706 | J20: 1277.25 | K20: 88641.15 | L20: 397.79 | M20: =D20*L20 -> 27606.626 | N20: 116247.776
A21: 1.1.5.7 | B21: Окраска потолка силикатной краской за 2 раза | C21: м2 | D21: -138.8 | E21: 485.1 | F21: =E21*D21 -> -67331.88 | G21: 569.976 | H21: =G21*D21 -> -79112.6688 | I21: =H21+F21 -> -146444.5488 | J21: 635.48 | K21: =J21*D21 -> -88204.624 | L21: 740.97 | M21: =L21*D21 -> -102846.636 | N21: -191051.26
A22: 1.1.5.7 | B22: Окраска потолка силикатной краской за 2 раза | C22: м2 | D22: 69.4 | E22: 485.1 | F22: =E22*D22 -> 33665.94 | G22: 569.976 | H22: =G22*D22 -> 39556.3344 | I22: =H22+F22 -> 73222.2744 | J22: 635.48 | K22: =D22*J22 -> 44102.312 | L22: 740.97 | M22: =D22*L22 -> 51423.318 | N22: 95525.63
A23: 1.1.5.8 | B23: Грунтовка поверхностей перед окрашиванием | C23: м2 | D23: -138.8 | E23: 57.75 | F23: -8015.7 | G23: 32.538 | H23: -4516.2744 | I23: -12531.9744 | J23: 75.65 | K23: =J23*D23 -> -10500.22 | L23: 42.3 | M23: =L23*D23 -> -5871.24 | N23: -16371.46
A24: 1.1.5.8 | B24: Грунтовка поверхностей перед окрашиванием | C24: м2 | D24: 69.4 | E24: 57.75 | F24: =E24*D24 -> 4007.85 | G24: 32.538 | H24: =G24*D24 -> 2258.1372 | I24: =H24+F24 -> 6265.9872 | J24: 75.65 | K24: =D24*J24 -> 5250.11 | L24: 42.3 | M24: =D24*L24 -> 2935.62 | N24: 8185.73
A25: 1.1.6 | B25: Полы помещений | J25: 0 | L25: 0
A26: 1.1.6.1 | B26: Очистка поверхности от грязи и мусора | C26: м2 | D26: 352.5 | E26: 288.75 | F26: =E26*D26 -> 101784.375 | G26: 56.1 | H26: =G26*D26 -> 19775.25 | I26: =H26+F26 -> 121559.625 | J26: 378 | K26: =D26*J26 -> 133245 | L26: 72.93 | M26: =D26*L26 -> 25707.825 | N26: =J26*D26+L26*D26 -> 158952.825
A27: 1.1.6.2 | B27: Устройство пола из бетона кл. В25 толщиной до 100 мм | C27: м3 | D27: 7.87 | E27: 12127.5 | F27: =E27*D27 -> 95443.425 | G27: 9537 | H27: =G27*D27 -> 75056.19 | I27: =H27+F27 -> 170499.615 | J27: 13208 | K27: 103946.96 | L27: 14998 | M27: 118034.26 | N27: 221981.22
A28: 1.1.6.3 | B28: Керамогранитная плитка | C28: м2 | D28: 187.8 | E28: 1640.1 | F28: =E28*D28 -> 308010.78 | G28: 3023.79 | H28: 567867.762 | I28: 875878.542 | J28: 4772 | K28: 896181.6 | L28: 2131 | M28: 400201.8 | N28: 1296383.4
A29: 1.1.6.4 | B29: Напольная керамическая плитка | C29: м2 | D29: 332.1 | E29: 1640.1 | F29: 544677.21 | G29: 3023.79 | H29: 1004200.659 | I29: 1548877.869 | J29: 2629 | K29: 873090.9 | L29: 3034 | M29: 1007591.4 | N29: 1880682.3
A30: 1.1.6.5 | B30: Коммерческий линолеум (33-34 кл.) | C30: м2 | D30: 121.8 | E30: 540.54 | F30: 65837.772 | G30: 2031.942 | H30: 247490.5356 | I30: 313328.3076 | J30: 708.11 | K30: 86247.798 | L30: 2641.52 | M30: 321737.136 | N30: 407984.934
A31: 1.1.6.6 | B31: Гидроизоляция Гидроизол | C31: м2 | D31: 141.3 | E31: 519.75 | F31: 73440.675 | G31: 833.646 | H31: 117794.1798 | I31: 191234.8548 | J31: 680.87 | K31: 96206.931 | L31: 1083.74 | M31: 153132.462 | N31: 249339.393
A32: 1.1.6.7 | B32: Наливной пол толщиной до 50мм | C32: м2 | D32: 355.6 | E32: 981.75 | F32: 349110.3 | G32: 1869.252 | H32: 664706.0112 | I32: 1013816.311 | J32: 3576 | K32: 1271625.6 | L32: 1630 | M32: 579628 | N32: 1851253.6
A33: 1.1.6.8 | B33: Керамогранитная плитка с шероховатой поверхностью | C33: м2 | D33: 2 | E33: 1640.1 | F33: 3280.2 | G33: 3023.79 | H33: 6047.58 | I33: 9327.78 | J33: 4149 | K33: 8298 | L33: 2131 | M33: 4262 | N33: 12560
A34: 1.1.6.9 | B34: Наливной пол толщиной до 45мм армированный сеткой d4 В500 100х100 | C34: м2 | D34: 141.3 | E34: 1328.25 | F34: =E34*D34 -> 187681.725 | G34: 3714.942 | H34: 524921.3046 | I34: =H34+F34 -> 712603.0296 | J34: 3470 | K34: 490311 | L34: 1590 | M34: 224667 | N34: 714978
A35: 1.1.6.10 | B35: Грунтовка поверхностей перед финишным покрытием | C35: м2 | D35: 1140.6 | E35: 57.75 | F35: 65869.65 | G35: 32.538 | H35: 37112.8428 | I35: =H35+F35 -> 102982.4928 | J35: 75.65 | K35: 86286.39 | L35: 42.3 | M35: 48247.38 | N35: 134533.77
A36: 1.1.7 | B36: Отделка стен помещений | C36: м2 | D36: 1194.52 | E36: 3395.564746 | F36: 4056070 | G36: 2848.02766 | H36: 3402026 | I36: =F36+H36 -> 7458096 | J36: 4448 | K36: 5313224.96 | L36: 3702 | M36: 4422113.04 | N36: 9735338
A37: 1.1.8 | B37: Установка потивопожарных окон | C37: шт | D37: 11 | E37: 18480 | F37: =E37*D37 -> 203280 | G37: 69564 | H37: =G37*D37 -> 765204 | I37: =H37+F37 -> 968484 | J37: 34209 | K37: 376299 | L37: 89433 | M37: 983763 | N37: 1360062
A38: 1.1.9 | B38: Установка внутренних окон | C38: шт | D38: 6 | E38: 18480 | F38: 110880 | G38: 69564 | H38: 417384 | I38: 528264 | J38: 18204 | K38: 109224 | L38: 79865 | M38: 479190 | N38: 588414
A39: 1.1.10 | B39: Установка потивопожарных дверей | C39: шт | D39: 42 | E39: 5197.5 | F39: 218295 | G39: 28384.57 | H39: 1192151.94 | I39: 1410446.94 | J39: 14176 | K39: 595392 | L39: 34900 | M39: 1465800 | N39: 2061192
A40: 1.1.11 | B40: Лестничная клетка | C40: шт | D40: 1 | E40: 384953 | F40: 384953 | G40: 657924 | H40: 657924 | I40: 1042877 | J40: 504288.43 | K40: 504288.43 | L40: 855301.2 | M40: 855301.2 | N40: 1359589.63
A41: 1.1.12 | B41: Устройство перекрытия | C41: м3 | D41: 41.2 | E41: 33850 | F41: =E41*D41 -> 1394620 | G41: 36440 | H41: =D41*G41 -> 1501328 | I41: =H41+F41 -> 2895948 | J41: 44343.5 | K41: 1826952.2 | L41: 47372 | M41: 1951726.4 | N41: 3778678.6
A42: 1.1.13 | B42: Пол АБК | C42: м2 | D42: 387 | E42: 2064.22739 | F42: 798856 | G42: 3364.330749 | H42: 1301996 | I42: =F42+H42 -> 2100852 | J42: 3576 | K42: 1383912 | L42: 3510 | M42: 1358370 | N42: 2742282
A43: 1.1.14 | B43: Прорезка проёмов дверных и оконных | C43: шт | D43: 15 | E43: 19640 | F43: =E43*D43 -> 294600 | G43: 654 | H43: =G43*D43 -> 9810 | I43: =H43+F43 -> 304410 | J43: 25728.4 | K43: 385926 | L43: 850.2 | M43: 12753 | N43: 398679
A44: 1.1.15 | B44: Устройство отверстия на кровле в осях В/32-34 | C44: шт | D44: 1 | E44: 68328 | F44: 68328 | G44: 56296 | H44: 56296 | I44: =H44+F44 -> 124624 | J44: 89509.68 | K44: 89509.68 | L44: 73184.8 | M44: 73184.8 | N44: 162694.48
A45: 1.1.16 | B45: Проходка воздуховодов сквозь кровлю АБК | C45: шт | D45: 12 | E45: 9091.583333 | F45: 109099 | G45: 3491.333333 | H45: 41896 | I45: =F45+H45 -> 150995 | J45: 11909.97 | K45: 142919.64 | L45: 4538.73 | M45: 54464.76 | N45: 197384.4
A46: 1.1.17 | B46: Устройство мк отверстий диам. 400 мм в покрытии здания | C46: шт | D46: 5 | E46: 33457.8 | F46: 167289 | G46: 20235.6 | H46: 101178 | I46: =F46+H46 -> 268467 | J46: 43829.72 | K46: 219148.6 | L46: 26306.28 | M46: 131531.4 | N46: 350680
A47: 1.1.18 | B47: Устройство дверного проёма в стене цеха (пож.выход) | C47: шт | D47: 1 | E47: 167397 | F47: 167397 | G47: 119648 | H47: 119648 | I47: =F47+H47 -> 287045 | J47: 219290.07 | K47: 219290.07 | L47: 155542.4 | M47: 155542.4 | N47: 374832.47
A48: 1.1.19 | B48: Дополнительные работы | J48: 0 | L48: 0
A49: 1.1.19.1 | B49: Обшивка стен Гипсокартон ГКЛ толщиной 12,5 мм в 2 слоя | C49: м2 | D49: 76 | E49: 1640 | F49: =D49*E49 -> 124640 | G49: 2469.6 | H49: =D49*G49 -> 187689.6 | I49: =F49+H49 -> 312329.6 | J49: 2955 | K49: =D49*J49 -> 224580 | L49: 3501 | M49: =D49*L49 -> 266076 | N49: =J49*D49+L49*D49 -> 490656
A50: 1.1.19.2 | B50: Перенос дверных проёмов | C50: шт | D50: 4 | E50: 32079.6 | F50: =D50*E50 -> 128318.4 | G50: 11832 | H50: =D50*G50 -> 47328 | I50: =F50+H50 -> 175646.4 | J50: 42024.27 | K50: =D50*J50 -> 168097.08 | L50: 15381.6 | M50: =D50*L50 -> 61526.4 | N50: =J50*D50+L50*D50 -> 229623.48
A51: 1.1.19.3 | B51: Обрамление оконных проёмов | C51: шт | D51: 11 | E51: 6930 | F51: =D51*E51 -> 76230 | G51: 6900 | H51: =D51*G51 -> 75900 | I51: =F51+H51 -> 152130 | J51: 10938.3 | K51: =D51*J51 -> 120321.3 | L51: 8970 | M51: =D51*L51 -> 98670 | N51: =J51*D51+L51*D51 -> 218991.3
A52: 1.1.19.4 | B52: Демонтаж и монтаж временных ворот | C52: шт | D52: 1 | E52: 56352 | F52: =D52*E52 -> 56352 | G52: 3654 | H52: =D52*G52 -> 3654 | I52: =F52+H52 -> 60006 | J52: 73821.12 | K52: =D52*J52 -> 73821.12 | L52: 4750.2 | M52: =D52*L52 -> 4750.2 | N52: =J52*D52+L52*D52 -> 78571.32
A53: 1.1.20 | B53: Монтаж фасоных элементов | J53: 0 | L53: 0
A54: 1.1.20.1 | B54: Монтаж фасоного элемента Дз-1 | C54: м.п. | D54: 7.45 | E54: 458 | F54: =D54*E54 -> 3412.1 | G54: 1035 | H54: =D54*G54 -> 7710.75 | I54: =F54+H54 -> 11122.85 | J54: 600 | K54: =D54*J54 -> 4470 | L54: 1345.5 | M54: =D54*L54 -> 10023.975 | N54: =J54*D54+L54*D54 -> 14493.975
A55: 1.1.20.2 | B55: Монтаж фасоного элемента Дз-2 | C55: м.п. | D55: 15 | E55: 458 | F55: 6870 | G55: 522 | H55: 7830 | I55: 14700 | J55: 600 | K55: 9000 | L55: 678.6 | M55: 10179 | N55: 19179
A56: 1.1.20.3 | B56: Монтаж фасоного элемента Дз-3 | C56: м.п. | D56: 64 | E56: 458 | F56: 29312 | G56: 391 | H56: 25024 | I56: 54336 | J56: 600 | K56: 38400 | L56: 508.3 | M56: 32531.2 | N56: 70931.2
A57: 1.1.20.4 | B57: Монтаж фасоного элемента Дз-4 | C57: м.п. | D57: 64 | E57: 458 | F57: 29312 | G57: 378 | H57: 24192 | I57: 53504 | J57: 600 | K57: 38400 | L57: 491.4 | M57: 31449.6 | N57: 69849.6
A58: 1.1.20.5 | B58: Монтаж фасоного элемента Дз-5 | C58: м.п. | D58: 64 | E58: 458 | F58: 29312 | G58: 435 | H58: 27840 | I58: 57152 | J58: 600 | K58: 38400 | L58: 565.5 | M58: 36192 | N58: 74592
A59: 1.1.20.6 | B59: Монтаж колонн (усиление перегородок) | C59: шт | D59: 7 | E59: 27836 | F59: 194852 | G59: 6870 | H59: 48090 | I59: 242942 | J59: 36465 | K59: 255255 | L59: 8931 | M59: 62517 | N59: 317772
A60: 1.1.20.7 | B60: Демонтаж ГКЛ 2 слоя | C60: м2 | D60: 36 | E60: 890 | F60: 32040 | I60: 32040 | J60: 1166 | K60: 41976 | L60: 0 | N60: 41976
A61: 1.1.20.8 | B61: Монтаж профильной трубы 40х40 | C61: м.п. | D61: 12 | E61: 690 | F61: 8280 | G61: 348 | H61: =D61*G61 -> 4176 | I61: 12456 | J61: 904 | K61: 10848 | L61: 453 | M61: =D61*L61 -> 5436 | N61: 16284
A62: 1.1.20.9 | B62: Монтаж ГКЛ 2 слоя | C62: м2 | D62: 36 | E62: 1290 | F62: 46440 | G62: 1250 | H62: 45000 | I62: 91440 | J62: 1690 | K62: 60840 | L62: 1625 | M62: 58500 | N62: 119340
A63: 1.1.20.10 | B63: Увеличение дверных проёмов | C63: шт | D63: 12 | E63: 5790 | F63: 69480 | G63: 1320 | H63: 15840 | I63: 85320 | J63: 7585 | K63: 91020 | L63: 1716 | M63: 20592 | N63: 111612
A64: 1.1.20.11 | B64: Наливной пол толщиной до 50мм | C64: м2 | D64: 125.1 | E64: 981.75 | F64: 122816.925 | G64: 1869.25 | H64: 233843.175 | I64: 356660.1 | J64: 1286 | K64: 160878.6 | L64: 2430 | M64: 303993 | N64: 464871.6
A65: 1.1.20.12 | B65: Усиление площадки лестничного марша | C65: шт | D65: 4 | E65: 27836 | F65: 111344 | G65: 5787.6 | H65: 23150.4 | I65: 134494.4 | J65: 36465 | K65: 145860 | L65: 7524 | M65: 30096 | N65: 175956
A66: 1.1.20.13 | B66: Устройство стен из газобетонных блоков | C66: м3 | D66: 1.87 | E66: 5197.5 | F66: 9719.325 | G66: 10659 | H66: 19932.33 | I66: 29651.655 | J66: 6809 | K66: 12732.83 | L66: 13857 | M66: 25912.59 | N66: 38645.42
A67: 1.1.20.14 | B67: Облицовка ступеней плиткой на лестнечной клетке | C67: шт | D67: 24 | E67: 2832 | F67: 67968 | G67: 1956 | H67: 46944 | I67: 114912 | J67: 3710 | K67: 89040 | L67: 2543 | M67: 61032 | N67: 150072
A68: 1.1.20.15 | B68: Штукатурка откосов Ролл ворот в цеху | C68: м.п. | D68: 150 | E68: 865.2 | F68: 129780 | G68: 435.6 | H68: 65340 | I68: 195120 | J68: 1135 | K68: 170250 | L68: 567 | M68: 85050 | N68: 255300
A69: 1.1.20.16 | B69: Аренда автовышки 28 м | C69: час | D69: 128 | E69: 3500 | F69: 448000 | I69: 448000
A70: 1.2 | B70: 130-23-АС1 Архитектурно-строительные решения | F70: =F74+F76+F79+F81+F82+F91+F93+F96 -> 7119500.6 | H70: =H74+H76+H79+H81+H82+H91+H93+H96 -> 11639486.72 | I70: =I74+I76+I79+I81+I82+I91+I93+I96 -> 18758987.32 | K70: =K74+K76+K79+K81+K82+K91+K93+K96 -> 9370353.48 | M70: =M74+M76+M79+M81+M82+M91+M93+M96 -> 19579106 | N70: =N74+N76+N79+N81+N82+N91+N93+N96 -> 28949459.48
A71: 1.2 | B71: 130-23-АС1 Архитектурно-строительные решения | F71: =F73+F75+F78+F83+F84+F85+F86+F88+F90+F92+F95+F98+F97 -> -11411496.8 | H71: =H73+H75+H78+H83+H84+H85+H86+H88+H90+H92+H95+H98+H97 -> -15173009.39 | I71: =I73+I75+I78+I83+I84+I85+I86+I88+I90+I92+I95+I98+I97 -> -26584506.19 | K71: =K73+K75+K78+K83+K84+K85+K86+K88+K90+K92+K95+K98+K97 -> -11518228.36 | M71: =M73+M75+M78+M83+M84+M85+M86+M88+M90+M92+M95+M98+M97 -> -20862916.99 | N71: =N73+N75+N78+N83+N84+N85+N86+N88+N90+N92+N95+N98+N97 -> -32381145.35
A72: 1.2.1 | B72: Металлоконструкции огрунтованные КМ
A73: 1.2.1.1 | B73: Монтаж фахверковых стоек массой до 1,0 т. | C73: т. | D73: -13.9 | E73: 53800 | F73: =D73*E73 -> -747820 | G73: 195000 | H73: =D73*G73 -> -2710500 | I73: =F73+H73 -> -3458320 | J73: 95478 | K73: =J73*D73 -> -1327144.2 | L73: 229000 | M73: =L73*D73 -> -3183100 | N73: =J73*D73+L73*D73 -> -4510244.2
A74: 1.2.1.1 | B74: Монтаж фахверковых стоек массой до 1,0 т. | C74: т. | D74: 10.5 | E74: 68400 | F74: 718200 | G74: 195000 | H74: 2047500 | I74: 2765700 | J74: 95478 | K74: =D74*J74 -> 1002519 | L74: 229000 | M74: =D74*L74 -> 2404500 | N74: =J74*D74+L74*D74 -> 3407019
A75: 1.2.1.2 | B75: Монтаж распорок, ригелей, в том числе: Профили стальные гнутые замкнутые квадратные 100х3 | C75: т. | D75: -0.67 | E75: 53800 | F75: -36046 | G75: 195000 | H75: -130650 | I75: -166696 | J75: 95478 | K75: =J75*D75 -> -63970.26 | L75: 229000 | M75: =L75*D75 -> -153430 | N75: =J75*D75+L75*D75 -> -217400.26
A76: 1.2.1.2 | B76: Монтаж распорок, ригелей, в том числе: Профили стальные гнутые замкнутые квадратные 100х4 | C76: т. | D76: 0.66 | E76: 69940 | F76: 46160.4 | G76: 195000 | H76: 128700 | I76: 174860.4 | J76: 95478 | K76: =D76*J76 -> 63015.48 | L76: 229000 | M76: =D76*L76 -> 151140 | N76: =J76*D76+L76*D76 -> 214155.48
A77: 1.2.2 | B77: Окраска металлоконструкций
A78: 1.2.2.1 | B78: Устройство огнезащитной краски по металлу | C78: м2 | D78: -439.29 | E78: 1920 | F78: =D78*E78 -> -843436.8 | G78: 1211 | H78: =G78*D78 -> -531980.19 | I78: =H78+F78 -> -1375416.99 | J78: 4150 | K78: =J78*D78 -> -1823053.5 | L78: 665 | M78: =L78*D78 -> -292127.85 | N78: =J78*D78+L78*D78 -> -2115181.35
A79: 1.2.2.1 | B79: Устройство огнезащитной краски по металлу | C79: м2 | D79: 384.2 | E79: 2400 | F79: =D79*E79 -> 922080 | G79: 956 | H79: =D79*G79 -> 367295.2 | I79: =F79+H79 -> 1289375.2 | J79: 4150 | K79: =D79*J79 -> 1594430 | L79: 665 | M79: =D79*L79 -> 255493 | N79: =J79*D79+L79*D79 -> 1849923
A80: 1.2.3 | B80: Крепление металлоконструкций
A81: 1.2.3.1 | B81: Сверление отверстий в железобетонных конструкциях | C81: шт. | D81: 811 | E81: 300 | F81: =D81*E81 -> 243300 | I81: =F81+H81 -> 243300 | J81: 393 | K81: =D81*J81 -> 318723 | L81: 0 | N81: =J81*D81+L81*D81 -> 318723
A82: 1.2.3.2 | B82: Устройство высокопрочных анкеров, закладных | C82: компл. | D82: 1 | E82: 199039.2 | F82: =D82*E82 -> 199039.2 | G82: 199703.52 | H82: =D82*G82 -> 199703.52 | I82: =F82+H82 -> 398742.72 | J82: 260741 | K82: =D82*J82 -> 260741 | L82: 259614 | M82: =D82*L82 -> 259614 | N82: 520355
A83: 1.2.3.3 | B83: Химический анкер, шпилька М16х190 | C83: шт. | D83: -71 | E83: 540 | F83: =D83*E83 -> -38340 | G83: 1008 | H83: =D83*G83 -> -71568 | I83: =F83+H83 -> -109908 | J83: 707.4 | K83: =J83*D83 -> -50225.4 | L83: 1310.4 | M83: =L83*D83 -> -93038.4 | N83: -143263.8
A84: 1.2.3.4 | B84: Распорный анкер типа Hilti HSA M12х115 | C84: шт. | D84: -350 | E84: 180 | F84: =D84*E84 -> -63000 | G84: 251 | H84: =D84*G84 -> -87850 | I84: =F84+H84 -> -150850 | J84: 235.8 | K84: =J84*D84 -> -82530 | L84: 326.35 | M84: =L84*D84 -> -114222.5 | N84: -196752.5
A85: 1.2.3.5 | B85: Распорный анкер типа Hilti HSA M10х83 | C85: шт. | D85: -260 | E85: 144 | F85: -37440 | G85: 379 | H85: -98540 | I85: -135980 | J85: 188.64 | K85: =J85*D85 -> -49046.4 | L85: 492.96 | M85: =L85*D85 -> -128169.6 | N85: -177216
A86: 1.2.3.6 | B86: Распорный анкер типа Hilti HSA M6х50 | C86: шт. | D86: -130 | E86: 120 | F86: -15600 | G86: 393 | H86: -51090 | I86: -66690 | J86: 157.2 | K86: =J86*D86 -> -20436 | L86: 510.84 | M86: =L86*D86 -> -66409.2 | N86: -86845.2
A87: 1.2.4 | B87: Демонтаж металлоконструкций
A88: 1.2.4.1 | B88: Демонтаж элементов тормозных ферм и связей с последующей приваркой к фахверку и окраской | C88: т. | D88: -1 | E88: 79000 | F88: =E88*D88 -> -79000 | G88: 5000 | H88: =D88*G88 -> -5000 | I88: =F88+H88 -> -84000 | J88: 103490 | K88: =J88*D88 -> -103490 | L88: 6500 | M88: =L88*D88 -> -6500 | N88: =J88*D88+L88*D88 -> -109990
A89: 1.2.5 | B89: Устройство перегородки
A90: 1.2.5.1 | B90: Стеновые сэндвич-панели «Металл Профиль» МП ТСП-Z-100-1000-Г-Г-МВ | C90: м2 | D90: -2230.6 | E90: 3595 | F90: =D90*E90 -> -8019007 | G90: 5056 | H90: =D90*G90 -> -11277913.6 | I90: =F90+H90 -> -19296920.6 | J90: 2711 | K90: =J90*D90 -> -6047156.6 | L90: 7373 | M90: =L90*D90 -> -16446213.8 | N90: =J90*D90+L90*D90 -> -22493370.4
A91: 1.2.5.1 | B91: Стеновые сэндвич-панели 100-1000-Г-Г | C91: м2 | D91: 2215 | E91: 2237 | F91: =D91*E91 -> 4954955 | G91: 3967.398646 | H91: =D91*G91 -> 8787788 | I91: =F91+H91 -> 13742743 | J91: 2711 | K91: =D91*J91 -> 6004865 | L91: 7373 | M91: =D91*L91 -> 16331195 | N91: =J91*D91+L91*D91 -> 22336060
A92: 1.2.5.2 | B92: Устройство противопожарной перегородки «Knauf» С112 с двухслойной обшивкой с каждой стороны | C92: м2 | D92: -20.2 | E92: 6785 | F92: =E92*D92 -> -137057 | G92: 3500 | H92: =D92*G92 -> -70700 | I92: =H92+F92 -> -207757 | J92: 5055 | K92: =J92*D92 -> -102111 | L92: 4601 | M92: =L92*D92 -> -92940.2 | N92: =J92*D92+L92*D92 -> -195051.2
A93: 1.2.5.2 | B93: Устройство противопожарной перегородки «Knauf» С112 с двухслойной обшивкой с каждой стороны | C93: м2 | D93: 4 | E93: 4500 | F93: =D93*E93 -> 18000 | G93: 3500 | H93: =D93*G93 -> 14000 | I93: =H93+F93 -> 32000 | J93: 5055 | K93: =D93*J93 -> 20220 | L93: 4601 | M93: =D93*L93 -> 18404 | N93: =J93*D93+L93*D93 -> 38624
A94: 1.2.6 | B94: Устройство бетонного плинтуса
A95: 1.2.6.1 | B95: Устройство плинтуса из бетона кл. В25 | C95: м3 | D95: -7.6 | E95: 24000 | F95: =D95*E95 -> -182400 | G95: 7476 | H95: =D95*G95 -> -56817.6 | I95: =F95+H95 -> -239217.6 | J95: 39300 | K95: =J95*D95 -> -298680 | L95: 23774.4 | M95: =L95*D95 -> -180685.44 | N95: =J95*D95+L95*D95 -> -479365.44
A96: 1.2.6.1 | B96: Устройство плинтуса из фасонного элемента | C96: м/п | D96: 378 | E96: 47 | F96: 17766 | G96: 250 | H96: =D96*G96 -> 94500 | I96: =H96+F96 -> 112266 | J96: 280 | K96: =D96*J96 -> 105840 | L96: 420 | M96: =D96*L96 -> 158760 | N96: =J96*D96+L96*D96 -> 264600
A97: 1.2.6.2 | B97: Шлифовка бетонной поверхности | C97: м2 | D97: -115 | E97: 890 | F97: =D97*E97 -> -102350 | I97: =F97+H97 -> -102350 | J97: 1179 | K97: =J97*D97 -> -135585 | L97: 0 | M97: =L97*D97 -> 0 | N97: =J97*D97+L97*D97 -> -135585
A98: 1.2.6.3 | B98: Арматура Ø10А500С | C98: п/м | D98: -600 | E98: 1850 | F98: =D98*E98 -> -1110000 | G98: 134 | H98: =D98*G98 -> -80400 | I98: =F98+H98 -> -1190400 | J98: 2358 | K98: =J98*D98 -> -1414800 | L98: 176.8 | M98: =L98*D98 -> -106080 | N98: =J98*D98+L98*D98 -> -1520880
A99: 1.3 | B99: 130-23-ВК Внутренние трубопроводы | F99: =SUM(F100:F103) -> 3010200 | H99: =SUM(H100:H103) -> 5727056.64 | I99: =SUM(I100:I103) -> 8737256.64 | K99: =SUM(K100:K103) -> 3943362 | M99: =SUM(M100:M103) -> 7445174 | N99: =SUM(N100:N103) -> 11388536
A100: 1.3.1 | B100: Хозяйственно-питьевой водопровод В1. | C100: сис | D100: 1 | E100: 695100 | F100: =D100*E100 -> 695100 | G100: 753743.52 | H100: =D100*G100 -> 753743.52 | I100: =H100+F100 -> 1448843.52 | J100: 910581 | K100: =D100*J100 -> 910581 | L100: 979867 | M100: =D100*L100 -> 979867 | N100: =J100*D100+L100*D100 -> 1890448
A101: 1.3.2 | B101: Горячее водоснабжение (Т3, Т4) | C101: сис | D101: 1 | E101: 868200 | F101: =D101*E101 -> 868200 | G101: 1236673.44 | H101: =D101*G101 -> 1236673.44 | I101: =H101+F101 -> 2104873.44 | J101: 1137342 | K101: =D101*J101 -> 1137342 | L101: 1607675 | M101: =D101*L101 -> 1607675 | N101: =J101*D101+L101*D101 -> 2745017
A102: 1.3.3 | B102: Противопожарный водопровод, В2 | C102: сис | D102: 1 | E102: 1179600 | F102: 1179600 | G102: 3168026.88 | H102: 3168026.88 | I102: 4347626.88 | J102: 1545276 | K102: =D102*J102 -> 1545276 | L102: 4118435 | M102: =D102*L102 -> 4118435 | N102: =J102*D102+L102*D102 -> 5663711
A103: 1.3.4 | B103: Бытовая канализация К1 | C103: сис | D103: 1 | E103: 267300 | F103: 267300 | G103: 568612.8 | H103: 568612.8 | I103: 835912.8 | J103: 350163 | K103: =D103*J103 -> 350163 | L103: 739197 | M103: =D103*L103 -> 739197 | N103: =J103*D103+L103*D103 -> 1089360
A104: 1.4 | B104: 130-23-ПС Пожарная сигнализация | F104: =F106+F108+F110+F112+F114+F115+F117+F119+F121+F123+SUM(F125:F131)+F133+F134+F136+F138+F140+F142+F144+F145+F146+F147+F149+F150+F151+F152+F153+F154+F155+F156+F158+F160+F162+F164+F166+SUM(F167:F178)+F180+F182+F183+F185+F187+F189+F191+F192+F194+F196+F198+F200+F202+F204+F205+SUM(F207:F221) -> 4558048 | H104: =H106+H108+H110+H112+H114+H115+H117+H119+H121+H123+SUM(H125:H131)+H133+H134+H136+H138+H140+H142+H144+H145+H146+H147+H149+H150+H151+H152+H153+H154+H155+H156+H158+H160+H162+H164+H166+SUM(H167:H178)+H180+H182+H183+H185+H187+H189+H191+H192+H194+H196+H198+H200+H202+H204+H205+SUM(H207:H221) -> 4703641.86 | I104: =I106+I108+I110+I112+I114+I115+I117+I119+I121+I123+SUM(I125:I131)+I133+I134+I136+I138+I140+I142+I144+I145+I146+I147+I149+I150+I151+I152+I153+I154+I155+I156+I158+I160+I162+I164+I166+SUM(I167:I178)+I180+I182+I183+I185+I187+I189+I191+I192+I194+I196+I198+I200+I202+I204+I205+SUM(I207:I221) -> 9261689.86 | K104: =K106+K108+K110+K112+K114+K115+K117+K119+K121+K123+SUM(K125:K131)+K133+K134+K136+K138+K140+K142+K144+K145+K146+K147+K149+K150+K151+K152+K153+K154+K155+K156+K158+K160+K162+K164+K166+SUM(K167:K178)+K180+K182+K183+K185+K187+K189+K191+K192+K194+K196+K198+K200+K202+K204+K205+SUM(K207:K221) -> 5322981.7 | M104: =M106+M108+M110+M112+M114+M115+M117+M119+M121+M123+SUM(M125:M131)+M133+M134+M136+M138+M140+M142+M144+M145+M146+M147+M149+M150+M151+M152+M153+M154+M155+M156+M158+M160+M162+M164+M166+SUM(M167:M178)+M180+M182+M183+M185+M187+M189+M191+M192+M194+M196+M198+M200+M202+M204+M205+SUM(M207:M221) -> 6114731.3 | N104: =N106+N108+N110+N112+N114+N115+N117+N119+N121+N123+SUM(N125:N131)+N133+N134+N136+N138+N140+N142+N144+N145+N146+N147+N149+N150+N151+N152+N153+N154+N155+N156+N158+N160+N162+N164+N166+SUM(N167:N178)+N180+N182+N183+N185+N187+N189+N191+N192+N194+N196+N198+N200+N202+N204+N205+SUM(N207:N221) -> 11437713
A105: 1.4 | B105: 130-23-ПС Пожарная сигнализация | F105: =-F106+F107+F109+F111-F112+F113-F115+F116+F118+F120+F122+F124-F130-F131+F132-F134+F135+F137+F139+F141+F143-F147+F148+F223-F154-F155-F156+F157+F159+F161+F163+F165+F222+F224+F225+F226+F179+F181+F227+F184+F186+F188+F190+F228+F193+F195+F229+F197+F199+F201+F203 -> -2042900 | H105: =-H106+H107+H109+H111-H112+H113-H115+H116+H118+H120+H122+H124-H130-H131+H132-H134+H135+H137+H139+H141+H143-H147+H148+H223-H154-H155-H156+H157+H159+H161+H163+H165+H222+H224+H225+H226+H179+H181+H227+H184+H186+H188+H190+H228+H193+H195+H229+H197+H199+H201+H203 -> -3107161.04 | I105: =-I106+I107+I109+I111-I112+I113-I115+I116+I118+I120+I122+I124-I130-I131+I132-I134+I135+I137+I139+I141+I143-I147+I148+I223-I154-I155-I156+I157+I159+I161+I163+I165+I222+I224+I225+I226+I179+I181+I227+I184+I186+I188+I190+I228+I193+I195+I229+I197+I199+I201+I203 -> -5150061.04 | K105: =-K106+K107+K109+K111-K112+K113-K115+K116+K118+K120+K122+K124-K130-K131+K132-K134+K135+K137+K139+K141+K143-K147+K148+K223-K154-K155-K156+K157+K159+K161+K163+K165+K222+K224+K225+K226+K179+K181+K227+K184+K186+K188+K190+K228+K193+K195+K229+K197+K199+K201+K203 -> -2676199 | M105: =-M106+M107+M109+M111-M112+M113-M115+M116+M118+M120+M122+M124-M130-M131+M132-M134+M135+M137+M139+M141+M143-M147+M148+M223-M154-M155-M156+M157+M159+M161+M163+M165+M222+M224+M225+M226+M179+M181+M227+M184+M186+M188+M190+M228+M193+M195+M229+M197+M199+M201+M203 -> -4039322.56 | N105: =-N106+N107+N109+N111-N112+N113-N115+N116+N118+N120+N122+N124-N130-N131+N132-N134+N135+N137+N139+N141+N143-N147+N148+N223-N154-N155-N156+N157+N159+N161+N163+N165+N222+N224+N225+N226+N179+N181+N227+N184+N186+N188+N190+N228+N193+N195+N229+N197+N199+N201+N203 -> -6715521.56
A106: 1.4.1 | B106: Сервер "Орион Про" | C106: компл. | D106: 1 | E106: 38400 | F106: =D106*E106 -> 38400 | G106: 0 | H106: =G106*D106 -> 0 | I106: =F106+H106 -> 38400 | J106: 50304 | K106: =D106*J106 -> 50304 | L106: 0 | N106: =J106*D106+L106*D106 -> 50304
A107: 1.4.2 | B107: Шкаф пожарной сигнализации | C107: шт. | D107: -2 | E107: 4200 | F107: =D107*E107 -> -8400 | G107: 28173.6 | H107: =G107*D107 -> -56347.2 | I107: =F107+H107 -> -64747.2 | J107: 5502 | K107: =J107*D107 -> -11004 | L107: 36625.68 | M107: =L107*D107 -> -73251.36 | N107: -84255.36
A108: 1.4.2 | B108: Шкаф пожарной сигнализации | C108: шт. | D108: 4 | E108: 4200 | F108: 16800 | G108: 28173.6 | H108: 112694.4 | I108: 129494.4 | J108: 5502 | K108: =D108*J108 -> 22008 | L108: 36625.68 | M108: =D108*L108 -> 146502.72 | N108: 168510.72
A109: 1.4.3 | B109: Монтажный комплект | C109: шт. | D109: -1 | E109: 1800 | F109: =D109*E109 -> -1800 | G109: 1120 | H109: =G109*D109 -> -1120 | I109: =F109+H109 -> -2920 | J109: 2358 | K109: =J109*D109 -> -2358 | L109: 1456 | M109: =L109*D109 -> -1456 | N109: -3814
A110: 1.4.3 | B110: Монтажный комплект | C110: шт. | D110: 4 | E110: 1800 | F110: 7200 | G110: 1120 | H110: 4480 | I110: 11680 | J110: 2358 | K110: =D110*J110 -> 9432 | L110: 1456 | M110: =D110*L110 -> 5824 | N110: 15256
A111: 1.4.4 | B111: Шкаф металлический с монтажной платой | C111: шт. | D111: -1 | E111: 4200 | F111: -4200 | G111: 12100 | H111: -12100 | I111: -16300 | J111: 5502 | K111: =J111*D111 -> -5502 | L111: 15730 | M111: =L111*D111 -> -15730 | N111: -21232
A112: 1.4.4 | B112: Прибор приемно-контрольный и управления пожарный | C112: шт. | D112: 1 | E112: 4200 | F112: 4200 | G112: 32333.6 | H112: 32333.6 | I112: 36533.6 | J112: 5502 | K112: =D112*J112 -> 5502 | L112: 42033.68 | M112: =D112*L112 -> 42033.68 | N112: 47535.68
A113: 1.4.5 | B113: Аккумулятор 12 В, 17 А/ч | C113: шт. | D113: -6 | E113: 400 | F113: =D113*E113 -> -2400 | G113: 5668 | H113: =G113*D113 -> -34008 | I113: =F113+H113 -> -36408 | J113: 524 | K113: =J113*D113 -> -3144 | L113: 7368.4 | M113: =L113*D113 -> -44210.4 | N113: -47354.4
A114: 1.4.5 | B114: Аккумулятор 12 В, 17 А/ч | C114: шт. | D114: 10 | E114: 400 | F114: 4000 | G114: 5668 | H114: 56680 | I114: 60680 | J114: 524 | K114: =D114*J114 -> 5240 | L114: 7368.4 | M114: =D114*L114 -> 73684 | N114: 78924
A115: 1.4.6 | B115: Пульт контроля и управления | C115: шт. | D115: 1 | E115: 2600 | F115: 2600 | G115: 11375.52 | H115: 11375.52 | I115: 13975.52 | J115: 3406 | K115: =D115*J115 -> 3406 | L115: 14788.18 | M115: =D115*L115 -> 14788.18 | N115: 18194.18
A116: 1.4.7 | B116: Контроллер двухпроводной линиии связи | C116: шт. | D116: -2 | E116: 2600 | F116: -5200 | G116: 5006.04 | H116: -10012.08 | I116: -15212.08 | J116: 3406 | K116: =J116*D116 -> -6812 | L116: 6507.85 | M116: =L116*D116 -> -13015.7 | N116: -19827.7
A117: 1.4.7 | B117: Контроллер двухпроводной линиии связи | C117: шт. | D117: 11 | E117: 2600 | F117: 28600 | G117: 5006.04 | H117: 55066.44 | I117: 83666.44 | J117: 3406 | K117: =D117*J117 -> 37466 | L117: 6507.85 | M117: =D117*L117 -> 71586.35 | N117: 109052.35
A118: 1.4.8 | B118: Блок контрольно-пусковой | C118: шт. | D118: -1 | E118: 2600 | F118: -2600 | G118: 4564.56 | H118: -4564.56 | I118: -7164.56 | J118: 3406 | K118: =J118*D118 -> -3406 | L118: 5933.93 | M118: =L118*D118 -> -5933.93 | N118: -9339.93
A119: 1.4.8 | B119: Блок контрольно-пусковой | C119: шт. | D119: 4 | E119: 2600 | F119: 10400 | G119: 4564.56 | H119: 18258.24 | I119: 28658.24 | J119: 3406 | K119: =D119*J119 -> 13624 | L119: 5933.93 | M119: =D119*L119 -> 23735.72 | N119: 37359.72
A120: 1.4.9 | B120: Извещатель пожарный дымовой оптико-электронный аналого-адресный | C120: шт. | D120: -71 | E120: 1200 | F120: -85200 | G120: 1901.8 | H120: -135027.8 | I120: -220227.8 | J120: 1572 | K120: =J120*D120 -> -111612 | L120: 2472.34 | M120: =L120*D120 -> -175536.14 | N120: -287148.14
A121: 1.4.9 | B121: Извещатель пожарный дымовой оптико-электронный аналого-адресный | C121: шт. | D121: 137 | E121: 1200 | F121: 164400 | G121: 1901.8 | H121: 260546.6 | I121: 424946.6 | J121: 1572 | K121: =D121*J121 -> 215364 | L121: 2472.34 | M121: =D121*L121 -> 338710.58 | N121: 554074.58
A122: 1.4.10 | B122: Извещатель пожарный линейный однопозиционный адресный | C122: шт. | D122: -26 | E122: 3400 | F122: -88400 | G122: 28860 | H122: -750360 | I122: -838760 | J122: 4454 | K122: =J122*D122 -> -115804 | L122: 37518 | M122: =L122*D122 -> -975468 | N122: -1091272
A123: 1.4.10 | B123: Извещатель пожарный линейный однопозиционный адресный | C123: шт. | D123: 24 | E123: 3400 | F123: 81600 | G123: 28860 | H123: 692640 | I123: 774240 | J123: 4454 | K123: =D123*J123 -> 106896 | L123: 37518 | M123: =D123*L123 -> 900432 | N123: 1007328
A124: 1.4.11 | B124: Извещатель пожарный ручной адресный | C124: шт. | D124: -20 | E124: 1200 | F124: -24000 | G124: 1121.8 | H124: -22436 | I124: -46436 | J124: 1572 | K124: =J124*D124 -> -31440 | L124: 1458.34 | M124: =L124*D124 -> -29166.8 | N124: -60606.8
A125: 1.4.11 | B125: Извещатель пожарный ручной адресный | C125: шт. | D125: 15 | E125: 1200 | F125: 18000 | G125: 1121.8 | H125: 16827 | I125: =F125+H125 -> 34827 | J125: 1572 | K125: =D125*J125 -> 23580 | L125: 1458.34 | M125: =D125*L125 -> 21875.1 | N125: 45455.1
A126: 1.4.12 | B126: Аккумулятор 12 В, 40 А/ч | C126: шт. | D126: 4 | E126: 400 | F126: =D126*E126 -> 1600 | G126: 6304.92 | H126: =D126*G126 -> 25219.68 | I126: =H126+F126 -> 26819.68 | J126: 524 | K126: 2096 | L126: 8196.4 | M126: 32785.6 | N126: 34881.6
A127: 1.4.13 | B127: Источник питания резервированный | C127: шт. | D127: 4 | E127: 3000 | F127: =D127*E127 -> 12000 | G127: 12612.36 | H127: =D127*G127 -> 50449.44 | I127: =H127+F127 -> 62449.44 | J127: 3930 | K127: 15720 | L127: 16396.07 | M127: 65584.28 | N127: 81304.28
A128: 1.4.14 | B128: Аккумулятор 12 В, 7 А/ч | C128: шт. | D128: 4 | E128: 400 | F128: =D128*E128 -> 1600 | G128: 2407 | H128: =D128*G128 -> 9628 | I128: =H128+F128 -> 11228 | J128: 524 | K128: 2096 | L128: 3129.1 | M128: 12516.4 | N128: 14612.4
A129: 1.4.15 | B129: Блок контроля и индикации | C129: шт. | D129: 2 | E129: 3000 | F129: =D129*E129 -> 6000 | G129: 9024.14 | H129: =D129*G129 -> 18048.28 | I129: =H129+F129 -> 24048.28 | J129: 3930 | K129: 7860 | L129: 11731.38 | M129: 23462.76 | N129: 31322.76
A130: 1.4.16 | B130: Блок разветвительно-изолирующий | C130: шт. | D130: 4 | E130: 1000 | F130: 4000 | G130: 641.16 | H130: 2564.64 | I130: 6564.64 | J130: 1310 | K130: 5240 | L130: 833.51 | M130: 3334.04 | N130: 8574.04
A131: 1.4.17 | B131: Преобразователь интерфейсов | C131: шт. | D131: 4 | E131: 3200 | F131: 12800 | G131: 11575.2 | H131: 46300.8 | I131: 59100.8 | J131: 4192 | K131: 16768 | L131: 15047.76 | M131: 60191.04 | N131: 76959.04
A132: 1.4.18 | B132: Патч-корд волоконно-оптический LC/UPC-LC/UPC 50 м | C132: шт. | D132: -4 | E132: 300 | F132: -1200 | G132: 2412.24 | H132: -9648.96 | I132: -10848.96 | J132: 393 | K132: =J132*D132 -> -1572 | L132: 3135.91 | M132: =L132*D132 -> -12543.64 | N132: -14115.64
A133: 1.4.18 | B133: Патч-корд волоконно-оптический LC/UPC-LC/UPC 50 м | C133: шт. | D133: 4 | E133: 300 | F133: 1200 | G133: 2825.04 | H133: 11300.16 | I133: 12500.16 | J133: 393 | K133: =D133*J133 -> 1572 | L133: 3672.55 | M133: =D133*L133 -> 14690.2 | N133: 16262.2
A134: 1.4.19 | B134: Патч-корд волоконно-оптический LC/UPC-LC/UPC 1 м | C134: шт. | D134: 4 | E134: 300 | F134: 1200 | G134: 790 | H134: 3160 | I134: 4360 | J134: 393 | K134: =D134*J134 -> 1572 | L134: 1027 | M134: =D134*L134 -> 4108 | N134: 5680
A135: 1.4.20 | B135: Устройство коммутационное | C135: шт. | D135: -20 | E135: 2600 | F135: =D135*E135 -> -52000 | G135: 1365 | H135: =G135*D135 -> -27300 | I135: =F135+H135 -> -79300 | J135: 3406 | K135: =J135*D135 -> -68120 | L135: 1774.5 | M135: =L135*D135 -> -35490 | N135: -103610
A136: 1.4.20 | B136: Устройство коммутационное | C136: шт. | D136: 24 | E136: 2600 | F136: 62400 | G136: 1365 | H136: 32760 | I136: 95160 | J136: 3406 | K136: =D136*J136 -> 81744 | L136: 1774.5 | M136: =D136*L136 -> 42588 | N136: 124332
A137: 1.4.21 | B137: Оповещатель охранно-пожарный световой (табло) | C137: шт. | D137: -5 | E137: 1200 | F137: -6000 | G137: 368 | H137: -1840 | I137: -7840 | J137: 1572 | K137: =J137*D137 -> -7860 | L137: 478.4 | M137: =L137*D137 -> -2392 | N137: -10252
A138: 1.4.22 | B138: Оповещатель охранно-пожарный световой (табло) ЛЮКС-24 "Выход" | C138: шт. | D138: 10 | E138: 1200 | F138: 12000 | G138: 368 | H138: 3680 | I138: 15680 | J138: 1572 | K138: =D138*J138 -> 15720 | L138: 478.4 | M138: =D138*L138 -> 4784 | N138: =J138*D138+L138*D138 -> 20504
A139: 1.4.23 | B139: Оповещатель охранно-пожарный световой (табло) | C139: шт. | D139: -8 | E139: 1200 | F139: -9600 | G139: 368 | H139: -2944 | I139: -12544 | J139: 1572 | K139: =J139*D139 -> -12576 | L139: 478.4 | M139: =L139*D139 -> -3827.2 | N139: -16403.2
A140: 1.4.23 | B140: Оповещатель охранно-пожарный световой (табло) ЛЮКС-24 "Стрелка влево" | C140: шт. | D140: 9 | E140: 1200 | F140: 10800 | G140: 368 | H140: 3312 | I140: 14112 | J140: 1572 | K140: =D140*J140 -> 14148 | L140: 478.4 | M140: =D140*L140 -> 4305.6 | N140: 18453.6
A141: 1.4.24 | B141: Оповещатель охранно-пожарный световой (табло) | C141: шт. | D141: -6 | E141: 1200 | F141: -7200 | G141: 368 | H141: -2208 | I141: -9408 | J141: 1572 | K141: =J141*D141 -> -9432 | L141: 478.4 | M141: =L141*D141 -> -2870.4 | N141: -12302.4
A142: 1.4.24 | B142: Оповещатель охранно-пожарный световой (табло) ЛЮКС-24 "Стрелка вправо" | C142: шт. | D142: 9 | E142: 1200 | F142: 10800 | G142: 368 | H142: 3312 | I142: 14112 | J142: 1572 | K142: =D142*J142 -> 14148 | L142: 478.4 | M142: =D142*L142 -> 4305.6 | N142: 18453.6
A143: 1.4.25 | B143: Оповещатель охранно-пожарный звуковой | C143: шт. | D143: -13 | E143: 1200 | F143: -15600 | G143: 402 | H143: -5226 | I143: -20826 | J143: 1572 | K143: =J143*D143 -> -20436 | L143: 522.6 | M143: =L143*D143 -> -6793.8 | N143: -27229.8
A144: 1.4.25 | B144: Оповещатель охранно-пожарный звуковой Маяк-24-ЗМ2 | C144: шт. | D144: 54 | E144: 1200 | F144: 64800 | G144: 270 | H144: 14580 | I144: 79380 | J144: 1572 | K144: =D144*J144 -> 84888 | L144: 351 | M144: =D144*L144 -> 18954 | N144: 103842
A145: 1.4.26 | B145: Комбинированный оповещатель со стробовспышкой Г-24КПР | C145: шт. | D145: 30 | E145: 1200 | F145: =D145*E145 -> 36000 | G145: 545.04 | H145: =G145*D145 -> 16351.2 | I145: =F145+H145 -> 52351.2 | J145: 1572 | K145: =D145*J145 -> 47160 | L145: 708.55 | M145: =D145*L145 -> 21256.5 | N145: 68416.5
A146: 1.4.26 | B146: Оповещатель охранно-пожарный комбинированный свето-звуковой Маяк-24-КПМ2 | C146: шт. | D146: 39 | E146: 1200 | F146: =D146*E146 -> 46800 | G146: 656 | H146: =G146*D146 -> 25584 | I146: =F146+H146 -> 72384 | J146: 1572 | K146: =D146*J146 -> 61308 | L146: 852.8 | M146: =D146*L146 -> 33259.2 | N146: 94567.2
A147: 1.4.27 | B147: Полка 19" перфорированная консольная 1U | C147: шт. | D147: 1 | E147: 2000 | F147: 2000 | G147: 1462 | H147: 1462 | I147: 3462 | J147: 2620 | K147: =D147*J147 -> 2620 | L147: 1900.6 | M147: =D147*L147 -> 1900.6 | N147: 4520.6
A148: 1.4.28 | B148: Модуль подключения нагрузки | C148: шт. | D148: -24 | E148: 100 | F148: -2400 | G148: 71.76 | H148: -1722.24 | I148: -4122.24 | J148: 131 | K148: =J148*D148 -> -3144 | L148: 93.29 | M148: =L148*D148 -> -2238.96 | N148: -5382.96
A149: 1.4.28 | B149: Модуль подключения нагрузки | C149: шт. | D149: 87 | E149: 100 | F149: 8700 | G149: 71.76 | H149: 6243.12 | I149: 14943.12 | J149: 131 | K149: =D149*J149 -> 11397 | L149: 93.29 | M149: =D149*L149 -> 8116.23 | N149: 19513.23
A150: 1.4.29 | B150: Блок сигнально-пусковой адресный | C150: шт. | D150: 96 | E150: 3200 | F150: =D150*E150 -> 307200 | G150: 3692.4 | H150: =G150*D150 -> 354470.4 | I150: =F150+H150 -> 661670.4 | J150: 4192 | K150: 402432 | L150: 4800.12 | M150: 460811.52 | N150: 863243.52
A151: 1.4.30 | B151: Кнопка "ТЕСТ" | C151: шт. | D151: 96 | E151: 1200 | F151: =D151*E151 -> 115200 | G151: 1250 | H151: =G151*D151 -> 120000 | I151: =F151+H151 -> 235200 | J151: 1572 | K151: 150912 | L151: 1625 | M151: 156000 | N151: 306912
A152: 1.4.31 | B152: Шкаф контрольно пусковой ШКП-10RS (М) | C152: шт. | D152: 1 | E152: 4500 | F152: =D152*E152 -> 4500 | G152: 31318.56 | H152: =G152*D152 -> 31318.56 | I152: =F152+H152 -> 35818.56 | J152: 5895 | K152: 5895 | L152: 40714.13 | M152: 40714.13 | N152: 46609.13
A153: 1.4.32 | B153: Шкаф контрольно пусковой ШКП-18RS (М) | C153: шт. | D153: 1 | E153: 4500 | F153: =D153*E153 -> 4500 | G153: 32633.64 | H153: =G153*D153 -> 32633.64 | I153: =F153+H153 -> 37133.64 | J153: 5895 | K153: 5895 | L153: 42423.73 | M153: 42423.73 | N153: 48318.73
A154: 1.4.33 | B154: Преобразователь интерфейса | C154: шт. | D154: 1 | E154: 2600 | F154: 2600 | G154: 3524.04 | H154: 3524.04 | I154: 6124.04 | J154: 3406 | K154: 3406 | L154: 4581.25 | M154: 4581.25 | N154: 7987.25
A155: 1.4.34 | B155: Коммутатор сетевой гигабитный 6 портовый | C155: шт. | D155: 1 | E155: 2600 | F155: 2600 | G155: 9000 | H155: 9000 | I155: 11600 | J155: 3406 | K155: 3406 | L155: 11700 | M155: 11700 | N155: 15106
A156: 1.4.35 | B156: Блок питания | C156: шт. | D156: 1 | E156: 3000 | F156: 3000 | G156: 2558 | H156: 2558 | I156: 5558 | J156: 3930 | K156: 3930 | L156: 3325.4 | M156: 3325.4 | N156: 7255.4
A157: 1.4.36 | B157: Лоток перфорированный 100х50х3000 | C157: м | D157: -890 | E157: 380 | F157: -338200 | G157: 452.12 | H157: -402386.8 | I157: -740586.8 | J157: 497.8 | K157: =J157*D157 -> -443042 | L157: 587.76 | M157: =L157*D157 -> -523106.4 | N157: -966148.4
A158: 1.4.36 | B158: Лоток перфорированный 100х50х3000 | C158: м | D158: 585 | E158: 380 | F158: 222300 | G158: 538 | H158: 314730 | I158: 537030 | J158: 497.8 | K158: =D158*J158 -> 291213 | L158: 699.4 | M158: =D158*L158 -> 409149 | N158: 700362
A159: 1.4.37 | B159: Перегородка для лотка | C159: м | D159: -890 | E159: 100 | F159: -89000 | G159: 292.8 | H159: -260592 | I159: -349592 | J159: 131 | K159: =J159*D159 -> -116590 | L159: 380.64 | M159: =L159*D159 -> -338769.6 | N159: -455359.6
A160: 1.4.37 | B160: Перегородка для лотка | C160: м | D160: 585 | E160: 100 | F160: 58500 | G160: 292.8 | H160: 171288 | I160: 229788 | J160: 131 | K160: =D160*J160 -> 76635 | L160: 380.64 | M160: =D160*L160 -> 222674.4 | N160: 299309.4
A161: 1.4.38 | B161: Крышка с заземлением на лоток основание 100 L3000 | C161: м | D161: -890 | E161: 120 | F161: -106800 | G161: 214.4 | H161: -190816 | I161: -297616 | J161: 157.2 | K161: =J161*D161 -> -139908 | L161: 278.72 | M161: =L161*D161 -> -248060.8 | N161: -387968.8
A162: 1.4.38 | B162: Крышка с заземлением на лоток основание 100 L3000 | C162: м | D162: 585 | E162: 120 | F162: 70200 | G162: 209.22 | H162: 122393.7 | I162: 192593.7 | J162: 157.2 | K162: =D162*J162 -> 91962 | L162: 271.99 | M162: =D162*L162 -> 159114.15 | N162: 251076.15
A163: 1.4.39 | B163: Угол CPO 90 горизонтальный 90° 100х50 | C163: шт. | D163: -16 | E163: 1200 | F163: -19200 | G163: 1620.8 | H163: -25932.8 | I163: -45132.8 | J163: 1572 | K163: =J163*D163 -> -25152 | L163: 2107.04 | M163: =L163*D163 -> -33712.64 | N163: -58864.64
A164: 1.4.39 | B164: Угол CPO 90 горизонтальный 90° 100х50 | C164: шт. | D164: 10 | E164: 1200 | F164: 12000 | G164: 1620.8 | H164: 16208 | I164: 28208 | J164: 1572 | K164: =D164*J164 -> 15720 | L164: 2107.04 | M164: =D164*L164 -> 21070.4 | N164: 36790.4
A165: 1.4.40 | B165: Угол CS 90 вертикальный внутренний 90° 100х50 | C165: шт. | D165: -10 | E165: 1200 | F165: -12000 | G165: 1892 | H165: -18920 | I165: -30920 | J165: 1572 | K165: =J165*D165 -> -15720 | L165: 2459.6 | M165: =L165*D165 -> -24596 | N165: -40316
A166: 1.4.40 | B166: Угол CS 90 вертикальный внутренний 90° 100х50 | C166: шт. | D166: 12 | E166: 1200 | F166: 14400 | G166: 1892 | H166: 22704 | I166: 37104 | J166: 1572 | K166: =D166*J166 -> 18864 | L166: 2459.6 | M166: =D166*L166 -> 29515.2 | N166: 48379.2
A167: 1.4.41 | B167: Лоток 50х50 L=3000 перфорированный | C167: м. | D167: 150 | E167: 640 | F167: =D167*E167 -> 96000 | G167: 375 | H167: 56250 | I167: 152250 | J167: 838.4 | K167: 125760 | L167: 487.5 | M167: 73125 | N167: 198885
A168: 1.4.42 | B168: Крышка с заземлением на лоток основание 50 L3000 | C168: м. | D168: 150 | E168: 120 | F168: =D168*E168 -> 18000 | G168: 171.65 | H168: 25747.5 | I168: 43747.5 | J168: 157.2 | K168: 23580 | L168: 223.15 | M168: 33472.5 | N168: 57052.5
A169: 1.4.43 | B169: Крышка S5 CPO90 90х100 угла горизонтального | C169: шт. | D169: 10 | E169: 120 | F169: 1200 | G169: 839.4 | H169: 8394 | I169: 9594 | J169: 157.2 | K169: 1572 | L169: 1091.22 | M169: 10912.2 | N169: 12484.2
A170: 1.4.44 | B170: Крышка S5 CS90 90x100 угла вертикального внутреннего | C170: шт. | D170: 12 | E170: 120 | F170: 1440 | G170: 644.02 | H170: 7728.24 | I170: 9168.24 | J170: 157.2 | K170: 1886.4 | L170: 837.23 | M170: 10046.76 | N170: =J170*D170+L170*D170 -> 11933.16
A171: 1.4.45 | B171: Ответвитель S5 DL 100x50 горизонтальный | C171: шт. | D171: 5 | E171: 1200 | F171: 6000 | G171: 2020.01 | H171: 10100.05 | I171: 16100.05 | J171: 1572 | K171: 7860 | L171: 2626.01 | M171: 13130.05 | N171: 20990.05
A172: 1.4.46 | B172: Крышка S5 DL 100х50 ответвителя горизонтального | C172: шт. | D172: 5 | E172: 120 | F172: 600 | G172: 1004.5 | H172: 5022.5 | I172: 5622.5 | J172: 157.2 | K172: 786 | L172: 1305.85 | M172: 6529.25 | N172: 7315.25
A173: 1.4.47 | B173: Угол S5 CD90 90x50x50 вертикальный внешний | C173: шт. | D173: 16 | E173: 1200 | F173: 19200 | G173: 1966.01 | H173: 31456.16 | I173: 50656.16 | J173: 1572 | K173: 25152 | L173: 2555.81 | M173: 40892.96 | N173: 66044.96
A174: 1.4.48 | B174: Крышка S5 CD90 90x50 угла вертикального внешнего | C174: шт. | D174: 16 | E174: 120 | F174: 1920 | G174: 638.16 | H174: 10210.56 | I174: 12130.56 | J174: 157.2 | K174: 2515.2 | L174: 829.61 | M174: 13273.76 | N174: 15788.96
A175: 1.4.49 | B175: Ответвитель S5 DL 50x50 горизонтальный | C175: шт. | D175: 16 | E175: 1200 | F175: 19200 | G175: 1825.61 | H175: 29209.76 | I175: 48409.76 | J175: 1572 | K175: 25152 | L175: 2373.29 | M175: 37972.64 | N175: 63124.64
A176: 1.4.50 | B176: Крышка S5 DL 50х50 ответвителя горизонтального | C176: шт. | D176: 16 | E176: 120 | F176: 1920 | G176: 853.51 | H176: 13656.16 | I176: 15576.16 | J176: 157.2 | K176: 2515.2 | L176: 1109.56 | M176: 17752.96 | N176: 20268.16
A177: 1.4.51 | B177: Кронштейн индивидуального изготовления L=1250 | C177: шт. | D177: 210 | E177: 412.8 | F177: 86688 | G177: 1552.8 | H177: 326088 | I177: 412776 | J177: 540.77 | K177: 113561.7 | L177: 2018.64 | M177: 423914.4 | N177: 537476.1
A178: 1.4.52 | B178: Кронштейн юстировочный для монтажа линейного извещателя | C178: шт. | D178: 24 | E178: 1200 | F178: 28800 | G178: 1200 | H178: 28800 | I178: 57600 | J178: 1572 | K178: 37728 | L178: 1560 | M178: 37440 | N178: 75168
A179: 1.4.53 | B179: Стандартный анкер с болтом М8 | C179: шт. | D179: -400 | E179: 25 | F179: -10000 | G179: 83.02 | H179: -33208 | I179: -43208 | J179: 32.75 | K179: =J179*D179 -> -13100 | L179: 107.93 | M179: =L179*D179 -> -43172 | N179: -56272
A180: 1.4.53 | B180: Стандартный анкер с болтом М8 | C180: шт. | D180: 800 | E180: 25 | F180: 20000 | G180: 83.02 | H180: 66416 | I180: 86416 | J180: 32.75 | K180: =D180*J180 -> 26200 | L180: 107.93 | M180: =D180*L180 -> 86344 | N180: 112544
A181: 1.4.54 | B181: Винт для электрического соединения М5х8 | C181: шт. | D181: -100 | E181: 15 | F181: -1500 | G181: 6.8 | H181: -680 | I181: -2180 | J181: 19.65 | K181: =J181*D181 -> -1965 | L181: 8.84 | M181: =L181*D181 -> -884 | N181: -2849
A182: 1.4.54 | B182: Винт для электрического соединения М5х8 | C182: шт. | D182: 100 | E182: 15 | F182: 1500 | G182: 10.2 | H182: 1020 | I182: 2520 | J182: 19.65 | K182: =D182*J182 -> 1965 | L182: 13.26 | M182: =D182*L182 -> 1326 | N182: 3291
A183: 1.4.55 | B183: Коробка огнестойкая 100х100х50мм | C183: шт. | D183: 175 | E183: 800 | F183: =D183*E183 -> 140000 | G183: 1063.97 | H183: =G183*D183 -> 186194.75 | I183: =F183+H183 -> 326194.75 | J183: 1048 | K183: =D183*J183 -> 183400 | L183: 1383.16 | M183: =D183*L183 -> 242053 | N183: 425453
A184: 1.4.56 | B184: Кабель огнестойкий | C184: м | D184: -2960 | E184: 124 | F184: -367040 | G184: 144.86 | H184: -428785.6 | I184: -795825.6 | J184: 162.44 | K184: =J184*D184 -> -480822.4 | L184: 188.32 | M184: =L184*D184 -> -557427.2 | N184: -1038249.6
A185: 1.4.56 | B185: Кабель огнестойкий КПСЭнг(А)-FRHF 1х2х1,0 | C185: м | D185: 4220 | E185: 124 | F185: 523280 | G185: 41.04 | H185: 173188.8 | I185: 696468.8 | J185: 162.44 | K185: =D185*J185 -> 685496.8 | L185: 53.35 | M185: =D185*L185 -> 225137 | N185: 910633.8
A186: 1.4.57 | B186: Кабель огнестойкий | C186: м | D186: -930 | E186: 124 | F186: -115320 | G186: 82.94 | H186: -77134.2 | I186: -192454.2 | J186: 162.44 | K186: =J186*D186 -> -151069.2 | L186: 107.82 | M186: =L186*D186 -> -100272.6 | N186: -251341.8
A187: 1.4.57 | B187: Кабель огнестойкий КПСЭнг(А)-FRHF 1х2х1,5 | C187: м | D187: 2500 | E187: 124 | F187: 310000 | G187: 82.94 | H187: 207350 | I187: 517350 | J187: 162.44 | K187: =D187*J187 -> 406100 | L187: 107.82 | M187: =D187*L187 -> 269550 | N187: 675650
A188: 1.4.58 | B188: Кабель огнестойкий | C188: м | D188: -510 | E188: 124 | F188: -63240 | G188: 140.62 | H188: -71716.2 | I188: -134956.2 | J188: 162.44 | K188: =J188*D188 -> -82844.4 | L188: 182.81 | M188: =L188*D188 -> -93233.1 | N188: -176077.5
A189: 1.4.58 | B189: Кабель огнестойкий КПСЭнг(А)-FRHF 2х2х0,75 | C189: м | D189: 400 | E189: 124 | F189: 49600 | G189: 77.76 | H189: 31104 | I189: 80704 | J189: 162.44 | K189: =D189*J189 -> 64976 | L189: 101.09 | M189: =D189*L189 -> 40436 | N189: 105412
A190: 1.4.59 | B190: Кабель огнестойкий | C190: м | D190: -600 | E190: 124 | F190: -74400 | G190: 85.94 | H190: -51564 | I190: -125964 | J190: 162.44 | K190: =J190*D190 -> -97464 | L190: 111.72 | M190: =L190*D190 -> -67032 | N190: -164496
A191: 1.4.59 | B191: Кабель огнестойкий КПСЭнг(А)-FRHF 2х2х0,5 | C191: м | D191: 1160 | E191: 124 | F191: 143840 | G191: 85.94 | H191: 99690.4 | I191: 243530.4 | J191: 162.44 | K191: =D191*J191 -> 188430.4 | L191: 111.72 | M191: =D191*L191 -> 129595.2 | N191: 318025.6
A192: 1.4.60 | B192: Кабель силовой огнестойкий ППГ нг(А)-FRHF 3х1.5 | C192: м | D192: 1300 | E192: 124 | F192: =D192*E192 -> 161200 | G192: 101.52 | H192: =G192*D192 -> 131976 | I192: =F192+H192 -> 293176 | J192: 162.44 | K192: =D192*J192 -> 211172 | L192: 131.98 | M192: =D192*L192 -> 171574 | N192: 382746
A193: 1.4.61 | B193: Труба гофрированная ПВХ легкая серая D20 | C193: м | D193: -600 | E193: 35 | F193: -21000 | G193: 21.6 | H193: -12960 | I193: -33960 | J193: 45.85 | K193: =J193*D193 -> -27510 | L193: 28.08 | M193: =L193*D193 -> -16848 | N193: -44358
A194: 1.4.61 | B194: Труба гофрированная ПВХ легкая серая D20 | C194: м | D194: 4500 | E194: 35 | F194: 157500 | G194: 21.6 | H194: 97200 | I194: 254700 | J194: 45.85 | K194: =D194*J194 -> 206325 | L194: 28.08 | M194: =D194*L194 -> 126360 | N194: 332685
A195: 1.4.62 | B195: Скоба металлическая однолапковая Д20 | C195: шт. | D195: -1200 | E195: 5 | F195: -6000 | G195: 2.6 | H195: -3120 | I195: -9120 | J195: 6.55 | K195: =J195*D195 -> -7860 | L195: 3.38 | M195: =L195*D195 -> -4056 | N195: -11916
A196: 1.4.62 | B196: Скоба металлическая однолапковая Д20 | C196: шт. | D196: 9000 | E196: 5 | F196: 45000 | G196: 2.6 | H196: 23400 | I196: 68400 | J196: 6.55 | K196: =D196*J196 -> 58950 | L196: 3.38 | M196: =D196*L196 -> 30420 | N196: 89370
A197: 1.4.63 | B197: Металлический дюбель для газобетона 6х32 | C197: шт. | D197: -1600 | E197: 5 | F197: -8000 | G197: 14.2 | H197: -22720 | I197: -30720 | J197: 6.55 | K197: =J197*D197 -> -10480 | L197: 18.46 | M197: =L197*D197 -> -29536 | N197: -40016
A198: 1.4.63 | B198: Металлический дюбель для газобетона 6х32 | C198: шт. | D198: 9000 | E198: 5 | F198: 45000 | G198: 14.88 | H198: 133920 | I198: 178920 | J198: 6.55 | K198: =D198*J198 -> 58950 | L198: 19.34 | M198: =D198*L198 -> 174060 | N198: 233010
A199: 1.4.64 | B199: Саморез с пресс-шайбой 4.2х32 | C199: шт. | D199: -1600 | E199: 5 | F199: -8000 | G199: 1.82 | H199: -2912 | I199: -10912 | J199: 6.55 | K199: =J199*D199 -> -10480 | L199: 2.37 | M199: =L199*D199 -> -3792 | N199: -14272
A200: 1.4.64 | B200: Саморез с пресс-шайбой 4.2х32 | C200: шт. | D200: 9000 | E200: 5 | F200: 45000 | G200: 1.82 | H200: 16380 | I200: 61380 | J200: 6.55 | K200: =D200*J200 -> 58950 | L200: 2.37 | M200: =D200*L200 -> 21330 | N200: 80280
... 914 more rows

Sheet Для печати - без кр. строк (hidden)
G1: Приложение №1 к Дополнительному соглашению №6 от 15 мая 2024г. к Договору генерального строительного подряда № МВМ/19-07 от 19 июля 2023г.
G7: Приложение №1.1 к Договору генерального строительного подряда № МВМ/19-07 от 19 июля 2023г.
A11: Стоимость работ по ремонту Объекта
E13: Стоимость работ, руб. с НДС | G13: Стоимость материалов, руб. с НДС
A14: № | B14: Наименовение | C14: Ед.изм | D14: Кол-во | E14: за ед. | F14: Итого | G14: за ед. | H14: Итого | I14: Итого, руб. с НДС
A15: 1 | B15: Основные объекты строительства, реконструкции, капитального ремонта, в том числе:
A16: 1.1 | B16: 130-23-АС3 Архитектурно-строительные решения | F16: =F18+F19+F20+F21+F23+F24+F26+F27+F28+F29+F30+F31+F32+F33+F35+F36+F37+F38+F39+F40+F41+F42+F43+F44+F45+F46+F47+F48+F49+F50+F51+F52+F53+F54+F55+F56+F58+F59+F60+F61+F63+F64+F65+F66+F67+F68+F69+F70+F71+F72+F73+F74+F75+F76+F77 -> 23834068.02 | H16: =H18+H19+H20+H21+H23+H24+H26+H27+H28+H29+H30+H31+H32+H33+H35+H36+H37+H38+H39+H40+H41+H42+H43+H44+H45+H46+H47+H48+H49+H50+H51+H52+H53+H54+H55+H56+H58+H59+H60+H61+H63+H64+H65+H66+H67+H68+H69+H70+H71+H72+H73+H74+H75+H76+H77 -> 21868543.3 | I16: =I18+I19+I20+I21+I23+I24+I26+I27+I28+I29+I30+I31+I32+I33+I35+I36+I37+I38+I39+I40+I41+I42+I43+I44+I45+I46+I47+I48+I49+I50+I51+I52+I53+I54+I55+I56+I58+I59+I60+I61+I63+I64+I65+I66+I67+I68+I69+I70+I71+I72+I73+I74+I75+I76+I77 -> 45702611.32
A17: 1.1.1 | B17: Демонтажные работы
A18: 1.1.1.1 | B18: Частичный демонтаж крестовых связей | C18: тн | D18: 0.44 | E18: 49415 | F18: =D18*E18 -> 21742.6 | G18: 0 | I18: =E18*D18+G18*D18 -> 21742.6
A19: 1.1.1.2 | B19: Демонтаж сэндвич панелей | C19: м2 | D19: 389.4 | E19: 990 | F19: =D19*E19 -> 385506 | G19: 0 | I19: =E19*D19+G19*D19 -> 385506
A20: 1.1.2 | B20: Устройство фахверка | C20: тн | D20: 0.34 | E20: 95478 | F20: =D20*E20 -> 32462.52 | G20: 229000 | H20: =D20*G20 -> 77860 | I20: =E20*D20+G20*D20 -> 110322.52
A21: 1.1.3 | B21: Устройство сэндвич панелей | C21: м2 | D21: 389.4 | E21: 2711 | F21: =D21*E21 -> 1055663.4 | G21: 6573 | H21: =D21*G21 -> 2559526.2 | I21: =E21*D21+G21*D21 -> 3615189.6
A22: 1.1.4 | B22: Устройство перегородок | E22: 0 | G22: 0
A23: 1.1.4.1 | B23: Перегородки гипсокартонные типа С112 комплексной системы КНАУФ толщиной 100 мм с облицовкой 2мя листами ГКЛ (толщиной 12,5мм) со звукоизолирующим слоем из минераловатных плит Лайт Баттс толщиной 50 мм | C23: м2 | D23: 536 | E23: 4955 | F23: =D23*E23 -> 2655880 | G23: 4501 | H23: =D23*G23 -> 2412536 | I23: =E23*D23+G23*D23 -> 5068416
A24: 1.1.4.2 | B24: Устройство отверстий под воздуховоды | C24: шт | D24: 2 | E24: 8577.88 | F24: =D24*E24 -> 17155.76 | G24: 4657.25 | H24: =D24*G24 -> 9314.5 | I24: =E24*D24+G24*D24 -> 26470.26
A25: 1.1.5 | B25: Отделка потолков помещений | E25: 0 | G25: 0
A26: 1.1.5.1 | B26: Подвесной потолок системы "Армстронг" | C26: м2 | D26: 301.4 | E26: 3957.07 | F26: =D26*E26 -> 1192660.898 | G26: 0 | I26: =E26*D26+G26*D26 -> 1192660.898
A27: 1.1.5.2 | B27: Подвесной потолок системы с шумоглушением | C27: м2 | D27: 168.8 | E27: 1131.76 | F27: 191041.088 | G27: 3051.39 | H27: =D27*G27 -> 515074.632 | I27: 706115.72
A28: 1.1.5.3 | B28: Реечный алюминиевый потолок | C28: м2 | D28: 111.8 | E28: 7888.98 | F28: 881987.964 | G28: 0 | I28: 881987.964
A29: 1.1.5.4 | B29: Затирка бетонной поверхности перекрытия перед устройством потолка | C29: м2 | D29: 206.75 | E29: 1134.79 | F29: 234617.8325 | G29: 719.09 | H29: =D29*G29 -> 148671.8575 | I29: 383289.69
A30: 1.1.5.5 | B30: Устроиство базового слоя шпаклевки | C30: м2 | D30: 69.4 | E30: 888.18 | F30: 61639.692 | G30: 462.8 | H30: =D30*G30 -> 32118.32 | I30: 93758.012
A31: 1.1.5.6 | B31: Устроиство финишного слоя шпаклевки | C31: м2 | D31: 69.4 | E31: 1277.25 | F31: 88641.15 | G31: 397.79 | H31: =D31*G31 -> 27606.626 | I31: 116247.776
A32: 1.1.5.7 | B32: Окраска потолка силикатной краской за 2 раза | C32: м2 | D32: 69.4 | E32: 635.48 | F32: =D32*E32 -> 44102.312 | G32: 740.97 | H32: =D32*G32 -> 51423.318 | I32: 95525.63
A33: 1.1.5.8 | B33: Грунтовка поверхностей перед окрашиванием | C33: м2 | D33: 69.4 | E33: 75.65 | F33: =D33*E33 -> 5250.11 | G33: 42.3 | H33: =D33*G33 -> 2935.62 | I33: 8185.73
A34: 1.1.6 | B34: Полы помещений | E34: 0 | G34: 0
A35: 1.1.6.1 | B35: Очистка поверхности от грязи и мусора | C35: м2 | D35: 352.5 | E35: 378 | F35: =D35*E35 -> 133245 | G35: 72.93 | H35: =D35*G35 -> 25707.825 | I35: =E35*D35+G35*D35 -> 158952.825
A36: 1.1.6.2 | B36: Устройство пола из бетона кл. В25 толщиной до 100 мм | C36: м3 | D36: 7.87 | E36: 13208 | F36: 103946.96 | G36: 14998 | H36: 118034.26 | I36: 221981.22
A37: 1.1.6.3 | B37: Керамогранитная плитка | C37: м2 | D37: 187.8 | E37: 4772 | F37: 896181.6 | G37: 2131 | H37: 400201.8 | I37: 1296383.4
A38: 1.1.6.4 | B38: Напольная керамическая плитка | C38: м2 | D38: 332.1 | E38: 2629 | F38: 873090.9 | G38: 3034 | H38: 1007591.4 | I38: 1880682.3
A39: 1.1.6.5 | B39: Коммерческий линолеум (33-34 кл.) | C39: м2 | D39: 121.8 | E39: 708.11 | F39: 86247.798 | G39: 2641.52 | H39: 321737.136 | I39: 407984.934
A40: 1.1.6.6 | B40: Гидроизоляция Гидроизол | C40: м2 | D40: 141.3 | E40: 680.87 | F40: 96206.931 | G40: 1083.74 | H40: 153132.462 | I40: 249339.393
A41: 1.1.6.7 | B41: Наливной пол толщиной до 50мм | C41: м2 | D41: 355.6 | E41: 3576 | F41: 1271625.6 | G41: 1630 | H41: 579628 | I41: 1851253.6
A42: 1.1.6.8 | B42: Керамогранитная плитка с шероховатой поверхностью | C42: м2 | D42: 2 | E42: 4149 | F42: 8298 | G42: 2131 | H42: 4262 | I42: 12560
A43: 1.1.6.9 | B43: Наливной пол толщиной до 45мм армированный сеткой d4 В500 100х100 | C43: м2 | D43: 141.3 | E43: 3470 | F43: 490311 | G43: 1590 | H43: 224667 | I43: 714978
A44: 1.1.6.10 | B44: Грунтовка поверхностей перед финишным покрытием | C44: м2 | D44: 1140.6 | E44: 75.65 | F44: 86286.39 | G44: 42.3 | H44: 48247.38 | I44: 134533.77
A45: 1.1.7 | B45: Отделка стен помещений | C45: м2 | D45: 1194.52 | E45: 4448 | F45: 5313224.96 | G45: 3702 | H45: 4422113.04 | I45: 9735338
A46: 1.1.8 | B46: Установка потивопожарных окон | C46: шт | D46: 11 | E46: 34209 | F46: 376299 | G46: 89433 | H46: 983763 | I46: 1360062
A47: 1.1.9 | B47: Установка внутренних окон | C47: шт | D47: 6 | E47: 18204 | F47: 109224 | G47: 79865 | H47: 479190 | I47: 588414
A48: 1.1.10 | B48: Установка потивопожарных дверей | C48: шт | D48: 42 | E48: 14176 | F48: 595392 | G48: 34900 | H48: 1465800 | I48: 2061192
A49: 1.1.11 | B49: Лестничная клетка | C49: шт | D49: 1 | E49: 504288.43 | F49: 504288.43 | G49: 855301.2 | H49: 855301.2 | I49: 1359589.63
A50: 1.1.12 | B50: Устройство перекрытия | C50: м3 | D50: 41.2 | E50: 44343.5 | F50: 1826952.2 | G50: 47372 | H50: 1951726.4 | I50: 3778678.6
A51: 1.1.13 | B51: Пол АБК | C51: м2 | D51: 387 | E51: 3576 | F51: 1383912 | G51: 3510 | H51: 1358370 | I51: 2742282
A52: 1.1.14 | B52: Прорезка проёмов дверных и оконных | C52: шт | D52: 15 | E52: 25728.4 | F52: 385926 | G52: 850.2 | H52: 12753 | I52: 398679
A53: 1.1.15 | B53: Устройство отверстия на кровле в осях В/32-34 | C53: шт | D53: 1 | E53: 89509.68 | F53: 89509.68 | G53: 73184.8 | H53: 73184.8 | I53: 162694.48
A54: 1.1.16 | B54: Проходка воздуховодов сквозь кровлю АБК | C54: шт | D54: 12 | E54: 11909.97 | F54: 142919.64 | G54: 4538.73 | H54: 54464.76 | I54: 197384.4
A55: 1.1.17 | B55: Устройство мк отверстий диам. 400 мм в покрытии здания | C55: шт | D55: 5 | E55: 43829.72 | F55: 219148.6 | G55: 26306.28 | H55: 131531.4 | I55: 350680
A56: 1.1.18 | B56: Устройство дверного проёма в стене цеха (пож.выход) | C56: шт | D56: 1 | E56: 219290.07 | F56: 219290.07 | G56: 155542.4 | H56: 155542.4 | I56: 374832.47
A57: 1.1.19 | B57: Дополнительные работы | E57: 0 | G57: 0
A58: 1.1.19.1 | B58: Обшивка стен Гипсокартон ГКЛ толщиной 12,5 мм в 2 слоя | C58: м2 | D58: 76 | E58: 2955 | F58: =D58*E58 -> 224580 | G58: 3501 | H58: =D58*G58 -> 266076 | I58: =E58*D58+G58*D58 -> 490656
A59: 1.1.19.2 | B59: Перенос дверных проёмов | C59: шт | D59: 4 | E59: 42024.27 | F59: =D59*E59 -> 168097.08 | G59: 15381.6 | H59: =D59*G59 -> 61526.4 | I59: =E59*D59+G59*D59 -> 229623.48
A60: 1.1.19.3 | B60: Обрамление оконных проёмов | C60: шт | D60: 11 | E60: 10938.3 | F60: =D60*E60 -> 120321.3 | G60: 8970 | H60: =D60*G60 -> 98670 | I60: =E60*D60+G60*D60 -> 218991.3
A61: 1.1.19.4 | B61: Демонтаж и монтаж временных ворот | C61: шт | D61: 1 | E61: 73821.12 | F61: =D61*E61 -> 73821.12 | G61: 4750.2 | H61: =D61*G61 -> 4750.2 | I61: =E61*D61+G61*D61 -> 78571.32
A62: 1.1.20 | B62: Монтаж фасоных элементов | E62: 0 | G62: 0
A63: 1.1.20.1 | B63: Монтаж фасоного элемента Дз-1 | C63: м.п. | D63: 7.45 | E63: 600 | F63: =D63*E63 -> 4470 | G63: 1345.5 | H63: =D63*G63 -> 10023.975 | I63: =E63*D63+G63*D63 -> 14493.975
A64: 1.1.20.2 | B64: Монтаж фасоного элемента Дз-2 | C64: м.п. | D64: 15 | E64: 600 | F64: 9000 | G64: 678.6 | H64: 10179 | I64: 19179
A65: 1.1.20.3 | B65: Монтаж фасоного элемента Дз-3 | C65: м.п. | D65: 64 | E65: 600 | F65: 38400 | G65: 508.3 | H65: 32531.2 | I65: 70931.2
A66: 1.1.20.4 | B66: Монтаж фасоного элемента Дз-4 | C66: м.п. | D66: 64 | E66: 600 | F66: 38400 | G66: 491.4 | H66: 31449.6 | I66: 69849.6
A67: 1.1.20.5 | B67: Монтаж фасоного элемента Дз-5 | C67: м.п. | D67: 64 | E67: 600 | F67: 38400 | G67: 565.5 | H67: 36192 | I67: 74592
A68: 1.1.20.6 | B68: Монтаж колонн (усиление перегородок) | C68: шт | D68: 7 | E68: 36465 | F68: 255255 | G68: 8931 | H68: 62517 | I68: 317772
A69: 1.1.20.7 | B69: Демонтаж ГКЛ 2 слоя | C69: м2 | D69: 36 | E69: 1166 | F69: 41976 | G69: 0 | I69: 41976
A70: 1.1.20.8 | B70: Монтаж профильной трубы 40х40 | C70: м.п. | D70: 12 | E70: 904 | F70: 10848 | G70: 453 | H70: =D70*G70 -> 5436 | I70: 16284
A71: 1.1.20.9 | B71: Монтаж ГКЛ 2 слоя | C71: м2 | D71: 36 | E71: 1690 | F71: 60840 | G71: 1625 | H71: 58500 | I71: 119340
A72: 1.1.20.10 | B72: Увеличение дверных проёмов | C72: шт | D72: 12 | E72: 7585 | F72: 91020 | G72: 1716 | H72: 20592 | I72: 111612
A73: 1.1.20.11 | B73: Наливной пол толщиной до 50мм | C73: м2 | D73: 125.1 | E73: 1286 | F73: 160878.6 | G73: 2430 | H73: 303993 | I73: 464871.6
A74: 1.1.20.12 | B74: Усиление площадки лестничного марша | C74: шт | D74: 4 | E74: 36465 | F74: 145860 | G74: 7524 | H74: 30096 | I74: 175956
A75: 1.1.20.13 | B75: Устройство стен из газобетонных блоков | C75: м3 | D75: 1.87 | E75: 6809 | F75: 12732.83 | G75: 13857 | H75: 25912.59 | I75: 38645.42
A76: 1.1.20.14 | B76: Облицовка ступеней плиткой на лестнечной клетке | C76: шт | D76: 24 | E76: 3710 | F76: 89040 | G76: 2543 | H76: 61032 | I76: 150072
A77: 1.1.20.15 | B77: Штукатурка откосов Ролл ворот в цеху | C77: м.п. | D77: 150 | E77: 1135 | F77: 170250 | G77: 567 | H77: 85050 | I77: 255300
A78: 1.2 | B78: 130-23-АС1 Архитектурно-строительные решения | F78: =F80+F81+F83+F85+F86+F89+F90+F92 -> 9370353.48 | H78: =H80+H81+H83+H85+H86+H89+H90+H92 -> 19579106 | I78: =I80+I81+I83+I85+I86+I89+I90+I92 -> 28949459.48
A79: 1.2.1 | B79: Металлоконструкции огрунтованные КМ
A80: 1.2.1.1 | B80: Монтаж фахверковых стоек массой до 1,0 т. | C80: т. | D80: 10.5 | E80: 95478 | F80: =D80*E80 -> 1002519 | G80: 229000 | H80: =D80*G80 -> 2404500 | I80: =E80*D80+G80*D80 -> 3407019
A81: 1.2.1.2 | B81: Монтаж распорок, ригелей, в том числе: Профили стальные гнутые замкнутые квадратные 100х4 | C81: т. | D81: 0.66 | E81: 95478 | F81: =D81*E81 -> 63015.48 | G81: 229000 | H81: =D81*G81 -> 151140 | I81: =E81*D81+G81*D81 -> 214155.48
A82: 1.2.2 | B82: Окраска металлоконструкций
A83: 1.2.2.1 | B83: Устройство огнезащитной краски по металлу | C83: м2 | D83: 384.2 | E83: 4150 | F83: =D83*E83 -> 1594430 | G83: 665 | H83: =D83*G83 -> 255493 | I83: =E83*D83+G83*D83 -> 1849923
A84: 1.2.3 | B84: Крепление металлоконструкций
A85: 1.2.3.1 | B85: Сверление отверстий в железобетонных конструкциях | C85: шт. | D85: 811 | E85: 393 | F85: =D85*E85 -> 318723 | G85: 0 | I85: =E85*D85+G85*D85 -> 318723
A86: 1.2.3.2 | B86: Устройство высокопрочных анкеров, закладных | C86: компл. | D86: 1 | E86: 260741 | F86: =D86*E86 -> 260741 | G86: 259614 | H86: =D86*G86 -> 259614 | I86: 520355
A87: 1.2.4 | B87: Демонтаж металлоконструкций
A88: 1.2.5 | B88: Устройство перегородки
A89: 1.2.5.1 | B89: Стеновые сэндвич-панели 100-1000-Г-Г | C89: м2 | D89: 2215 | E89: 2711 | F89: =D89*E89 -> 6004865 | G89: 7373 | H89: =D89*G89 -> 16331195 | I89: =E89*D89+G89*D89 -> 22336060
A90: 1.2.5.2 | B90: Устройство противопожарной перегородки «Knauf» С112 с двухслойной обшивкой с каждой стороны | C90: м2 | D90: 4 | E90: 5055 | F90: =D90*E90 -> 20220 | G90: 4601 | H90: =D90*G90 -> 18404 | I90: =E90*D90+G90*D90 -> 38624
A91: 1.2.6 | B91: Устройство бетонного плинтуса
A92: 1.2.6.1 | B92: Устройство плинтуса из фасонного элемента | C92: м/п | D92: 378 | E92: 280 | F92: =D92*E92 -> 105840 | G92: 420 | H92: =D92*G92 -> 158760 | I92: =E92*D92+G92*D92 -> 264600
A93: 1.3 | B93: 130-23-ВК Внутренние трубопроводы | F93: =SUM(F94:F97) -> 3943362 | H93: =SUM(H94:H97) -> 7445174 | I93: =SUM(I94:I97) -> 11388536
A94: 1.3.1 | B94: Хозяйственно-питьевой водопровод В1. | C94: сис | D94: 1 | E94: 910581 | F94: =D94*E94 -> 910581 | G94: 979867 | H94: =D94*G94 -> 979867 | I94: =E94*D94+G94*D94 -> 1890448
A95: 1.3.2 | B95: Горячее водоснабжение (Т3, Т4) | C95: сис | D95: 1 | E95: 1137342 | F95: =D95*E95 -> 1137342 | G95: 1607675 | H95: =D95*G95 -> 1607675 | I95: =E95*D95+G95*D95 -> 2745017
A96: 1.3.3 | B96: Противопожарный водопровод, В2 | C96: сис | D96: 1 | E96: 1545276 | F96: =D96*E96 -> 1545276 | G96: 4118435 | H96: =D96*G96 -> 4118435 | I96: =E96*D96+G96*D96 -> 5663711
A97: 1.3.4 | B97: Бытовая канализация К1 | C97: сис | D97: 1 | E97: 350163 | F97: =D97*E97 -> 350163 | G97: 739197 | H97: =D97*G97 -> 739197 | I97: =E97*D97+G97*D97 -> 1089360
A98: 1.4 | B98: 130-23-ПС Пожарная сигнализация | F98: =F99+F100+F101+F102+F103+F104+F105+F106+F107+F108+SUM(F109:F115)+F116+F117+F118+F119+F120+F121+F122+F123+F124+F125+F126+F127+F128+F129+F130+F131+F132+F133+F134+F135+F136+F137+F138+SUM(F139:F150)+F151+F152+F153+F154+F155+F156+F157+F158+F159+F160+F161+F162+F163+F164+F165+SUM(F167:F181) -> 5567925.5 | H98: =H99+H100+H101+H102+H103+H104+H105+H106+H107+H108+SUM(H109:H115)+H116+H117+H118+H119+H120+H121+H122+H123+H124+H125+H126+H127+H128+H129+H130+H131+H132+H133+H134+H135+H136+H137+H138+SUM(H139:H150)+H151+H152+H153+H154+H155+H156+H157+H158+H159+H160+H161+H162+H163+H164+H165+SUM(H167:H181) -> 6146099.1 | I98: =I99+I100+I101+I102+I103+I104+I105+I106+I107+I108+SUM(I109:I115)+I116+I117+I118+I119+I120+I121+I122+I123+I124+I125+I126+I127+I128+I129+I130+I131+I132+I133+I134+I135+I136+I137+I138+SUM(I139:I150)+I151+I152+I153+I154+I155+I156+I157+I158+I159+I160+I161+I162+I163+I164+I165+SUM(I167:I181) -> 11714024.6
A99: 1.4.1 | B99: Сервер "Орион Про" | C99: компл. | D99: 1 | E99: 50304 | F99: =D99*E99 -> 50304 | G99: 0 | I99: =E99*D99+G99*D99 -> 50304
A100: 1.4.2 | B100: Шкаф пожарной сигнализации | C100: шт. | D100: 4 | E100: 5502 | F100: 22008 | G100: 36625.68 | H100: =D100*G100 -> 146502.72 | I100: 168510.72
A101: 1.4.3 | B101: Монтажный комплект | C101: шт. | D101: 4 | E101: 2358 | F101: 9432 | G101: 1456 | H101: 5824 | I101: 15256
A102: 1.4.5 | B102: Прибор приемно-контрольный и управления пожарный | C102: шт. | D102: 1 | E102: 5502 | F102: 5502 | G102: 42033.68 | H102: 42033.68 | I102: 47535.68
A103: 1.4.6 | B103: Аккумулятор 12 В, 17 А/ч | C103: шт. | D103: 10 | E103: 524 | F103: 5240 | G103: 7368.4 | H103: 73684 | I103: 78924
A104: 1.4.7 | B104: Пульт контроля и управления | C104: шт. | D104: 1 | E104: 3406 | F104: 3406 | G104: 14788.18 | H104: 14788.18 | I104: 18194.18
A105: 1.4.8 | B105: Контроллер двухпроводной линиии связи | C105: шт. | D105: 11 | E105: 3406 | F105: 37466 | G105: 6507.85 | H105: 71586.35 | I105: 109052.35
A106: 1.4.9 | B106: Блок контрольно-пусковой | C106: шт. | D106: 4 | E106: 3406 | F106: 13624 | G106: 5933.93 | H106: 23735.72 | I106: 37359.72
A107: 1.4.10 | B107: Извещатель пожарный дымовой оптико-электронный аналого-адресный | C107: шт. | D107: 137 | E107: 1572 | F107: 215364 | G107: 2472.34 | H107: 338710.58 | I107: 554074.58
A108: 1.4.11 | B108: Извещатель пожарный линейный однопозиционный адресный | C108: шт. | D108: 24 | E108: 4454 | F108: 106896 | G108: 37518 | H108: 900432 | I108: 1007328
A109: 1.4.13 | B109: Извещатель пожарный ручной адресный | C109: шт. | D109: 15 | E109: 1572 | F109: =D109*E109 -> 23580 | G109: 1458.34 | H109: =D109*G109 -> 21875.1 | I109: 45455.1
A110: 1.4.14 | B110: Аккумулятор 12 В, 40 А/ч | C110: шт. | D110: 4 | E110: 524 | F110: 2096 | G110: 8196.4 | H110: 32785.6 | I110: 34881.6
A111: 1.4.15 | B111: Источник питания резервированный | C111: шт. | D111: 4 | E111: 3930 | F111: 15720 | G111: 16396.07 | H111: 65584.28 | I111: 81304.28
A112: 1.4.16 | B112: Аккумулятор 12 В, 7 А/ч | C112: шт. | D112: 4 | E112: 524 | F112: 2096 | G112: 3129.1 | H112: 12516.4 | I112: 14612.4
A113: 1.4.17 | B113: Блок контроля и индикации | C113: шт. | D113: 2 | E113: 3930 | F113: 7860 | G113: 11731.38 | H113: 23462.76 | I113: 31322.76
A114: 1.4.18 | B114: Блок разветвительно-изолирующий | C114: шт. | D114: 4 | E114: 1310 | F114: 5240 | G114: 833.51 | H114: 3334.04 | I114: 8574.04
A115: 1.4.19 | B115: Преобразователь интерфейсов | C115: шт. | D115: 4 | E115: 4192 | F115: 16768 | G115: 15047.76 | H115: 60191.04 | I115: 76959.04
A116: 1.4.20 | B116: Патч-корд волоконно-оптический LC/UPC-LC/UPC 50 м | C116: шт. | D116: 4 | E116: 393 | F116: =D116*E116 -> 1572 | G116: 3672.55 | H116: =D116*G116 -> 14690.2 | I116: 16262.2
A117: 1.4.21 | B117: Патч-корд волоконно-оптический LC/UPC-LC/UPC 1 м | C117: шт. | D117: 4 | E117: 393 | F117: 1572 | G117: 1027 | H117: 4108 | I117: 5680
A118: 1.4.22 | B118: Устройство коммутационное | C118: шт. | D118: 24 | E118: 3406 | F118: 81744 | G118: 1774.5 | H118: 42588 | I118: 124332
A119: 1.4.23 | B119: Оповещатель охранно-пожарный световой (табло) ЛЮКС-24 "Выход" | C119: шт. | D119: 10 | E119: 1572 | F119: 15720 | G119: 478.4 | H119: 4784 | I119: =E119*D119+G119*D119 -> 20504
A120: 1.4.24 | B120: Оповещатель охранно-пожарный световой (табло) ЛЮКС-24 "Стрелка влево" | C120: шт. | D120: 9 | E120: 1572 | F120: 14148 | G120: 478.4 | H120: 4305.6 | I120: 18453.6
A121: 1.4.25 | B121: Оповещатель охранно-пожарный световой (табло) ЛЮКС-24 "Стрелка вправо" | C121: шт. | D121: 9 | E121: 1572 | F121: 14148 | G121: 478.4 | H121: 4305.6 | I121: 18453.6
A122: 1.4.26 | B122: Оповещатель охранно-пожарный звуковой Маяк-24-ЗМ2 | C122: шт. | D122: 54 | E122: 1572 | F122: 84888 | G122: 351 | H122: 18954 | I122: 103842
A123: 1.4.27 | B123: Комбинированный оповещатель со стробовспышкой Г-24КПР | C123: шт. | D123: 30 | E123: 1572 | F123: 47160 | G123: 708.55 | H123: 21256.5 | I123: 68416.5
A124: 1.4.28 | B124: Оповещатель охранно-пожарный комбинированный свето-звуковой Маяк-24-КПМ2 | C124: шт. | D124: 39 | E124: 1572 | F124: 61308 | G124: 852.8 | H124: 33259.2 | I124: 94567.2
A125: 1.4.29 | B125: Полка 19" перфорированная консольная 1U | C125: шт. | D125: 1 | E125: 2620 | F125: 2620 | G125: 1900.6 | H125: 1900.6 | I125: 4520.6
A126: 1.4.30 | B126: Модуль подключения нагрузки | C126: шт. | D126: 87 | E126: 131 | F126: =D126*E126 -> 11397 | G126: 93.29 | H126: =D126*G126 -> 8116.23 | I126: 19513.23
A127: 1.4.31 | B127: Блок сигнально-пусковой адресный | C127: шт. | D127: 96 | E127: 4192 | F127: 402432 | G127: 4800.12 | H127: 460811.52 | I127: 863243.52
A128: 1.4.32 | B128: Кнопка "ТЕСТ" | C128: шт. | D128: 96 | E128: 1572 | F128: 150912 | G128: 1625 | H128: 156000 | I128: 306912
A129: 1.4.33 | B129: Шкаф контрольно пусковой ШКП-10RS (М) | C129: шт. | D129: 1 | E129: 5895 | F129: 5895 | G129: 40714.13 | H129: 40714.13 | I129: 46609.13
A130: 1.4.34 | B130: Шкаф контрольно пусковой ШКП-18RS (М) | C130: шт. | D130: 1 | E130: 5895 | F130: 5895 | G130: 42423.73 | H130: 42423.73 | I130: 48318.73
A131: 1.4.35 | B131: Преобразователь интерфейса | C131: шт. | D131: 1 | E131: 3406 | F131: 3406 | G131: 4581.25 | H131: 4581.25 | I131: 7987.25
A132: 1.4.36 | B132: Коммутатор сетевой гигабитный 6 портовый | C132: шт. | D132: 1 | E132: 3406 | F132: 3406 | G132: 11700 | H132: 11700 | I132: 15106
A133: 1.4.37 | B133: Блок питания | C133: шт. | D133: 1 | E133: 3930 | F133: 3930 | G133: 3325.4 | H133: 3325.4 | I133: 7255.4
A134: 1.4.38 | B134: Лоток перфорированный 100х50х3000 | C134: м | D134: 585 | E134: 497.8 | F134: =D134*E134 -> 291213 | G134: 699.4 | H134: =D134*G134 -> 409149 | I134: 700362
A135: 1.4.39 | B135: Перегородка для лотка | C135: м | D135: 585 | E135: 131 | F135: =D135*E135 -> 76635 | G135: 380.64 | H135: =D135*G135 -> 222674.4 | I135: 299309.4
A136: 1.4.40 | B136: Крышка с заземлением на лоток основание 100 L3000 | C136: м | D136: 585 | E136: 157.2 | F136: =D136*E136 -> 91962 | G136: 271.99 | H136: =D136*G136 -> 159114.15 | I136: 251076.15
A137: 1.4.41 | B137: Угол CPO 90 горизонтальный 90° 100х50 | C137: шт. | D137: 10 | E137: 1572 | F137: =D137*E137 -> 15720 | G137: 2107.04 | H137: =D137*G137 -> 21070.4 | I137: 36790.4
A138: 1.4.42 | B138: Угол CS 90 вертикальный внутренний 90° 100х50 | C138: шт. | D138: 12 | E138: 1572 | F138: =D138*E138 -> 18864 | G138: 2459.6 | H138: =D138*G138 -> 29515.2 | I138: 48379.2
A139: 1.4.43 | B139: Лоток 50х50 L=3000 перфорированный | C139: м. | D139: 150 | E139: 838.4 | F139: 125760 | G139: 487.5 | H139: 73125 | I139: 198885
A140: 1.4.44 | B140: Крышка с заземлением на лоток основание 50 L3000 | C140: м. | D140: 150 | E140: 157.2 | F140: 23580 | G140: 223.15 | H140: 33472.5 | I140: 57052.5
A141: 1.4.45 | B141: Крышка S5 CPO90 90х100 угла горизонтального | C141: шт. | D141: 10 | E141: 157.2 | F141: 1572 | G141: 1091.22 | H141: 10912.2 | I141: 12484.2
A142: 1.4.46 | B142: Крышка S5 CS90 90x100 угла вертикального внутреннего | C142: шт. | D142: 12 | E142: 157.2 | F142: 1886.4 | G142: 837.23 | H142: 10046.76 | I142: =E142*D142+G142*D142 -> 11933.16
A143: 1.4.47 | B143: Ответвитель S5 DL 100x50 горизонтальный | C143: шт. | D143: 5 | E143: 1572 | F143: 7860 | G143: 2626.01 | H143: 13130.05 | I143: 20990.05
A144: 1.4.48 | B144: Крышка S5 DL 100х50 ответвителя горизонтального | C144: шт. | D144: 5 | E144: 157.2 | F144: 786 | G144: 1305.85 | H144: 6529.25 | I144: 7315.25
A145: 1.4.49 | B145: Угол S5 CD90 90x50x50 вертикальный внешний | C145: шт. | D145: 16 | E145: 1572 | F145: 25152 | G145: 2555.81 | H145: 40892.96 | I145: 66044.96
A146: 1.4.50 | B146: Крышка S5 CD90 90x50 угла вертикального внешнего | C146: шт. | D146: 16 | E146: 157.2 | F146: 2515.2 | G146: 829.61 | H146: 13273.76 | I146: 15788.96
A147: 1.4.51 | B147: Ответвитель S5 DL 50x50 горизонтальный | C147: шт. | D147: 16 | E147: 1572 | F147: 25152 | G147: 2373.29 | H147: 37972.64 | I147: 63124.64
A148: 1.4.52 | B148: Крышка S5 DL 50х50 ответвителя горизонтального | C148: шт. | D148: 16 | E148: 157.2 | F148: 2515.2 | G148: 1109.56 | H148: 17752.96 | I148: 20268.16
A149: 1.4.53 | B149: Кронштейн индивидуального изготовления L=1250 | C149: шт. | D149: 210 | E149: 540.77 | F149: 113561.7 | G149: 2018.64 | H149: 423914.4 | I149: 537476.1
A150: 1.4.54 | B150: Кронштейн юстировочный для монтажа линейного извещателя | C150: шт. | D150: 24 | E150: 1572 | F150: 37728 | G150: 1560 | H150: 37440 | I150: 75168
A151: 1.4.55 | B151: Стандартный анкер с болтом М8 | C151: шт. | D151: 800 | E151: 32.75 | F151: =D151*E151 -> 26200 | G151: 107.93 | H151: =D151*G151 -> 86344 | I151: 112544
A152: 1.4.56 | B152: Винт для электрического соединения М5х8 | C152: шт. | D152: 100 | E152: 19.65 | F152: 1965 | G152: 13.26 | H152: 1326 | I152: 3291
A153: 1.4.57 | B153: Коробка огнестойкая 100х100х50мм | C153: шт. | D153: 175 | E153: 1048 | F153: 183400 | G153: 1383.16 | H153: 242053 | I153: 425453
A154: 1.4.58 | B154: Кабель огнестойкий КПСЭнг(А)-FRHF 1х2х1,0 | C154: м | D154: 6400 | E154: 162.44 | F154: 1039616 | G154: 53.35 | H154: 341440 | I154: 1381056
A155: 1.4.59 | B155: Кабель огнестойкий КПСЭнг(А)-FRHF 1х2х1,5 | C155: м | D155: 2500 | E155: 162.44 | F155: 406100 | G155: 107.82 | H155: 269550 | I155: 675650
A156: 1.4.60 | B156: Кабель огнестойкий КПСЭнг(А)-FRHF 2х2х0,75 | C156: м | D156: 400 | E156: 162.44 | F156: 64976 | G156: 101.09 | H156: 40436 | I156: 105412
A157: 1.4.61 | B157: Кабель огнестойкий КПСЭнг(А)-FRHF 2х2х0,5 | C157: м | D157: 750 | E157: 162.44 | F157: 121830 | G157: 111.72 | H157: 83790 | I157: 205620
A158: 1.4.62 | B158: Кабель силовой огнестойкий ППГ нг(А)-FRHF 3х1.5 | C158: м | D158: 1300 | E158: 162.44 | F158: 211172 | G158: 131.98 | H158: 171574 | I158: 382746
A159: 1.4.63 | B159: Труба гофрированная ПВХ легкая серая D20 | C159: м | D159: 4000 | E159: 45.85 | F159: 183400 | G159: 28.08 | H159: 112320 | I159: 295720
A160: 1.4.64 | B160: Скоба металлическая однолапковая Д20 | C160: шт. | D160: 8000 | E160: 6.55 | F160: 52400 | G160: 3.38 | H160: 27040 | I160: 79440
A161: 1.4.65 | B161: Металлический дюбель для газобетона 6х32 | C161: шт. | D161: 8000 | E161: 6.55 | F161: 52400 | G161: 19.34 | H161: 154720 | I161: 207120
A162: 1.4.66 | B162: Саморез с пресс-шайбой 4.2х32 | C162: шт. | D162: 8000 | E162: 6.55 | F162: 52400 | G162: 2.37 | H162: 18960 | I162: 71360
A163: 1.4.67 | B163: Аксессуары (расходные материалы, крепеж) | C163: компл. | D163: 1 | E163: 0 | G163: 53352 | H163: 53352 | I163: 53352
A164: 1.4.68 | B164: Пуско-наладочные работы, приемо-сдаточные работы | C164: компл. | D164: 1 | E164: 515458.8 | F164: =D164*E164 -> 515458.8 | G164: 0 | I164: 515458.8
A165: 1.4.69 | B165: Аренда вышки 28 м | C165: ч | D165: 152 | E165: 0 | G165: 0
A166: 1.4.70 | B166: Автоматизация управления воротами | E166: 0 | G166: 0
A167: 1.4.70.1 | B167: Пульт контроля и управления | C167: шт. | D167: 1 | E167: 3406 | F167: =D167*E167 -> 3406 | G167: 14788.18 | H167: =D167*G167 -> 14788.18 | I167: =E167*D167+G167*D167 -> 18194.18
A168: 1.4.70.2 | B168: Прибор приемно-контрольный охранно-пожарный | C168: шт. | D168: 2 | E168: 3406 | F168: 6812 | G168: 4655.04 | H168: 9310.08 | I168: 16122.08
A169: 1.4.70.3 | B169: Щит с монтажной панелью 600х600х250 ЩМПг-60.60.25 IP54 | C169: шт. | D169: 2 | E169: 6550 | F169: 13100 | G169: 19718.4 | H169: 39436.8 | I169: 52536.8
A170: 1.4.70.4 | B170: Источник питания резервированный | C170: шт. | D170: 2 | E170: 3930 | F170: 7860 | G170: 10308.48 | H170: 20616.96 | I170: 28476.96
A171: 1.4.70.5 | B171: Аккумулятор 12 В, 17 А/ч | C171: шт. | D171: 2 | E171: 524 | F171: 1048 | G171: 7368.4 | H171: 14736.8 | I171: 15784.8
A172: 1.4.70.6 | B172: Светофор двухцветный светодиодный | C172: шт. | D172: 4 | E172: 5502 | F172: 22008 | G172: 19958.64 | H172: 79834.56 | I172: 101842.56
A173: 1.4.70.7 | B173: Устройство коммутационное | C173: шт. | D173: 6 | E173: 3406 | F173: 20436 | G173: 1774.5 | H173: 10647 | I173: 31083
A174: 1.4.70.8 | B174: Извещатель охранный точечный магнитоконтактный | C174: шт. | D174: 6 | E174: 2358 | F174: 14148 | G174: 496.08 | H174: 2976.48 | I174: 17124.48
A175: 1.4.70.9 | B175: Кабель силовой ППГнг(А)-FRHF 3х1.5 | C175: м | D175: 80 | E175: 162.44 | F175: 12995.2 | G175: 131.98 | H175: 10558.4 | I175: 23553.6
A176: 1.4.70.10 | B176: Кабель огнестойкий КПСЭнг(А)-FRHF 2х2х0,75 | C176: м | D176: 350 | E176: 162.44 | F176: 56854 | G176: 101.09 | H176: 35381.5 | I176: 92235.5
A177: 1.4.70.11 | B177: Кабель огнестойкий КПСЭнг(А)-FRHF 1х2х1,0 | C177: м | D177: 250 | E177: 162.44 | F177: 40610 | G177: 53.35 | H177: 13337.5 | I177: 53947.5
A178: 1.4.70.12 | B178: Коробка ответвительная с кабельными вводами IP55, 100х100х50 | C178: шт. | D178: 10 | E178: 655 | F178: 6550 | G178: 142.58 | H178: 1425.8 | I178: 7975.8
A179: 1.4.70.13 | B179: Труба гофрированная ПВХ легкая серая D20 | C179: м | D179: 300 | E179: 45.85 | F179: 13755 | G179: 28.08 | H179: 8424 | I179: 22179
A180: 1.4.70.14 | B180: Аксессуары (расходные материалы, крепеж) | C180: компл | D180: 1 | E180: 0 | G180: 6864 | H180: 6864 | I180: 6864
A181: 1.4.70.15 | B181: Пуско-наладочные работы | C181: компл | D181: 1 | E181: 119808 | F181: =D181*E181 -> 119808 | G181: 0 | I181: 119808
A182: 1.5 | B182: 130-23-ОВ2 Отопление и вентиляция | F182: =F183+F184+F185+F186+F187+F188+F189+F191+F190+F193+F194+F195 -> 25059055.14 | H182: =H183+H184+H185+H186+H187+H188+H189+H191+H190+H193+H194+H195 -> 60268026 | I182: =I183+I184+I185+I186+I187+I188+I189+I191+I190+I193+I194+I195 -> 85327081.14
A183: 1.5.1 | B183: Монтаж приточной системы | C183: к-т | D183: 6 | E183: 125450 | F183: =D183*E183 -> 752700 | G183: 982545 | H183: =D183*G183 -> 5895270 | I183: =E183*D183+G183*D183 -> 6647970
A184: 1.5.2 | B184: Монтаж вытяжных и приточно-вытяжных систем | C184: к-т | D184: 7 | E184: 29545 | F184: 206815 | G184: 469586 | H184: 3287102 | I184: 3493917
A185: 1.5.3 | B185: Монтаж комплектов автоматики | C185: к-т | D185: 13 | E185: 102635.07 | F185: 1334255.91 | G185: 309219.34 | H185: 4019851.42 | I185: 5354107.33
A186: 1.5.4 | B186: Монтаж воздухораспределителей | C186: шт | D186: 80 | E186: 4332.6 | F186: 346608 | G186: 10463.97 | H186: 837117.6 | I186: 1183725.6
A187: 1.5.5 | B187: Прокладка воздуховодов из оцинкованой стали | C187: м2 | D187: 3033.8 | E187: 2655.59 | F187: 8056528.942 | G187: 1958 | H187: 5940180.4 | I187: 13996709.34
A188: 1.5.6 | B188: Монтаж клапанов огнезадерживающих | C188: шт | D188: 8 | E188: 11973.06 | F188: 95784.48 | G188: 32008.28 | H188: 256066.24 | I188: 351850.72
A189: 1.5.7 | B189: Монтаж фильтрационных агрегатов | C189: к-т | D189: 12 | E189: 637410.63 | F189: 7648927.56 | G189: 2625837.9 | H189: 31510054.8 | I189: 39158982.36
A190: 1.5.8 | B190: Монтаж воздушно-тепловых завес | C190: к-т | D190: 14 | E190: 46198.46 | F190: 646778.44 | G190: 372209.5 | H190: 5210933 | I190: 5857711.44
A191: 1.5.9 | B191: Прокладка воздуховодов из оцинкованой стали | C191: м2 | D191: 690.2 | E191: 3758 | F191: 2593771.6 | G191: 1100 | H191: 759220 | I191: 3352991.6
A192: 1.5.10 | B192: Теплоснабжение | E192: 0 | G192: 0
A193: 1.5.11 | B193: Прокладка трубопроводов теплоснабжения | C193: п.м. | D193: 248 | E193: 2887.52 | F193: =D193*E193 -> 716104.96 | G193: 4676.73 | H193: =D193*G193 -> 1159829.04 | I193: =E193*D193+G193*D193 -> 1875934
A194: 1.5.12 | B194: Прокладка кабелей системы автоматизации вентиляции | C194: к-т | D194: 1 | E194: 1432280.25 | F194: =D194*E194 -> 1432280.25 | G194: 1392401.5 | H194: =D194*G194 -> 1392401.5 | I194: =E194*D194+G194*D194 -> 2824681.75
A195: 1.5.13 | B195: Пуско-наладочные работы | C195: к-т | D195: 1 | E195: 1228500 | F195: =D195*E195 -> 1228500 | G195: 0 | I195: =E195*D195+G195*D195 -> 1228500
A196: 1.6 | B196: 130-23-ОВ1 Отопление, вентиляция и кондиционирование | F196: =F197+F198+F199+F201+F203+F204+F205+F206+F207+F208+F209+F210+F212+F213+F214+F215+F216+F217 -> 5158915.15 | H196: =H197+H198+H199+H201+H203+H204+H205+H206+H207+H208+H209+H210+H212+H213+H214+H215+H216+H217 -> 6202448.88 | I196: =I197+I198+I199+I201+I203+I204+I205+I206+I207+I208+I209+I210+I212+I213+I214+I215+I216+I217 -> 11361364.03
A197: 1.6.1 | B197: Монтаж отопительных приборов в комплекте с запорно-регулирующей арматурой | C197: шт. | D197: 58 | E197: 7205 | F197: =D197*E197 -> 417890 | G197: 17301.59 | H197: =D197*G197 -> 1003492.22 | I197: =E197*D197+G197*D197 -> 1421382.22
A198: 1.6.2 | B198: Прокладка трубопроводов отопления в изоляции | C198: п.м. | D198: 1059 | E198: 1451.67 | F198: =D198*E198 -> 1537318.53 | G198: 811.65 | H198: =D198*G198 -> 859537.35 | I198: =E198*D198+G198*D198 -> 2396855.88
A199: 1.6.3 | B199: Насос циркуляционный | C199: шт | D199: 1 | E199: 39090 | F199: =D199*E199 -> 39090 | G199: 204170 | H199: =D199*G199 -> 204170 | I199: =E199*D199+G199*D199 -> 243260
A200: 1.6.4 | B200: Теплоснабжение установки П1 | E200: 0 | G200: 0
A201: 1.6.4.1 | B201: Прокладка трубопроводов теплоснабжения в изоляции | C201: п.м. | D201: 390 | E201: 1239.46 | F201: =D201*E201 -> 483389.4 | G201: 505.48 | H201: =D201*G201 -> 197137.2 | I201: =E201*D201+G201*D201 -> 680526.6
A202: 1.6.5 | B202: Вентиляция | E202: 0 | G202: 0
A203: 1.6.5.1 | B203: Монтаж приточной системы | C203: к-т | D203: 1 | E203: 88935.9 | F203: =D203*E203 -> 88935.9 | G203: 212371.01 | H203: =D203*G203 -> 212371.01 | I203: =E203*D203+G203*D203 -> 301306.91
A204: 1.6.5.2 | B204: Монтаж узла терморегулирования | C204: к-т | D204: 1 | E204: 27333.15 | F204: 27333.15 | G204: 92996.28 | H204: 92996.28 | I204: 120329.43
A205: 1.6.5.3 | B205: Монтаж вытяжных систем | C205: к-т | D205: 6 | E205: 8541.72 | F205: 51250.32 | G205: 15825.33 | H205: 94951.98 | I205: 146202.3
A206: 1.6.5.4 | B206: Монтаж воздухораспределителей, дроссель-клапанов, зонтов | C206: шт | D206: 125 | E206: 896.04 | F206: 112005 | G206: 784.68 | H206: 98085 | I206: 210090
A207: 1.6.5.5 | B207: Прокладка воздуховодов из оцинкованой стали | C207: м2 | D207: 294.5 | E207: 1375.5 | F207: 405084.75 | G207: 1858.42 | H207: 547304.69 | I207: 952389.44
A208: 1.6.5.6 | B208: Монтаж противодымных систем ПД1, ДУ1 | C208: к-т | D208: 2 | E208: 100586.39 | F208: 201172.78 | G208: 266448.07 | H208: 532896.14 | I208: 734068.92
A209: 1.6.5.7 | B209: Монтаж клапанов противопожарных | C209: шт | D209: 24 | E209: 8489.24 | F209: 203741.76 | G209: 18251.23 | H209: 438029.52 | I209: 641771.28
... 606 more rows

Sheet Для печати - с кр. строками (hidden)
G1: Приложение №1 к Дополнительному соглашению №6 от 15 мая 2024г. к Договору генерального строительного подряда № МВМ/19-07 от 19 июля 2023г.
G6: Приложение №1.1 к Договору генерального строительного подряда № МВМ/19-07 от 19 июля 2023г.
A10: Стоимость работ по ремонту Объекта
E12: Стоимость работ, руб. с НДС | G12: Стоимость материалов, руб. с НДС
A13: № | B13: Наименовение | C13: Ед.изм | D13: Кол-во | E13: за ед. | F13: Итого | G13: за ед. | H13: Итого | I13: Итого, руб. с НДС
A14: 1 | B14: Основные объекты строительства, реконструкции, капитального ремонта, в том числе:
A15: 1.1 | B15: 130-23-АС3 Архитектурно-строительные решения | F15: =F18+F19+F20+F21+F23+F24+F26+F27+F28+F29+F30+F31+F33+F35+F37+F38+F39+F40+F41+F42+F43+F44+F45+F46+F47+F48+F49+F50+F51+F52+F53+F54+F55+F56+F57+F58+F60+F61+F62+F63+F65+F66+F67+F68+F69+F70+F71+F72+F73+F74+F75+F76+F77+F78+F79 -> 23834068.02 | H15: =H18+H19+H20+H21+H23+H24+H26+H27+H28+H29+H30+H31+H33+H35+H37+H38+H39+H40+H41+H42+H43+H44+H45+H46+H47+H48+H49+H50+H51+H52+H53+H54+H55+H56+H57+H58+H60+H61+H62+H63+H65+H66+H67+H68+H69+H70+H71+H72+H73+H74+H75+H76+H77+H78+H79 -> 21868543.3 | I15: =I18+I19+I20+I21+I23+I24+I26+I27+I28+I29+I30+I31+I33+I35+I37+I38+I39+I40+I41+I42+I43+I44+I45+I46+I47+I48+I49+I50+I51+I52+I53+I54+I55+I56+I57+I58+I60+I61+I62+I63+I65+I66+I67+I68+I69+I70+I71+I72+I73+I74+I75+I76+I77+I78+I79 -> 45702611.32
A16: 1.1 | B16: 130-23-АС3 Архитектурно-строительные решения | F16: =-F18-F19-F20-F21-F23-F24-F26-F27-F28-F29-F30-F31+F32+F34-F37-F38-F39-F40-F41-F42-F43-F44-F45-F46-F47-F48-F49-F50-F51-F52-F53-F54-F55-F56-F57-F58 -> -22129230.51 | H16: =-H18-H19-H20-H21-H23-H24-H26-H27-H28-H29-H30-H31+H32+H34-H37-H38-H39-H40-H41-H42-H43-H44-H45-H46-H47-H48-H49-H50-H51-H52-H53-H54-H55-H56-H57-H58 -> -20718375.27 | I16: =-I18-I19-I20-I21-I23-I24-I26-I27-I28-I29-I30-I31+I32+I34-I37-I38-I39-I40-I41-I42-I43-I44-I45-I46-I47-I48-I49-I50-I51-I52-I53-I54-I55-I56-I57-I58 -> -42847605.78
A17: 1.1.1 | B17: Демонтажные работы
A18: 1.1.1.1 | B18: Частичный демонтаж крестовых связей | C18: тн | D18: 0.44 | E18: 49415 | F18: =D18*E18 -> 21742.6 | G18: 0 | I18: =E18*D18+G18*D18 -> 21742.6
A19: 1.1.1.2 | B19: Демонтаж сэндвич панелей | C19: м2 | D19: 389.4 | E19: 990 | F19: =D19*E19 -> 385506 | G19: 0 | I19: =E19*D19+G19*D19 -> 385506
A20: 1.1.2 | B20: Устройство фахверка | C20: тн | D20: 0.34 | E20: 95478 | F20: =D20*E20 -> 32462.52 | G20: 229000 | H20: =D20*G20 -> 77860 | I20: =E20*D20+G20*D20 -> 110322.52
A21: 1.1.3 | B21: Устройство сэндвич панелей | C21: м2 | D21: 389.4 | E21: 2711 | F21: =D21*E21 -> 1055663.4 | G21: 6573 | H21: =D21*G21 -> 2559526.2 | I21: =E21*D21+G21*D21 -> 3615189.6
A22: 1.1.4 | B22: Устройство перегородок | E22: 0 | G22: 0
A23: 1.1.4.1 | B23: Перегородки гипсокартонные типа С112 комплексной системы КНАУФ толщиной 100 мм с облицовкой 2мя листами ГКЛ (толщиной 12,5мм) со звукоизолирующим слоем из минераловатных плит Лайт Баттс толщиной 50 мм | C23: м2 | D23: 536 | E23: 4955 | F23: =D23*E23 -> 2655880 | G23: 4501 | H23: =D23*G23 -> 2412536 | I23: =E23*D23+G23*D23 -> 5068416
A24: 1.1.4.2 | B24: Устройство отверстий под воздуховоды | C24: шт | D24: 2 | E24: 8577.88 | F24: =D24*E24 -> 17155.76 | G24: 4657.25 | H24: =D24*G24 -> 9314.5 | I24: =E24*D24+G24*D24 -> 26470.26
A25: 1.1.5 | B25: Отделка потолков помещений | E25: 0 | G25: 0
A26: 1.1.5.1 | B26: Подвесной потолок системы "Армстронг" | C26: м2 | D26: 301.4 | E26: 3957.07 | F26: =D26*E26 -> 1192660.898 | G26: 0 | I26: =E26*D26+G26*D26 -> 1192660.898
A27: 1.1.5.2 | B27: Подвесной потолок системы с шумоглушением | C27: м2 | D27: 168.8 | E27: 1131.76 | F27: 191041.088 | G27: 3051.39 | H27: =D27*G27 -> 515074.632 | I27: 706115.72
A28: 1.1.5.3 | B28: Реечный алюминиевый потолок | C28: м2 | D28: 111.8 | E28: 7888.98 | F28: 881987.964 | G28: 0 | I28: 881987.964
A29: 1.1.5.4 | B29: Затирка бетонной поверхности перекрытия перед устройством потолка | C29: м2 | D29: 206.75 | E29: 1134.79 | F29: 234617.8325 | G29: 719.09 | H29: =D29*G29 -> 148671.8575 | I29: 383289.69
A30: 1.1.5.5 | B30: Устроиство базового слоя шпаклевки | C30: м2 | D30: 69.4 | E30: 888.18 | F30: 61639.692 | G30: 462.8 | H30: =D30*G30 -> 32118.32 | I30: 93758.012
A31: 1.1.5.6 | B31: Устроиство финишного слоя шпаклевки | C31: м2 | D31: 69.4 | E31: 1277.25 | F31: 88641.15 | G31: 397.79 | H31: =D31*G31 -> 27606.626 | I31: 116247.776
A32: 1.1.5.7 | B32: Окраска потолка силикатной краской за 2 раза | C32: м2 | D32: -138.8 | E32: 635.48 | F32: =E32*D32 -> -88204.624 | G32: 740.97 | H32: =G32*D32 -> -102846.636 | I32: -191051.26
A33: 1.1.5.7 | B33: Окраска потолка силикатной краской за 2 раза | C33: м2 | D33: 69.4 | E33: 635.48 | F33: =D33*E33 -> 44102.312 | G33: 740.97 | H33: =D33*G33 -> 51423.318 | I33: 95525.63
A34: 1.1.5.8 | B34: Грунтовка поверхностей перед окрашиванием | C34: м2 | D34: -138.8 | E34: 75.65 | F34: =E34*D34 -> -10500.22 | G34: 42.3 | H34: =G34*D34 -> -5871.24 | I34: -16371.46
A35: 1.1.5.8 | B35: Грунтовка поверхностей перед окрашиванием | C35: м2 | D35: 69.4 | E35: 75.65 | F35: =D35*E35 -> 5250.11 | G35: 42.3 | H35: =D35*G35 -> 2935.62 | I35: 8185.73
A36: 1.1.6 | B36: Полы помещений | E36: 0 | G36: 0
A37: 1.1.6.1 | B37: Очистка поверхности от грязи и мусора | C37: м2 | D37: 352.5 | E37: 378 | F37: =D37*E37 -> 133245 | G37: 72.93 | H37: =D37*G37 -> 25707.825 | I37: =E37*D37+G37*D37 -> 158952.825
A38: 1.1.6.2 | B38: Устройство пола из бетона кл. В25 толщиной до 100 мм | C38: м3 | D38: 7.87 | E38: 13208 | F38: 103946.96 | G38: 14998 | H38: 118034.26 | I38: 221981.22
